Workbook

Sheet index
A2: 平成27年度下水道事業比較経営診断表
B4: 都道府県名 | K4: 処理区域内人口別区分 | O4: 処理区域内人口 （人） | Q4: 2106
B5: 団体名 | K5: 有収水量密度別区分 | L5: 2.5千m3/ｈa未満 | O5: 有収水量密度 （千㎥/ｈa) | Q5: 0
B6: 事業名 | K6: 供用開始後年数別区分 | L6: 15年以上25年未満 | O6: 供用開始後年数 (年） | Q6: 17
A8: 項 目 | E8: 団 体 | G8: 類型平均 | H8: 全国平均 | I8: 類型内 順 位 | J8: 項 目 | M8: 団 体 | O8: 類型平均 | P8: 全国平均 | Q8: 類型内 順 位
E9: 26年度 | F9: 27年度 | H9: (個別処理) | M9: 26年度 | N9: 27年度 | P9: (個別処理)
A10: 事業の概要 | J10: 財政状態の健全性
A11: 事業別普及率 | D11: ％ | E11: 1.2 | F11: 1.3 | G11: － | H11: 1.2 | I11: － | J11: 総収支比率 | L11: ％ | M11: 137.7 | N11: 145.2 | O11: 122.3 | P11: 117.5 | Q11: 18/72
A12: 進捗率 | D12: ％ | E12: 115.8 | F12: 120.3 | G12: 84.7 | H12: 66.9 | I12: － | J12: 経常収支比率 | L12: ％ | M12: 0 | N12: 0 | O12: 0 | P12: － | Q12: －
A13: 一般家庭用使用料 （1ヶ月20㎥あたり） | D13: 円／月 | E13: 2916 | F13: 2916 | G13: 3399 | H13: 3353 | I13: － | J13: 事業別資金不足比率 | L13: ％ | M13: 0 | N13: 0 | O13: 0 | P13: 0.3 | Q13: 1/72
A14: 処理区域内人口密度 | D14: 人／ha | E14: 0 | F14: 0 | G14: 0 | H14: 0 | I14: － | J14: 利子負担率 | L14: ％ | M14: 0 | N14: 0 | O14: 1.8 | P14: － | Q14: －
A15: 施設の効率性 | J15: 自己資本構成比率 | L15: ％ | M15: 0 | N15: 0 | O15: 25.6 | P15: － | Q15: －
A16: 施設利用率 | D16: ％ | E16: 59.7 | F16: 63.7 | G16: 55.4 | H16: 52 | I16: 17/72 | J16: 固定資産対長期資本比率 | L16: ％ | M16: 0 | N16: 0 | O16: 95.4 | P16: － | Q16: －
A17: 有収率 | D17: ％ | E17: 100 | F17: 100 | G17: 100 | H17: 100 | I17: 1/72 | J17: 処理区域内人口１人あたり の地方債現在高 | L17: 千円／人 | M17: 302 | N17: 295 | O17: 198 | P17: 200 | Q17: 53/72
A18: 水洗化率 | D18: ％ | E18: 99.7 | F18: 99.9 | G18: 82.3 | H18: 80.4 | I18: 44/72
A19: 経営の効率性
A20: 使用料単価 | D20: 円／㎥ | E20: 161.02 | F20: 159.5 | G20: 147.98 | H20: 153.32 | I20: 43/72
A21: 汚水処理原価 | D21: 円／㎥ | E21: 224.24 | F21: 228.75 | G21: 267.37 | H21: 295.51 | I21: 16/72
A22: 汚水処理原価(分流式下水道 等に要する経費控除前） | D22: 円／㎥ | E22: 353.46 | F22: 347.34 | G22: 362.98 | H22: 394.49 | I22: 20/72
A23: 汚水処理原価 （維持管理費） | D23: 円／㎥ | E23: 212.72 | F23: 209.25 | G23: 240.53 | H23: 260.35 | I23: 19/72
A24: 汚水処理原価 （資本費） | D24: 円／㎥ | E24: 11.53 | F24: 19.5 | G24: 26.85 | H24: 35.16 | I24: 36/72
A25: 経費回収率 | D25: ％ | E25: 71.8 | F25: 69.7 | G25: 55.3 | H25: 51.9 | I25: 19/72
A26: 経費回収率(分流式下水道 等に要する経費控除前） | D26: ％ | E26: 45.6 | F26: 45.9 | G26: 40.8 | H26: 38.9 | I26: 17/72
A27: 経費回収率 （維持管理費） | D27: ％ | E27: 75.7 | F27: 76.2 | G27: 61.5 | H27: 58.9 | I27: 17/72
A28: 処理区域内人口1人あたり の管理運営費(汚水分） | D28: 円／人 | E28: 15243 | F28: 15930 | G28: 18520 | H28: 19904 | I28: 17/72
A29: 処理区域内人口1人あたり の維持管理費（汚水分） | D29: 円／人 | E29: 14459 | F29: 14572 | G29: 16661 | H29: 17535 | I29: 25/72
A30: 処理区域内人口1人あたり の資本費（汚水分） | D30: 円／人 | E30: 783 | F30: 1358 | G30: 1859 | H30: 2368 | I30: 36/72
A31: 職員１人あたりの 処理区域内人口 | D31: 人／人 | E31: 0 | F31: 0 | G31: 6555 | H31: 3937 | I31: 8/72
A32: 職員給与費対営業収益比率 | D32: ％ | E32: 0 | F32: 0 | G32: 6.6 | H32: 8.6 | I32: 1/72
A34: 経 営 状 況
A35: 収 益 的 収 支 | J35: 資 本 的 収 支
A36: 項 目 | E36: 26年度 | F36: 27年度 | G36: 増減額 | H36: 増減率（％） | J36: 項 目 | M36: 26年度 | N36: 27年度 | O36: 増減額 | P36: 増減率（％）
A37: 収 入 | D37: 百万円 | E37: 56 | F37: 61 | G37: 5 | H37: 8.196721311 | J37: 収 入 | L37: 百万円 | M37: 40 | N37: 44 | O37: 4 | P37: 9.090909091
B38: 料金収入 | D38: 百万円 | E38: 22 | F38: 23 | G38: 1 | H38: 4.347826087 | K38: 地方債 | L38: 百万円 | M38: 26 | N38: 30 | O38: 4 | P38: 13.33333333
B39: 繰入金 | D39: 百万円 | E39: 31 | F39: 7 | G39: -24 | H39: -342.8571429 | K39: 繰入金 | L39: 百万円 | M39: 6 | N39: 7 | O39: 1 | P39: 14.28571429
A40: 支 出 | D40: 百万円 | E40: 40 | F40: 42 | G40: 2 | H40: 4.761904762 | J40: 支 出 | L40: 百万円 | M40: 55 | N40: 63 | O40: 8 | P40: 12.6984127
B41: 支払利息 | D41: 百万円 | E41: 11 | F41: 11 | G41: 0 | H41: 0 | K41: 建設改良費 | L41: 百万円 | M41: 37 | N41: 43 | O41: 6 | P41: 13.95348837
B42: 減価償却費 | D42: 百万円 | E42: 0 | F42: 0 | G42: 0 | H42: 0 | K42: 元金償還金 | L42: 百万円 | M42: 19 | N42: 20 | O42: 1 | P42: 5
B43: 職員給与費 | D43: 百万円 | E43: 0 | F43: 0 | G43: 0 | H43: 0 | J43: 収 支 差 引 | L43: 百万円 | M43: -15 | N43: -19 | O43: -4 | P43: 21.05263158
A44: 収 支 差 引 | D44: 百万円 | E44: 15 | F44: 19 | G44: 4 | H44: 21.05263158 | J44: 収 支 再 差 引 （法適：純損益） | L44: 百万円 | M44: 0 | N44: 0 | O44: 0 | P44: 0
A46: ※「類型内順位」については
A47: の場合であれば指標の数値の高い方から、
A48: の場合であれば指標の数値が低い方から数えた順位となる
F49: 団体 | G49: 類型平均 | H49: 全国平均
F50: =+IF(IF(G17<>0,F17/G17,0)>0.6,IF(IF(G17<>0,F17/G17)<1.5,IF(G17<>0,F17/G17),1.5),0.6) -> 1 | G50: =+IF(IF(G17<>0,G17/G17,0)>0.6,IF(IF(G17<>0,G17/G17,0)<1.5,IF(G17<>0,G17/G17,0),1.5),0.6) -> 1 | H50: =+IF(IF(G17<>0,H17/G17,0)>0.6,IF(IF(G17<>0,H17/G17,0)<1.5,IF(G17<>0,H17/G17,0),1.5),0.6) -> 1
F51: =+IF(IF(G25<>0,F25/G25,0)>0.6,IF(IF(G25<>0,F25/G25,0)<1.5,IF(G25<>0,F25/G25,0),1.5),0.6) -> 1.26039783 | G51: =+IF(IF(G25<>0,G25/G25,0)>0.6,IF(IF(G25<>0,G25/G25,0)<1.5,IF(G25<>0,G25/G25,0),1.5),0.6) -> 1 | H51: =+IF(IF(G25<>0,H25/G25,0)>0.6,IF(IF(G25<>0,H25/G25,0)<1.5,IF(G25<>0,H25/G25,0),1.5),0.6) -> 0.938517179
F52: =+IF(IF(G26<>0,F26/G26,0)>0.6,IF(IF(G26<>0,F26/G26,0)<1.5,IF(G26<>0,F26/G26,0),1.5),0.6) -> 1.125 | G52: =+IF(IF(G26<>0,G26/G26,0)>0.6,IF(IF(G26<>0,G26/G26,0)<1.5,IF(G26<>0,G26/G26,0),1.5),0.6) -> 1 | H52: =+IF(IF(G26<>0,H26/G26,0)>0.6,IF(IF(G26<>0,H26/G26,0)<1.5,IF(G26<>0,H26/G26,0),1.5),0.6) -> 0.9534313725
F53: =+IF(IF(G22<>0,G22/F22,0)>0.6,IF(IF(G22<>0,G22/F22,0)<1.5,IF(G22<>0,G22/F22,0),1.5),0.6) -> 1.045027927 | G53: =+IF(IF(G22<>0,G22/G22,0)>0.6,IF(IF(G22<>0,G22/G22,0)<1.5,IF(G22<>0,G22/G22,0),1.5),0.6) -> 1 | H53: =+IF(IF(G22<>0,G22/H22,0)>0.6,IF(IF(G22<>0,G22/H22,0)<1.5,IF(G22<>0,G22/H22,0),1.5),0.6) -> 0.920124718
F54: =+IF(IF(G18<>0,F18/G18,0)>0.6,IF(IF(G18<>0,F18/G18,0)<1.5,IF(G18<>0,F18/G18,0),1.5),0.6) -> 1.213851762 | G54: =+IF(IF(G18<>0,G18/G18,0)>0.6,IF(IF(G18<>0,G18/G18,0)<1.5,IF(G18<>0,G18/G18,0),1.5),0.6) -> 1 | H54: =+IF(IF(G18<>0,H18/G18,0)>0.6,IF(IF(G18<>0,H18/G18,0)<1.5,IF(G18<>0,H18/G18,0),1.5),0.6) -> 0.9769137303

Sheet 27収支
A1: 決算年度 | B1: 業務コード | C1: 業種コード | D1: 事業コード | E1: 並び順 | F1: 事業区分 | G1: 団体コード | H1: 都道府県 | I1: 団体名 | J1: 収入 | K1: 料金収入 | L1: 繰入金 | M1: 支出 | N1: 支払利息 | O1: 減価償却費 | P1: 職員給与費 | Q1: 収支差引 | R1: 収入 | S1: 地方債 | T1: 繰入金 | U1: 支出 | V1: 建設改良費 | W1: 元金償還金 | X1: 収支差引 | Y1: 収支再差引
A2: 2015 | B2: 46 | C2: 17 | D2: 1 | E2: 1 | F2: 公共 | G2: 011002 | H2: 北海道 | I2: 札幌市 | J2: =IF(千円単!J2="","",ROUND(千円単!J2/1000,0)) -> 52316 | K2: =IF(千円単!K2="","",ROUND(千円単!K2/1000,0)) -> 19453 | L2: =IF(千円単!L2="","",ROUND(千円単!L2/1000,0)) -> 20003 | M2: =IF(千円単!M2="","",ROUND(千円単!M2/1000,0)) -> 47363 | N2: =IF(千円単!N2="","",ROUND(千円単!N2/1000,0)) -> 5352 | O2: =IF(千円単!O2="","",ROUND(千円単!O2/1000,0)) -> 24813 | P2: =IF(千円単!P2="","",ROUND(千円単!P2/1000,0)) -> 3257 | Q2: =IF(千円単!Q2="","",ROUND(千円単!Q2/1000,0)) -> 4953 | R2: =IF(千円単!R2="","",ROUND(千円単!R2/1000,0)) -> 18088 | S2: =IF(千円単!S2="","",ROUND(千円単!S2/1000,0)) -> 12103 | T2: =IF(千円単!T2="","",ROUND(千円単!T2/1000,0)) -> 772 | U2: =IF(千円単!U2="","",ROUND(千円単!U2/1000,0)) -> 36797 | V2: =IF(千円単!V2="","",ROUND(千円単!V2/1000,0)) -> 16030 | W2: =IF(千円単!W2="","",ROUND(千円単!W2/1000,0)) -> 20739 | X2: =IF(千円単!X2="","",ROUND(千円単!X2/1000,0)) -> -18709 | Y2: =IF(千円単!Y2="","",ROUND(千円単!Y2/1000,0)) -> 4953
A3: 2015 | B3: 46 | C3: 17 | D3: 1 | E3: 2 | F3: 公共 | G3: 012025 | H3: 北海道 | I3: 函館市 | J3: =IF(千円単!J3="","",ROUND(千円単!J3/1000,0)) -> 7463 | K3: =IF(千円単!K3="","",ROUND(千円単!K3/1000,0)) -> 4298 | L3: =IF(千円単!L3="","",ROUND(千円単!L3/1000,0)) -> 1190 | M3: =IF(千円単!M3="","",ROUND(千円単!M3/1000,0)) -> 6509 | N3: =IF(千円単!N3="","",ROUND(千円単!N3/1000,0)) -> 1152 | O3: =IF(千円単!O3="","",ROUND(千円単!O3/1000,0)) -> 3438 | P3: =IF(千円単!P3="","",ROUND(千円単!P3/1000,0)) -> 403 | Q3: =IF(千円単!Q3="","",ROUND(千円単!Q3/1000,0)) -> 954 | R3: =IF(千円単!R3="","",ROUND(千円単!R3/1000,0)) -> 2867 | S3: =IF(千円単!S3="","",ROUND(千円単!S3/1000,0)) -> 2057 | T3: =IF(千円単!T3="","",ROUND(千円単!T3/1000,0)) -> 386 | U3: =IF(千円単!U3="","",ROUND(千円単!U3/1000,0)) -> 5353 | V3: =IF(千円単!V3="","",ROUND(千円単!V3/1000,0)) -> 1411 | W3: =IF(千円単!W3="","",ROUND(千円単!W3/1000,0)) -> 3934 | X3: =IF(千円単!X3="","",ROUND(千円単!X3/1000,0)) -> -2486 | Y3: =IF(千円単!Y3="","",ROUND(千円単!Y3/1000,0)) -> 954
A4: 2015 | B4: 46 | C4: 17 | D4: 1 | E4: 3 | F4: 公共 | G4: 012033 | H4: 北海道 | I4: 小樽市 | J4: =IF(千円単!J4="","",ROUND(千円単!J4/1000,0)) -> 4015 | K4: =IF(千円単!K4="","",ROUND(千円単!K4/1000,0)) -> 1905 | L4: =IF(千円単!L4="","",ROUND(千円単!L4/1000,0)) -> 1018 | M4: =IF(千円単!M4="","",ROUND(千円単!M4/1000,0)) -> 3459 | N4: =IF(千円単!N4="","",ROUND(千円単!N4/1000,0)) -> 342 | O4: =IF(千円単!O4="","",ROUND(千円単!O4/1000,0)) -> 1975 | P4: =IF(千円単!P4="","",ROUND(千円単!P4/1000,0)) -> 67 | Q4: =IF(千円単!Q4="","",ROUND(千円単!Q4/1000,0)) -> 556 | R4: =IF(千円単!R4="","",ROUND(千円単!R4/1000,0)) -> 1701 | S4: =IF(千円単!S4="","",ROUND(千円単!S4/1000,0)) -> 756 | T4: =IF(千円単!T4="","",ROUND(千円単!T4/1000,0)) -> 340 | U4: =IF(千円単!U4="","",ROUND(千円単!U4/1000,0)) -> 3325 | V4: =IF(千円単!V4="","",ROUND(千円単!V4/1000,0)) -> 882 | W4: =IF(千円単!W4="","",ROUND(千円単!W4/1000,0)) -> 2442 | X4: =IF(千円単!X4="","",ROUND(千円単!X4/1000,0)) -> -1623 | Y4: =IF(千円単!Y4="","",ROUND(千円単!Y4/1000,0)) -> 556
A5: 2015 | B5: 46 | C5: 17 | D5: 1 | E5: 4 | F5: 公共 | G5: 012041 | H5: 北海道 | I5: 旭川市 | J5: =IF(千円単!J5="","",ROUND(千円単!J5/1000,0)) -> 9148 | K5: =IF(千円単!K5="","",ROUND(千円単!K5/1000,0)) -> 5365 | L5: =IF(千円単!L5="","",ROUND(千円単!L5/1000,0)) -> 1057 | M5: =IF(千円単!M5="","",ROUND(千円単!M5/1000,0)) -> 8616 | N5: =IF(千円単!N5="","",ROUND(千円単!N5/1000,0)) -> 870 | O5: =IF(千円単!O5="","",ROUND(千円単!O5/1000,0)) -> 4784 | P5: =IF(千円単!P5="","",ROUND(千円単!P5/1000,0)) -> 378 | Q5: =IF(千円単!Q5="","",ROUND(千円単!Q5/1000,0)) -> 532 | R5: =IF(千円単!R5="","",ROUND(千円単!R5/1000,0)) -> 2833 | S5: =IF(千円単!S5="","",ROUND(千円単!S5/1000,0)) -> 1987 | T5: =IF(千円単!T5="","",ROUND(千円単!T5/1000,0)) -> 316 | U5: =IF(千円単!U5="","",ROUND(千円単!U5/1000,0)) -> 5400 | V5: =IF(千円単!V5="","",ROUND(千円単!V5/1000,0)) -> 1334 | W5: =IF(千円単!W5="","",ROUND(千円単!W5/1000,0)) -> 4066 | X5: =IF(千円単!X5="","",ROUND(千円単!X5/1000,0)) -> -2567 | Y5: =IF(千円単!Y5="","",ROUND(千円単!Y5/1000,0)) -> 532
A6: 2015 | B6: 46 | C6: 17 | D6: 1 | E6: 5 | F6: 公共 | G6: 012050 | H6: 北海道 | I6: 室蘭市 | J6: =IF(千円単!J6="","",ROUND(千円単!J6/1000,0)) -> 3150 | K6: =IF(千円単!K6="","",ROUND(千円単!K6/1000,0)) -> 1495 | L6: =IF(千円単!L6="","",ROUND(千円単!L6/1000,0)) -> 879 | M6: =IF(千円単!M6="","",ROUND(千円単!M6/1000,0)) -> 2696 | N6: =IF(千円単!N6="","",ROUND(千円単!N6/1000,0)) -> 294 | O6: =IF(千円単!O6="","",ROUND(千円単!O6/1000,0)) -> 1389 | P6: =IF(千円単!P6="","",ROUND(千円単!P6/1000,0)) -> 104 | Q6: =IF(千円単!Q6="","",ROUND(千円単!Q6/1000,0)) -> 454 | R6: =IF(千円単!R6="","",ROUND(千円単!R6/1000,0)) -> 1154 | S6: =IF(千円単!S6="","",ROUND(千円単!S6/1000,0)) -> 528 | T6: =IF(千円単!T6="","",ROUND(千円単!T6/1000,0)) -> 67 | U6: =IF(千円単!U6="","",ROUND(千円単!U6/1000,0)) -> 1944 | V6: =IF(千円単!V6="","",ROUND(千円単!V6/1000,0)) -> 1191 | W6: =IF(千円単!W6="","",ROUND(千円単!W6/1000,0)) -> 749 | X6: =IF(千円単!X6="","",ROUND(千円単!X6/1000,0)) -> -790 | Y6: =IF(千円単!Y6="","",ROUND(千円単!Y6/1000,0)) -> 454
A7: 2015 | B7: 46 | C7: 17 | D7: 1 | E7: 6 | F7: 公共 | G7: 012068 | H7: 北海道 | I7: 釧路市 | J7: =IF(千円単!J7="","",ROUND(千円単!J7/1000,0)) -> 6772 | K7: =IF(千円単!K7="","",ROUND(千円単!K7/1000,0)) -> 3615 | L7: =IF(千円単!L7="","",ROUND(千円単!L7/1000,0)) -> 1105 | M7: =IF(千円単!M7="","",ROUND(千円単!M7/1000,0)) -> 5180 | N7: =IF(千円単!N7="","",ROUND(千円単!N7/1000,0)) -> 631 | O7: =IF(千円単!O7="","",ROUND(千円単!O7/1000,0)) -> 2849 | P7: =IF(千円単!P7="","",ROUND(千円単!P7/1000,0)) -> 225 | Q7: =IF(千円単!Q7="","",ROUND(千円単!Q7/1000,0)) -> 1592 | R7: =IF(千円単!R7="","",ROUND(千円単!R7/1000,0)) -> 1485 | S7: =IF(千円単!S7="","",ROUND(千円単!S7/1000,0)) -> 1012 | T7: =IF(千円単!T7="","",ROUND(千円単!T7/1000,0)) -> 43 | U7: =IF(千円単!U7="","",ROUND(千円単!U7/1000,0)) -> 3554 | V7: =IF(千円単!V7="","",ROUND(千円単!V7/1000,0)) -> 1092 | W7: =IF(千円単!W7="","",ROUND(千円単!W7/1000,0)) -> 2461 | X7: =IF(千円単!X7="","",ROUND(千円単!X7/1000,0)) -> -2070 | Y7: =IF(千円単!Y7="","",ROUND(千円単!Y7/1000,0)) -> 1592
A8: 2015 | B8: 46 | C8: 17 | D8: 1 | E8: 7 | F8: 公共 | G8: 012076 | H8: 北海道 | I8: 帯広市 | J8: =IF(千円単!J8="","",ROUND(千円単!J8/1000,0)) -> 4815 | K8: =IF(千円単!K8="","",ROUND(千円単!K8/1000,0)) -> 2661 | L8: =IF(千円単!L8="","",ROUND(千円単!L8/1000,0)) -> 878 | M8: =IF(千円単!M8="","",ROUND(千円単!M8/1000,0)) -> 4340 | N8: =IF(千円単!N8="","",ROUND(千円単!N8/1000,0)) -> 619 | O8: =IF(千円単!O8="","",ROUND(千円単!O8/1000,0)) -> 2184 | P8: =IF(千円単!P8="","",ROUND(千円単!P8/1000,0)) -> 117 | Q8: =IF(千円単!Q8="","",ROUND(千円単!Q8/1000,0)) -> 475 | R8: =IF(千円単!R8="","",ROUND(千円単!R8/1000,0)) -> 1288 | S8: =IF(千円単!S8="","",ROUND(千円単!S8/1000,0)) -> 854 | T8: =IF(千円単!T8="","",ROUND(千円単!T8/1000,0)) -> 188 | U8: =IF(千円単!U8="","",ROUND(千円単!U8/1000,0)) -> 2929 | V8: =IF(千円単!V8="","",ROUND(千円単!V8/1000,0)) -> 817 | W8: =IF(千円単!W8="","",ROUND(千円単!W8/1000,0)) -> 2112 | X8: =IF(千円単!X8="","",ROUND(千円単!X8/1000,0)) -> -1641 | Y8: =IF(千円単!Y8="","",ROUND(千円単!Y8/1000,0)) -> 475
A9: 2015 | B9: 46 | C9: 17 | D9: 1 | E9: 8 | F9: 公共 | G9: 012084 | H9: 北海道 | I9: 北見市 | J9: =IF(千円単!J9="","",ROUND(千円単!J9/1000,0)) -> 4274 | K9: =IF(千円単!K9="","",ROUND(千円単!K9/1000,0)) -> 1762 | L9: =IF(千円単!L9="","",ROUND(千円単!L9/1000,0)) -> 1100 | M9: =IF(千円単!M9="","",ROUND(千円単!M9/1000,0)) -> 3971 | N9: =IF(千円単!N9="","",ROUND(千円単!N9/1000,0)) -> 637 | O9: =IF(千円単!O9="","",ROUND(千円単!O9/1000,0)) -> 2327 | P9: =IF(千円単!P9="","",ROUND(千円単!P9/1000,0)) -> 189 | Q9: =IF(千円単!Q9="","",ROUND(千円単!Q9/1000,0)) -> 303 | R9: =IF(千円単!R9="","",ROUND(千円単!R9/1000,0)) -> 2673 | S9: =IF(千円単!S9="","",ROUND(千円単!S9/1000,0)) -> 1715 | T9: =IF(千円単!T9="","",ROUND(千円単!T9/1000,0)) -> 323 | U9: =IF(千円単!U9="","",ROUND(千円単!U9/1000,0)) -> 3755 | V9: =IF(千円単!V9="","",ROUND(千円単!V9/1000,0)) -> 1513 | W9: =IF(千円単!W9="","",ROUND(千円単!W9/1000,0)) -> 2241 | X9: =IF(千円単!X9="","",ROUND(千円単!X9/1000,0)) -> -1082 | Y9: =IF(千円単!Y9="","",ROUND(千円単!Y9/1000,0)) -> 303
A10: 2015 | B10: 46 | C10: 17 | D10: 1 | E10: 9 | F10: 公共 | G10: 012106 | H10: 北海道 | I10: 岩見沢市 | J10: =IF(千円単!J10="","",ROUND(千円単!J10/1000,0)) -> 2549 | K10: =IF(千円単!K10="","",ROUND(千円単!K10/1000,0)) -> 1231 | L10: =IF(千円単!L10="","",ROUND(千円単!L10/1000,0)) -> 571 | M10: =IF(千円単!M10="","",ROUND(千円単!M10/1000,0)) -> 2145 | N10: =IF(千円単!N10="","",ROUND(千円単!N10/1000,0)) -> 342 | O10: =IF(千円単!O10="","",ROUND(千円単!O10/1000,0)) -> 1136 | P10: =IF(千円単!P10="","",ROUND(千円単!P10/1000,0)) -> 35 | Q10: =IF(千円単!Q10="","",ROUND(千円単!Q10/1000,0)) -> 403 | R10: =IF(千円単!R10="","",ROUND(千円単!R10/1000,0)) -> 1389 | S10: =IF(千円単!S10="","",ROUND(千円単!S10/1000,0)) -> 470 | T10: =IF(千円単!T10="","",ROUND(千円単!T10/1000,0)) -> 402 | U10: =IF(千円単!U10="","",ROUND(千円単!U10/1000,0)) -> 2250 | V10: =IF(千円単!V10="","",ROUND(千円単!V10/1000,0)) -> 1033 | W10: =IF(千円単!W10="","",ROUND(千円単!W10/1000,0)) -> 1217 | X10: =IF(千円単!X10="","",ROUND(千円単!X10/1000,0)) -> -861 | Y10: =IF(千円単!Y10="","",ROUND(千円単!Y10/1000,0)) -> 403
A11: 2015 | B11: 46 | C11: 17 | D11: 1 | E11: 10 | F11: 公共 | G11: 012131 | H11: 北海道 | I11: 苫小牧市 | J11: =IF(千円単!J11="","",ROUND(千円単!J11/1000,0)) -> 5141 | K11: =IF(千円単!K11="","",ROUND(千円単!K11/1000,0)) -> 2330 | L11: =IF(千円単!L11="","",ROUND(千円単!L11/1000,0)) -> 1166 | M11: =IF(千円単!M11="","",ROUND(千円単!M11/1000,0)) -> 4613 | N11: =IF(千円単!N11="","",ROUND(千円単!N11/1000,0)) -> 652 | O11: =IF(千円単!O11="","",ROUND(千円単!O11/1000,0)) -> 2635 | P11: =IF(千円単!P11="","",ROUND(千円単!P11/1000,0)) -> 142 | Q11: =IF(千円単!Q11="","",ROUND(千円単!Q11/1000,0)) -> 528 | R11: =IF(千円単!R11="","",ROUND(千円単!R11/1000,0)) -> 2498 | S11: =IF(千円単!S11="","",ROUND(千円単!S11/1000,0)) -> 1619 | T11: =IF(千円単!T11="","",ROUND(千円単!T11/1000,0)) -> 271 | U11: =IF(千円単!U11="","",ROUND(千円単!U11/1000,0)) -> 4217 | V11: =IF(千円単!V11="","",ROUND(千円単!V11/1000,0)) -> 2187 | W11: =IF(千円単!W11="","",ROUND(千円単!W11/1000,0)) -> 2026 | X11: =IF(千円単!X11="","",ROUND(千円単!X11/1000,0)) -> -1719 | Y11: =IF(千円単!Y11="","",ROUND(千円単!Y11/1000,0)) -> 528
A12: 2015 | B12: 46 | C12: 17 | D12: 1 | E12: 11 | F12: 公共 | G12: 012149 | H12: 北海道 | I12: 稚内市 | J12: =IF(千円単!J12="","",ROUND(千円単!J12/1000,0)) -> 1127 | K12: =IF(千円単!K12="","",ROUND(千円単!K12/1000,0)) -> 482 | L12: =IF(千円単!L12="","",ROUND(千円単!L12/1000,0)) -> 400 | M12: =IF(千円単!M12="","",ROUND(千円単!M12/1000,0)) -> 1066 | N12: =IF(千円単!N12="","",ROUND(千円単!N12/1000,0)) -> 177 | O12: =IF(千円単!O12="","",ROUND(千円単!O12/1000,0)) -> 574 | P12: =IF(千円単!P12="","",ROUND(千円単!P12/1000,0)) -> 15 | Q12: =IF(千円単!Q12="","",ROUND(千円単!Q12/1000,0)) -> 61 | R12: =IF(千円単!R12="","",ROUND(千円単!R12/1000,0)) -> 628 | S12: =IF(千円単!S12="","",ROUND(千円単!S12/1000,0)) -> 348 | T12: =IF(千円単!T12="","",ROUND(千円単!T12/1000,0)) -> 0 | U12: =IF(千円単!U12="","",ROUND(千円単!U12/1000,0)) -> 1061 | V12: =IF(千円単!V12="","",ROUND(千円単!V12/1000,0)) -> 442 | W12: =IF(千円単!W12="","",ROUND(千円単!W12/1000,0)) -> 620 | X12: =IF(千円単!X12="","",ROUND(千円単!X12/1000,0)) -> -434 | Y12: =IF(千円単!Y12="","",ROUND(千円単!Y12/1000,0)) -> 61
A13: 2015 | B13: 46 | C13: 17 | D13: 1 | E13: 12 | F13: 公共 | G13: 012173 | H13: 北海道 | I13: 江別市 | J13: =IF(千円単!J13="","",ROUND(千円単!J13/1000,0)) -> 3496 | K13: =IF(千円単!K13="","",ROUND(千円単!K13/1000,0)) -> 1249 | L13: =IF(千円単!L13="","",ROUND(千円単!L13/1000,0)) -> 986 | M13: =IF(千円単!M13="","",ROUND(千円単!M13/1000,0)) -> 3252 | N13: =IF(千円単!N13="","",ROUND(千円単!N13/1000,0)) -> 353 | O13: =IF(千円単!O13="","",ROUND(千円単!O13/1000,0)) -> 1977 | P13: =IF(千円単!P13="","",ROUND(千円単!P13/1000,0)) -> 128 | Q13: =IF(千円単!Q13="","",ROUND(千円単!Q13/1000,0)) -> 244 | R13: =IF(千円単!R13="","",ROUND(千円単!R13/1000,0)) -> 1257 | S13: =IF(千円単!S13="","",ROUND(千円単!S13/1000,0)) -> 513 | T13: =IF(千円単!T13="","",ROUND(千円単!T13/1000,0)) -> 64 | U13: =IF(千円単!U13="","",ROUND(千円単!U13/1000,0)) -> 2434 | V13: =IF(千円単!V13="","",ROUND(千円単!V13/1000,0)) -> 1144 | W13: =IF(千円単!W13="","",ROUND(千円単!W13/1000,0)) -> 1140 | X13: =IF(千円単!X13="","",ROUND(千円単!X13/1000,0)) -> -1177 | Y13: =IF(千円単!Y13="","",ROUND(千円単!Y13/1000,0)) -> 244
A14: 2015 | B14: 46 | C14: 17 | D14: 1 | E14: 13 | F14: 公共 | G14: 012190 | H14: 北海道 | I14: 紋別市 | J14: =IF(千円単!J14="","",ROUND(千円単!J14/1000,0)) -> 1272 | K14: =IF(千円単!K14="","",ROUND(千円単!K14/1000,0)) -> 371 | L14: =IF(千円単!L14="","",ROUND(千円単!L14/1000,0)) -> 563 | M14: =IF(千円単!M14="","",ROUND(千円単!M14/1000,0)) -> 1150 | N14: =IF(千円単!N14="","",ROUND(千円単!N14/1000,0)) -> 164 | O14: =IF(千円単!O14="","",ROUND(千円単!O14/1000,0)) -> 661 | P14: =IF(千円単!P14="","",ROUND(千円単!P14/1000,0)) -> 63 | Q14: =IF(千円単!Q14="","",ROUND(千円単!Q14/1000,0)) -> 121 | R14: =IF(千円単!R14="","",ROUND(千円単!R14/1000,0)) -> 912 | S14: =IF(千円単!S14="","",ROUND(千円単!S14/1000,0)) -> 605 | T14: =IF(千円単!T14="","",ROUND(千円単!T14/1000,0)) -> 39 | U14: =IF(千円単!U14="","",ROUND(千円単!U14/1000,0)) -> 1403 | V14: =IF(千円単!V14="","",ROUND(千円単!V14/1000,0)) -> 688 | W14: =IF(千円単!W14="","",ROUND(千円単!W14/1000,0)) -> 716 | X14: =IF(千円単!X14="","",ROUND(千円単!X14/1000,0)) -> -491 | Y14: =IF(千円単!Y14="","",ROUND(千円単!Y14/1000,0)) -> 121
A15: 2015 | B15: 46 | C15: 17 | D15: 1 | E15: 14 | F15: 公共 | G15: 012220 | H15: 北海道 | I15: 三笠市 | J15: =IF(千円単!J15="","",ROUND(千円単!J15/1000,0)) -> 595 | K15: =IF(千円単!K15="","",ROUND(千円単!K15/1000,0)) -> 182 | L15: =IF(千円単!L15="","",ROUND(千円単!L15/1000,0)) -> 255 | M15: =IF(千円単!M15="","",ROUND(千円単!M15/1000,0)) -> 570 | N15: =IF(千円単!N15="","",ROUND(千円単!N15/1000,0)) -> 92 | O15: =IF(千円単!O15="","",ROUND(千円単!O15/1000,0)) -> 361 | P15: =IF(千円単!P15="","",ROUND(千円単!P15/1000,0)) -> 19 | Q15: =IF(千円単!Q15="","",ROUND(千円単!Q15/1000,0)) -> 25 | R15: =IF(千円単!R15="","",ROUND(千円単!R15/1000,0)) -> 294 | S15: =IF(千円単!S15="","",ROUND(千円単!S15/1000,0)) -> 42 | T15: =IF(千円単!T15="","",ROUND(千円単!T15/1000,0)) -> 0 | U15: =IF(千円単!U15="","",ROUND(千円単!U15/1000,0)) -> 500 | V15: =IF(千円単!V15="","",ROUND(千円単!V15/1000,0)) -> 88 | W15: =IF(千円単!W15="","",ROUND(千円単!W15/1000,0)) -> 413 | X15: =IF(千円単!X15="","",ROUND(千円単!X15/1000,0)) -> -207 | Y15: =IF(千円単!Y15="","",ROUND(千円単!Y15/1000,0)) -> 25
A16: 2015 | B16: 46 | C16: 17 | D16: 1 | E16: 15 | F16: 公共 | G16: 012238 | H16: 北海道 | I16: 根室市 | J16: =IF(千円単!J16="","",ROUND(千円単!J16/1000,0)) -> 1727 | K16: =IF(千円単!K16="","",ROUND(千円単!K16/1000,0)) -> 442 | L16: =IF(千円単!L16="","",ROUND(千円単!L16/1000,0)) -> 1058 | M16: =IF(千円単!M16="","",ROUND(千円単!M16/1000,0)) -> 729 | N16: =IF(千円単!N16="","",ROUND(千円単!N16/1000,0)) -> 58 | O16: =IF(千円単!O16="","",ROUND(千円単!O16/1000,0)) -> 422 | P16: =IF(千円単!P16="","",ROUND(千円単!P16/1000,0)) -> 20 | Q16: =IF(千円単!Q16="","",ROUND(千円単!Q16/1000,0)) -> 998 | R16: =IF(千円単!R16="","",ROUND(千円単!R16/1000,0)) -> 169 | S16: =IF(千円単!S16="","",ROUND(千円単!S16/1000,0)) -> 70 | T16: =IF(千円単!T16="","",ROUND(千円単!T16/1000,0)) -> 34 | U16: =IF(千円単!U16="","",ROUND(千円単!U16/1000,0)) -> 1391 | V16: =IF(千円単!V16="","",ROUND(千円単!V16/1000,0)) -> 165 | W16: =IF(千円単!W16="","",ROUND(千円単!W16/1000,0)) -> 222 | X16: =IF(千円単!X16="","",ROUND(千円単!X16/1000,0)) -> -1222 | Y16: =IF(千円単!Y16="","",ROUND(千円単!Y16/1000,0)) -> 998
A17: 2015 | B17: 46 | C17: 17 | D17: 1 | E17: 16 | F17: 公共 | G17: 012246 | H17: 北海道 | I17: 千歳市 | J17: =IF(千円単!J17="","",ROUND(千円単!J17/1000,0)) -> 3492 | K17: =IF(千円単!K17="","",ROUND(千円単!K17/1000,0)) -> 1567 | L17: =IF(千円単!L17="","",ROUND(千円単!L17/1000,0)) -> 774 | M17: =IF(千円単!M17="","",ROUND(千円単!M17/1000,0)) -> 3063 | N17: =IF(千円単!N17="","",ROUND(千円単!N17/1000,0)) -> 243 | O17: =IF(千円単!O17="","",ROUND(千円単!O17/1000,0)) -> 1861 | P17: =IF(千円単!P17="","",ROUND(千円単!P17/1000,0)) -> 128 | Q17: =IF(千円単!Q17="","",ROUND(千円単!Q17/1000,0)) -> 428 | R17: =IF(千円単!R17="","",ROUND(千円単!R17/1000,0)) -> 589 | S17: =IF(千円単!S17="","",ROUND(千円単!S17/1000,0)) -> 143 | T17: =IF(千円単!T17="","",ROUND(千円単!T17/1000,0)) -> 130 | U17: =IF(千円単!U17="","",ROUND(千円単!U17/1000,0)) -> 1484 | V17: =IF(千円単!V17="","",ROUND(千円単!V17/1000,0)) -> 544 | W17: =IF(千円単!W17="","",ROUND(千円単!W17/1000,0)) -> 934 | X17: =IF(千円単!X17="","",ROUND(千円単!X17/1000,0)) -> -895 | Y17: =IF(千円単!Y17="","",ROUND(千円単!Y17/1000,0)) -> 428
A18: 2015 | B18: 46 | C18: 17 | D18: 1 | E18: 17 | F18: 公共 | G18: 012254 | H18: 北海道 | I18: 滝川市 | J18: =IF(千円単!J18="","",ROUND(千円単!J18/1000,0)) -> 1307 | K18: =IF(千円単!K18="","",ROUND(千円単!K18/1000,0)) -> 740 | L18: =IF(千円単!L18="","",ROUND(千円単!L18/1000,0)) -> 240 | M18: =IF(千円単!M18="","",ROUND(千円単!M18/1000,0)) -> 1245 | N18: =IF(千円単!N18="","",ROUND(千円単!N18/1000,0)) -> 201 | O18: =IF(千円単!O18="","",ROUND(千円単!O18/1000,0)) -> 785 | P18: =IF(千円単!P18="","",ROUND(千円単!P18/1000,0)) -> 13 | Q18: =IF(千円単!Q18="","",ROUND(千円単!Q18/1000,0)) -> 62 | R18: =IF(千円単!R18="","",ROUND(千円単!R18/1000,0)) -> 624 | S18: =IF(千円単!S18="","",ROUND(千円単!S18/1000,0)) -> 174 | T18: =IF(千円単!T18="","",ROUND(千円単!T18/1000,0)) -> 170 | U18: =IF(千円単!U18="","",ROUND(千円単!U18/1000,0)) -> 1185 | V18: =IF(千円単!V18="","",ROUND(千円単!V18/1000,0)) -> 151 | W18: =IF(千円単!W18="","",ROUND(千円単!W18/1000,0)) -> 1034 | X18: =IF(千円単!X18="","",ROUND(千円単!X18/1000,0)) -> -561 | Y18: =IF(千円単!Y18="","",ROUND(千円単!Y18/1000,0)) -> 62
A19: 2015 | B19: 46 | C19: 17 | D19: 1 | E19: 18 | F19: 公共 | G19: 012301 | H19: 北海道 | I19: 登別市 | J19: =IF(千円単!J19="","",ROUND(千円単!J19/1000,0)) -> 1765 | K19: =IF(千円単!K19="","",ROUND(千円単!K19/1000,0)) -> 574 | L19: =IF(千円単!L19="","",ROUND(千円単!L19/1000,0)) -> 727 | M19: =IF(千円単!M19="","",ROUND(千円単!M19/1000,0)) -> 1757 | N19: =IF(千円単!N19="","",ROUND(千円単!N19/1000,0)) -> 374 | O19: =IF(千円単!O19="","",ROUND(千円単!O19/1000,0)) -> 985 | P19: =IF(千円単!P19="","",ROUND(千円単!P19/1000,0)) -> 60 | Q19: =IF(千円単!Q19="","",ROUND(千円単!Q19/1000,0)) -> 7 | R19: =IF(千円単!R19="","",ROUND(千円単!R19/1000,0)) -> 1088 | S19: =IF(千円単!S19="","",ROUND(千円単!S19/1000,0)) -> 757 | T19: =IF(千円単!T19="","",ROUND(千円単!T19/1000,0)) -> 145 | U19: =IF(千円単!U19="","",ROUND(千円単!U19/1000,0)) -> 1664 | V19: =IF(千円単!V19="","",ROUND(千円単!V19/1000,0)) -> 501 | W19: =IF(千円単!W19="","",ROUND(千円単!W19/1000,0)) -> 1163 | X19: =IF(千円単!X19="","",ROUND(千円単!X19/1000,0)) -> -577 | Y19: =IF(千円単!Y19="","",ROUND(千円単!Y19/1000,0)) -> 7
A20: 2015 | B20: 46 | C20: 17 | D20: 1 | E20: 19 | F20: 公共 | G20: 012319 | H20: 北海道 | I20: 恵庭市 | J20: =IF(千円単!J20="","",ROUND(千円単!J20/1000,0)) -> 2808 | K20: =IF(千円単!K20="","",ROUND(千円単!K20/1000,0)) -> 1007 | L20: =IF(千円単!L20="","",ROUND(千円単!L20/1000,0)) -> 836 | M20: =IF(千円単!M20="","",ROUND(千円単!M20/1000,0)) -> 2602 | N20: =IF(千円単!N20="","",ROUND(千円単!N20/1000,0)) -> 270 | O20: =IF(千円単!O20="","",ROUND(千円単!O20/1000,0)) -> 1568 | P20: =IF(千円単!P20="","",ROUND(千円単!P20/1000,0)) -> 65 | Q20: =IF(千円単!Q20="","",ROUND(千円単!Q20/1000,0)) -> 206 | R20: =IF(千円単!R20="","",ROUND(千円単!R20/1000,0)) -> 831 | S20: =IF(千円単!S20="","",ROUND(千円単!S20/1000,0)) -> 455 | T20: =IF(千円単!T20="","",ROUND(千円単!T20/1000,0)) -> 115 | U20: =IF(千円単!U20="","",ROUND(千円単!U20/1000,0)) -> 1874 | V20: =IF(千円単!V20="","",ROUND(千円単!V20/1000,0)) -> 715 | W20: =IF(千円単!W20="","",ROUND(千円単!W20/1000,0)) -> 1158 | X20: =IF(千円単!X20="","",ROUND(千円単!X20/1000,0)) -> -1043 | Y20: =IF(千円単!Y20="","",ROUND(千円単!Y20/1000,0)) -> 206
A21: 2015 | B21: 46 | C21: 17 | D21: 1 | E21: 20 | F21: 公共 | G21: 012351 | H21: 北海道 | I21: 石狩市 | J21: =IF(千円単!J21="","",ROUND(千円単!J21/1000,0)) -> 1316 | K21: =IF(千円単!K21="","",ROUND(千円単!K21/1000,0)) -> 549 | L21: =IF(千円単!L21="","",ROUND(千円単!L21/1000,0)) -> 449 | M21: =IF(千円単!M21="","",ROUND(千円単!M21/1000,0)) -> 1320 | N21: =IF(千円単!N21="","",ROUND(千円単!N21/1000,0)) -> 216 | O21: =IF(千円単!O21="","",ROUND(千円単!O21/1000,0)) -> 783 | P21: =IF(千円単!P21="","",ROUND(千円単!P21/1000,0)) -> 44 | Q21: =IF(千円単!Q21="","",ROUND(千円単!Q21/1000,0)) -> -4 | R21: =IF(千円単!R21="","",ROUND(千円単!R21/1000,0)) -> 501 | S21: =IF(千円単!S21="","",ROUND(千円単!S21/1000,0)) -> 379 | T21: =IF(千円単!T21="","",ROUND(千円単!T21/1000,0)) -> 63 | U21: =IF(千円単!U21="","",ROUND(千円単!U21/1000,0)) -> 987 | V21: =IF(千円単!V21="","",ROUND(千円単!V21/1000,0)) -> 235 | W21: =IF(千円単!W21="","",ROUND(千円単!W21/1000,0)) -> 752 | X21: =IF(千円単!X21="","",ROUND(千円単!X21/1000,0)) -> -486 | Y21: =IF(千円単!Y21="","",ROUND(千円単!Y21/1000,0)) -> -4
A22: 2015 | B22: 46 | C22: 17 | D22: 1 | E22: 21 | F22: 公共 | G22: 013455 | H22: 北海道 | I22: 森町 | J22: =IF(千円単!J22="","",ROUND(千円単!J22/1000,0)) -> 460 | K22: =IF(千円単!K22="","",ROUND(千円単!K22/1000,0)) -> 85 | L22: =IF(千円単!L22="","",ROUND(千円単!L22/1000,0)) -> 236 | M22: =IF(千円単!M22="","",ROUND(千円単!M22/1000,0)) -> 464 | N22: =IF(千円単!N22="","",ROUND(千円単!N22/1000,0)) -> 79 | O22: =IF(千円単!O22="","",ROUND(千円単!O22/1000,0)) -> 270 | P22: =IF(千円単!P22="","",ROUND(千円単!P22/1000,0)) -> 14 | Q22: =IF(千円単!Q22="","",ROUND(千円単!Q22/1000,0)) -> -4 | R22: =IF(千円単!R22="","",ROUND(千円単!R22/1000,0)) -> 157 | S22: =IF(千円単!S22="","",ROUND(千円単!S22/1000,0)) -> 49 | T22: =IF(千円単!T22="","",ROUND(千円単!T22/1000,0)) -> 0 | U22: =IF(千円単!U22="","",ROUND(千円単!U22/1000,0)) -> 285 | V22: =IF(千円単!V22="","",ROUND(千円単!V22/1000,0)) -> 91 | W22: =IF(千円単!W22="","",ROUND(千円単!W22/1000,0)) -> 194 | X22: =IF(千円単!X22="","",ROUND(千円単!X22/1000,0)) -> -128 | Y22: =IF(千円単!Y22="","",ROUND(千円単!Y22/1000,0)) -> -4
A23: 2015 | B23: 46 | C23: 17 | D23: 1 | E23: 22 | F23: 公共 | G23: 014028 | H23: 北海道 | I23: 岩内町 | J23: =IF(千円単!J23="","",ROUND(千円単!J23/1000,0)) -> 511 | K23: =IF(千円単!K23="","",ROUND(千円単!K23/1000,0)) -> 51 | L23: =IF(千円単!L23="","",ROUND(千円単!L23/1000,0)) -> 256 | M23: =IF(千円単!M23="","",ROUND(千円単!M23/1000,0)) -> 511 | N23: =IF(千円単!N23="","",ROUND(千円単!N23/1000,0)) -> 70 | O23: =IF(千円単!O23="","",ROUND(千円単!O23/1000,0)) -> 321 | P23: =IF(千円単!P23="","",ROUND(千円単!P23/1000,0)) -> 21 | Q23: =IF(千円単!Q23="","",ROUND(千円単!Q23/1000,0)) -> 0 | R23: =IF(千円単!R23="","",ROUND(千円単!R23/1000,0)) -> 596 | S23: =IF(千円単!S23="","",ROUND(千円単!S23/1000,0)) -> 392 | T23: =IF(千円単!T23="","",ROUND(千円単!T23/1000,0)) -> 0 | U23: =IF(千円単!U23="","",ROUND(千円単!U23/1000,0)) -> 749 | V23: =IF(千円単!V23="","",ROUND(千円単!V23/1000,0)) -> 288 | W23: =IF(千円単!W23="","",ROUND(千円単!W23/1000,0)) -> 460 | X23: =IF(千円単!X23="","",ROUND(千円単!X23/1000,0)) -> -153 | Y23: =IF(千円単!Y23="","",ROUND(千円単!Y23/1000,0)) -> 0
A24: 2015 | B24: 46 | C24: 17 | D24: 1 | E24: 23 | F24: 公共 | G24: 014290 | H24: 北海道 | I24: 栗山町 | J24: =IF(千円単!J24="","",ROUND(千円単!J24/1000,0)) -> 539 | K24: =IF(千円単!K24="","",ROUND(千円単!K24/1000,0)) -> 188 | L24: =IF(千円単!L24="","",ROUND(千円単!L24/1000,0)) -> 195 | M24: =IF(千円単!M24="","",ROUND(千円単!M24/1000,0)) -> 451 | N24: =IF(千円単!N24="","",ROUND(千円単!N24/1000,0)) -> 60 | O24: =IF(千円単!O24="","",ROUND(千円単!O24/1000,0)) -> 291 | P24: =IF(千円単!P24="","",ROUND(千円単!P24/1000,0)) -> 7 | Q24: =IF(千円単!Q24="","",ROUND(千円単!Q24/1000,0)) -> 89 | R24: =IF(千円単!R24="","",ROUND(千円単!R24/1000,0)) -> 527 | S24: =IF(千円単!S24="","",ROUND(千円単!S24/1000,0)) -> 336 | T24: =IF(千円単!T24="","",ROUND(千円単!T24/1000,0)) -> 61 | U24: =IF(千円単!U24="","",ROUND(千円単!U24/1000,0)) -> 734 | V24: =IF(千円単!V24="","",ROUND(千円単!V24/1000,0)) -> 266 | W24: =IF(千円単!W24="","",ROUND(千円単!W24/1000,0)) -> 468 | X24: =IF(千円単!X24="","",ROUND(千円単!X24/1000,0)) -> -207 | Y24: =IF(千円単!Y24="","",ROUND(千円単!Y24/1000,0)) -> 89
A25: 2015 | B25: 46 | C25: 17 | D25: 1 | E25: 24 | F25: 公共 | G25: 015148 | H25: 北海道 | I25: 枝幸町 | J25: =IF(千円単!J25="","",ROUND(千円単!J25/1000,0)) -> 271 | K25: =IF(千円単!K25="","",ROUND(千円単!K25/1000,0)) -> 64 | L25: =IF(千円単!L25="","",ROUND(千円単!L25/1000,0)) -> 137 | M25: =IF(千円単!M25="","",ROUND(千円単!M25/1000,0)) -> 264 | N25: =IF(千円単!N25="","",ROUND(千円単!N25/1000,0)) -> 39 | O25: =IF(千円単!O25="","",ROUND(千円単!O25/1000,0)) -> 153 | P25: =IF(千円単!P25="","",ROUND(千円単!P25/1000,0)) -> 8 | Q25: =IF(千円単!Q25="","",ROUND(千円単!Q25/1000,0)) -> 7 | R25: =IF(千円単!R25="","",ROUND(千円単!R25/1000,0)) -> 89 | S25: =IF(千円単!S25="","",ROUND(千円単!S25/1000,0)) -> 4 | T25: =IF(千円単!T25="","",ROUND(千円単!T25/1000,0)) -> 24 | U25: =IF(千円単!U25="","",ROUND(千円単!U25/1000,0)) -> 173 | V25: =IF(千円単!V25="","",ROUND(千円単!V25/1000,0)) -> 26 | W25: =IF(千円単!W25="","",ROUND(千円単!W25/1000,0)) -> 147 | X25: =IF(千円単!X25="","",ROUND(千円単!X25/1000,0)) -> -83 | Y25: =IF(千円単!Y25="","",ROUND(千円単!Y25/1000,0)) -> 7
A26: 2015 | B26: 46 | C26: 17 | D26: 1 | E26: 25 | F26: 公共 | G26: 015555 | H26: 北海道 | I26: 遠軽町 | J26: =IF(千円単!J26="","",ROUND(千円単!J26/1000,0)) -> 858 | K26: =IF(千円単!K26="","",ROUND(千円単!K26/1000,0)) -> 229 | L26: =IF(千円単!L26="","",ROUND(千円単!L26/1000,0)) -> 420 | M26: =IF(千円単!M26="","",ROUND(千円単!M26/1000,0)) -> 718 | N26: =IF(千円単!N26="","",ROUND(千円単!N26/1000,0)) -> 91 | O26: =IF(千円単!O26="","",ROUND(千円単!O26/1000,0)) -> 393 | P26: =IF(千円単!P26="","",ROUND(千円単!P26/1000,0)) -> 41 | Q26: =IF(千円単!Q26="","",ROUND(千円単!Q26/1000,0)) -> 140 | R26: =IF(千円単!R26="","",ROUND(千円単!R26/1000,0)) -> 580 | S26: =IF(千円単!S26="","",ROUND(千円単!S26/1000,0)) -> 271 | T26: =IF(千円単!T26="","",ROUND(千円単!T26/1000,0)) -> 49 | U26: =IF(千円単!U26="","",ROUND(千円単!U26/1000,0)) -> 876 | V26: =IF(千円単!V26="","",ROUND(千円単!V26/1000,0)) -> 532 | W26: =IF(千円単!W26="","",ROUND(千円単!W26/1000,0)) -> 345 | X26: =IF(千円単!X26="","",ROUND(千円単!X26/1000,0)) -> -296 | Y26: =IF(千円単!Y26="","",ROUND(千円単!Y26/1000,0)) -> 140
A27: 2015 | B27: 46 | C27: 17 | D27: 1 | E27: 26 | F27: 公共 | G27: 015865 | H27: 北海道 | I27: むかわ町 | J27: =IF(千円単!J27="","",ROUND(千円単!J27/1000,0)) -> 248 | K27: =IF(千円単!K27="","",ROUND(千円単!K27/1000,0)) -> 55 | L27: =IF(千円単!L27="","",ROUND(千円単!L27/1000,0)) -> 97 | M27: =IF(千円単!M27="","",ROUND(千円単!M27/1000,0)) -> 246 | N27: =IF(千円単!N27="","",ROUND(千円単!N27/1000,0)) -> 34 | O27: =IF(千円単!O27="","",ROUND(千円単!O27/1000,0)) -> 145 | P27: =IF(千円単!P27="","",ROUND(千円単!P27/1000,0)) -> 11 | Q27: =IF(千円単!Q27="","",ROUND(千円単!Q27/1000,0)) -> 2 | R27: =IF(千円単!R27="","",ROUND(千円単!R27/1000,0)) -> 93 | S27: =IF(千円単!S27="","",ROUND(千円単!S27/1000,0)) -> 18 | T27: =IF(千円単!T27="","",ROUND(千円単!T27/1000,0)) -> 0 | U27: =IF(千円単!U27="","",ROUND(千円単!U27/1000,0)) -> 152 | V27: =IF(千円単!V27="","",ROUND(千円単!V27/1000,0)) -> 31 | W27: =IF(千円単!W27="","",ROUND(千円単!W27/1000,0)) -> 117 | X27: =IF(千円単!X27="","",ROUND(千円単!X27/1000,0)) -> -59 | Y27: =IF(千円単!Y27="","",ROUND(千円単!Y27/1000,0)) -> 2
A28: 2015 | B28: 46 | C28: 17 | D28: 1 | E28: 27 | F28: 公共 | G28: 016314 | H28: 北海道 | I28: 音更町 | J28: =IF(千円単!J28="","",ROUND(千円単!J28/1000,0)) -> 1039 | K28: =IF(千円単!K28="","",ROUND(千円単!K28/1000,0)) -> 557 | L28: =IF(千円単!L28="","",ROUND(千円単!L28/1000,0)) -> 227 | M28: =IF(千円単!M28="","",ROUND(千円単!M28/1000,0)) -> 930 | N28: =IF(千円単!N28="","",ROUND(千円単!N28/1000,0)) -> 169 | O28: =IF(千円単!O28="","",ROUND(千円単!O28/1000,0)) -> 547 | P28: =IF(千円単!P28="","",ROUND(千円単!P28/1000,0)) -> 3 | Q28: =IF(千円単!Q28="","",ROUND(千円単!Q28/1000,0)) -> 108 | R28: =IF(千円単!R28="","",ROUND(千円単!R28/1000,0)) -> 447 | S28: =IF(千円単!S28="","",ROUND(千円単!S28/1000,0)) -> 319 | T28: =IF(千円単!T28="","",ROUND(千円単!T28/1000,0)) -> 71 | U28: =IF(千円単!U28="","",ROUND(千円単!U28/1000,0)) -> 897 | V28: =IF(千円単!V28="","",ROUND(千円単!V28/1000,0)) -> 221 | W28: =IF(千円単!W28="","",ROUND(千円単!W28/1000,0)) -> 677 | X28: =IF(千円単!X28="","",ROUND(千円単!X28/1000,0)) -> -450 | Y28: =IF(千円単!Y28="","",ROUND(千円単!Y28/1000,0)) -> 108
A29: 2015 | B29: 46 | C29: 17 | D29: 1 | E29: 28 | F29: 公共 | G29: 016365 | H29: 北海道 | I29: 清水町 | J29: =IF(千円単!J29="","",ROUND(千円単!J29/1000,0)) -> 298 | K29: =IF(千円単!K29="","",ROUND(千円単!K29/1000,0)) -> 92 | L29: =IF(千円単!L29="","",ROUND(千円単!L29/1000,0)) -> 142 | M29: =IF(千円単!M29="","",ROUND(千円単!M29/1000,0)) -> 230 | N29: =IF(千円単!N29="","",ROUND(千円単!N29/1000,0)) -> 14 | O29: =IF(千円単!O29="","",ROUND(千円単!O29/1000,0)) -> 144 | P29: =IF(千円単!P29="","",ROUND(千円単!P29/1000,0)) -> 18 | Q29: =IF(千円単!Q29="","",ROUND(千円単!Q29/1000,0)) -> 68 | R29: =IF(千円単!R29="","",ROUND(千円単!R29/1000,0)) -> 42 | S29: =IF(千円単!S29="","",ROUND(千円単!S29/1000,0)) -> 0 | T29: =IF(千円単!T29="","",ROUND(千円単!T29/1000,0)) -> 15 | U29: =IF(千円単!U29="","",ROUND(千円単!U29/1000,0)) -> 190 | V29: =IF(千円単!V29="","",ROUND(千円単!V29/1000,0)) -> 9 | W29: =IF(千円単!W29="","",ROUND(千円単!W29/1000,0)) -> 172 | X29: =IF(千円単!X29="","",ROUND(千円単!X29/1000,0)) -> -149 | Y29: =IF(千円単!Y29="","",ROUND(千円単!Y29/1000,0)) -> 68
A30: 2015 | B30: 46 | C30: 17 | D30: 1 | E30: 29 | F30: 公共 | G30: 022021 | H30: 青森県 | I30: 弘前市 | J30: =IF(千円単!J30="","",ROUND(千円単!J30/1000,0)) -> 5418 | K30: =IF(千円単!K30="","",ROUND(千円単!K30/1000,0)) -> 2872 | L30: =IF(千円単!L30="","",ROUND(千円単!L30/1000,0)) -> 1575 | M30: =IF(千円単!M30="","",ROUND(千円単!M30/1000,0)) -> 5077 | N30: =IF(千円単!N30="","",ROUND(千円単!N30/1000,0)) -> 734 | O30: =IF(千円単!O30="","",ROUND(千円単!O30/1000,0)) -> 2131 | P30: =IF(千円単!P30="","",ROUND(千円単!P30/1000,0)) -> 254 | Q30: =IF(千円単!Q30="","",ROUND(千円単!Q30/1000,0)) -> 340 | R30: =IF(千円単!R30="","",ROUND(千円単!R30/1000,0)) -> 2063 | S30: =IF(千円単!S30="","",ROUND(千円単!S30/1000,0)) -> 1407 | T30: =IF(千円単!T30="","",ROUND(千円単!T30/1000,0)) -> 0 | U30: =IF(千円単!U30="","",ROUND(千円単!U30/1000,0)) -> 3808 | V30: =IF(千円単!V30="","",ROUND(千円単!V30/1000,0)) -> 720 | W30: =IF(千円単!W30="","",ROUND(千円単!W30/1000,0)) -> 3088 | X30: =IF(千円単!X30="","",ROUND(千円単!X30/1000,0)) -> -1745 | Y30: =IF(千円単!Y30="","",ROUND(千円単!Y30/1000,0)) -> 340
A31: 2015 | B31: 46 | C31: 17 | D31: 1 | E31: 30 | F31: 公共 | G31: 022047 | H31: 青森県 | I31: 黒石市 | J31: =IF(千円単!J31="","",ROUND(千円単!J31/1000,0)) -> 924 | K31: =IF(千円単!K31="","",ROUND(千円単!K31/1000,0)) -> 322 | L31: =IF(千円単!L31="","",ROUND(千円単!L31/1000,0)) -> 279 | M31: =IF(千円単!M31="","",ROUND(千円単!M31/1000,0)) -> 636 | N31: =IF(千円単!N31="","",ROUND(千円単!N31/1000,0)) -> 146 | O31: =IF(千円単!O31="","",ROUND(千円単!O31/1000,0)) -> 306 | P31: =IF(千円単!P31="","",ROUND(千円単!P31/1000,0)) -> 17 | Q31: =IF(千円単!Q31="","",ROUND(千円単!Q31/1000,0)) -> 288 | R31: =IF(千円単!R31="","",ROUND(千円単!R31/1000,0)) -> 707 | S31: =IF(千円単!S31="","",ROUND(千円単!S31/1000,0)) -> 449 | T31: =IF(千円単!T31="","",ROUND(千円単!T31/1000,0)) -> 242 | U31: =IF(千円単!U31="","",ROUND(千円単!U31/1000,0)) -> 790 | V31: =IF(千円単!V31="","",ROUND(千円単!V31/1000,0)) -> 59 | W31: =IF(千円単!W31="","",ROUND(千円単!W31/1000,0)) -> 732 | X31: =IF(千円単!X31="","",ROUND(千円単!X31/1000,0)) -> -83 | Y31: =IF(千円単!Y31="","",ROUND(千円単!Y31/1000,0)) -> 288
A32: 2015 | B32: 46 | C32: 17 | D32: 1 | E32: 31 | F32: 公共 | G32: 022055 | H32: 青森県 | I32: 五所川原市 | J32: =IF(千円単!J32="","",ROUND(千円単!J32/1000,0)) -> 672 | K32: =IF(千円単!K32="","",ROUND(千円単!K32/1000,0)) -> 367 | L32: =IF(千円単!L32="","",ROUND(千円単!L32/1000,0)) -> 130 | M32: =IF(千円単!M32="","",ROUND(千円単!M32/1000,0)) -> 754 | N32: =IF(千円単!N32="","",ROUND(千円単!N32/1000,0)) -> 122 | O32: =IF(千円単!O32="","",ROUND(千円単!O32/1000,0)) -> 383 | P32: =IF(千円単!P32="","",ROUND(千円単!P32/1000,0)) -> 39 | Q32: =IF(千円単!Q32="","",ROUND(千円単!Q32/1000,0)) -> -82 | R32: =IF(千円単!R32="","",ROUND(千円単!R32/1000,0)) -> 555 | S32: =IF(千円単!S32="","",ROUND(千円単!S32/1000,0)) -> 282 | T32: =IF(千円単!T32="","",ROUND(千円単!T32/1000,0)) -> 0 | U32: =IF(千円単!U32="","",ROUND(千円単!U32/1000,0)) -> 658 | V32: =IF(千円単!V32="","",ROUND(千円単!V32/1000,0)) -> 194 | W32: =IF(千円単!W32="","",ROUND(千円単!W32/1000,0)) -> 464 | X32: =IF(千円単!X32="","",ROUND(千円単!X32/1000,0)) -> -103 | Y32: =IF(千円単!Y32="","",ROUND(千円単!Y32/1000,0)) -> -82
A33: 2015 | B33: 46 | C33: 17 | D33: 1 | E33: 32 | F33: 公共 | G33: 022063 | H33: 青森県 | I33: 十和田市 | J33: =IF(千円単!J33="","",ROUND(千円単!J33/1000,0)) -> 1619 | K33: =IF(千円単!K33="","",ROUND(千円単!K33/1000,0)) -> 800 | L33: =IF(千円単!L33="","",ROUND(千円単!L33/1000,0)) -> 379 | M33: =IF(千円単!M33="","",ROUND(千円単!M33/1000,0)) -> 1538 | N33: =IF(千円単!N33="","",ROUND(千円単!N33/1000,0)) -> 299 | O33: =IF(千円単!O33="","",ROUND(千円単!O33/1000,0)) -> 858 | P33: =IF(千円単!P33="","",ROUND(千円単!P33/1000,0)) -> 69 | Q33: =IF(千円単!Q33="","",ROUND(千円単!Q33/1000,0)) -> 82 | R33: =IF(千円単!R33="","",ROUND(千円単!R33/1000,0)) -> 917 | S33: =IF(千円単!S33="","",ROUND(千円単!S33/1000,0)) -> 595 | T33: =IF(千円単!T33="","",ROUND(千円単!T33/1000,0)) -> 117 | U33: =IF(千円単!U33="","",ROUND(千円単!U33/1000,0)) -> 1460 | V33: =IF(千円単!V33="","",ROUND(千円単!V33/1000,0)) -> 379 | W33: =IF(千円単!W33="","",ROUND(千円単!W33/1000,0)) -> 1081 | X33: =IF(千円単!X33="","",ROUND(千円単!X33/1000,0)) -> -543 | Y33: =IF(千円単!Y33="","",ROUND(千円単!Y33/1000,0)) -> 82
A34: 2015 | B34: 46 | C34: 17 | D34: 1 | E34: 33 | F34: 公共 | G34: 022101 | H34: 青森県 | I34: 平川市 | J34: =IF(千円単!J34="","",ROUND(千円単!J34/1000,0)) -> 671 | K34: =IF(千円単!K34="","",ROUND(千円単!K34/1000,0)) -> 302 | L34: =IF(千円単!L34="","",ROUND(千円単!L34/1000,0)) -> 238 | M34: =IF(千円単!M34="","",ROUND(千円単!M34/1000,0)) -> 660 | N34: =IF(千円単!N34="","",ROUND(千円単!N34/1000,0)) -> 122 | O34: =IF(千円単!O34="","",ROUND(千円単!O34/1000,0)) -> 335 | P34: =IF(千円単!P34="","",ROUND(千円単!P34/1000,0)) -> 45 | Q34: =IF(千円単!Q34="","",ROUND(千円単!Q34/1000,0)) -> 11 | R34: =IF(千円単!R34="","",ROUND(千円単!R34/1000,0)) -> 250 | S34: =IF(千円単!S34="","",ROUND(千円単!S34/1000,0)) -> 11 | T34: =IF(千円単!T34="","",ROUND(千円単!T34/1000,0)) -> 0 | U34: =IF(千円単!U34="","",ROUND(千円単!U34/1000,0)) -> 494 | V34: =IF(千円単!V34="","",ROUND(千円単!V34/1000,0)) -> 20 | W34: =IF(千円単!W34="","",ROUND(千円単!W34/1000,0)) -> 475 | X34: =IF(千円単!X34="","",ROUND(千円単!X34/1000,0)) -> -245 | Y34: =IF(千円単!Y34="","",ROUND(千円単!Y34/1000,0)) -> 11
A35: 2015 | B35: 46 | C35: 17 | D35: 1 | E35: 34 | F35: 公共 | G35: 023612 | H35: 青森県 | I35: 藤崎町 | J35: =IF(千円単!J35="","",ROUND(千円単!J35/1000,0)) -> 270 | K35: =IF(千円単!K35="","",ROUND(千円単!K35/1000,0)) -> 87 | L35: =IF(千円単!L35="","",ROUND(千円単!L35/1000,0)) -> 104 | M35: =IF(千円単!M35="","",ROUND(千円単!M35/1000,0)) -> 268 | N35: =IF(千円単!N35="","",ROUND(千円単!N35/1000,0)) -> 52 | O35: =IF(千円単!O35="","",ROUND(千円単!O35/1000,0)) -> 165 | P35: =IF(千円単!P35="","",ROUND(千円単!P35/1000,0)) -> 6 | Q35: =IF(千円単!Q35="","",ROUND(千円単!Q35/1000,0)) -> 3 | R35: =IF(千円単!R35="","",ROUND(千円単!R35/1000,0)) -> 165 | S35: =IF(千円単!S35="","",ROUND(千円単!S35/1000,0)) -> 104 | T35: =IF(千円単!T35="","",ROUND(千円単!T35/1000,0)) -> 0 | U35: =IF(千円単!U35="","",ROUND(千円単!U35/1000,0)) -> 283 | V35: =IF(千円単!V35="","",ROUND(千円単!V35/1000,0)) -> 49 | W35: =IF(千円単!W35="","",ROUND(千円単!W35/1000,0)) -> 235 | X35: =IF(千円単!X35="","",ROUND(千円単!X35/1000,0)) -> -118 | Y35: =IF(千円単!Y35="","",ROUND(千円単!Y35/1000,0)) -> 3
A36: 2015 | B36: 46 | C36: 17 | D36: 1 | E36: 35 | F36: 公共 | G36: 023671 | H36: 青森県 | I36: 田舎館村 | J36: =IF(千円単!J36="","",ROUND(千円単!J36/1000,0)) -> 348 | K36: =IF(千円単!K36="","",ROUND(千円単!K36/1000,0)) -> 102 | L36: =IF(千円単!L36="","",ROUND(千円単!L36/1000,0)) -> 135 | M36: =IF(千円単!M36="","",ROUND(千円単!M36/1000,0)) -> 249 | N36: =IF(千円単!N36="","",ROUND(千円単!N36/1000,0)) -> 61 | O36: =IF(千円単!O36="","",ROUND(千円単!O36/1000,0)) -> 128 | P36: =IF(千円単!P36="","",ROUND(千円単!P36/1000,0)) -> 8 | Q36: =IF(千円単!Q36="","",ROUND(千円単!Q36/1000,0)) -> 99 | R36: =IF(千円単!R36="","",ROUND(千円単!R36/1000,0)) -> 155 | S36: =IF(千円単!S36="","",ROUND(千円単!S36/1000,0)) -> 93 | T36: =IF(千円単!T36="","",ROUND(千円単!T36/1000,0)) -> 60 | U36: =IF(千円単!U36="","",ROUND(千円単!U36/1000,0)) -> 223 | V36: =IF(千円単!V36="","",ROUND(千円単!V36/1000,0)) -> 2 | W36: =IF(千円単!W36="","",ROUND(千円単!W36/1000,0)) -> 221 | X36: =IF(千円単!X36="","",ROUND(千円単!X36/1000,0)) -> -69 | Y36: =IF(千円単!Y36="","",ROUND(千円単!Y36/1000,0)) -> 99
A37: 2015 | B37: 46 | C37: 17 | D37: 1 | E37: 36 | F37: 公共 | G37: 023817 | H37: 青森県 | I37: 板柳町 | J37: =IF(千円単!J37="","",ROUND(千円単!J37/1000,0)) -> 288 | K37: =IF(千円単!K37="","",ROUND(千円単!K37/1000,0)) -> 79 | L37: =IF(千円単!L37="","",ROUND(千円単!L37/1000,0)) -> 87 | M37: =IF(千円単!M37="","",ROUND(千円単!M37/1000,0)) -> 276 | N37: =IF(千円単!N37="","",ROUND(千円単!N37/1000,0)) -> 68 | O37: =IF(千円単!O37="","",ROUND(千円単!O37/1000,0)) -> 150 | P37: =IF(千円単!P37="","",ROUND(千円単!P37/1000,0)) -> 7 | Q37: =IF(千円単!Q37="","",ROUND(千円単!Q37/1000,0)) -> 13 | R37: =IF(千円単!R37="","",ROUND(千円単!R37/1000,0)) -> 256 | S37: =IF(千円単!S37="","",ROUND(千円単!S37/1000,0)) -> 141 | T37: =IF(千円単!T37="","",ROUND(千円単!T37/1000,0)) -> 51 | U37: =IF(千円単!U37="","",ROUND(千円単!U37/1000,0)) -> 320 | V37: =IF(千円単!V37="","",ROUND(千円単!V37/1000,0)) -> 150 | W37: =IF(千円単!W37="","",ROUND(千円単!W37/1000,0)) -> 170 | X37: =IF(千円単!X37="","",ROUND(千円単!X37/1000,0)) -> -64 | Y37: =IF(千円単!Y37="","",ROUND(千円単!Y37/1000,0)) -> 13
A38: 2015 | B38: 46 | C38: 17 | D38: 1 | E38: 37 | F38: 公共 | G38: 023841 | H38: 青森県 | I38: 鶴田町 | J38: =IF(千円単!J38="","",ROUND(千円単!J38/1000,0)) -> 441 | K38: =IF(千円単!K38="","",ROUND(千円単!K38/1000,0)) -> 54 | L38: =IF(千円単!L38="","",ROUND(千円単!L38/1000,0)) -> 245 | M38: =IF(千円単!M38="","",ROUND(千円単!M38/1000,0)) -> 340 | N38: =IF(千円単!N38="","",ROUND(千円単!N38/1000,0)) -> 68 | O38: =IF(千円単!O38="","",ROUND(千円単!O38/1000,0)) -> 235 | P38: =IF(千円単!P38="","",ROUND(千円単!P38/1000,0)) -> 8 | Q38: =IF(千円単!Q38="","",ROUND(千円単!Q38/1000,0)) -> 101 | R38: =IF(千円単!R38="","",ROUND(千円単!R38/1000,0)) -> 37 | S38: =IF(千円単!S38="","",ROUND(千円単!S38/1000,0)) -> 30 | T38: =IF(千円単!T38="","",ROUND(千円単!T38/1000,0)) -> 5 | U38: =IF(千円単!U38="","",ROUND(千円単!U38/1000,0)) -> 221 | V38: =IF(千円単!V38="","",ROUND(千円単!V38/1000,0)) -> 34 | W38: =IF(千円単!W38="","",ROUND(千円単!W38/1000,0)) -> 186 | X38: =IF(千円単!X38="","",ROUND(千円単!X38/1000,0)) -> -184 | Y38: =IF(千円単!Y38="","",ROUND(千円単!Y38/1000,0)) -> 101
A39: 2015 | B39: 46 | C39: 17 | D39: 1 | E39: 38 | F39: 公共 | G39: 024112 | H39: 青森県 | I39: 六ケ所村 | J39: =IF(千円単!J39="","",ROUND(千円単!J39/1000,0)) -> 548 | K39: =IF(千円単!K39="","",ROUND(千円単!K39/1000,0)) -> 41 | L39: =IF(千円単!L39="","",ROUND(千円単!L39/1000,0)) -> 266 | M39: =IF(千円単!M39="","",ROUND(千円単!M39/1000,0)) -> 533 | N39: =IF(千円単!N39="","",ROUND(千円単!N39/1000,0)) -> 79 | O39: =IF(千円単!O39="","",ROUND(千円単!O39/1000,0)) -> 336 | P39: =IF(千円単!P39="","",ROUND(千円単!P39/1000,0)) -> 23 | Q39: =IF(千円単!Q39="","",ROUND(千円単!Q39/1000,0)) -> 14 | R39: =IF(千円単!R39="","",ROUND(千円単!R39/1000,0)) -> 775 | S39: =IF(千円単!S39="","",ROUND(千円単!S39/1000,0)) -> 300 | T39: =IF(千円単!T39="","",ROUND(千円単!T39/1000,0)) -> 0 | U39: =IF(千円単!U39="","",ROUND(千円単!U39/1000,0)) -> 975 | V39: =IF(千円単!V39="","",ROUND(千円単!V39/1000,0)) -> 833 | W39: =IF(千円単!W39="","",ROUND(千円単!W39/1000,0)) -> 142 | X39: =IF(千円単!X39="","",ROUND(千円単!X39/1000,0)) -> -201 | Y39: =IF(千円単!Y39="","",ROUND(千円単!Y39/1000,0)) -> 14
A40: 2015 | B40: 46 | C40: 17 | D40: 1 | E40: 39 | F40: 公共 | G40: 032018 | H40: 岩手県 | I40: 盛岡市 | J40: =IF(千円単!J40="","",ROUND(千円単!J40/1000,0)) -> 8278 | K40: =IF(千円単!K40="","",ROUND(千円単!K40/1000,0)) -> 4357 | L40: =IF(千円単!L40="","",ROUND(千円単!L40/1000,0)) -> 2858 | M40: =IF(千円単!M40="","",ROUND(千円単!M40/1000,0)) -> 7574 | N40: =IF(千円単!N40="","",ROUND(千円単!N40/1000,0)) -> 1124 | O40: =IF(千円単!O40="","",ROUND(千円単!O40/1000,0)) -> 3990 | P40: =IF(千円単!P40="","",ROUND(千円単!P40/1000,0)) -> 367 | Q40: =IF(千円単!Q40="","",ROUND(千円単!Q40/1000,0)) -> 704 | R40: =IF(千円単!R40="","",ROUND(千円単!R40/1000,0)) -> 1945 | S40: =IF(千円単!S40="","",ROUND(千円単!S40/1000,0)) -> 798 | T40: =IF(千円単!T40="","",ROUND(千円単!T40/1000,0)) -> 521 | U40: =IF(千円単!U40="","",ROUND(千円単!U40/1000,0)) -> 5539 | V40: =IF(千円単!V40="","",ROUND(千円単!V40/1000,0)) -> 1622 | W40: =IF(千円単!W40="","",ROUND(千円単!W40/1000,0)) -> 3914 | X40: =IF(千円単!X40="","",ROUND(千円単!X40/1000,0)) -> -3594 | Y40: =IF(千円単!Y40="","",ROUND(千円単!Y40/1000,0)) -> 704
A41: 2015 | B41: 46 | C41: 17 | D41: 1 | E41: 40 | F41: 公共 | G41: 032026 | H41: 岩手県 | I41: 宮古市 | J41: =IF(千円単!J41="","",ROUND(千円単!J41/1000,0)) -> 1450 | K41: =IF(千円単!K41="","",ROUND(千円単!K41/1000,0)) -> 531 | L41: =IF(千円単!L41="","",ROUND(千円単!L41/1000,0)) -> 609 | M41: =IF(千円単!M41="","",ROUND(千円単!M41/1000,0)) -> 1145 | N41: =IF(千円単!N41="","",ROUND(千円単!N41/1000,0)) -> 200 | O41: =IF(千円単!O41="","",ROUND(千円単!O41/1000,0)) -> 638 | P41: =IF(千円単!P41="","",ROUND(千円単!P41/1000,0)) -> 52 | Q41: =IF(千円単!Q41="","",ROUND(千円単!Q41/1000,0)) -> 305 | R41: =IF(千円単!R41="","",ROUND(千円単!R41/1000,0)) -> 747 | S41: =IF(千円単!S41="","",ROUND(千円単!S41/1000,0)) -> 424 | T41: =IF(千円単!T41="","",ROUND(千円単!T41/1000,0)) -> 185 | U41: =IF(千円単!U41="","",ROUND(千円単!U41/1000,0)) -> 1339 | V41: =IF(千円単!V41="","",ROUND(千円単!V41/1000,0)) -> 312 | W41: =IF(千円単!W41="","",ROUND(千円単!W41/1000,0)) -> 1026 | X41: =IF(千円単!X41="","",ROUND(千円単!X41/1000,0)) -> -591 | Y41: =IF(千円単!Y41="","",ROUND(千円単!Y41/1000,0)) -> 305
A42: 2015 | B42: 46 | C42: 17 | D42: 1 | E42: 41 | F42: 公共 | G42: 032069 | H42: 岩手県 | I42: 北上市 | J42: =IF(千円単!J42="","",ROUND(千円単!J42/1000,0)) -> 2344 | K42: =IF(千円単!K42="","",ROUND(千円単!K42/1000,0)) -> 1155 | L42: =IF(千円単!L42="","",ROUND(千円単!L42/1000,0)) -> 952 | M42: =IF(千円単!M42="","",ROUND(千円単!M42/1000,0)) -> 2081 | N42: =IF(千円単!N42="","",ROUND(千円単!N42/1000,0)) -> 406 | O42: =IF(千円単!O42="","",ROUND(千円単!O42/1000,0)) -> 952 | P42: =IF(千円単!P42="","",ROUND(千円単!P42/1000,0)) -> 53 | Q42: =IF(千円単!Q42="","",ROUND(千円単!Q42/1000,0)) -> 262 | R42: =IF(千円単!R42="","",ROUND(千円単!R42/1000,0)) -> 810 | S42: =IF(千円単!S42="","",ROUND(千円単!S42/1000,0)) -> 418 | T42: =IF(千円単!T42="","",ROUND(千円単!T42/1000,0)) -> 0 | U42: =IF(千円単!U42="","",ROUND(千円単!U42/1000,0)) -> 1812 | V42: =IF(千円単!V42="","",ROUND(千円単!V42/1000,0)) -> 215 | W42: =IF(千円単!W42="","",ROUND(千円単!W42/1000,0)) -> 1542 | X42: =IF(千円単!X42="","",ROUND(千円単!X42/1000,0)) -> -1001 | Y42: =IF(千円単!Y42="","",ROUND(千円単!Y42/1000,0)) -> 262
A43: 2015 | B43: 46 | C43: 17 | D43: 1 | E43: 42 | F43: 公共 | G43: 032166 | H43: 岩手県 | I43: 滝沢市 | J43: =IF(千円単!J43="","",ROUND(千円単!J43/1000,0)) -> 1082 | K43: =IF(千円単!K43="","",ROUND(千円単!K43/1000,0)) -> 456 | L43: =IF(千円単!L43="","",ROUND(千円単!L43/1000,0)) -> 305 | M43: =IF(千円単!M43="","",ROUND(千円単!M43/1000,0)) -> 933 | N43: =IF(千円単!N43="","",ROUND(千円単!N43/1000,0)) -> 131 | O43: =IF(千円単!O43="","",ROUND(千円単!O43/1000,0)) -> 542 | P43: =IF(千円単!P43="","",ROUND(千円単!P43/1000,0)) -> 20 | Q43: =IF(千円単!Q43="","",ROUND(千円単!Q43/1000,0)) -> 149 | R43: =IF(千円単!R43="","",ROUND(千円単!R43/1000,0)) -> 461 | S43: =IF(千円単!S43="","",ROUND(千円単!S43/1000,0)) -> 271 | T43: =IF(千円単!T43="","",ROUND(千円単!T43/1000,0)) -> 18 | U43: =IF(千円単!U43="","",ROUND(千円単!U43/1000,0)) -> 841 | V43: =IF(千円単!V43="","",ROUND(千円単!V43/1000,0)) -> 485 | W43: =IF(千円単!W43="","",ROUND(千円単!W43/1000,0)) -> 356 | X43: =IF(千円単!X43="","",ROUND(千円単!X43/1000,0)) -> -380 | Y43: =IF(千円単!Y43="","",ROUND(千円単!Y43/1000,0)) -> 149
A44: 2015 | B44: 46 | C44: 17 | D44: 1 | E44: 43 | F44: 公共 | G44: 033014 | H44: 岩手県 | I44: 雫石町 | J44: =IF(千円単!J44="","",ROUND(千円単!J44/1000,0)) -> 467 | K44: =IF(千円単!K44="","",ROUND(千円単!K44/1000,0)) -> 111 | L44: =IF(千円単!L44="","",ROUND(千円単!L44/1000,0)) -> 232 | M44: =IF(千円単!M44="","",ROUND(千円単!M44/1000,0)) -> 468 | N44: =IF(千円単!N44="","",ROUND(千円単!N44/1000,0)) -> 96 | O44: =IF(千円単!O44="","",ROUND(千円単!O44/1000,0)) -> 307 | P44: =IF(千円単!P44="","",ROUND(千円単!P44/1000,0)) -> 6 | Q44: =IF(千円単!Q44="","",ROUND(千円単!Q44/1000,0)) -> -1 | R44: =IF(千円単!R44="","",ROUND(千円単!R44/1000,0)) -> 351 | S44: =IF(千円単!S44="","",ROUND(千円単!S44/1000,0)) -> 179 | T44: =IF(千円単!T44="","",ROUND(千円単!T44/1000,0)) -> 20 | U44: =IF(千円単!U44="","",ROUND(千円単!U44/1000,0)) -> 515 | V44: =IF(千円単!V44="","",ROUND(千円単!V44/1000,0)) -> 140 | W44: =IF(千円単!W44="","",ROUND(千円単!W44/1000,0)) -> 375 | X44: =IF(千円単!X44="","",ROUND(千円単!X44/1000,0)) -> -164 | Y44: =IF(千円単!Y44="","",ROUND(千円単!Y44/1000,0)) -> -1
A45: 2015 | B45: 46 | C45: 17 | D45: 1 | E45: 44 | F45: 公共 | G45: 033219 | H45: 岩手県 | I45: 紫波町 | J45: =IF(千円単!J45="","",ROUND(千円単!J45/1000,0)) -> 750 | K45: =IF(千円単!K45="","",ROUND(千円単!K45/1000,0)) -> 269 | L45: =IF(千円単!L45="","",ROUND(千円単!L45/1000,0)) -> 456 | M45: =IF(千円単!M45="","",ROUND(千円単!M45/1000,0)) -> 749 | N45: =IF(千円単!N45="","",ROUND(千円単!N45/1000,0)) -> 112 | O45: =IF(千円単!O45="","",ROUND(千円単!O45/1000,0)) -> 462 | P45: =IF(千円単!P45="","",ROUND(千円単!P45/1000,0)) -> 25 | Q45: =IF(千円単!Q45="","",ROUND(千円単!Q45/1000,0)) -> 1 | R45: =IF(千円単!R45="","",ROUND(千円単!R45/1000,0)) -> 340 | S45: =IF(千円単!S45="","",ROUND(千円単!S45/1000,0)) -> 145 | T45: =IF(千円単!T45="","",ROUND(千円単!T45/1000,0)) -> 29 | U45: =IF(千円単!U45="","",ROUND(千円単!U45/1000,0)) -> 767 | V45: =IF(千円単!V45="","",ROUND(千円単!V45/1000,0)) -> 297 | W45: =IF(千円単!W45="","",ROUND(千円単!W45/1000,0)) -> 470 | X45: =IF(千円単!X45="","",ROUND(千円単!X45/1000,0)) -> -427 | Y45: =IF(千円単!Y45="","",ROUND(千円単!Y45/1000,0)) -> 1
A46: 2015 | B46: 46 | C46: 17 | D46: 1 | E46: 45 | F46: 公共 | G46: 033227 | H46: 岩手県 | I46: 矢巾町 | J46: =IF(千円単!J46="","",ROUND(千円単!J46/1000,0)) -> 752 | K46: =IF(千円単!K46="","",ROUND(千円単!K46/1000,0)) -> 296 | L46: =IF(千円単!L46="","",ROUND(千円単!L46/1000,0)) -> 268 | M46: =IF(千円単!M46="","",ROUND(千円単!M46/1000,0)) -> 573 | N46: =IF(千円単!N46="","",ROUND(千円単!N46/1000,0)) -> 83 | O46: =IF(千円単!O46="","",ROUND(千円単!O46/1000,0)) -> 339 | P46: =IF(千円単!P46="","",ROUND(千円単!P46/1000,0)) -> 0 | Q46: =IF(千円単!Q46="","",ROUND(千円単!Q46/1000,0)) -> 179 | R46: =IF(千円単!R46="","",ROUND(千円単!R46/1000,0)) -> 697 | S46: =IF(千円単!S46="","",ROUND(千円単!S46/1000,0)) -> 430 | T46: =IF(千円単!T46="","",ROUND(千円単!T46/1000,0)) -> 0 | U46: =IF(千円単!U46="","",ROUND(千円単!U46/1000,0)) -> 977 | V46: =IF(千円単!V46="","",ROUND(千円単!V46/1000,0)) -> 764 | W46: =IF(千円単!W46="","",ROUND(千円単!W46/1000,0)) -> 213 | X46: =IF(千円単!X46="","",ROUND(千円単!X46/1000,0)) -> -280 | Y46: =IF(千円単!Y46="","",ROUND(千円単!Y46/1000,0)) -> 179
A47: 2015 | B47: 46 | C47: 17 | D47: 1 | E47: 46 | F47: 公共 | G47: 041009 | H47: 宮城県 | I47: 仙台市 | J47: =IF(千円単!J47="","",ROUND(千円単!J47/1000,0)) -> 32471 | K47: =IF(千円単!K47="","",ROUND(千円単!K47/1000,0)) -> 16229 | L47: =IF(千円単!L47="","",ROUND(千円単!L47/1000,0)) -> 7068 | M47: =IF(千円単!M47="","",ROUND(千円単!M47/1000,0)) -> 28976 | N47: =IF(千円単!N47="","",ROUND(千円単!N47/1000,0)) -> 4506 | O47: =IF(千円単!O47="","",ROUND(千円単!O47/1000,0)) -> 17065 | P47: =IF(千円単!P47="","",ROUND(千円単!P47/1000,0)) -> 1244 | Q47: =IF(千円単!Q47="","",ROUND(千円単!Q47/1000,0)) -> 3495 | R47: =IF(千円単!R47="","",ROUND(千円単!R47/1000,0)) -> 37517 | S47: =IF(千円単!S47="","",ROUND(千円単!S47/1000,0)) -> 14102 | T47: =IF(千円単!T47="","",ROUND(千円単!T47/1000,0)) -> 5634 | U47: =IF(千円単!U47="","",ROUND(千円単!U47/1000,0)) -> 48157 | V47: =IF(千円単!V47="","",ROUND(千円単!V47/1000,0)) -> 30848 | W47: =IF(千円単!W47="","",ROUND(千円単!W47/1000,0)) -> 17309 | X47: =IF(千円単!X47="","",ROUND(千円単!X47/1000,0)) -> -10641 | Y47: =IF(千円単!Y47="","",ROUND(千円単!Y47/1000,0)) -> 3495
A48: 2015 | B48: 46 | C48: 17 | D48: 1 | E48: 47 | F48: 公共 | G48: 042064 | H48: 宮城県 | I48: 白石市 | J48: =IF(千円単!J48="","",ROUND(千円単!J48/1000,0)) -> 899 | K48: =IF(千円単!K48="","",ROUND(千円単!K48/1000,0)) -> 419 | L48: =IF(千円単!L48="","",ROUND(千円単!L48/1000,0)) -> 277 | M48: =IF(千円単!M48="","",ROUND(千円単!M48/1000,0)) -> 1009 | N48: =IF(千円単!N48="","",ROUND(千円単!N48/1000,0)) -> 160 | O48: =IF(千円単!O48="","",ROUND(千円単!O48/1000,0)) -> 456 | P48: =IF(千円単!P48="","",ROUND(千円単!P48/1000,0)) -> 20 | Q48: =IF(千円単!Q48="","",ROUND(千円単!Q48/1000,0)) -> -109 | R48: =IF(千円単!R48="","",ROUND(千円単!R48/1000,0)) -> 1360 | S48: =IF(千円単!S48="","",ROUND(千円単!S48/1000,0)) -> 503 | T48: =IF(千円単!T48="","",ROUND(千円単!T48/1000,0)) -> 823 | U48: =IF(千円単!U48="","",ROUND(千円単!U48/1000,0)) -> 1554 | V48: =IF(千円単!V48="","",ROUND(千円単!V48/1000,0)) -> 697 | W48: =IF(千円単!W48="","",ROUND(千円単!W48/1000,0)) -> 825 | X48: =IF(千円単!X48="","",ROUND(千円単!X48/1000,0)) -> -194 | Y48: =IF(千円単!Y48="","",ROUND(千円単!Y48/1000,0)) -> -109
A49: 2015 | B49: 46 | C49: 17 | D49: 1 | E49: 48 | F49: 公共 | G49: 042072 | H49: 宮城県 | I49: 名取市 | J49: =IF(千円単!J49="","",ROUND(千円単!J49/1000,0)) -> 2578 | K49: =IF(千円単!K49="","",ROUND(千円単!K49/1000,0)) -> 1251 | L49: =IF(千円単!L49="","",ROUND(千円単!L49/1000,0)) -> 736 | M49: =IF(千円単!M49="","",ROUND(千円単!M49/1000,0)) -> 2547 | N49: =IF(千円単!N49="","",ROUND(千円単!N49/1000,0)) -> 454 | O49: =IF(千円単!O49="","",ROUND(千円単!O49/1000,0)) -> 1490 | P49: =IF(千円単!P49="","",ROUND(千円単!P49/1000,0)) -> 54 | Q49: =IF(千円単!Q49="","",ROUND(千円単!Q49/1000,0)) -> 31 | R49: =IF(千円単!R49="","",ROUND(千円単!R49/1000,0)) -> 2933 | S49: =IF(千円単!S49="","",ROUND(千円単!S49/1000,0)) -> 786 | T49: =IF(千円単!T49="","",ROUND(千円単!T49/1000,0)) -> 0 | U49: =IF(千円単!U49="","",ROUND(千円単!U49/1000,0)) -> 3656 | V49: =IF(千円単!V49="","",ROUND(千円単!V49/1000,0)) -> 1359 | W49: =IF(千円単!W49="","",ROUND(千円単!W49/1000,0)) -> 2297 | X49: =IF(千円単!X49="","",ROUND(千円単!X49/1000,0)) -> -724 | Y49: =IF(千円単!Y49="","",ROUND(千円単!Y49/1000,0)) -> 31
A50: 2015 | B50: 46 | C50: 17 | D50: 1 | E50: 49 | F50: 公共 | G50: 052019 | H50: 秋田県 | I50: 秋田市 | J50: =IF(千円単!J50="","",ROUND(千円単!J50/1000,0)) -> 10276 | K50: =IF(千円単!K50="","",ROUND(千円単!K50/1000,0)) -> 4978 | L50: =IF(千円単!L50="","",ROUND(千円単!L50/1000,0)) -> 3414 | M50: =IF(千円単!M50="","",ROUND(千円単!M50/1000,0)) -> 9147 | N50: =IF(千円単!N50="","",ROUND(千円単!N50/1000,0)) -> 1475 | O50: =IF(千円単!O50="","",ROUND(千円単!O50/1000,0)) -> 5023 | P50: =IF(千円単!P50="","",ROUND(千円単!P50/1000,0)) -> 437 | Q50: =IF(千円単!Q50="","",ROUND(千円単!Q50/1000,0)) -> 1129 | R50: =IF(千円単!R50="","",ROUND(千円単!R50/1000,0)) -> 3764 | S50: =IF(千円単!S50="","",ROUND(千円単!S50/1000,0)) -> 2280 | T50: =IF(千円単!T50="","",ROUND(千円単!T50/1000,0)) -> 888 | U50: =IF(千円単!U50="","",ROUND(千円単!U50/1000,0)) -> 7781 | V50: =IF(千円単!V50="","",ROUND(千円単!V50/1000,0)) -> 2068 | W50: =IF(千円単!W50="","",ROUND(千円単!W50/1000,0)) -> 5713 | X50: =IF(千円単!X50="","",ROUND(千円単!X50/1000,0)) -> -4017 | Y50: =IF(千円単!Y50="","",ROUND(千円単!Y50/1000,0)) -> 1129
A51: 2015 | B51: 46 | C51: 17 | D51: 1 | E51: 50 | F51: 公共 | G51: 052027 | H51: 秋田県 | I51: 能代市 | J51: =IF(千円単!J51="","",ROUND(千円単!J51/1000,0)) -> 1256 | K51: =IF(千円単!K51="","",ROUND(千円単!K51/1000,0)) -> 320 | L51: =IF(千円単!L51="","",ROUND(千円単!L51/1000,0)) -> 648 | M51: =IF(千円単!M51="","",ROUND(千円単!M51/1000,0)) -> 1195 | N51: =IF(千円単!N51="","",ROUND(千円単!N51/1000,0)) -> 194 | O51: =IF(千円単!O51="","",ROUND(千円単!O51/1000,0)) -> 654 | P51: =IF(千円単!P51="","",ROUND(千円単!P51/1000,0)) -> 30 | Q51: =IF(千円単!Q51="","",ROUND(千円単!Q51/1000,0)) -> 60 | R51: =IF(千円単!R51="","",ROUND(千円単!R51/1000,0)) -> 1750 | S51: =IF(千円単!S51="","",ROUND(千円単!S51/1000,0)) -> 1064 | T51: =IF(千円単!T51="","",ROUND(千円単!T51/1000,0)) -> 78 | U51: =IF(千円単!U51="","",ROUND(千円単!U51/1000,0)) -> 2178 | V51: =IF(千円単!V51="","",ROUND(千円単!V51/1000,0)) -> 1561 | W51: =IF(千円単!W51="","",ROUND(千円単!W51/1000,0)) -> 617 | X51: =IF(千円単!X51="","",ROUND(千円単!X51/1000,0)) -> -428 | Y51: =IF(千円単!Y51="","",ROUND(千円単!Y51/1000,0)) -> 60
A52: 2015 | B52: 46 | C52: 17 | D52: 1 | E52: 51 | F52: 公共 | G52: 052035 | H52: 秋田県 | I52: 横手市 | J52: =IF(千円単!J52="","",ROUND(千円単!J52/1000,0)) -> 1753 | K52: =IF(千円単!K52="","",ROUND(千円単!K52/1000,0)) -> 630 | L52: =IF(千円単!L52="","",ROUND(千円単!L52/1000,0)) -> 860 | M52: =IF(千円単!M52="","",ROUND(千円単!M52/1000,0)) -> 1724 | N52: =IF(千円単!N52="","",ROUND(千円単!N52/1000,0)) -> 357 | O52: =IF(千円単!O52="","",ROUND(千円単!O52/1000,0)) -> 825 | P52: =IF(千円単!P52="","",ROUND(千円単!P52/1000,0)) -> 101 | Q52: =IF(千円単!Q52="","",ROUND(千円単!Q52/1000,0)) -> 28 | R52: =IF(千円単!R52="","",ROUND(千円単!R52/1000,0)) -> 1205 | S52: =IF(千円単!S52="","",ROUND(千円単!S52/1000,0)) -> 619 | T52: =IF(千円単!T52="","",ROUND(千円単!T52/1000,0)) -> 480 | U52: =IF(千円単!U52="","",ROUND(千円単!U52/1000,0)) -> 1712 | V52: =IF(千円単!V52="","",ROUND(千円単!V52/1000,0)) -> 316 | W52: =IF(千円単!W52="","",ROUND(千円単!W52/1000,0)) -> 1396 | X52: =IF(千円単!X52="","",ROUND(千円単!X52/1000,0)) -> -506 | Y52: =IF(千円単!Y52="","",ROUND(千円単!Y52/1000,0)) -> 28
A53: 2015 | B53: 46 | C53: 17 | D53: 1 | E53: 52 | F53: 公共 | G53: 052043 | H53: 秋田県 | I53: 大館市 | J53: =IF(千円単!J53="","",ROUND(千円単!J53/1000,0)) -> 1142 | K53: =IF(千円単!K53="","",ROUND(千円単!K53/1000,0)) -> 426 | L53: =IF(千円単!L53="","",ROUND(千円単!L53/1000,0)) -> 515 | M53: =IF(千円単!M53="","",ROUND(千円単!M53/1000,0)) -> 1215 | N53: =IF(千円単!N53="","",ROUND(千円単!N53/1000,0)) -> 268 | O53: =IF(千円単!O53="","",ROUND(千円単!O53/1000,0)) -> 593 | P53: =IF(千円単!P53="","",ROUND(千円単!P53/1000,0)) -> 56 | Q53: =IF(千円単!Q53="","",ROUND(千円単!Q53/1000,0)) -> -73 | R53: =IF(千円単!R53="","",ROUND(千円単!R53/1000,0)) -> 1303 | S53: =IF(千円単!S53="","",ROUND(千円単!S53/1000,0)) -> 773 | T53: =IF(千円単!T53="","",ROUND(千円単!T53/1000,0)) -> 137 | U53: =IF(千円単!U53="","",ROUND(千円単!U53/1000,0)) -> 1754 | V53: =IF(千円単!V53="","",ROUND(千円単!V53/1000,0)) -> 862 | W53: =IF(千円単!W53="","",ROUND(千円単!W53/1000,0)) -> 892 | X53: =IF(千円単!X53="","",ROUND(千円単!X53/1000,0)) -> -450 | Y53: =IF(千円単!Y53="","",ROUND(千円単!Y53/1000,0)) -> -73
A54: 2015 | B54: 46 | C54: 17 | D54: 1 | E54: 53 | F54: 公共 | G54: 052060 | H54: 秋田県 | I54: 男鹿市 | J54: =IF(千円単!J54="","",ROUND(千円単!J54/1000,0)) -> 748 | K54: =IF(千円単!K54="","",ROUND(千円単!K54/1000,0)) -> 193 | L54: =IF(千円単!L54="","",ROUND(千円単!L54/1000,0)) -> 323 | M54: =IF(千円単!M54="","",ROUND(千円単!M54/1000,0)) -> 615 | N54: =IF(千円単!N54="","",ROUND(千円単!N54/1000,0)) -> 161 | O54: =IF(千円単!O54="","",ROUND(千円単!O54/1000,0)) -> 337 | P54: =IF(千円単!P54="","",ROUND(千円単!P54/1000,0)) -> 29 | Q54: =IF(千円単!Q54="","",ROUND(千円単!Q54/1000,0)) -> 133 | R54: =IF(千円単!R54="","",ROUND(千円単!R54/1000,0)) -> 793 | S54: =IF(千円単!S54="","",ROUND(千円単!S54/1000,0)) -> 432 | T54: =IF(千円単!T54="","",ROUND(千円単!T54/1000,0)) -> 171 | U54: =IF(千円単!U54="","",ROUND(千円単!U54/1000,0)) -> 1040 | V54: =IF(千円単!V54="","",ROUND(千円単!V54/1000,0)) -> 503 | W54: =IF(千円単!W54="","",ROUND(千円単!W54/1000,0)) -> 537 | X54: =IF(千円単!X54="","",ROUND(千円単!X54/1000,0)) -> -247 | Y54: =IF(千円単!Y54="","",ROUND(千円単!Y54/1000,0)) -> 133
A55: 2015 | B55: 46 | C55: 17 | D55: 1 | E55: 54 | F55: 公共 | G55: 062014 | H55: 山形県 | I55: 山形市 | J55: =IF(千円単!J55="","",ROUND(千円単!J55/1000,0)) -> 7980 | K55: =IF(千円単!K55="","",ROUND(千円単!K55/1000,0)) -> 3910 | L55: =IF(千円単!L55="","",ROUND(千円単!L55/1000,0)) -> 2406 | M55: =IF(千円単!M55="","",ROUND(千円単!M55/1000,0)) -> 7490 | N55: =IF(千円単!N55="","",ROUND(千円単!N55/1000,0)) -> 1701 | O55: =IF(千円単!O55="","",ROUND(千円単!O55/1000,0)) -> 4063 | P55: =IF(千円単!P55="","",ROUND(千円単!P55/1000,0)) -> 251 | Q55: =IF(千円単!Q55="","",ROUND(千円単!Q55/1000,0)) -> 490 | R55: =IF(千円単!R55="","",ROUND(千円単!R55/1000,0)) -> 4852 | S55: =IF(千円単!S55="","",ROUND(千円単!S55/1000,0)) -> 3190 | T55: =IF(千円単!T55="","",ROUND(千円単!T55/1000,0)) -> 716 | U55: =IF(千円単!U55="","",ROUND(千円単!U55/1000,0)) -> 7751 | V55: =IF(千円単!V55="","",ROUND(千円単!V55/1000,0)) -> 2408 | W55: =IF(千円単!W55="","",ROUND(千円単!W55/1000,0)) -> 5343 | X55: =IF(千円単!X55="","",ROUND(千円単!X55/1000,0)) -> -2898 | Y55: =IF(千円単!Y55="","",ROUND(千円単!Y55/1000,0)) -> 490
A56: 2015 | B56: 46 | C56: 17 | D56: 1 | E56: 55 | F56: 公共 | G56: 062031 | H56: 山形県 | I56: 鶴岡市 | J56: =IF(千円単!J56="","",ROUND(千円単!J56/1000,0)) -> 4551 | K56: =IF(千円単!K56="","",ROUND(千円単!K56/1000,0)) -> 2108 | L56: =IF(千円単!L56="","",ROUND(千円単!L56/1000,0)) -> 1285 | M56: =IF(千円単!M56="","",ROUND(千円単!M56/1000,0)) -> 4516 | N56: =IF(千円単!N56="","",ROUND(千円単!N56/1000,0)) -> 739 | O56: =IF(千円単!O56="","",ROUND(千円単!O56/1000,0)) -> 2661 | P56: =IF(千円単!P56="","",ROUND(千円単!P56/1000,0)) -> 171 | Q56: =IF(千円単!Q56="","",ROUND(千円単!Q56/1000,0)) -> 34 | R56: =IF(千円単!R56="","",ROUND(千円単!R56/1000,0)) -> 2091 | S56: =IF(千円単!S56="","",ROUND(千円単!S56/1000,0)) -> 1025 | T56: =IF(千円単!T56="","",ROUND(千円単!T56/1000,0)) -> 369 | U56: =IF(千円単!U56="","",ROUND(千円単!U56/1000,0)) -> 3941 | V56: =IF(千円単!V56="","",ROUND(千円単!V56/1000,0)) -> 1578 | W56: =IF(千円単!W56="","",ROUND(千円単!W56/1000,0)) -> 2362 | X56: =IF(千円単!X56="","",ROUND(千円単!X56/1000,0)) -> -1850 | Y56: =IF(千円単!Y56="","",ROUND(千円単!Y56/1000,0)) -> 34
A57: 2015 | B57: 46 | C57: 17 | D57: 1 | E57: 56 | F57: 公共 | G57: 062103 | H57: 山形県 | I57: 天童市 | J57: =IF(千円単!J57="","",ROUND(千円単!J57/1000,0)) -> 1257 | K57: =IF(千円単!K57="","",ROUND(千円単!K57/1000,0)) -> 858 | L57: =IF(千円単!L57="","",ROUND(千円単!L57/1000,0)) -> 182 | M57: =IF(千円単!M57="","",ROUND(千円単!M57/1000,0)) -> 1178 | N57: =IF(千円単!N57="","",ROUND(千円単!N57/1000,0)) -> 183 | O57: =IF(千円単!O57="","",ROUND(千円単!O57/1000,0)) -> 581 | P57: =IF(千円単!P57="","",ROUND(千円単!P57/1000,0)) -> 20 | Q57: =IF(千円単!Q57="","",ROUND(千円単!Q57/1000,0)) -> 79 | R57: =IF(千円単!R57="","",ROUND(千円単!R57/1000,0)) -> 691 | S57: =IF(千円単!S57="","",ROUND(千円単!S57/1000,0)) -> 328 | T57: =IF(千円単!T57="","",ROUND(千円単!T57/1000,0)) -> 174 | U57: =IF(千円単!U57="","",ROUND(千円単!U57/1000,0)) -> 1136 | V57: =IF(千円単!V57="","",ROUND(千円単!V57/1000,0)) -> 504 | W57: =IF(千円単!W57="","",ROUND(千円単!W57/1000,0)) -> 632 | X57: =IF(千円単!X57="","",ROUND(千円単!X57/1000,0)) -> -445 | Y57: =IF(千円単!Y57="","",ROUND(千円単!Y57/1000,0)) -> 79
A58: 2015 | B58: 46 | C58: 17 | D58: 1 | E58: 57 | F58: 公共 | G58: 062138 | H58: 山形県 | I58: 南陽市 | J58: =IF(千円単!J58="","",ROUND(千円単!J58/1000,0)) -> 968 | K58: =IF(千円単!K58="","",ROUND(千円単!K58/1000,0)) -> 338 | L58: =IF(千円単!L58="","",ROUND(千円単!L58/1000,0)) -> 437 | M58: =IF(千円単!M58="","",ROUND(千円単!M58/1000,0)) -> 970 | N58: =IF(千円単!N58="","",ROUND(千円単!N58/1000,0)) -> 197 | O58: =IF(千円単!O58="","",ROUND(千円単!O58/1000,0)) -> 531 | P58: =IF(千円単!P58="","",ROUND(千円単!P58/1000,0)) -> 31 | Q58: =IF(千円単!Q58="","",ROUND(千円単!Q58/1000,0)) -> -2 | R58: =IF(千円単!R58="","",ROUND(千円単!R58/1000,0)) -> 625 | S58: =IF(千円単!S58="","",ROUND(千円単!S58/1000,0)) -> 288 | T58: =IF(千円単!T58="","",ROUND(千円単!T58/1000,0)) -> 65 | U58: =IF(千円単!U58="","",ROUND(千円単!U58/1000,0)) -> 982 | V58: =IF(千円単!V58="","",ROUND(千円単!V58/1000,0)) -> 230 | W58: =IF(千円単!W58="","",ROUND(千円単!W58/1000,0)) -> 753 | X58: =IF(千円単!X58="","",ROUND(千円単!X58/1000,0)) -> -357 | Y58: =IF(千円単!Y58="","",ROUND(千円単!Y58/1000,0)) -> -2
A59: 2015 | B59: 46 | C59: 17 | D59: 1 | E59: 58 | F59: 公共 | G59: 072036 | H59: 福島県 | I59: 郡山市 | J59: =IF(千円単!J59="","",ROUND(千円単!J59/1000,0)) -> 7882 | K59: =IF(千円単!K59="","",ROUND(千円単!K59/1000,0)) -> 3923 | L59: =IF(千円単!L59="","",ROUND(千円単!L59/1000,0)) -> 2433 | M59: =IF(千円単!M59="","",ROUND(千円単!M59/1000,0)) -> 7882 | N59: =IF(千円単!N59="","",ROUND(千円単!N59/1000,0)) -> 1463 | O59: =IF(千円単!O59="","",ROUND(千円単!O59/1000,0)) -> 3926 | P59: =IF(千円単!P59="","",ROUND(千円単!P59/1000,0)) -> 261 | Q59: =IF(千円単!Q59="","",ROUND(千円単!Q59/1000,0)) -> 0 | R59: =IF(千円単!R59="","",ROUND(千円単!R59/1000,0)) -> 4731 | S59: =IF(千円単!S59="","",ROUND(千円単!S59/1000,0)) -> 1874 | T59: =IF(千円単!T59="","",ROUND(千円単!T59/1000,0)) -> 0 | U59: =IF(千円単!U59="","",ROUND(千円単!U59/1000,0)) -> 7519 | V59: =IF(千円単!V59="","",ROUND(千円単!V59/1000,0)) -> 2243 | W59: =IF(千円単!W59="","",ROUND(千円単!W59/1000,0)) -> 5274 | X59: =IF(千円単!X59="","",ROUND(千円単!X59/1000,0)) -> -2788 | Y59: =IF(千円単!Y59="","",ROUND(千円単!Y59/1000,0)) -> 0
A60: 2015 | B60: 46 | C60: 17 | D60: 1 | E60: 59 | F60: 公共 | G60: 072109 | H60: 福島県 | I60: 二本松市 | J60: =IF(千円単!J60="","",ROUND(千円単!J60/1000,0)) -> 544 | K60: =IF(千円単!K60="","",ROUND(千円単!K60/1000,0)) -> 144 | L60: =IF(千円単!L60="","",ROUND(千円単!L60/1000,0)) -> 289 | M60: =IF(千円単!M60="","",ROUND(千円単!M60/1000,0)) -> 544 | N60: =IF(千円単!N60="","",ROUND(千円単!N60/1000,0)) -> 92 | O60: =IF(千円単!O60="","",ROUND(千円単!O60/1000,0)) -> 230 | P60: =IF(千円単!P60="","",ROUND(千円単!P60/1000,0)) -> 39 | Q60: =IF(千円単!Q60="","",ROUND(千円単!Q60/1000,0)) -> 0 | R60: =IF(千円単!R60="","",ROUND(千円単!R60/1000,0)) -> 72 | S60: =IF(千円単!S60="","",ROUND(千円単!S60/1000,0)) -> 36 | T60: =IF(千円単!T60="","",ROUND(千円単!T60/1000,0)) -> 5 | U60: =IF(千円単!U60="","",ROUND(千円単!U60/1000,0)) -> 292 | V60: =IF(千円単!V60="","",ROUND(千円単!V60/1000,0)) -> 66 | W60: =IF(千円単!W60="","",ROUND(千円単!W60/1000,0)) -> 227 | X60: =IF(千円単!X60="","",ROUND(千円単!X60/1000,0)) -> -220 | Y60: =IF(千円単!Y60="","",ROUND(千円単!Y60/1000,0)) -> 0
A61: 2015 | B61: 46 | C61: 17 | D61: 1 | E61: 60 | F61: 公共 | G61: 072125 | H61: 福島県 | I61: 南相馬市 | J61: =IF(千円単!J61="","",ROUND(千円単!J61/1000,0)) -> 1917 | K61: =IF(千円単!K61="","",ROUND(千円単!K61/1000,0)) -> 448 | L61: =IF(千円単!L61="","",ROUND(千円単!L61/1000,0)) -> 757 | M61: =IF(千円単!M61="","",ROUND(千円単!M61/1000,0)) -> 1686 | N61: =IF(千円単!N61="","",ROUND(千円単!N61/1000,0)) -> 220 | O61: =IF(千円単!O61="","",ROUND(千円単!O61/1000,0)) -> 914 | P61: =IF(千円単!P61="","",ROUND(千円単!P61/1000,0)) -> 53 | Q61: =IF(千円単!Q61="","",ROUND(千円単!Q61/1000,0)) -> 231 | R61: =IF(千円単!R61="","",ROUND(千円単!R61/1000,0)) -> 498 | S61: =IF(千円単!S61="","",ROUND(千円単!S61/1000,0)) -> 322 | T61: =IF(千円単!T61="","",ROUND(千円単!T61/1000,0)) -> 0 | U61: =IF(千円単!U61="","",ROUND(千円単!U61/1000,0)) -> 995 | V61: =IF(千円単!V61="","",ROUND(千円単!V61/1000,0)) -> 249 | W61: =IF(千円単!W61="","",ROUND(千円単!W61/1000,0)) -> 746 | X61: =IF(千円単!X61="","",ROUND(千円単!X61/1000,0)) -> -497 | Y61: =IF(千円単!Y61="","",ROUND(千円単!Y61/1000,0)) -> 231
A62: 2015 | B62: 46 | C62: 17 | D62: 1 | E62: 61 | F62: 公共 | G62: 075213 | H62: 福島県 | I62: 三春町 | J62: =IF(千円単!J62="","",ROUND(千円単!J62/1000,0)) -> 184 | K62: =IF(千円単!K62="","",ROUND(千円単!K62/1000,0)) -> 67 | L62: =IF(千円単!L62="","",ROUND(千円単!L62/1000,0)) -> 31 | M62: =IF(千円単!M62="","",ROUND(千円単!M62/1000,0)) -> 207 | N62: =IF(千円単!N62="","",ROUND(千円単!N62/1000,0)) -> 31 | O62: =IF(千円単!O62="","",ROUND(千円単!O62/1000,0)) -> 135 | P62: =IF(千円単!P62="","",ROUND(千円単!P62/1000,0)) -> 10 | Q62: =IF(千円単!Q62="","",ROUND(千円単!Q62/1000,0)) -> -23 | R62: =IF(千円単!R62="","",ROUND(千円単!R62/1000,0)) -> 70 | S62: =IF(千円単!S62="","",ROUND(千円単!S62/1000,0)) -> 0 | T62: =IF(千円単!T62="","",ROUND(千円単!T62/1000,0)) -> 0 | U62: =IF(千円単!U62="","",ROUND(千円単!U62/1000,0)) -> 123 | V62: =IF(千円単!V62="","",ROUND(千円単!V62/1000,0)) -> 12 | W62: =IF(千円単!W62="","",ROUND(千円単!W62/1000,0)) -> 110 | X62: =IF(千円単!X62="","",ROUND(千円単!X62/1000,0)) -> -53 | Y62: =IF(千円単!Y62="","",ROUND(千円単!Y62/1000,0)) -> -23
A63: 2015 | B63: 46 | C63: 17 | D63: 1 | E63: 62 | F63: 公共 | G63: 082015 | H63: 茨城県 | I63: 水戸市 | J63: =IF(千円単!J63="","",ROUND(千円単!J63/1000,0)) -> 9192 | K63: =IF(千円単!K63="","",ROUND(千円単!K63/1000,0)) -> 3376 | L63: =IF(千円単!L63="","",ROUND(千円単!L63/1000,0)) -> 4062 | M63: =IF(千円単!M63="","",ROUND(千円単!M63/1000,0)) -> 8890 | N63: =IF(千円単!N63="","",ROUND(千円単!N63/1000,0)) -> 1809 | O63: =IF(千円単!O63="","",ROUND(千円単!O63/1000,0)) -> 5201 | P63: =IF(千円単!P63="","",ROUND(千円単!P63/1000,0)) -> 182 | Q63: =IF(千円単!Q63="","",ROUND(千円単!Q63/1000,0)) -> 302 | R63: =IF(千円単!R63="","",ROUND(千円単!R63/1000,0)) -> 6501 | S63: =IF(千円単!S63="","",ROUND(千円単!S63/1000,0)) -> 3158 | T63: =IF(千円単!T63="","",ROUND(千円単!T63/1000,0)) -> 470 | U63: =IF(千円単!U63="","",ROUND(千円単!U63/1000,0)) -> 9665 | V63: =IF(千円単!V63="","",ROUND(千円単!V63/1000,0)) -> 4640 | W63: =IF(千円単!W63="","",ROUND(千円単!W63/1000,0)) -> 5022 | X63: =IF(千円単!X63="","",ROUND(千円単!X63/1000,0)) -> -3164 | Y63: =IF(千円単!Y63="","",ROUND(千円単!Y63/1000,0)) -> 302
A64: 2015 | B64: 46 | C64: 17 | D64: 1 | E64: 63 | F64: 公共 | G64: 082023 | H64: 茨城県 | I64: 日立市 | J64: =IF(千円単!J64="","",ROUND(千円単!J64/1000,0)) -> 3992 | K64: =IF(千円単!K64="","",ROUND(千円単!K64/1000,0)) -> 2684 | L64: =IF(千円単!L64="","",ROUND(千円単!L64/1000,0)) -> 106 | M64: =IF(千円単!M64="","",ROUND(千円単!M64/1000,0)) -> 3790 | N64: =IF(千円単!N64="","",ROUND(千円単!N64/1000,0)) -> 327 | O64: =IF(千円単!O64="","",ROUND(千円単!O64/1000,0)) -> 1996 | P64: =IF(千円単!P64="","",ROUND(千円単!P64/1000,0)) -> 109 | Q64: =IF(千円単!Q64="","",ROUND(千円単!Q64/1000,0)) -> 203 | R64: =IF(千円単!R64="","",ROUND(千円単!R64/1000,0)) -> 1671 | S64: =IF(千円単!S64="","",ROUND(千円単!S64/1000,0)) -> 589 | T64: =IF(千円単!T64="","",ROUND(千円単!T64/1000,0)) -> 495 | U64: =IF(千円単!U64="","",ROUND(千円単!U64/1000,0)) -> 2803 | V64: =IF(千円単!V64="","",ROUND(千円単!V64/1000,0)) -> 1336 | W64: =IF(千円単!W64="","",ROUND(千円単!W64/1000,0)) -> 1467 | X64: =IF(千円単!X64="","",ROUND(千円単!X64/1000,0)) -> -1132 | Y64: =IF(千円単!Y64="","",ROUND(千円単!Y64/1000,0)) -> 203
A65: 2015 | B65: 46 | C65: 17 | D65: 1 | E65: 64 | F65: 公共 | G65: 082244 | H65: 茨城県 | I65: 守谷市 | J65: =IF(千円単!J65="","",ROUND(千円単!J65/1000,0)) -> 1860 | K65: =IF(千円単!K65="","",ROUND(千円単!K65/1000,0)) -> 1374 | L65: =IF(千円単!L65="","",ROUND(千円単!L65/1000,0)) -> 24 | M65: =IF(千円単!M65="","",ROUND(千円単!M65/1000,0)) -> 1635 | N65: =IF(千円単!N65="","",ROUND(千円単!N65/1000,0)) -> 102 | O65: =IF(千円単!O65="","",ROUND(千円単!O65/1000,0)) -> 853 | P65: =IF(千円単!P65="","",ROUND(千円単!P65/1000,0)) -> 63 | Q65: =IF(千円単!Q65="","",ROUND(千円単!Q65/1000,0)) -> 225 | R65: =IF(千円単!R65="","",ROUND(千円単!R65/1000,0)) -> 76 | S65: =IF(千円単!S65="","",ROUND(千円単!S65/1000,0)) -> 0 | T65: =IF(千円単!T65="","",ROUND(千円単!T65/1000,0)) -> 16 | U65: =IF(千円単!U65="","",ROUND(千円単!U65/1000,0)) -> 344 | V65: =IF(千円単!V65="","",ROUND(千円単!V65/1000,0)) -> 41 | W65: =IF(千円単!W65="","",ROUND(千円単!W65/1000,0)) -> 304 | X65: =IF(千円単!X65="","",ROUND(千円単!X65/1000,0)) -> -269 | Y65: =IF(千円単!Y65="","",ROUND(千円単!Y65/1000,0)) -> 225
A66: 2015 | B66: 46 | C66: 17 | D66: 1 | E66: 65 | F66: 公共 | G66: 092011 | H66: 栃木県 | I66: 宇都宮市 | J66: =IF(千円単!J66="","",ROUND(千円単!J66/1000,0)) -> 12243 | K66: =IF(千円単!K66="","",ROUND(千円単!K66/1000,0)) -> 6738 | L66: =IF(千円単!L66="","",ROUND(千円単!L66/1000,0)) -> 3101 | M66: =IF(千円単!M66="","",ROUND(千円単!M66/1000,0)) -> 10891 | N66: =IF(千円単!N66="","",ROUND(千円単!N66/1000,0)) -> 1353 | O66: =IF(千円単!O66="","",ROUND(千円単!O66/1000,0)) -> 5664 | P66: =IF(千円単!P66="","",ROUND(千円単!P66/1000,0)) -> 485 | Q66: =IF(千円単!Q66="","",ROUND(千円単!Q66/1000,0)) -> 1353 | R66: =IF(千円単!R66="","",ROUND(千円単!R66/1000,0)) -> 3641 | S66: =IF(千円単!S66="","",ROUND(千円単!S66/1000,0)) -> 2255 | T66: =IF(千円単!T66="","",ROUND(千円単!T66/1000,0)) -> 190 | U66: =IF(千円単!U66="","",ROUND(千円単!U66/1000,0)) -> 8135 | V66: =IF(千円単!V66="","",ROUND(千円単!V66/1000,0)) -> 3400 | W66: =IF(千円単!W66="","",ROUND(千円単!W66/1000,0)) -> 4736 | X66: =IF(千円単!X66="","",ROUND(千円単!X66/1000,0)) -> -4494 | Y66: =IF(千円単!Y66="","",ROUND(千円単!Y66/1000,0)) -> 1353
A67: 2015 | B67: 46 | C67: 17 | D67: 1 | E67: 66 | F67: 公共 | G67: 102016 | H67: 群馬県 | I67: 前橋市 | J67: =IF(千円単!J67="","",ROUND(千円単!J67/1000,0)) -> 7058 | K67: =IF(千円単!K67="","",ROUND(千円単!K67/1000,0)) -> 3057 | L67: =IF(千円単!L67="","",ROUND(千円単!L67/1000,0)) -> 2613 | M67: =IF(千円単!M67="","",ROUND(千円単!M67/1000,0)) -> 6540 | N67: =IF(千円単!N67="","",ROUND(千円単!N67/1000,0)) -> 948 | O67: =IF(千円単!O67="","",ROUND(千円単!O67/1000,0)) -> 2989 | P67: =IF(千円単!P67="","",ROUND(千円単!P67/1000,0)) -> 393 | Q67: =IF(千円単!Q67="","",ROUND(千円単!Q67/1000,0)) -> 518 | R67: =IF(千円単!R67="","",ROUND(千円単!R67/1000,0)) -> 3001 | S67: =IF(千円単!S67="","",ROUND(千円単!S67/1000,0)) -> 1696 | T67: =IF(千円単!T67="","",ROUND(千円単!T67/1000,0)) -> 412 | U67: =IF(千円単!U67="","",ROUND(千円単!U67/1000,0)) -> 5417 | V67: =IF(千円単!V67="","",ROUND(千円単!V67/1000,0)) -> 2435 | W67: =IF(千円単!W67="","",ROUND(千円単!W67/1000,0)) -> 2981 | X67: =IF(千円単!X67="","",ROUND(千円単!X67/1000,0)) -> -2416 | Y67: =IF(千円単!Y67="","",ROUND(千円単!Y67/1000,0)) -> 518
A68: 2015 | B68: 46 | C68: 17 | D68: 1 | E68: 67 | F68: 公共 | G68: 102024 | H68: 群馬県 | I68: 高崎市 | J68: =IF(千円単!J68="","",ROUND(千円単!J68/1000,0)) -> 8460 | K68: =IF(千円単!K68="","",ROUND(千円単!K68/1000,0)) -> 3718 | L68: =IF(千円単!L68="","",ROUND(千円単!L68/1000,0)) -> 3256 | M68: =IF(千円単!M68="","",ROUND(千円単!M68/1000,0)) -> 6688 | N68: =IF(千円単!N68="","",ROUND(千円単!N68/1000,0)) -> 1065 | O68: =IF(千円単!O68="","",ROUND(千円単!O68/1000,0)) -> 3273 | P68: =IF(千円単!P68="","",ROUND(千円単!P68/1000,0)) -> 417 | Q68: =IF(千円単!Q68="","",ROUND(千円単!Q68/1000,0)) -> 1772 | R68: =IF(千円単!R68="","",ROUND(千円単!R68/1000,0)) -> 3017 | S68: =IF(千円単!S68="","",ROUND(千円単!S68/1000,0)) -> 1390 | T68: =IF(千円単!T68="","",ROUND(千円単!T68/1000,0)) -> 614 | U68: =IF(千円単!U68="","",ROUND(千円単!U68/1000,0)) -> 6387 | V68: =IF(千円単!V68="","",ROUND(千円単!V68/1000,0)) -> 3078 | W68: =IF(千円単!W68="","",ROUND(千円単!W68/1000,0)) -> 3304 | X68: =IF(千円単!X68="","",ROUND(千円単!X68/1000,0)) -> -3369 | Y68: =IF(千円単!Y68="","",ROUND(千円単!Y68/1000,0)) -> 1772
A69: 2015 | B69: 46 | C69: 17 | D69: 1 | E69: 68 | F69: 公共 | G69: 102059 | H69: 群馬県 | I69: 太田市 | J69: =IF(千円単!J69="","",ROUND(千円単!J69/1000,0)) -> 2853 | K69: =IF(千円単!K69="","",ROUND(千円単!K69/1000,0)) -> 786 | L69: =IF(千円単!L69="","",ROUND(千円単!L69/1000,0)) -> 1280 | M69: =IF(千円単!M69="","",ROUND(千円単!M69/1000,0)) -> 2777 | N69: =IF(千円単!N69="","",ROUND(千円単!N69/1000,0)) -> 474 | O69: =IF(千円単!O69="","",ROUND(千円単!O69/1000,0)) -> 1454 | P69: =IF(千円単!P69="","",ROUND(千円単!P69/1000,0)) -> 80 | Q69: =IF(千円単!Q69="","",ROUND(千円単!Q69/1000,0)) -> 77 | R69: =IF(千円単!R69="","",ROUND(千円単!R69/1000,0)) -> 1897 | S69: =IF(千円単!S69="","",ROUND(千円単!S69/1000,0)) -> 975 | T69: =IF(千円単!T69="","",ROUND(千円単!T69/1000,0)) -> 598 | U69: =IF(千円単!U69="","",ROUND(千円単!U69/1000,0)) -> 2778 | V69: =IF(千円単!V69="","",ROUND(千円単!V69/1000,0)) -> 1348 | W69: =IF(千円単!W69="","",ROUND(千円単!W69/1000,0)) -> 1430 | X69: =IF(千円単!X69="","",ROUND(千円単!X69/1000,0)) -> -881 | Y69: =IF(千円単!Y69="","",ROUND(千円単!Y69/1000,0)) -> 77
A70: 2015 | B70: 46 | C70: 17 | D70: 1 | E70: 69 | F70: 公共 | G70: 111007 | H70: 埼玉県 | I70: さいたま市 | J70: =IF(千円単!J70="","",ROUND(千円単!J70/1000,0)) -> 23749 | K70: =IF(千円単!K70="","",ROUND(千円単!K70/1000,0)) -> 16471 | L70: =IF(千円単!L70="","",ROUND(千円単!L70/1000,0)) -> 4379 | M70: =IF(千円単!M70="","",ROUND(千円単!M70/1000,0)) -> 23147 | N70: =IF(千円単!N70="","",ROUND(千円単!N70/1000,0)) -> 3698 | O70: =IF(千円単!O70="","",ROUND(千円単!O70/1000,0)) -> 11975 | P70: =IF(千円単!P70="","",ROUND(千円単!P70/1000,0)) -> 570 | Q70: =IF(千円単!Q70="","",ROUND(千円単!Q70/1000,0)) -> 602 | R70: =IF(千円単!R70="","",ROUND(千円単!R70/1000,0)) -> 20689 | S70: =IF(千円単!S70="","",ROUND(千円単!S70/1000,0)) -> 16661 | T70: =IF(千円単!T70="","",ROUND(千円単!T70/1000,0)) -> 399 | U70: =IF(千円単!U70="","",ROUND(千円単!U70/1000,0)) -> 28472 | V70: =IF(千円単!V70="","",ROUND(千円単!V70/1000,0)) -> 15151 | W70: =IF(千円単!W70="","",ROUND(千円単!W70/1000,0)) -> 13316 | X70: =IF(千円単!X70="","",ROUND(千円単!X70/1000,0)) -> -7782 | Y70: =IF(千円単!Y70="","",ROUND(千円単!Y70/1000,0)) -> 602
A71: 2015 | B71: 46 | C71: 17 | D71: 1 | E71: 70 | F71: 公共 | G71: 112011 | H71: 埼玉県 | I71: 川越市 | J71: =IF(千円単!J71="","",ROUND(千円単!J71/1000,0)) -> 5967 | K71: =IF(千円単!K71="","",ROUND(千円単!K71/1000,0)) -> 3228 | L71: =IF(千円単!L71="","",ROUND(千円単!L71/1000,0)) -> 1851 | M71: =IF(千円単!M71="","",ROUND(千円単!M71/1000,0)) -> 5750 | N71: =IF(千円単!N71="","",ROUND(千円単!N71/1000,0)) -> 451 | O71: =IF(千円単!O71="","",ROUND(千円単!O71/1000,0)) -> 2631 | P71: =IF(千円単!P71="","",ROUND(千円単!P71/1000,0)) -> 377 | Q71: =IF(千円単!Q71="","",ROUND(千円単!Q71/1000,0)) -> 217 | R71: =IF(千円単!R71="","",ROUND(千円単!R71/1000,0)) -> 1431 | S71: =IF(千円単!S71="","",ROUND(千円単!S71/1000,0)) -> 937 | T71: =IF(千円単!T71="","",ROUND(千円単!T71/1000,0)) -> 351 | U71: =IF(千円単!U71="","",ROUND(千円単!U71/1000,0)) -> 2970 | V71: =IF(千円単!V71="","",ROUND(千円単!V71/1000,0)) -> 1824 | W71: =IF(千円単!W71="","",ROUND(千円単!W71/1000,0)) -> 1146 | X71: =IF(千円単!X71="","",ROUND(千円単!X71/1000,0)) -> -1539 | Y71: =IF(千円単!Y71="","",ROUND(千円単!Y71/1000,0)) -> 217
A72: 2015 | B72: 46 | C72: 17 | D72: 1 | E72: 71 | F72: 公共 | G72: 112089 | H72: 埼玉県 | I72: 所沢市 | J72: =IF(千円単!J72="","",ROUND(千円単!J72/1000,0)) -> 5491 | K72: =IF(千円単!K72="","",ROUND(千円単!K72/1000,0)) -> 2627 | L72: =IF(千円単!L72="","",ROUND(千円単!L72/1000,0)) -> 1792 | M72: =IF(千円単!M72="","",ROUND(千円単!M72/1000,0)) -> 5479 | N72: =IF(千円単!N72="","",ROUND(千円単!N72/1000,0)) -> 476 | O72: =IF(千円単!O72="","",ROUND(千円単!O72/1000,0)) -> 2887 | P72: =IF(千円単!P72="","",ROUND(千円単!P72/1000,0)) -> 409 | Q72: =IF(千円単!Q72="","",ROUND(千円単!Q72/1000,0)) -> 13 | R72: =IF(千円単!R72="","",ROUND(千円単!R72/1000,0)) -> 824 | S72: =IF(千円単!S72="","",ROUND(千円単!S72/1000,0)) -> 178 | T72: =IF(千円単!T72="","",ROUND(千円単!T72/1000,0)) -> 170 | U72: =IF(千円単!U72="","",ROUND(千円単!U72/1000,0)) -> 2770 | V72: =IF(千円単!V72="","",ROUND(千円単!V72/1000,0)) -> 1514 | W72: =IF(千円単!W72="","",ROUND(千円単!W72/1000,0)) -> 1255 | X72: =IF(千円単!X72="","",ROUND(千円単!X72/1000,0)) -> -1946 | Y72: =IF(千円単!Y72="","",ROUND(千円単!Y72/1000,0)) -> 13
A73: 2015 | B73: 46 | C73: 17 | D73: 1 | E73: 72 | F73: 公共 | G73: 112101 | H73: 埼玉県 | I73: 加須市 | J73: =IF(千円単!J73="","",ROUND(千円単!J73/1000,0)) -> 1773 | K73: =IF(千円単!K73="","",ROUND(千円単!K73/1000,0)) -> 508 | L73: =IF(千円単!L73="","",ROUND(千円単!L73/1000,0)) -> 696 | M73: =IF(千円単!M73="","",ROUND(千円単!M73/1000,0)) -> 1696 | N73: =IF(千円単!N73="","",ROUND(千円単!N73/1000,0)) -> 270 | O73: =IF(千円単!O73="","",ROUND(千円単!O73/1000,0)) -> 972 | P73: =IF(千円単!P73="","",ROUND(千円単!P73/1000,0)) -> 49 | Q73: =IF(千円単!Q73="","",ROUND(千円単!Q73/1000,0)) -> 78 | R73: =IF(千円単!R73="","",ROUND(千円単!R73/1000,0)) -> 1227 | S73: =IF(千円単!S73="","",ROUND(千円単!S73/1000,0)) -> 653 | T73: =IF(千円単!T73="","",ROUND(千円単!T73/1000,0)) -> 285 | U73: =IF(千円単!U73="","",ROUND(千円単!U73/1000,0)) -> 1692 | V73: =IF(千円単!V73="","",ROUND(千円単!V73/1000,0)) -> 624 | W73: =IF(千円単!W73="","",ROUND(千円単!W73/1000,0)) -> 1066 | X73: =IF(千円単!X73="","",ROUND(千円単!X73/1000,0)) -> -465 | Y73: =IF(千円単!Y73="","",ROUND(千円単!Y73/1000,0)) -> 78
A74: 2015 | B74: 46 | C74: 17 | D74: 1 | E74: 73 | F74: 公共 | G74: 112119 | H74: 埼玉県 | I74: 本庄市 | J74: =IF(千円単!J74="","",ROUND(千円単!J74/1000,0)) -> 1444 | K74: =IF(千円単!K74="","",ROUND(千円単!K74/1000,0)) -> 589 | L74: =IF(千円単!L74="","",ROUND(千円単!L74/1000,0)) -> 60 | M74: =IF(千円単!M74="","",ROUND(千円単!M74/1000,0)) -> 1418 | N74: =IF(千円単!N74="","",ROUND(千円単!N74/1000,0)) -> 154 | O74: =IF(千円単!O74="","",ROUND(千円単!O74/1000,0)) -> 810 | P74: =IF(千円単!P74="","",ROUND(千円単!P74/1000,0)) -> 49 | Q74: =IF(千円単!Q74="","",ROUND(千円単!Q74/1000,0)) -> 27 | R74: =IF(千円単!R74="","",ROUND(千円単!R74/1000,0)) -> 1101 | S74: =IF(千円単!S74="","",ROUND(千円単!S74/1000,0)) -> 308 | T74: =IF(千円単!T74="","",ROUND(千円単!T74/1000,0)) -> 597 | U74: =IF(千円単!U74="","",ROUND(千円単!U74/1000,0)) -> 1249 | V74: =IF(千円単!V74="","",ROUND(千円単!V74/1000,0)) -> 691 | W74: =IF(千円単!W74="","",ROUND(千円単!W74/1000,0)) -> 558 | X74: =IF(千円単!X74="","",ROUND(千円単!X74/1000,0)) -> -148 | Y74: =IF(千円単!Y74="","",ROUND(千円単!Y74/1000,0)) -> 27
A75: 2015 | B75: 46 | C75: 17 | D75: 1 | E75: 74 | F75: 公共 | G75: 112143 | H75: 埼玉県 | I75: 春日部市 | J75: =IF(千円単!J75="","",ROUND(千円単!J75/1000,0)) -> 4782 | K75: =IF(千円単!K75="","",ROUND(千円単!K75/1000,0)) -> 2043 | L75: =IF(千円単!L75="","",ROUND(千円単!L75/1000,0)) -> 2002 | M75: =IF(千円単!M75="","",ROUND(千円単!M75/1000,0)) -> 4169 | N75: =IF(千円単!N75="","",ROUND(千円単!N75/1000,0)) -> 871 | O75: =IF(千円単!O75="","",ROUND(千円単!O75/1000,0)) -> 2163 | P75: =IF(千円単!P75="","",ROUND(千円単!P75/1000,0)) -> 87 | Q75: =IF(千円単!Q75="","",ROUND(千円単!Q75/1000,0)) -> 613 | R75: =IF(千円単!R75="","",ROUND(千円単!R75/1000,0)) -> 2322 | S75: =IF(千円単!S75="","",ROUND(千円単!S75/1000,0)) -> 1956 | T75: =IF(千円単!T75="","",ROUND(千円単!T75/1000,0)) -> 201 | U75: =IF(千円単!U75="","",ROUND(千円単!U75/1000,0)) -> 4209 | V75: =IF(千円単!V75="","",ROUND(千円単!V75/1000,0)) -> 1005 | W75: =IF(千円単!W75="","",ROUND(千円単!W75/1000,0)) -> 3204 | X75: =IF(千円単!X75="","",ROUND(千円単!X75/1000,0)) -> -1887 | Y75: =IF(千円単!Y75="","",ROUND(千円単!Y75/1000,0)) -> 613
A76: 2015 | B76: 46 | C76: 17 | D76: 1 | E76: 75 | F76: 公共 | G76: 112151 | H76: 埼玉県 | I76: 狭山市 | J76: =IF(千円単!J76="","",ROUND(千円単!J76/1000,0)) -> 3211 | K76: =IF(千円単!K76="","",ROUND(千円単!K76/1000,0)) -> 1548 | L76: =IF(千円単!L76="","",ROUND(千円単!L76/1000,0)) -> 930 | M76: =IF(千円単!M76="","",ROUND(千円単!M76/1000,0)) -> 3095 | N76: =IF(千円単!N76="","",ROUND(千円単!N76/1000,0)) -> 411 | O76: =IF(千円単!O76="","",ROUND(千円単!O76/1000,0)) -> 1813 | P76: =IF(千円単!P76="","",ROUND(千円単!P76/1000,0)) -> 95 | Q76: =IF(千円単!Q76="","",ROUND(千円単!Q76/1000,0)) -> 116 | R76: =IF(千円単!R76="","",ROUND(千円単!R76/1000,0)) -> 521 | S76: =IF(千円単!S76="","",ROUND(千円単!S76/1000,0)) -> 284 | T76: =IF(千円単!T76="","",ROUND(千円単!T76/1000,0)) -> 119 | U76: =IF(千円単!U76="","",ROUND(千円単!U76/1000,0)) -> 1667 | V76: =IF(千円単!V76="","",ROUND(千円単!V76/1000,0)) -> 612 | W76: =IF(千円単!W76="","",ROUND(千円単!W76/1000,0)) -> 1055 | X76: =IF(千円単!X76="","",ROUND(千円単!X76/1000,0)) -> -1146 | Y76: =IF(千円単!Y76="","",ROUND(千円単!Y76/1000,0)) -> 116
A77: 2015 | B77: 46 | C77: 17 | D77: 1 | E77: 76 | F77: 公共 | G77: 112178 | H77: 埼玉県 | I77: 鴻巣市 | J77: =IF(千円単!J77="","",ROUND(千円単!J77/1000,0)) -> 2158 | K77: =IF(千円単!K77="","",ROUND(千円単!K77/1000,0)) -> 1017 | L77: =IF(千円単!L77="","",ROUND(千円単!L77/1000,0)) -> 679 | M77: =IF(千円単!M77="","",ROUND(千円単!M77/1000,0)) -> 2060 | N77: =IF(千円単!N77="","",ROUND(千円単!N77/1000,0)) -> 303 | O77: =IF(千円単!O77="","",ROUND(千円単!O77/1000,0)) -> 1150 | P77: =IF(千円単!P77="","",ROUND(千円単!P77/1000,0)) -> 52 | Q77: =IF(千円単!Q77="","",ROUND(千円単!Q77/1000,0)) -> 98 | R77: =IF(千円単!R77="","",ROUND(千円単!R77/1000,0)) -> 2333 | S77: =IF(千円単!S77="","",ROUND(千円単!S77/1000,0)) -> 1189 | T77: =IF(千円単!T77="","",ROUND(千円単!T77/1000,0)) -> 472 | U77: =IF(千円単!U77="","",ROUND(千円単!U77/1000,0)) -> 3224 | V77: =IF(千円単!V77="","",ROUND(千円単!V77/1000,0)) -> 1946 | W77: =IF(千円単!W77="","",ROUND(千円単!W77/1000,0)) -> 1278 | X77: =IF(千円単!X77="","",ROUND(千円単!X77/1000,0)) -> -891 | Y77: =IF(千円単!Y77="","",ROUND(千円単!Y77/1000,0)) -> 98
A78: 2015 | B78: 46 | C78: 17 | D78: 1 | E78: 77 | F78: 公共 | G78: 112186 | H78: 埼玉県 | I78: 深谷市 | J78: =IF(千円単!J78="","",ROUND(千円単!J78/1000,0)) -> 2359 | K78: =IF(千円単!K78="","",ROUND(千円単!K78/1000,0)) -> 772 | L78: =IF(千円単!L78="","",ROUND(千円単!L78/1000,0)) -> 944 | M78: =IF(千円単!M78="","",ROUND(千円単!M78/1000,0)) -> 2256 | N78: =IF(千円単!N78="","",ROUND(千円単!N78/1000,0)) -> 352 | O78: =IF(千円単!O78="","",ROUND(千円単!O78/1000,0)) -> 1338 | P78: =IF(千円単!P78="","",ROUND(千円単!P78/1000,0)) -> 56 | Q78: =IF(千円単!Q78="","",ROUND(千円単!Q78/1000,0)) -> 103 | R78: =IF(千円単!R78="","",ROUND(千円単!R78/1000,0)) -> 1173 | S78: =IF(千円単!S78="","",ROUND(千円単!S78/1000,0)) -> 719 | T78: =IF(千円単!T78="","",ROUND(千円単!T78/1000,0)) -> 0 | U78: =IF(千円単!U78="","",ROUND(千円単!U78/1000,0)) -> 1980 | V78: =IF(千円単!V78="","",ROUND(千円単!V78/1000,0)) -> 1021 | W78: =IF(千円単!W78="","",ROUND(千円単!W78/1000,0)) -> 958 | X78: =IF(千円単!X78="","",ROUND(千円単!X78/1000,0)) -> -807 | Y78: =IF(千円単!Y78="","",ROUND(千円単!Y78/1000,0)) -> 103
A79: 2015 | B79: 46 | C79: 17 | D79: 1 | E79: 78 | F79: 公共 | G79: 112241 | H79: 埼玉県 | I79: 戸田市 | J79: =IF(千円単!J79="","",ROUND(千円単!J79/1000,0)) -> 2609 | K79: =IF(千円単!K79="","",ROUND(千円単!K79/1000,0)) -> 1004 | L79: =IF(千円単!L79="","",ROUND(千円単!L79/1000,0)) -> 969 | M79: =IF(千円単!M79="","",ROUND(千円単!M79/1000,0)) -> 2671 | N79: =IF(千円単!N79="","",ROUND(千円単!N79/1000,0)) -> 212 | O79: =IF(千円単!O79="","",ROUND(千円単!O79/1000,0)) -> 1289 | P79: =IF(千円単!P79="","",ROUND(千円単!P79/1000,0)) -> 56 | Q79: =IF(千円単!Q79="","",ROUND(千円単!Q79/1000,0)) -> -63 | R79: =IF(千円単!R79="","",ROUND(千円単!R79/1000,0)) -> 1062 | S79: =IF(千円単!S79="","",ROUND(千円単!S79/1000,0)) -> 897 | T79: =IF(千円単!T79="","",ROUND(千円単!T79/1000,0)) -> 22 | U79: =IF(千円単!U79="","",ROUND(千円単!U79/1000,0)) -> 1798 | V79: =IF(千円単!V79="","",ROUND(千円単!V79/1000,0)) -> 1128 | W79: =IF(千円単!W79="","",ROUND(千円単!W79/1000,0)) -> 670 | X79: =IF(千円単!X79="","",ROUND(千円単!X79/1000,0)) -> -737 | Y79: =IF(千円単!Y79="","",ROUND(千円単!Y79/1000,0)) -> -63
A80: 2015 | B80: 46 | C80: 17 | D80: 1 | E80: 79 | F80: 公共 | G80: 112259 | H80: 埼玉県 | I80: 入間市 | J80: =IF(千円単!J80="","",ROUND(千円単!J80/1000,0)) -> 2298 | K80: =IF(千円単!K80="","",ROUND(千円単!K80/1000,0)) -> 1344 | L80: =IF(千円単!L80="","",ROUND(千円単!L80/1000,0)) -> 457 | M80: =IF(千円単!M80="","",ROUND(千円単!M80/1000,0)) -> 2185 | N80: =IF(千円単!N80="","",ROUND(千円単!N80/1000,0)) -> 265 | O80: =IF(千円単!O80="","",ROUND(千円単!O80/1000,0)) -> 1259 | P80: =IF(千円単!P80="","",ROUND(千円単!P80/1000,0)) -> 62 | Q80: =IF(千円単!Q80="","",ROUND(千円単!Q80/1000,0)) -> 113 | R80: =IF(千円単!R80="","",ROUND(千円単!R80/1000,0)) -> 301 | S80: =IF(千円単!S80="","",ROUND(千円単!S80/1000,0)) -> 126 | T80: =IF(千円単!T80="","",ROUND(千円単!T80/1000,0)) -> 171 | U80: =IF(千円単!U80="","",ROUND(千円単!U80/1000,0)) -> 1012 | V80: =IF(千円単!V80="","",ROUND(千円単!V80/1000,0)) -> 185 | W80: =IF(千円単!W80="","",ROUND(千円単!W80/1000,0)) -> 827 | X80: =IF(千円単!X80="","",ROUND(千円単!X80/1000,0)) -> -711 | Y80: =IF(千円単!Y80="","",ROUND(千円単!Y80/1000,0)) -> 113
A81: 2015 | B81: 46 | C81: 17 | D81: 1 | E81: 80 | F81: 公共 | G81: 112283 | H81: 埼玉県 | I81: 志木市 | J81: =IF(千円単!J81="","",ROUND(千円単!J81/1000,0)) -> 1927 | K81: =IF(千円単!K81="","",ROUND(千円単!K81/1000,0)) -> 800 | L81: =IF(千円単!L81="","",ROUND(千円単!L81/1000,0)) -> 451 | M81: =IF(千円単!M81="","",ROUND(千円単!M81/1000,0)) -> 1772 | N81: =IF(千円単!N81="","",ROUND(千円単!N81/1000,0)) -> 200 | O81: =IF(千円単!O81="","",ROUND(千円単!O81/1000,0)) -> 886 | P81: =IF(千円単!P81="","",ROUND(千円単!P81/1000,0)) -> 99 | Q81: =IF(千円単!Q81="","",ROUND(千円単!Q81/1000,0)) -> 155 | R81: =IF(千円単!R81="","",ROUND(千円単!R81/1000,0)) -> 535 | S81: =IF(千円単!S81="","",ROUND(千円単!S81/1000,0)) -> 41 | T81: =IF(千円単!T81="","",ROUND(千円単!T81/1000,0)) -> 479 | U81: =IF(千円単!U81="","",ROUND(千円単!U81/1000,0)) -> 765 | V81: =IF(千円単!V81="","",ROUND(千円単!V81/1000,0)) -> 134 | W81: =IF(千円単!W81="","",ROUND(千円単!W81/1000,0)) -> 628 | X81: =IF(千円単!X81="","",ROUND(千円単!X81/1000,0)) -> -230 | Y81: =IF(千円単!Y81="","",ROUND(千円単!Y81/1000,0)) -> 155
A82: 2015 | B82: 46 | C82: 17 | D82: 1 | E82: 81 | F82: 公共 | G82: 112291 | H82: 埼玉県 | I82: 和光市 | J82: =IF(千円単!J82="","",ROUND(千円単!J82/1000,0)) -> 1086 | K82: =IF(千円単!K82="","",ROUND(千円単!K82/1000,0)) -> 592 | L82: =IF(千円単!L82="","",ROUND(千円単!L82/1000,0)) -> 356 | M82: =IF(千円単!M82="","",ROUND(千円単!M82/1000,0)) -> 980 | N82: =IF(千円単!N82="","",ROUND(千円単!N82/1000,0)) -> 117 | O82: =IF(千円単!O82="","",ROUND(千円単!O82/1000,0)) -> 443 | P82: =IF(千円単!P82="","",ROUND(千円単!P82/1000,0)) -> 26 | Q82: =IF(千円単!Q82="","",ROUND(千円単!Q82/1000,0)) -> 106 | R82: =IF(千円単!R82="","",ROUND(千円単!R82/1000,0)) -> 110 | S82: =IF(千円単!S82="","",ROUND(千円単!S82/1000,0)) -> 53 | T82: =IF(千円単!T82="","",ROUND(千円単!T82/1000,0)) -> 57 | U82: =IF(千円単!U82="","",ROUND(千円単!U82/1000,0)) -> 492 | V82: =IF(千円単!V82="","",ROUND(千円単!V82/1000,0)) -> 112 | W82: =IF(千円単!W82="","",ROUND(千円単!W82/1000,0)) -> 380 | X82: =IF(千円単!X82="","",ROUND(千円単!X82/1000,0)) -> -382 | Y82: =IF(千円単!Y82="","",ROUND(千円単!Y82/1000,0)) -> 106
A83: 2015 | B83: 46 | C83: 17 | D83: 1 | E83: 82 | F83: 公共 | G83: 112356 | H83: 埼玉県 | I83: 富士見市 | J83: =IF(千円単!J83="","",ROUND(千円単!J83/1000,0)) -> 1604 | K83: =IF(千円単!K83="","",ROUND(千円単!K83/1000,0)) -> 869 | L83: =IF(千円単!L83="","",ROUND(千円単!L83/1000,0)) -> 457 | M83: =IF(千円単!M83="","",ROUND(千円単!M83/1000,0)) -> 1330 | N83: =IF(千円単!N83="","",ROUND(千円単!N83/1000,0)) -> 210 | O83: =IF(千円単!O83="","",ROUND(千円単!O83/1000,0)) -> 622 | P83: =IF(千円単!P83="","",ROUND(千円単!P83/1000,0)) -> 32 | Q83: =IF(千円単!Q83="","",ROUND(千円単!Q83/1000,0)) -> 275 | R83: =IF(千円単!R83="","",ROUND(千円単!R83/1000,0)) -> 969 | S83: =IF(千円単!S83="","",ROUND(千円単!S83/1000,0)) -> 645 | T83: =IF(千円単!T83="","",ROUND(千円単!T83/1000,0)) -> 118 | U83: =IF(千円単!U83="","",ROUND(千円単!U83/1000,0)) -> 1506 | V83: =IF(千円単!V83="","",ROUND(千円単!V83/1000,0)) -> 834 | W83: =IF(千円単!W83="","",ROUND(千円単!W83/1000,0)) -> 672 | X83: =IF(千円単!X83="","",ROUND(千円単!X83/1000,0)) -> -537 | Y83: =IF(千円単!Y83="","",ROUND(千円単!Y83/1000,0)) -> 275
A84: 2015 | B84: 46 | C84: 17 | D84: 1 | E84: 83 | F84: 公共 | G84: 112429 | H84: 埼玉県 | I84: 日高市 | J84: =IF(千円単!J84="","",ROUND(千円単!J84/1000,0)) -> 1008 | K84: =IF(千円単!K84="","",ROUND(千円単!K84/1000,0)) -> 563 | L84: =IF(千円単!L84="","",ROUND(千円単!L84/1000,0)) -> 190 | M84: =IF(千円単!M84="","",ROUND(千円単!M84/1000,0)) -> 942 | N84: =IF(千円単!N84="","",ROUND(千円単!N84/1000,0)) -> 126 | O84: =IF(千円単!O84="","",ROUND(千円単!O84/1000,0)) -> 453 | P84: =IF(千円単!P84="","",ROUND(千円単!P84/1000,0)) -> 64 | Q84: =IF(千円単!Q84="","",ROUND(千円単!Q84/1000,0)) -> 66 | R84: =IF(千円単!R84="","",ROUND(千円単!R84/1000,0)) -> 480 | S84: =IF(千円単!S84="","",ROUND(千円単!S84/1000,0)) -> 421 | T84: =IF(千円単!T84="","",ROUND(千円単!T84/1000,0)) -> 46 | U84: =IF(千円単!U84="","",ROUND(千円単!U84/1000,0)) -> 817 | V84: =IF(千円単!V84="","",ROUND(千円単!V84/1000,0)) -> 250 | W84: =IF(千円単!W84="","",ROUND(千円単!W84/1000,0)) -> 567 | X84: =IF(千円単!X84="","",ROUND(千円単!X84/1000,0)) -> -336 | Y84: =IF(千円単!Y84="","",ROUND(千円単!Y84/1000,0)) -> 66
A85: 2015 | B85: 46 | C85: 17 | D85: 1 | E85: 84 | F85: 公共 | G85: 113859 | H85: 埼玉県 | I85: 上里町 | J85: =IF(千円単!J85="","",ROUND(千円単!J85/1000,0)) -> 204 | K85: =IF(千円単!K85="","",ROUND(千円単!K85/1000,0)) -> 52 | L85: =IF(千円単!L85="","",ROUND(千円単!L85/1000,0)) -> 118 | M85: =IF(千円単!M85="","",ROUND(千円単!M85/1000,0)) -> 199 | N85: =IF(千円単!N85="","",ROUND(千円単!N85/1000,0)) -> 44 | O85: =IF(千円単!O85="","",ROUND(千円単!O85/1000,0)) -> 104 | P85: =IF(千円単!P85="","",ROUND(千円単!P85/1000,0)) -> 16 | Q85: =IF(千円単!Q85="","",ROUND(千円単!Q85/1000,0)) -> 4 | R85: =IF(千円単!R85="","",ROUND(千円単!R85/1000,0)) -> 145 | S85: =IF(千円単!S85="","",ROUND(千円単!S85/1000,0)) -> 65 | T85: =IF(千円単!T85="","",ROUND(千円単!T85/1000,0)) -> 0 | U85: =IF(千円単!U85="","",ROUND(千円単!U85/1000,0)) -> 201 | V85: =IF(千円単!V85="","",ROUND(千円単!V85/1000,0)) -> 126 | W85: =IF(千円単!W85="","",ROUND(千円単!W85/1000,0)) -> 75 | X85: =IF(千円単!X85="","",ROUND(千円単!X85/1000,0)) -> -55 | Y85: =IF(千円単!Y85="","",ROUND(千円単!Y85/1000,0)) -> 4
A86: 2015 | B86: 46 | C86: 17 | D86: 1 | E86: 85 | F86: 公共 | G86: 121002 | H86: 千葉県 | I86: 千葉市 | J86: =IF(千円単!J86="","",ROUND(千円単!J86/1000,0)) -> 27829 | K86: =IF(千円単!K86="","",ROUND(千円単!K86/1000,0)) -> 12666 | L86: =IF(千円単!L86="","",ROUND(千円単!L86/1000,0)) -> 7775 | M86: =IF(千円単!M86="","",ROUND(千円単!M86/1000,0)) -> 26330 | N86: =IF(千円単!N86="","",ROUND(千円単!N86/1000,0)) -> 4524 | O86: =IF(千円単!O86="","",ROUND(千円単!O86/1000,0)) -> 14951 | P86: =IF(千円単!P86="","",ROUND(千円単!P86/1000,0)) -> 726 | Q86: =IF(千円単!Q86="","",ROUND(千円単!Q86/1000,0)) -> 1498 | R86: =IF(千円単!R86="","",ROUND(千円単!R86/1000,0)) -> 12808 | S86: =IF(千円単!S86="","",ROUND(千円単!S86/1000,0)) -> 9748 | T86: =IF(千円単!T86="","",ROUND(千円単!T86/1000,0)) -> 104 | U86: =IF(千円単!U86="","",ROUND(千円単!U86/1000,0)) -> 22473 | V86: =IF(千円単!V86="","",ROUND(千円単!V86/1000,0)) -> 8215 | W86: =IF(千円単!W86="","",ROUND(千円単!W86/1000,0)) -> 14252 | X86: =IF(千円単!X86="","",ROUND(千円単!X86/1000,0)) -> -9664 | Y86: =IF(千円単!Y86="","",ROUND(千円単!Y86/1000,0)) -> 1498
A87: 2015 | B87: 46 | C87: 17 | D87: 1 | E87: 86 | F87: 公共 | G87: 122122 | H87: 千葉県 | I87: 佐倉市 | J87: =IF(千円単!J87="","",ROUND(千円単!J87/1000,0)) -> 3106 | K87: =IF(千円単!K87="","",ROUND(千円単!K87/1000,0)) -> 1779 | L87: =IF(千円単!L87="","",ROUND(千円単!L87/1000,0)) -> 214 | M87: =IF(千円単!M87="","",ROUND(千円単!M87/1000,0)) -> 2992 | N87: =IF(千円単!N87="","",ROUND(千円単!N87/1000,0)) -> 100 | O87: =IF(千円単!O87="","",ROUND(千円単!O87/1000,0)) -> 1580 | P87: =IF(千円単!P87="","",ROUND(千円単!P87/1000,0)) -> 131 | Q87: =IF(千円単!Q87="","",ROUND(千円単!Q87/1000,0)) -> 115 | R87: =IF(千円単!R87="","",ROUND(千円単!R87/1000,0)) -> 425 | S87: =IF(千円単!S87="","",ROUND(千円単!S87/1000,0)) -> 184 | T87: =IF(千円単!T87="","",ROUND(千円単!T87/1000,0)) -> 70 | U87: =IF(千円単!U87="","",ROUND(千円単!U87/1000,0)) -> 929 | V87: =IF(千円単!V87="","",ROUND(千円単!V87/1000,0)) -> 554 | W87: =IF(千円単!W87="","",ROUND(千円単!W87/1000,0)) -> 375 | X87: =IF(千円単!X87="","",ROUND(千円単!X87/1000,0)) -> -504 | Y87: =IF(千円単!Y87="","",ROUND(千円単!Y87/1000,0)) -> 115
A88: 2015 | B88: 46 | C88: 17 | D88: 1 | E88: 87 | F88: 公共 | G88: 122173 | H88: 千葉県 | I88: 柏市 | J88: =IF(千円単!J88="","",ROUND(千円単!J88/1000,0)) -> 9135 | K88: =IF(千円単!K88="","",ROUND(千円単!K88/1000,0)) -> 5246 | L88: =IF(千円単!L88="","",ROUND(千円単!L88/1000,0)) -> 1475 | M88: =IF(千円単!M88="","",ROUND(千円単!M88/1000,0)) -> 8720 | N88: =IF(千円単!N88="","",ROUND(千円単!N88/1000,0)) -> 1050 | O88: =IF(千円単!O88="","",ROUND(千円単!O88/1000,0)) -> 4412 | P88: =IF(千円単!P88="","",ROUND(千円単!P88/1000,0)) -> 227 | Q88: =IF(千円単!Q88="","",ROUND(千円単!Q88/1000,0)) -> 415 | R88: =IF(千円単!R88="","",ROUND(千円単!R88/1000,0)) -> 4303 | S88: =IF(千円単!S88="","",ROUND(千円単!S88/1000,0)) -> 1632 | T88: =IF(千円単!T88="","",ROUND(千円単!T88/1000,0)) -> 292 | U88: =IF(千円単!U88="","",ROUND(千円単!U88/1000,0)) -> 7020 | V88: =IF(千円単!V88="","",ROUND(千円単!V88/1000,0)) -> 3282 | W88: =IF(千円単!W88="","",ROUND(千円単!W88/1000,0)) -> 3735 | X88: =IF(千円単!X88="","",ROUND(千円単!X88/1000,0)) -> -2717 | Y88: =IF(千円単!Y88="","",ROUND(千円単!Y88/1000,0)) -> 415
A89: 2015 | B89: 46 | C89: 17 | D89: 1 | E89: 88 | F89: 公共 | G89: 122203 | H89: 千葉県 | I89: 流山市 | J89: =IF(千円単!J89="","",ROUND(千円単!J89/1000,0)) -> 2977 | K89: =IF(千円単!K89="","",ROUND(千円単!K89/1000,0)) -> 1669 | L89: =IF(千円単!L89="","",ROUND(千円単!L89/1000,0)) -> 548 | M89: =IF(千円単!M89="","",ROUND(千円単!M89/1000,0)) -> 2913 | N89: =IF(千円単!N89="","",ROUND(千円単!N89/1000,0)) -> 437 | O89: =IF(千円単!O89="","",ROUND(千円単!O89/1000,0)) -> 1357 | P89: =IF(千円単!P89="","",ROUND(千円単!P89/1000,0)) -> 102 | Q89: =IF(千円単!Q89="","",ROUND(千円単!Q89/1000,0)) -> 65 | R89: =IF(千円単!R89="","",ROUND(千円単!R89/1000,0)) -> 1840 | S89: =IF(千円単!S89="","",ROUND(千円単!S89/1000,0)) -> 630 | T89: =IF(千円単!T89="","",ROUND(千円単!T89/1000,0)) -> 1 | U89: =IF(千円単!U89="","",ROUND(千円単!U89/1000,0)) -> 2234 | V89: =IF(千円単!V89="","",ROUND(千円単!V89/1000,0)) -> 1245 | W89: =IF(千円単!W89="","",ROUND(千円単!W89/1000,0)) -> 989 | X89: =IF(千円単!X89="","",ROUND(千円単!X89/1000,0)) -> -394 | Y89: =IF(千円単!Y89="","",ROUND(千円単!Y89/1000,0)) -> 65
A90: 2015 | B90: 46 | C90: 17 | D90: 1 | E90: 89 | F90: 公共 | G90: 122211 | H90: 千葉県 | I90: 八千代市 | J90: =IF(千円単!J90="","",ROUND(千円単!J90/1000,0)) -> 3329 | K90: =IF(千円単!K90="","",ROUND(千円単!K90/1000,0)) -> 2161 | L90: =IF(千円単!L90="","",ROUND(千円単!L90/1000,0)) -> 500 | M90: =IF(千円単!M90="","",ROUND(千円単!M90/1000,0)) -> 3264 | N90: =IF(千円単!N90="","",ROUND(千円単!N90/1000,0)) -> 233 | O90: =IF(千円単!O90="","",ROUND(千円単!O90/1000,0)) -> 1428 | P90: =IF(千円単!P90="","",ROUND(千円単!P90/1000,0)) -> 122 | Q90: =IF(千円単!Q90="","",ROUND(千円単!Q90/1000,0)) -> 65 | R90: =IF(千円単!R90="","",ROUND(千円単!R90/1000,0)) -> 829 | S90: =IF(千円単!S90="","",ROUND(千円単!S90/1000,0)) -> 310 | T90: =IF(千円単!T90="","",ROUND(千円単!T90/1000,0)) -> 262 | U90: =IF(千円単!U90="","",ROUND(千円単!U90/1000,0)) -> 1581 | V90: =IF(千円単!V90="","",ROUND(千円単!V90/1000,0)) -> 820 | W90: =IF(千円単!W90="","",ROUND(千円単!W90/1000,0)) -> 629 | X90: =IF(千円単!X90="","",ROUND(千円単!X90/1000,0)) -> -752 | Y90: =IF(千円単!Y90="","",ROUND(千円単!Y90/1000,0)) -> 65
A91: 2015 | B91: 46 | C91: 17 | D91: 1 | E91: 90 | F91: 公共 | G91: 123226 | H91: 千葉県 | I91: 酒々井町 | J91: =IF(千円単!J91="","",ROUND(千円単!J91/1000,0)) -> 271 | K91: =IF(千円単!K91="","",ROUND(千円単!K91/1000,0)) -> 229 | L91: =IF(千円単!L91="","",ROUND(千円単!L91/1000,0)) -> 9 | M91: =IF(千円単!M91="","",ROUND(千円単!M91/1000,0)) -> 305 | N91: =IF(千円単!N91="","",ROUND(千円単!N91/1000,0)) -> 25 | O91: =IF(千円単!O91="","",ROUND(千円単!O91/1000,0)) -> 162 | P91: =IF(千円単!P91="","",ROUND(千円単!P91/1000,0)) -> 5 | Q91: =IF(千円単!Q91="","",ROUND(千円単!Q91/1000,0)) -> -35 | R91: =IF(千円単!R91="","",ROUND(千円単!R91/1000,0)) -> 29 | S91: =IF(千円単!S91="","",ROUND(千円単!S91/1000,0)) -> 4 | T91: =IF(千円単!T91="","",ROUND(千円単!T91/1000,0)) -> 17 | U91: =IF(千円単!U91="","",ROUND(千円単!U91/1000,0)) -> 90 | V91: =IF(千円単!V91="","",ROUND(千円単!V91/1000,0)) -> 18 | W91: =IF(千円単!W91="","",ROUND(千円単!W91/1000,0)) -> 73 | X91: =IF(千円単!X91="","",ROUND(千円単!X91/1000,0)) -> -61 | Y91: =IF(千円単!Y91="","",ROUND(千円単!Y91/1000,0)) -> -35
A92: 2015 | B92: 46 | C92: 17 | D92: 1 | E92: 91 | F92: 公共 | G92: 130001 | H92: 東京都 | I92: 東京都 | J92: =IF(千円単!J92="","",ROUND(千円単!J92/1000,0)) -> 342513 | K92: =IF(千円単!K92="","",ROUND(千円単!K92/1000,0)) -> 158463 | L92: =IF(千円単!L92="","",ROUND(千円単!L92/1000,0)) -> 123890 | M92: =IF(千円単!M92="","",ROUND(千円単!M92/1000,0)) -> 307686 | N92: =IF(千円単!N92="","",ROUND(千円単!N92/1000,0)) -> 32885 | O92: =IF(千円単!O92="","",ROUND(千円単!O92/1000,0)) -> 167283 | P92: =IF(千円単!P92="","",ROUND(千円単!P92/1000,0)) -> 15081 | Q92: =IF(千円単!Q92="","",ROUND(千円単!Q92/1000,0)) -> 34827 | R92: =IF(千円単!R92="","",ROUND(千円単!R92/1000,0)) -> 161762 | S92: =IF(千円単!S92="","",ROUND(千円単!S92/1000,0)) -> 74492 | T92: =IF(千円単!T92="","",ROUND(千円単!T92/1000,0)) -> 0 | U92: =IF(千円単!U92="","",ROUND(千円単!U92/1000,0)) -> 352979 | V92: =IF(千円単!V92="","",ROUND(千円単!V92/1000,0)) -> 189091 | W92: =IF(千円単!W92="","",ROUND(千円単!W92/1000,0)) -> 163888 | X92: =IF(千円単!X92="","",ROUND(千円単!X92/1000,0)) -> -191217 | Y92: =IF(千円単!Y92="","",ROUND(千円単!Y92/1000,0)) -> 34827
A93: 2015 | B93: 46 | C93: 17 | D93: 1 | E93: 92 | F93: 公共 | G93: 141003 | H93: 神奈川県 | I93: 横浜市 | J93: =IF(千円単!J93="","",ROUND(千円単!J93/1000,0)) -> 130257 | K93: =IF(千円単!K93="","",ROUND(千円単!K93/1000,0)) -> 56368 | L93: =IF(千円単!L93="","",ROUND(千円単!L93/1000,0)) -> 44259 | M93: =IF(千円単!M93="","",ROUND(千円単!M93/1000,0)) -> 114512 | N93: =IF(千円単!N93="","",ROUND(千円単!N93/1000,0)) -> 14067 | O93: =IF(千円単!O93="","",ROUND(千円単!O93/1000,0)) -> 73588 | P93: =IF(千円単!P93="","",ROUND(千円単!P93/1000,0)) -> 5536 | Q93: =IF(千円単!Q93="","",ROUND(千円単!Q93/1000,0)) -> 15746 | R93: =IF(千円単!R93="","",ROUND(千円単!R93/1000,0)) -> 81211 | S93: =IF(千円単!S93="","",ROUND(千円単!S93/1000,0)) -> 67143 | T93: =IF(千円単!T93="","",ROUND(千円単!T93/1000,0)) -> 0 | U93: =IF(千円単!U93="","",ROUND(千円単!U93/1000,0)) -> 140953 | V93: =IF(千円単!V93="","",ROUND(千円単!V93/1000,0)) -> 34760 | W93: =IF(千円単!W93="","",ROUND(千円単!W93/1000,0)) -> 106192 | X93: =IF(千円単!X93="","",ROUND(千円単!X93/1000,0)) -> -59742 | Y93: =IF(千円単!Y93="","",ROUND(千円単!Y93/1000,0)) -> 15746
A94: 2015 | B94: 46 | C94: 17 | D94: 1 | E94: 93 | F94: 公共 | G94: 141305 | H94: 神奈川県 | I94: 川崎市 | J94: =IF(千円単!J94="","",ROUND(千円単!J94/1000,0)) -> 43396 | K94: =IF(千円単!K94="","",ROUND(千円単!K94/1000,0)) -> 22234 | L94: =IF(千円単!L94="","",ROUND(千円単!L94/1000,0)) -> 12576 | M94: =IF(千円単!M94="","",ROUND(千円単!M94/1000,0)) -> 41588 | N94: =IF(千円単!N94="","",ROUND(千円単!N94/1000,0)) -> 6958 | O94: =IF(千円単!O94="","",ROUND(千円単!O94/1000,0)) -> 22945 | P94: =IF(千円単!P94="","",ROUND(千円単!P94/1000,0)) -> 2796 | Q94: =IF(千円単!Q94="","",ROUND(千円単!Q94/1000,0)) -> 1808 | R94: =IF(千円単!R94="","",ROUND(千円単!R94/1000,0)) -> 47256 | S94: =IF(千円単!S94="","",ROUND(千円単!S94/1000,0)) -> 32946 | T94: =IF(千円単!T94="","",ROUND(千円単!T94/1000,0)) -> 1773 | U94: =IF(千円単!U94="","",ROUND(千円単!U94/1000,0)) -> 65808 | V94: =IF(千円単!V94="","",ROUND(千円単!V94/1000,0)) -> 18420 | W94: =IF(千円単!W94="","",ROUND(千円単!W94/1000,0)) -> 44639 | X94: =IF(千円単!X94="","",ROUND(千円単!X94/1000,0)) -> -18552 | Y94: =IF(千円単!Y94="","",ROUND(千円単!Y94/1000,0)) -> 1808
A95: 2015 | B95: 46 | C95: 17 | D95: 1 | E95: 94 | F95: 公共 | G95: 141500 | H95: 神奈川県 | I95: 相模原市 | J95: =IF(千円単!J95="","",ROUND(千円単!J95/1000,0)) -> 15192 | K95: =IF(千円単!K95="","",ROUND(千円単!K95/1000,0)) -> 8603 | L95: =IF(千円単!L95="","",ROUND(千円単!L95/1000,0)) -> 4257 | M95: =IF(千円単!M95="","",ROUND(千円単!M95/1000,0)) -> 14824 | N95: =IF(千円単!N95="","",ROUND(千円単!N95/1000,0)) -> 2406 | O95: =IF(千円単!O95="","",ROUND(千円単!O95/1000,0)) -> 8036 | P95: =IF(千円単!P95="","",ROUND(千円単!P95/1000,0)) -> 492 | Q95: =IF(千円単!Q95="","",ROUND(千円単!Q95/1000,0)) -> 368 | R95: =IF(千円単!R95="","",ROUND(千円単!R95/1000,0)) -> 3388 | S95: =IF(千円単!S95="","",ROUND(千円単!S95/1000,0)) -> 2079 | T95: =IF(千円単!T95="","",ROUND(千円単!T95/1000,0)) -> 288 | U95: =IF(千円単!U95="","",ROUND(千円単!U95/1000,0)) -> 10008 | V95: =IF(千円単!V95="","",ROUND(千円単!V95/1000,0)) -> 3100 | W95: =IF(千円単!W95="","",ROUND(千円単!W95/1000,0)) -> 6891 | X95: =IF(千円単!X95="","",ROUND(千円単!X95/1000,0)) -> -6620 | Y95: =IF(千円単!Y95="","",ROUND(千円単!Y95/1000,0)) -> 368
A96: 2015 | B96: 46 | C96: 17 | D96: 1 | E96: 95 | F96: 公共 | G96: 142018 | H96: 神奈川県 | I96: 横須賀市 | J96: =IF(千円単!J96="","",ROUND(千円単!J96/1000,0)) -> 16426 | K96: =IF(千円単!K96="","",ROUND(千円単!K96/1000,0)) -> 6960 | L96: =IF(千円単!L96="","",ROUND(千円単!L96/1000,0)) -> 3198 | M96: =IF(千円単!M96="","",ROUND(千円単!M96/1000,0)) -> 14863 | N96: =IF(千円単!N96="","",ROUND(千円単!N96/1000,0)) -> 1846 | O96: =IF(千円単!O96="","",ROUND(千円単!O96/1000,0)) -> 8487 | P96: =IF(千円単!P96="","",ROUND(千円単!P96/1000,0)) -> 703 | Q96: =IF(千円単!Q96="","",ROUND(千円単!Q96/1000,0)) -> 1564 | R96: =IF(千円単!R96="","",ROUND(千円単!R96/1000,0)) -> 6900 | S96: =IF(千円単!S96="","",ROUND(千円単!S96/1000,0)) -> 4241 | T96: =IF(千円単!T96="","",ROUND(千円単!T96/1000,0)) -> 1033 | U96: =IF(千円単!U96="","",ROUND(千円単!U96/1000,0)) -> 10828 | V96: =IF(千円単!V96="","",ROUND(千円単!V96/1000,0)) -> 3862 | W96: =IF(千円単!W96="","",ROUND(千円単!W96/1000,0)) -> 6791 | X96: =IF(千円単!X96="","",ROUND(千円単!X96/1000,0)) -> -3928 | Y96: =IF(千円単!Y96="","",ROUND(千円単!Y96/1000,0)) -> 1564
A97: 2015 | B97: 46 | C97: 17 | D97: 1 | E97: 96 | F97: 公共 | G97: 142051 | H97: 神奈川県 | I97: 藤沢市 | J97: =IF(千円単!J97="","",ROUND(千円単!J97/1000,0)) -> 12308 | K97: =IF(千円単!K97="","",ROUND(千円単!K97/1000,0)) -> 5457 | L97: =IF(千円単!L97="","",ROUND(千円単!L97/1000,0)) -> 4516 | M97: =IF(千円単!M97="","",ROUND(千円単!M97/1000,0)) -> 11700 | N97: =IF(千円単!N97="","",ROUND(千円単!N97/1000,0)) -> 1673 | O97: =IF(千円単!O97="","",ROUND(千円単!O97/1000,0)) -> 5146 | P97: =IF(千円単!P97="","",ROUND(千円単!P97/1000,0)) -> 414 | Q97: =IF(千円単!Q97="","",ROUND(千円単!Q97/1000,0)) -> 608 | R97: =IF(千円単!R97="","",ROUND(千円単!R97/1000,0)) -> 4562 | S97: =IF(千円単!S97="","",ROUND(千円単!S97/1000,0)) -> 3203 | T97: =IF(千円単!T97="","",ROUND(千円単!T97/1000,0)) -> 312 | U97: =IF(千円単!U97="","",ROUND(千円単!U97/1000,0)) -> 8056 | V97: =IF(千円単!V97="","",ROUND(千円単!V97/1000,0)) -> 3305 | W97: =IF(千円単!W97="","",ROUND(千円単!W97/1000,0)) -> 4749 | X97: =IF(千円単!X97="","",ROUND(千円単!X97/1000,0)) -> -3494 | Y97: =IF(千円単!Y97="","",ROUND(千円単!Y97/1000,0)) -> 608
A98: 2015 | B98: 46 | C98: 17 | D98: 1 | E98: 97 | F98: 公共 | G98: 142077 | H98: 神奈川県 | I98: 茅ヶ崎市 | J98: =IF(千円単!J98="","",ROUND(千円単!J98/1000,0)) -> 5200 | K98: =IF(千円単!K98="","",ROUND(千円単!K98/1000,0)) -> 2560 | L98: =IF(千円単!L98="","",ROUND(千円単!L98/1000,0)) -> 1664 | M98: =IF(千円単!M98="","",ROUND(千円単!M98/1000,0)) -> 4924 | N98: =IF(千円単!N98="","",ROUND(千円単!N98/1000,0)) -> 821 | O98: =IF(千円単!O98="","",ROUND(千円単!O98/1000,0)) -> 2447 | P98: =IF(千円単!P98="","",ROUND(千円単!P98/1000,0)) -> 144 | Q98: =IF(千円単!Q98="","",ROUND(千円単!Q98/1000,0)) -> 276 | R98: =IF(千円単!R98="","",ROUND(千円単!R98/1000,0)) -> 1699 | S98: =IF(千円単!S98="","",ROUND(千円単!S98/1000,0)) -> 1078 | T98: =IF(千円単!T98="","",ROUND(千円単!T98/1000,0)) -> 171 | U98: =IF(千円単!U98="","",ROUND(千円単!U98/1000,0)) -> 3652 | V98: =IF(千円単!V98="","",ROUND(千円単!V98/1000,0)) -> 1513 | W98: =IF(千円単!W98="","",ROUND(千円単!W98/1000,0)) -> 2139 | X98: =IF(千円単!X98="","",ROUND(千円単!X98/1000,0)) -> -1953 | Y98: =IF(千円単!Y98="","",ROUND(千円単!Y98/1000,0)) -> 276
A99: 2015 | B99: 46 | C99: 17 | D99: 1 | E99: 98 | F99: 公共 | G99: 143219 | H99: 神奈川県 | I99: 寒川町 | J99: =IF(千円単!J99="","",ROUND(千円単!J99/1000,0)) -> 1316 | K99: =IF(千円単!K99="","",ROUND(千円単!K99/1000,0)) -> 533 | L99: =IF(千円単!L99="","",ROUND(千円単!L99/1000,0)) -> 476 | M99: =IF(千円単!M99="","",ROUND(千円単!M99/1000,0)) -> 1315 | N99: =IF(千円単!N99="","",ROUND(千円単!N99/1000,0)) -> 199 | O99: =IF(千円単!O99="","",ROUND(千円単!O99/1000,0)) -> 744 | P99: =IF(千円単!P99="","",ROUND(千円単!P99/1000,0)) -> 62 | Q99: =IF(千円単!Q99="","",ROUND(千円単!Q99/1000,0)) -> 2 | R99: =IF(千円単!R99="","",ROUND(千円単!R99/1000,0)) -> 411 | S99: =IF(千円単!S99="","",ROUND(千円単!S99/1000,0)) -> 295 | T99: =IF(千円単!T99="","",ROUND(千円単!T99/1000,0)) -> 43 | U99: =IF(千円単!U99="","",ROUND(千円単!U99/1000,0)) -> 867 | V99: =IF(千円単!V99="","",ROUND(千円単!V99/1000,0)) -> 273 | W99: =IF(千円単!W99="","",ROUND(千円単!W99/1000,0)) -> 593 | X99: =IF(千円単!X99="","",ROUND(千円単!X99/1000,0)) -> -455 | Y99: =IF(千円単!Y99="","",ROUND(千円単!Y99/1000,0)) -> 2
A100: 2015 | B100: 46 | C100: 17 | D100: 1 | E100: 99 | F100: 公共 | G100: 151009 | H100: 新潟県 | I100: 新潟市 | J100: =IF(千円単!J100="","",ROUND(千円単!J100/1000,0)) -> 31129 | K100: =IF(千円単!K100="","",ROUND(千円単!K100/1000,0)) -> 11874 | L100: =IF(千円単!L100="","",ROUND(千円単!L100/1000,0)) -> 11840 | M100: =IF(千円単!M100="","",ROUND(千円単!M100/1000,0)) -> 29892 | N100: =IF(千円単!N100="","",ROUND(千円単!N100/1000,0)) -> 6361 | O100: =IF(千円単!O100="","",ROUND(千円単!O100/1000,0)) -> 17543 | P100: =IF(千円単!P100="","",ROUND(千円単!P100/1000,0)) -> 1053 | Q100: =IF(千円単!Q100="","",ROUND(千円単!Q100/1000,0)) -> 1237 | R100: =IF(千円単!R100="","",ROUND(千円単!R100/1000,0)) -> 20678 | S100: =IF(千円単!S100="","",ROUND(千円単!S100/1000,0)) -> 12753 | T100: =IF(千円単!T100="","",ROUND(千円単!T100/1000,0)) -> 2539 | U100: =IF(千円単!U100="","",ROUND(千円単!U100/1000,0)) -> 32852 | V100: =IF(千円単!V100="","",ROUND(千円単!V100/1000,0)) -> 15805 | W100: =IF(千円単!W100="","",ROUND(千円単!W100/1000,0)) -> 17047 | X100: =IF(千円単!X100="","",ROUND(千円単!X100/1000,0)) -> -12174 | Y100: =IF(千円単!Y100="","",ROUND(千円単!Y100/1000,0)) -> 1237
A101: 2015 | B101: 46 | C101: 17 | D101: 1 | E101: 100 | F101: 公共 | G101: 152021 | H101: 新潟県 | I101: 長岡市 | J101: =IF(千円単!J101="","",ROUND(千円単!J101/1000,0)) -> 8165 | K101: =IF(千円単!K101="","",ROUND(千円単!K101/1000,0)) -> 3357 | L101: =IF(千円単!L101="","",ROUND(千円単!L101/1000,0)) -> 2266 | M101: =IF(千円単!M101="","",ROUND(千円単!M101/1000,0)) -> 7948 | N101: =IF(千円単!N101="","",ROUND(千円単!N101/1000,0)) -> 1209 | O101: =IF(千円単!O101="","",ROUND(千円単!O101/1000,0)) -> 4887 | P101: =IF(千円単!P101="","",ROUND(千円単!P101/1000,0)) -> 168 | Q101: =IF(千円単!Q101="","",ROUND(千円単!Q101/1000,0)) -> 217 | R101: =IF(千円単!R101="","",ROUND(千円単!R101/1000,0)) -> 3543 | S101: =IF(千円単!S101="","",ROUND(千円単!S101/1000,0)) -> 901 | T101: =IF(千円単!T101="","",ROUND(千円単!T101/1000,0)) -> 0 | U101: =IF(千円単!U101="","",ROUND(千円単!U101/1000,0)) -> 6017 | V101: =IF(千円単!V101="","",ROUND(千円単!V101/1000,0)) -> 1540 | W101: =IF(千円単!W101="","",ROUND(千円単!W101/1000,0)) -> 4477 | X101: =IF(千円単!X101="","",ROUND(千円単!X101/1000,0)) -> -2473 | Y101: =IF(千円単!Y101="","",ROUND(千円単!Y101/1000,0)) -> 217
A102: 2015 | B102: 46 | C102: 17 | D102: 1 | E102: 101 | F102: 公共 | G102: 152056 | H102: 新潟県 | I102: 柏崎市 | J102: =IF(千円単!J102="","",ROUND(千円単!J102/1000,0)) -> 3480 | K102: =IF(千円単!K102="","",ROUND(千円単!K102/1000,0)) -> 1013 | L102: =IF(千円単!L102="","",ROUND(千円単!L102/1000,0)) -> 1342 | M102: =IF(千円単!M102="","",ROUND(千円単!M102/1000,0)) -> 3186 | N102: =IF(千円単!N102="","",ROUND(千円単!N102/1000,0)) -> 463 | O102: =IF(千円単!O102="","",ROUND(千円単!O102/1000,0)) -> 2054 | P102: =IF(千円単!P102="","",ROUND(千円単!P102/1000,0)) -> 99 | Q102: =IF(千円単!Q102="","",ROUND(千円単!Q102/1000,0)) -> 294 | R102: =IF(千円単!R102="","",ROUND(千円単!R102/1000,0)) -> 2191 | S102: =IF(千円単!S102="","",ROUND(千円単!S102/1000,0)) -> 1274 | T102: =IF(千円単!T102="","",ROUND(千円単!T102/1000,0)) -> 246 | U102: =IF(千円単!U102="","",ROUND(千円単!U102/1000,0)) -> 3221 | V102: =IF(千円単!V102="","",ROUND(千円単!V102/1000,0)) -> 1012 | W102: =IF(千円単!W102="","",ROUND(千円単!W102/1000,0)) -> 2209 | X102: =IF(千円単!X102="","",ROUND(千円単!X102/1000,0)) -> -1030 | Y102: =IF(千円単!Y102="","",ROUND(千円単!Y102/1000,0)) -> 294
A103: 2015 | B103: 46 | C103: 17 | D103: 1 | E103: 102 | F103: 公共 | G103: 152081 | H103: 新潟県 | I103: 小千谷市 | J103: =IF(千円単!J103="","",ROUND(千円単!J103/1000,0)) -> 1426 | K103: =IF(千円単!K103="","",ROUND(千円単!K103/1000,0)) -> 482 | L103: =IF(千円単!L103="","",ROUND(千円単!L103/1000,0)) -> 740 | M103: =IF(千円単!M103="","",ROUND(千円単!M103/1000,0)) -> 1018 | N103: =IF(千円単!N103="","",ROUND(千円単!N103/1000,0)) -> 239 | O103: =IF(千円単!O103="","",ROUND(千円単!O103/1000,0)) -> 551 | P103: =IF(千円単!P103="","",ROUND(千円単!P103/1000,0)) -> 42 | Q103: =IF(千円単!Q103="","",ROUND(千円単!Q103/1000,0)) -> 408 | R103: =IF(千円単!R103="","",ROUND(千円単!R103/1000,0)) -> 465 | S103: =IF(千円単!S103="","",ROUND(千円単!S103/1000,0)) -> 232 | T103: =IF(千円単!T103="","",ROUND(千円単!T103/1000,0)) -> 114 | U103: =IF(千円単!U103="","",ROUND(千円単!U103/1000,0)) -> 1235 | V103: =IF(千円単!V103="","",ROUND(千円単!V103/1000,0)) -> 257 | W103: =IF(千円単!W103="","",ROUND(千円単!W103/1000,0)) -> 977 | X103: =IF(千円単!X103="","",ROUND(千円単!X103/1000,0)) -> -770 | Y103: =IF(千円単!Y103="","",ROUND(千円単!Y103/1000,0)) -> 408
A104: 2015 | B104: 46 | C104: 17 | D104: 1 | E104: 103 | F104: 公共 | G104: 152111 | H104: 新潟県 | I104: 見附市 | J104: =IF(千円単!J104="","",ROUND(千円単!J104/1000,0)) -> 1737 | K104: =IF(千円単!K104="","",ROUND(千円単!K104/1000,0)) -> 561 | L104: =IF(千円単!L104="","",ROUND(千円単!L104/1000,0)) -> 705 | M104: =IF(千円単!M104="","",ROUND(千円単!M104/1000,0)) -> 1753 | N104: =IF(千円単!N104="","",ROUND(千円単!N104/1000,0)) -> 234 | O104: =IF(千円単!O104="","",ROUND(千円単!O104/1000,0)) -> 919 | P104: =IF(千円単!P104="","",ROUND(千円単!P104/1000,0)) -> 56 | Q104: =IF(千円単!Q104="","",ROUND(千円単!Q104/1000,0)) -> -16 | R104: =IF(千円単!R104="","",ROUND(千円単!R104/1000,0)) -> 1526 | S104: =IF(千円単!S104="","",ROUND(千円単!S104/1000,0)) -> 662 | T104: =IF(千円単!T104="","",ROUND(千円単!T104/1000,0)) -> 226 | U104: =IF(千円単!U104="","",ROUND(千円単!U104/1000,0)) -> 2046 | V104: =IF(千円単!V104="","",ROUND(千円単!V104/1000,0)) -> 1380 | W104: =IF(千円単!W104="","",ROUND(千円単!W104/1000,0)) -> 665 | X104: =IF(千円単!X104="","",ROUND(千円単!X104/1000,0)) -> -520 | Y104: =IF(千円単!Y104="","",ROUND(千円単!Y104/1000,0)) -> -16
A105: 2015 | B105: 46 | C105: 17 | D105: 1 | E105: 104 | F105: 公共 | G105: 152170 | H105: 新潟県 | I105: 妙高市 | J105: =IF(千円単!J105="","",ROUND(千円単!J105/1000,0)) -> 1060 | K105: =IF(千円単!K105="","",ROUND(千円単!K105/1000,0)) -> 360 | L105: =IF(千円単!L105="","",ROUND(千円単!L105/1000,0)) -> 468 | M105: =IF(千円単!M105="","",ROUND(千円単!M105/1000,0)) -> 740 | N105: =IF(千円単!N105="","",ROUND(千円単!N105/1000,0)) -> 132 | O105: =IF(千円単!O105="","",ROUND(千円単!O105/1000,0)) -> 370 | P105: =IF(千円単!P105="","",ROUND(千円単!P105/1000,0)) -> 18 | Q105: =IF(千円単!Q105="","",ROUND(千円単!Q105/1000,0)) -> 319 | R105: =IF(千円単!R105="","",ROUND(千円単!R105/1000,0)) -> 248 | S105: =IF(千円単!S105="","",ROUND(千円単!S105/1000,0)) -> 100 | T105: =IF(千円単!T105="","",ROUND(千円単!T105/1000,0)) -> 124 | U105: =IF(千円単!U105="","",ROUND(千円単!U105/1000,0)) -> 711 | V105: =IF(千円単!V105="","",ROUND(千円単!V105/1000,0)) -> 103 | W105: =IF(千円単!W105="","",ROUND(千円単!W105/1000,0)) -> 552 | X105: =IF(千円単!X105="","",ROUND(千円単!X105/1000,0)) -> -463 | Y105: =IF(千円単!Y105="","",ROUND(千円単!Y105/1000,0)) -> 319
A106: 2015 | B106: 46 | C106: 17 | D106: 1 | E106: 105 | F106: 公共 | G106: 152251 | H106: 新潟県 | I106: 魚沼市 | J106: =IF(千円単!J106="","",ROUND(千円単!J106/1000,0)) -> 1243 | K106: =IF(千円単!K106="","",ROUND(千円単!K106/1000,0)) -> 513 | L106: =IF(千円単!L106="","",ROUND(千円単!L106/1000,0)) -> 513 | M106: =IF(千円単!M106="","",ROUND(千円単!M106/1000,0)) -> 1077 | N106: =IF(千円単!N106="","",ROUND(千円単!N106/1000,0)) -> 226 | O106: =IF(千円単!O106="","",ROUND(千円単!O106/1000,0)) -> 575 | P106: =IF(千円単!P106="","",ROUND(千円単!P106/1000,0)) -> 17 | Q106: =IF(千円単!Q106="","",ROUND(千円単!Q106/1000,0)) -> 165 | R106: =IF(千円単!R106="","",ROUND(千円単!R106/1000,0)) -> 514 | S106: =IF(千円単!S106="","",ROUND(千円単!S106/1000,0)) -> 35 | T106: =IF(千円単!T106="","",ROUND(千円単!T106/1000,0)) -> 0 | U106: =IF(千円単!U106="","",ROUND(千円単!U106/1000,0)) -> 946 | V106: =IF(千円単!V106="","",ROUND(千円単!V106/1000,0)) -> 57 | W106: =IF(千円単!W106="","",ROUND(千円単!W106/1000,0)) -> 888 | X106: =IF(千円単!X106="","",ROUND(千円単!X106/1000,0)) -> -432 | Y106: =IF(千円単!Y106="","",ROUND(千円単!Y106/1000,0)) -> 165
A107: 2015 | B107: 46 | C107: 17 | D107: 1 | E107: 106 | F107: 公共 | G107: 152277 | H107: 新潟県 | I107: 胎内市 | J107: =IF(千円単!J107="","",ROUND(千円単!J107/1000,0)) -> 751 | K107: =IF(千円単!K107="","",ROUND(千円単!K107/1000,0)) -> 197 | L107: =IF(千円単!L107="","",ROUND(千円単!L107/1000,0)) -> 246 | M107: =IF(千円単!M107="","",ROUND(千円単!M107/1000,0)) -> 723 | N107: =IF(千円単!N107="","",ROUND(千円単!N107/1000,0)) -> 148 | O107: =IF(千円単!O107="","",ROUND(千円単!O107/1000,0)) -> 447 | P107: =IF(千円単!P107="","",ROUND(千円単!P107/1000,0)) -> 13 | Q107: =IF(千円単!Q107="","",ROUND(千円単!Q107/1000,0)) -> 28 | R107: =IF(千円単!R107="","",ROUND(千円単!R107/1000,0)) -> 421 | S107: =IF(千円単!S107="","",ROUND(千円単!S107/1000,0)) -> 363 | T107: =IF(千円単!T107="","",ROUND(千円単!T107/1000,0)) -> 23 | U107: =IF(千円単!U107="","",ROUND(千円単!U107/1000,0)) -> 659 | V107: =IF(千円単!V107="","",ROUND(千円単!V107/1000,0)) -> 89 | W107: =IF(千円単!W107="","",ROUND(千円単!W107/1000,0)) -> 569 | X107: =IF(千円単!X107="","",ROUND(千円単!X107/1000,0)) -> -238 | Y107: =IF(千円単!Y107="","",ROUND(千円単!Y107/1000,0)) -> 28
A108: 2015 | B108: 46 | C108: 17 | D108: 1 | E108: 107 | F108: 公共 | G108: 153079 | H108: 新潟県 | I108: 聖籠町 | J108: =IF(千円単!J108="","",ROUND(千円単!J108/1000,0)) -> 509 | K108: =IF(千円単!K108="","",ROUND(千円単!K108/1000,0)) -> 146 | L108: =IF(千円単!L108="","",ROUND(千円単!L108/1000,0)) -> 222 | M108: =IF(千円単!M108="","",ROUND(千円単!M108/1000,0)) -> 509 | N108: =IF(千円単!N108="","",ROUND(千円単!N108/1000,0)) -> 93 | O108: =IF(千円単!O108="","",ROUND(千円単!O108/1000,0)) -> 296 | P108: =IF(千円単!P108="","",ROUND(千円単!P108/1000,0)) -> 17 | Q108: =IF(千円単!Q108="","",ROUND(千円単!Q108/1000,0)) -> 0 | R108: =IF(千円単!R108="","",ROUND(千円単!R108/1000,0)) -> 100 | S108: =IF(千円単!S108="","",ROUND(千円単!S108/1000,0)) -> 95 | T108: =IF(千円単!T108="","",ROUND(千円単!T108/1000,0)) -> 0 | U108: =IF(千円単!U108="","",ROUND(千円単!U108/1000,0)) -> 256 | V108: =IF(千円単!V108="","",ROUND(千円単!V108/1000,0)) -> 38 | W108: =IF(千円単!W108="","",ROUND(千円単!W108/1000,0)) -> 217 | X108: =IF(千円単!X108="","",ROUND(千円単!X108/1000,0)) -> -155 | Y108: =IF(千円単!Y108="","",ROUND(千円単!Y108/1000,0)) -> 0
A109: 2015 | B109: 46 | C109: 17 | D109: 1 | E109: 108 | F109: 公共 | G109: 162019 | H109: 富山県 | I109: 富山市 | J109: =IF(千円単!J109="","",ROUND(千円単!J109/1000,0)) -> 13568 | K109: =IF(千円単!K109="","",ROUND(千円単!K109/1000,0)) -> 6120 | L109: =IF(千円単!L109="","",ROUND(千円単!L109/1000,0)) -> 4673 | M109: =IF(千円単!M109="","",ROUND(千円単!M109/1000,0)) -> 11782 | N109: =IF(千円単!N109="","",ROUND(千円単!N109/1000,0)) -> 2245 | O109: =IF(千円単!O109="","",ROUND(千円単!O109/1000,0)) -> 7036 | P109: =IF(千円単!P109="","",ROUND(千円単!P109/1000,0)) -> 251 | Q109: =IF(千円単!Q109="","",ROUND(千円単!Q109/1000,0)) -> 1786 | R109: =IF(千円単!R109="","",ROUND(千円単!R109/1000,0)) -> 6190 | S109: =IF(千円単!S109="","",ROUND(千円単!S109/1000,0)) -> 2583 | T109: =IF(千円単!T109="","",ROUND(千円単!T109/1000,0)) -> 1498 | U109: =IF(千円単!U109="","",ROUND(千円単!U109/1000,0)) -> 11941 | V109: =IF(千円単!V109="","",ROUND(千円単!V109/1000,0)) -> 4329 | W109: =IF(千円単!W109="","",ROUND(千円単!W109/1000,0)) -> 7611 | X109: =IF(千円単!X109="","",ROUND(千円単!X109/1000,0)) -> -5751 | Y109: =IF(千円単!Y109="","",ROUND(千円単!Y109/1000,0)) -> 1786
A110: 2015 | B110: 46 | C110: 17 | D110: 1 | E110: 109 | F110: 公共 | G110: 162027 | H110: 富山県 | I110: 高岡市 | J110: =IF(千円単!J110="","",ROUND(千円単!J110/1000,0)) -> 4414 | K110: =IF(千円単!K110="","",ROUND(千円単!K110/1000,0)) -> 2540 | L110: =IF(千円単!L110="","",ROUND(千円単!L110/1000,0)) -> 826 | M110: =IF(千円単!M110="","",ROUND(千円単!M110/1000,0)) -> 4234 | N110: =IF(千円単!N110="","",ROUND(千円単!N110/1000,0)) -> 769 | O110: =IF(千円単!O110="","",ROUND(千円単!O110/1000,0)) -> 2045 | P110: =IF(千円単!P110="","",ROUND(千円単!P110/1000,0)) -> 81 | Q110: =IF(千円単!Q110="","",ROUND(千円単!Q110/1000,0)) -> 181 | R110: =IF(千円単!R110="","",ROUND(千円単!R110/1000,0)) -> 2997 | S110: =IF(千円単!S110="","",ROUND(千円単!S110/1000,0)) -> 2018 | T110: =IF(千円単!T110="","",ROUND(千円単!T110/1000,0)) -> 218 | U110: =IF(千円単!U110="","",ROUND(千円単!U110/1000,0)) -> 4302 | V110: =IF(千円単!V110="","",ROUND(千円単!V110/1000,0)) -> 1332 | W110: =IF(千円単!W110="","",ROUND(千円単!W110/1000,0)) -> 2968 | X110: =IF(千円単!X110="","",ROUND(千円単!X110/1000,0)) -> -1305 | Y110: =IF(千円単!Y110="","",ROUND(千円単!Y110/1000,0)) -> 181
A111: 2015 | B111: 46 | C111: 17 | D111: 1 | E111: 110 | F111: 公共 | G111: 162078 | H111: 富山県 | I111: 黒部市 | J111: =IF(千円単!J111="","",ROUND(千円単!J111/1000,0)) -> 1087 | K111: =IF(千円単!K111="","",ROUND(千円単!K111/1000,0)) -> 253 | L111: =IF(千円単!L111="","",ROUND(千円単!L111/1000,0)) -> 521 | M111: =IF(千円単!M111="","",ROUND(千円単!M111/1000,0)) -> 1066 | N111: =IF(千円単!N111="","",ROUND(千円単!N111/1000,0)) -> 165 | O111: =IF(千円単!O111="","",ROUND(千円単!O111/1000,0)) -> 574 | P111: =IF(千円単!P111="","",ROUND(千円単!P111/1000,0)) -> 21 | Q111: =IF(千円単!Q111="","",ROUND(千円単!Q111/1000,0)) -> 20 | R111: =IF(千円単!R111="","",ROUND(千円単!R111/1000,0)) -> 491 | S111: =IF(千円単!S111="","",ROUND(千円単!S111/1000,0)) -> 293 | T111: =IF(千円単!T111="","",ROUND(千円単!T111/1000,0)) -> 0 | U111: =IF(千円単!U111="","",ROUND(千円単!U111/1000,0)) -> 851 | V111: =IF(千円単!V111="","",ROUND(千円単!V111/1000,0)) -> 183 | W111: =IF(千円単!W111="","",ROUND(千円単!W111/1000,0)) -> 668 | X111: =IF(千円単!X111="","",ROUND(千円単!X111/1000,0)) -> -360 | Y111: =IF(千円単!Y111="","",ROUND(千円単!Y111/1000,0)) -> 20
A112: 2015 | B112: 46 | C112: 17 | D112: 1 | E112: 111 | F112: 公共 | G112: 162108 | H112: 富山県 | I112: 南砺市 | J112: =IF(千円単!J112="","",ROUND(千円単!J112/1000,0)) -> 1100 | K112: =IF(千円単!K112="","",ROUND(千円単!K112/1000,0)) -> 378 | L112: =IF(千円単!L112="","",ROUND(千円単!L112/1000,0)) -> 603 | M112: =IF(千円単!M112="","",ROUND(千円単!M112/1000,0)) -> 756 | N112: =IF(千円単!N112="","",ROUND(千円単!N112/1000,0)) -> 142 | O112: =IF(千円単!O112="","",ROUND(千円単!O112/1000,0)) -> 416 | P112: =IF(千円単!P112="","",ROUND(千円単!P112/1000,0)) -> 15 | Q112: =IF(千円単!Q112="","",ROUND(千円単!Q112/1000,0)) -> 344 | R112: =IF(千円単!R112="","",ROUND(千円単!R112/1000,0)) -> 353 | S112: =IF(千円単!S112="","",ROUND(千円単!S112/1000,0)) -> 177 | T112: =IF(千円単!T112="","",ROUND(千円単!T112/1000,0)) -> 152 | U112: =IF(千円単!U112="","",ROUND(千円単!U112/1000,0)) -> 906 | V112: =IF(千円単!V112="","",ROUND(千円単!V112/1000,0)) -> 106 | W112: =IF(千円単!W112="","",ROUND(千円単!W112/1000,0)) -> 800 | X112: =IF(千円単!X112="","",ROUND(千円単!X112/1000,0)) -> -553 | Y112: =IF(千円単!Y112="","",ROUND(千円単!Y112/1000,0)) -> 344
A113: 2015 | B113: 46 | C113: 17 | D113: 1 | E113: 112 | F113: 公共 | G113: 162116 | H113: 富山県 | I113: 射水市 | J113: =IF(千円単!J113="","",ROUND(千円単!J113/1000,0)) -> 2450 | K113: =IF(千円単!K113="","",ROUND(千円単!K113/1000,0)) -> 930 | L113: =IF(千円単!L113="","",ROUND(千円単!L113/1000,0)) -> 1055 | M113: =IF(千円単!M113="","",ROUND(千円単!M113/1000,0)) -> 2340 | N113: =IF(千円単!N113="","",ROUND(千円単!N113/1000,0)) -> 445 | O113: =IF(千円単!O113="","",ROUND(千円単!O113/1000,0)) -> 1211 | P113: =IF(千円単!P113="","",ROUND(千円単!P113/1000,0)) -> 71 | Q113: =IF(千円単!Q113="","",ROUND(千円単!Q113/1000,0)) -> 110 | R113: =IF(千円単!R113="","",ROUND(千円単!R113/1000,0)) -> 2222 | S113: =IF(千円単!S113="","",ROUND(千円単!S113/1000,0)) -> 990 | T113: =IF(千円単!T113="","",ROUND(千円単!T113/1000,0)) -> 0 | U113: =IF(千円単!U113="","",ROUND(千円単!U113/1000,0)) -> 3142 | V113: =IF(千円単!V113="","",ROUND(千円単!V113/1000,0)) -> 1898 | W113: =IF(千円単!W113="","",ROUND(千円単!W113/1000,0)) -> 1234 | X113: =IF(千円単!X113="","",ROUND(千円単!X113/1000,0)) -> -920 | Y113: =IF(千円単!Y113="","",ROUND(千円単!Y113/1000,0)) -> 110
A114: 2015 | B114: 46 | C114: 17 | D114: 1 | E114: 113 | F114: 公共 | G114: 172014 | H114: 石川県 | I114: 金沢市 | J114: =IF(千円単!J114="","",ROUND(千円単!J114/1000,0)) -> 17310 | K114: =IF(千円単!K114="","",ROUND(千円単!K114/1000,0)) -> 7064 | L114: =IF(千円単!L114="","",ROUND(千円単!L114/1000,0)) -> 5687 | M114: =IF(千円単!M114="","",ROUND(千円単!M114/1000,0)) -> 16554 | N114: =IF(千円単!N114="","",ROUND(千円単!N114/1000,0)) -> 3079 | O114: =IF(千円単!O114="","",ROUND(千円単!O114/1000,0)) -> 9868 | P114: =IF(千円単!P114="","",ROUND(千円単!P114/1000,0)) -> 500 | Q114: =IF(千円単!Q114="","",ROUND(千円単!Q114/1000,0)) -> 756 | R114: =IF(千円単!R114="","",ROUND(千円単!R114/1000,0)) -> 7120 | S114: =IF(千円単!S114="","",ROUND(千円単!S114/1000,0)) -> 4525 | T114: =IF(千円単!T114="","",ROUND(千円単!T114/1000,0)) -> 44 | U114: =IF(千円単!U114="","",ROUND(千円単!U114/1000,0)) -> 14119 | V114: =IF(千円単!V114="","",ROUND(千円単!V114/1000,0)) -> 4459 | W114: =IF(千円単!W114="","",ROUND(千円単!W114/1000,0)) -> 9651 | X114: =IF(千円単!X114="","",ROUND(千円単!X114/1000,0)) -> -7000 | Y114: =IF(千円単!Y114="","",ROUND(千円単!Y114/1000,0)) -> 756
A115: 2015 | B115: 46 | C115: 17 | D115: 1 | E115: 114 | F115: 公共 | G115: 172031 | H115: 石川県 | I115: 小松市 | J115: =IF(千円単!J115="","",ROUND(千円単!J115/1000,0)) -> 3555 | K115: =IF(千円単!K115="","",ROUND(千円単!K115/1000,0)) -> 923 | L115: =IF(千円単!L115="","",ROUND(千円単!L115/1000,0)) -> 1911 | M115: =IF(千円単!M115="","",ROUND(千円単!M115/1000,0)) -> 3741 | N115: =IF(千円単!N115="","",ROUND(千円単!N115/1000,0)) -> 928 | O115: =IF(千円単!O115="","",ROUND(千円単!O115/1000,0)) -> 2166 | P115: =IF(千円単!P115="","",ROUND(千円単!P115/1000,0)) -> 98 | Q115: =IF(千円単!Q115="","",ROUND(千円単!Q115/1000,0)) -> -186 | R115: =IF(千円単!R115="","",ROUND(千円単!R115/1000,0)) -> 2523 | S115: =IF(千円単!S115="","",ROUND(千円単!S115/1000,0)) -> 1884 | T115: =IF(千円単!T115="","",ROUND(千円単!T115/1000,0)) -> 213 | U115: =IF(千円単!U115="","",ROUND(千円単!U115/1000,0)) -> 3549 | V115: =IF(千円単!V115="","",ROUND(千円単!V115/1000,0)) -> 723 | W115: =IF(千円単!W115="","",ROUND(千円単!W115/1000,0)) -> 2811 | X115: =IF(千円単!X115="","",ROUND(千円単!X115/1000,0)) -> -1027 | Y115: =IF(千円単!Y115="","",ROUND(千円単!Y115/1000,0)) -> -186
A116: 2015 | B116: 46 | C116: 17 | D116: 1 | E116: 115 | F116: 公共 | G116: 172073 | H116: 石川県 | I116: 羽咋市 | J116: =IF(千円単!J116="","",ROUND(千円単!J116/1000,0)) -> 669 | K116: =IF(千円単!K116="","",ROUND(千円単!K116/1000,0)) -> 191 | L116: =IF(千円単!L116="","",ROUND(千円単!L116/1000,0)) -> 333 | M116: =IF(千円単!M116="","",ROUND(千円単!M116/1000,0)) -> 669 | N116: =IF(千円単!N116="","",ROUND(千円単!N116/1000,0)) -> 179 | O116: =IF(千円単!O116="","",ROUND(千円単!O116/1000,0)) -> 397 | P116: =IF(千円単!P116="","",ROUND(千円単!P116/1000,0)) -> 15 | Q116: =IF(千円単!Q116="","",ROUND(千円単!Q116/1000,0)) -> 0 | R116: =IF(千円単!R116="","",ROUND(千円単!R116/1000,0)) -> 492 | S116: =IF(千円単!S116="","",ROUND(千円単!S116/1000,0)) -> 333 | T116: =IF(千円単!T116="","",ROUND(千円単!T116/1000,0)) -> 109 | U116: =IF(千円単!U116="","",ROUND(千円単!U116/1000,0)) -> 741 | V116: =IF(千円単!V116="","",ROUND(千円単!V116/1000,0)) -> 101 | W116: =IF(千円単!W116="","",ROUND(千円単!W116/1000,0)) -> 640 | X116: =IF(千円単!X116="","",ROUND(千円単!X116/1000,0)) -> -248 | Y116: =IF(千円単!Y116="","",ROUND(千円単!Y116/1000,0)) -> 0
A117: 2015 | B117: 46 | C117: 17 | D117: 1 | E117: 116 | F117: 公共 | G117: 172090 | H117: 石川県 | I117: かほく市 | J117: =IF(千円単!J117="","",ROUND(千円単!J117/1000,0)) -> 1722 | K117: =IF(千円単!K117="","",ROUND(千円単!K117/1000,0)) -> 323 | L117: =IF(千円単!L117="","",ROUND(千円単!L117/1000,0)) -> 959 | M117: =IF(千円単!M117="","",ROUND(千円単!M117/1000,0)) -> 1595 | N117: =IF(千円単!N117="","",ROUND(千円単!N117/1000,0)) -> 269 | O117: =IF(千円単!O117="","",ROUND(千円単!O117/1000,0)) -> 1146 | P117: =IF(千円単!P117="","",ROUND(千円単!P117/1000,0)) -> 8 | Q117: =IF(千円単!Q117="","",ROUND(千円単!Q117/1000,0)) -> 128 | R117: =IF(千円単!R117="","",ROUND(千円単!R117/1000,0)) -> 289 | S117: =IF(千円単!S117="","",ROUND(千円単!S117/1000,0)) -> 204 | T117: =IF(千円単!T117="","",ROUND(千円単!T117/1000,0)) -> 0 | U117: =IF(千円単!U117="","",ROUND(千円単!U117/1000,0)) -> 1147 | V117: =IF(千円単!V117="","",ROUND(千円単!V117/1000,0)) -> 159 | W117: =IF(千円単!W117="","",ROUND(千円単!W117/1000,0)) -> 988 | X117: =IF(千円単!X117="","",ROUND(千円単!X117/1000,0)) -> -858 | Y117: =IF(千円単!Y117="","",ROUND(千円単!Y117/1000,0)) -> 128
A118: 2015 | B118: 46 | C118: 17 | D118: 1 | E118: 117 | F118: 公共 | G118: 172103 | H118: 石川県 | I118: 白山市 | J118: =IF(千円単!J118="","",ROUND(千円単!J118/1000,0)) -> 3509 | K118: =IF(千円単!K118="","",ROUND(千円単!K118/1000,0)) -> 1389 | L118: =IF(千円単!L118="","",ROUND(千円単!L118/1000,0)) -> 1313 | M118: =IF(千円単!M118="","",ROUND(千円単!M118/1000,0)) -> 3667 | N118: =IF(千円単!N118="","",ROUND(千円単!N118/1000,0)) -> 819 | O118: =IF(千円単!O118="","",ROUND(千円単!O118/1000,0)) -> 2070 | P118: =IF(千円単!P118="","",ROUND(千円単!P118/1000,0)) -> 64 | Q118: =IF(千円単!Q118="","",ROUND(千円単!Q118/1000,0)) -> -158 | R118: =IF(千円単!R118="","",ROUND(千円単!R118/1000,0)) -> 2379 | S118: =IF(千円単!S118="","",ROUND(千円単!S118/1000,0)) -> 1554 | T118: =IF(千円単!T118="","",ROUND(千円単!T118/1000,0)) -> 421 | U118: =IF(千円単!U118="","",ROUND(千円単!U118/1000,0)) -> 3471 | V118: =IF(千円単!V118="","",ROUND(千円単!V118/1000,0)) -> 941 | W118: =IF(千円単!W118="","",ROUND(千円単!W118/1000,0)) -> 2520 | X118: =IF(千円単!X118="","",ROUND(千円単!X118/1000,0)) -> -1092 | Y118: =IF(千円単!Y118="","",ROUND(千円単!Y118/1000,0)) -> -158
A119: 2015 | B119: 46 | C119: 17 | D119: 1 | E119: 118 | F119: 公共 | G119: 172111 | H119: 石川県 | I119: 能美市 | J119: =IF(千円単!J119="","",ROUND(千円単!J119/1000,0)) -> 1831 | K119: =IF(千円単!K119="","",ROUND(千円単!K119/1000,0)) -> 693 | L119: =IF(千円単!L119="","",ROUND(千円単!L119/1000,0)) -> 556 | M119: =IF(千円単!M119="","",ROUND(千円単!M119/1000,0)) -> 1918 | N119: =IF(千円単!N119="","",ROUND(千円単!N119/1000,0)) -> 364 | O119: =IF(千円単!O119="","",ROUND(千円単!O119/1000,0)) -> 849 | P119: =IF(千円単!P119="","",ROUND(千円単!P119/1000,0)) -> 12 | Q119: =IF(千円単!Q119="","",ROUND(千円単!Q119/1000,0)) -> -87 | R119: =IF(千円単!R119="","",ROUND(千円単!R119/1000,0)) -> 934 | S119: =IF(千円単!S119="","",ROUND(千円単!S119/1000,0)) -> 575 | T119: =IF(千円単!T119="","",ROUND(千円単!T119/1000,0)) -> 328 | U119: =IF(千円単!U119="","",ROUND(千円単!U119/1000,0)) -> 1286 | V119: =IF(千円単!V119="","",ROUND(千円単!V119/1000,0)) -> 48 | W119: =IF(千円単!W119="","",ROUND(千円単!W119/1000,0)) -> 1238 | X119: =IF(千円単!X119="","",ROUND(千円単!X119/1000,0)) -> -353 | Y119: =IF(千円単!Y119="","",ROUND(千円単!Y119/1000,0)) -> -87
A120: 2015 | B120: 46 | C120: 17 | D120: 1 | E120: 119 | F120: 公共 | G120: 172120 | H120: 石川県 | I120: 野々市市 | J120: =IF(千円単!J120="","",ROUND(千円単!J120/1000,0)) -> 1163 | K120: =IF(千円単!K120="","",ROUND(千円単!K120/1000,0)) -> 686 | L120: =IF(千円単!L120="","",ROUND(千円単!L120/1000,0)) -> 286 | M120: =IF(千円単!M120="","",ROUND(千円単!M120/1000,0)) -> 1293 | N120: =IF(千円単!N120="","",ROUND(千円単!N120/1000,0)) -> 280 | O120: =IF(千円単!O120="","",ROUND(千円単!O120/1000,0)) -> 676 | P120: =IF(千円単!P120="","",ROUND(千円単!P120/1000,0)) -> 44 | Q120: =IF(千円単!Q120="","",ROUND(千円単!Q120/1000,0)) -> -130 | R120: =IF(千円単!R120="","",ROUND(千円単!R120/1000,0)) -> 908 | S120: =IF(千円単!S120="","",ROUND(千円単!S120/1000,0)) -> 520 | T120: =IF(千円単!T120="","",ROUND(千円単!T120/1000,0)) -> 175 | U120: =IF(千円単!U120="","",ROUND(千円単!U120/1000,0)) -> 1210 | V120: =IF(千円単!V120="","",ROUND(千円単!V120/1000,0)) -> 429 | W120: =IF(千円単!W120="","",ROUND(千円単!W120/1000,0)) -> 781 | X120: =IF(千円単!X120="","",ROUND(千円単!X120/1000,0)) -> -302 | Y120: =IF(千円単!Y120="","",ROUND(千円単!Y120/1000,0)) -> -130
A121: 2015 | B121: 46 | C121: 17 | D121: 1 | E121: 120 | F121: 公共 | G121: 173614 | H121: 石川県 | I121: 津幡町 | J121: =IF(千円単!J121="","",ROUND(千円単!J121/1000,0)) -> 1565 | K121: =IF(千円単!K121="","",ROUND(千円単!K121/1000,0)) -> 469 | L121: =IF(千円単!L121="","",ROUND(千円単!L121/1000,0)) -> 592 | M121: =IF(千円単!M121="","",ROUND(千円単!M121/1000,0)) -> 1349 | N121: =IF(千円単!N121="","",ROUND(千円単!N121/1000,0)) -> 286 | O121: =IF(千円単!O121="","",ROUND(千円単!O121/1000,0)) -> 829 | P121: =IF(千円単!P121="","",ROUND(千円単!P121/1000,0)) -> 26 | Q121: =IF(千円単!Q121="","",ROUND(千円単!Q121/1000,0)) -> 216 | R121: =IF(千円単!R121="","",ROUND(千円単!R121/1000,0)) -> 929 | S121: =IF(千円単!S121="","",ROUND(千円単!S121/1000,0)) -> 622 | T121: =IF(千円単!T121="","",ROUND(千円単!T121/1000,0)) -> 77 | U121: =IF(千円単!U121="","",ROUND(千円単!U121/1000,0)) -> 1479 | V121: =IF(千円単!V121="","",ROUND(千円単!V121/1000,0)) -> 465 | W121: =IF(千円単!W121="","",ROUND(千円単!W121/1000,0)) -> 1015 | X121: =IF(千円単!X121="","",ROUND(千円単!X121/1000,0)) -> -550 | Y121: =IF(千円単!Y121="","",ROUND(千円単!Y121/1000,0)) -> 216
A122: 2015 | B122: 46 | C122: 17 | D122: 1 | E122: 121 | F122: 公共 | G122: 182010 | H122: 福井県 | I122: 福井市 | J122: =IF(千円単!J122="","",ROUND(千円単!J122/1000,0)) -> 8600 | K122: =IF(千円単!K122="","",ROUND(千円単!K122/1000,0)) -> 3467 | L122: =IF(千円単!L122="","",ROUND(千円単!L122/1000,0)) -> 2519 | M122: =IF(千円単!M122="","",ROUND(千円単!M122/1000,0)) -> 8108 | N122: =IF(千円単!N122="","",ROUND(千円単!N122/1000,0)) -> 1275 | O122: =IF(千円単!O122="","",ROUND(千円単!O122/1000,0)) -> 4359 | P122: =IF(千円単!P122="","",ROUND(千円単!P122/1000,0)) -> 605 | Q122: =IF(千円単!Q122="","",ROUND(千円単!Q122/1000,0)) -> 492 | R122: =IF(千円単!R122="","",ROUND(千円単!R122/1000,0)) -> 5089 | S122: =IF(千円単!S122="","",ROUND(千円単!S122/1000,0)) -> 3136 | T122: =IF(千円単!T122="","",ROUND(千円単!T122/1000,0)) -> 686 | U122: =IF(千円単!U122="","",ROUND(千円単!U122/1000,0)) -> 7432 | V122: =IF(千円単!V122="","",ROUND(千円単!V122/1000,0)) -> 3640 | W122: =IF(千円単!W122="","",ROUND(千円単!W122/1000,0)) -> 3774 | X122: =IF(千円単!X122="","",ROUND(千円単!X122/1000,0)) -> -2343 | Y122: =IF(千円単!Y122="","",ROUND(千円単!Y122/1000,0)) -> 492
A123: 2015 | B123: 46 | C123: 17 | D123: 1 | E123: 122 | F123: 公共 | G123: 182087 | H123: 福井県 | I123: あわら市 | J123: =IF(千円単!J123="","",ROUND(千円単!J123/1000,0)) -> 1147 | K123: =IF(千円単!K123="","",ROUND(千円単!K123/1000,0)) -> 504 | L123: =IF(千円単!L123="","",ROUND(千円単!L123/1000,0)) -> 393 | M123: =IF(千円単!M123="","",ROUND(千円単!M123/1000,0)) -> 1138 | N123: =IF(千円単!N123="","",ROUND(千円単!N123/1000,0)) -> 216 | O123: =IF(千円単!O123="","",ROUND(千円単!O123/1000,0)) -> 598 | P123: =IF(千円単!P123="","",ROUND(千円単!P123/1000,0)) -> 28 | Q123: =IF(千円単!Q123="","",ROUND(千円単!Q123/1000,0)) -> 10 | R123: =IF(千円単!R123="","",ROUND(千円単!R123/1000,0)) -> 804 | S123: =IF(千円単!S123="","",ROUND(千円単!S123/1000,0)) -> 547 | T123: =IF(千円単!T123="","",ROUND(千円単!T123/1000,0)) -> 241 | U123: =IF(千円単!U123="","",ROUND(千円単!U123/1000,0)) -> 1208 | V123: =IF(千円単!V123="","",ROUND(千円単!V123/1000,0)) -> 414 | W123: =IF(千円単!W123="","",ROUND(千円単!W123/1000,0)) -> 795 | X123: =IF(千円単!X123="","",ROUND(千円単!X123/1000,0)) -> -404 | Y123: =IF(千円単!Y123="","",ROUND(千円単!Y123/1000,0)) -> 10
A124: 2015 | B124: 46 | C124: 17 | D124: 1 | E124: 123 | F124: 公共 | G124: 182109 | H124: 福井県 | I124: 坂井市 | J124: =IF(千円単!J124="","",ROUND(千円単!J124/1000,0)) -> 3047 | K124: =IF(千円単!K124="","",ROUND(千円単!K124/1000,0)) -> 1119 | L124: =IF(千円単!L124="","",ROUND(千円単!L124/1000,0)) -> 1047 | M124: =IF(千円単!M124="","",ROUND(千円単!M124/1000,0)) -> 3093 | N124: =IF(千円単!N124="","",ROUND(千円単!N124/1000,0)) -> 484 | O124: =IF(千円単!O124="","",ROUND(千円単!O124/1000,0)) -> 1844 | P124: =IF(千円単!P124="","",ROUND(千円単!P124/1000,0)) -> 36 | Q124: =IF(千円単!Q124="","",ROUND(千円単!Q124/1000,0)) -> -46 | R124: =IF(千円単!R124="","",ROUND(千円単!R124/1000,0)) -> 2470 | S124: =IF(千円単!S124="","",ROUND(千円単!S124/1000,0)) -> 1728 | T124: =IF(千円単!T124="","",ROUND(千円単!T124/1000,0)) -> 203 | U124: =IF(千円単!U124="","",ROUND(千円単!U124/1000,0)) -> 3366 | V124: =IF(千円単!V124="","",ROUND(千円単!V124/1000,0)) -> 1323 | W124: =IF(千円単!W124="","",ROUND(千円単!W124/1000,0)) -> 1993 | X124: =IF(千円単!X124="","",ROUND(千円単!X124/1000,0)) -> -895 | Y124: =IF(千円単!Y124="","",ROUND(千円単!Y124/1000,0)) -> -46
A125: 2015 | B125: 46 | C125: 17 | D125: 1 | E125: 124 | F125: 公共 | G125: 188433 | H125: 福井県 | I125: 五領川公共下水道事務組合 | J125: =IF(千円単!J125="","",ROUND(千円単!J125/1000,0)) -> 477 | K125: =IF(千円単!K125="","",ROUND(千円単!K125/1000,0)) -> 132 | L125: =IF(千円単!L125="","",ROUND(千円単!L125/1000,0)) -> 150 | M125: =IF(千円単!M125="","",ROUND(千円単!M125/1000,0)) -> 422 | N125: =IF(千円単!N125="","",ROUND(千円単!N125/1000,0)) -> 47 | O125: =IF(千円単!O125="","",ROUND(千円単!O125/1000,0)) -> 210 | P125: =IF(千円単!P125="","",ROUND(千円単!P125/1000,0)) -> 32 | Q125: =IF(千円単!Q125="","",ROUND(千円単!Q125/1000,0)) -> 55 | R125: =IF(千円単!R125="","",ROUND(千円単!R125/1000,0)) -> 79 | S125: =IF(千円単!S125="","",ROUND(千円単!S125/1000,0)) -> 47 | T125: =IF(千円単!T125="","",ROUND(千円単!T125/1000,0)) -> 4 | U125: =IF(千円単!U125="","",ROUND(千円単!U125/1000,0)) -> 246 | V125: =IF(千円単!V125="","",ROUND(千円単!V125/1000,0)) -> 65 | W125: =IF(千円単!W125="","",ROUND(千円単!W125/1000,0)) -> 178 | X125: =IF(千円単!X125="","",ROUND(千円単!X125/1000,0)) -> -168 | Y125: =IF(千円単!Y125="","",ROUND(千円単!Y125/1000,0)) -> 55
A126: 2015 | B126: 46 | C126: 17 | D126: 1 | E126: 125 | F126: 公共 | G126: 192015 | H126: 山梨県 | I126: 甲府市 | J126: =IF(千円単!J126="","",ROUND(千円単!J126/1000,0)) -> 6441 | K126: =IF(千円単!K126="","",ROUND(千円単!K126/1000,0)) -> 2856 | L126: =IF(千円単!L126="","",ROUND(千円単!L126/1000,0)) -> 1837 | M126: =IF(千円単!M126="","",ROUND(千円単!M126/1000,0)) -> 5423 | N126: =IF(千円単!N126="","",ROUND(千円単!N126/1000,0)) -> 980 | O126: =IF(千円単!O126="","",ROUND(千円単!O126/1000,0)) -> 3184 | P126: =IF(千円単!P126="","",ROUND(千円単!P126/1000,0)) -> 204 | Q126: =IF(千円単!Q126="","",ROUND(千円単!Q126/1000,0)) -> 1019 | R126: =IF(千円単!R126="","",ROUND(千円単!R126/1000,0)) -> 3586 | S126: =IF(千円単!S126="","",ROUND(千円単!S126/1000,0)) -> 1639 | T126: =IF(千円単!T126="","",ROUND(千円単!T126/1000,0)) -> 1220 | U126: =IF(千円単!U126="","",ROUND(千円単!U126/1000,0)) -> 6081 | V126: =IF(千円単!V126="","",ROUND(千円単!V126/1000,0)) -> 1869 | W126: =IF(千円単!W126="","",ROUND(千円単!W126/1000,0)) -> 3990 | X126: =IF(千円単!X126="","",ROUND(千円単!X126/1000,0)) -> -2495 | Y126: =IF(千円単!Y126="","",ROUND(千円単!Y126/1000,0)) -> 1019
A127: 2015 | B127: 46 | C127: 17 | D127: 1 | E127: 126 | F127: 公共 | G127: 202011 | H127: 長野県 | I127: 長野市 | J127: =IF(千円単!J127="","",ROUND(千円単!J127/1000,0)) -> 12305 | K127: =IF(千円単!K127="","",ROUND(千円単!K127/1000,0)) -> 6655 | L127: =IF(千円単!L127="","",ROUND(千円単!L127/1000,0)) -> 2787 | M127: =IF(千円単!M127="","",ROUND(千円単!M127/1000,0)) -> 9902 | N127: =IF(千円単!N127="","",ROUND(千円単!N127/1000,0)) -> 1995 | O127: =IF(千円単!O127="","",ROUND(千円単!O127/1000,0)) -> 5243 | P127: =IF(千円単!P127="","",ROUND(千円単!P127/1000,0)) -> 278 | Q127: =IF(千円単!Q127="","",ROUND(千円単!Q127/1000,0)) -> 2403 | R127: =IF(千円単!R127="","",ROUND(千円単!R127/1000,0)) -> 4139 | S127: =IF(千円単!S127="","",ROUND(千円単!S127/1000,0)) -> 1845 | T127: =IF(千円単!T127="","",ROUND(千円単!T127/1000,0)) -> 906 | U127: =IF(千円単!U127="","",ROUND(千円単!U127/1000,0)) -> 9098 | V127: =IF(千円単!V127="","",ROUND(千円単!V127/1000,0)) -> 3630 | W127: =IF(千円単!W127="","",ROUND(千円単!W127/1000,0)) -> 5468 | X127: =IF(千円単!X127="","",ROUND(千円単!X127/1000,0)) -> -4959 | Y127: =IF(千円単!Y127="","",ROUND(千円単!Y127/1000,0)) -> 2403
A128: 2015 | B128: 46 | C128: 17 | D128: 1 | E128: 127 | F128: 公共 | G128: 202029 | H128: 長野県 | I128: 松本市 | J128: =IF(千円単!J128="","",ROUND(千円単!J128/1000,0)) -> 5570 | K128: =IF(千円単!K128="","",ROUND(千円単!K128/1000,0)) -> 4153 | L128: =IF(千円単!L128="","",ROUND(千円単!L128/1000,0)) -> 155 | M128: =IF(千円単!M128="","",ROUND(千円単!M128/1000,0)) -> 4915 | N128: =IF(千円単!N128="","",ROUND(千円単!N128/1000,0)) -> 658 | O128: =IF(千円単!O128="","",ROUND(千円単!O128/1000,0)) -> 2762 | P128: =IF(千円単!P128="","",ROUND(千円単!P128/1000,0)) -> 224 | Q128: =IF(千円単!Q128="","",ROUND(千円単!Q128/1000,0)) -> 655 | R128: =IF(千円単!R128="","",ROUND(千円単!R128/1000,0)) -> 1623 | S128: =IF(千円単!S128="","",ROUND(千円単!S128/1000,0)) -> 237 | T128: =IF(千円単!T128="","",ROUND(千円単!T128/1000,0)) -> 1022 | U128: =IF(千円単!U128="","",ROUND(千円単!U128/1000,0)) -> 3556 | V128: =IF(千円単!V128="","",ROUND(千円単!V128/1000,0)) -> 731 | W128: =IF(千円単!W128="","",ROUND(千円単!W128/1000,0)) -> 2823 | X128: =IF(千円単!X128="","",ROUND(千円単!X128/1000,0)) -> -1933 | Y128: =IF(千円単!Y128="","",ROUND(千円単!Y128/1000,0)) -> 655
A129: 2015 | B129: 46 | C129: 17 | D129: 1 | E129: 128 | F129: 公共 | G129: 202037 | H129: 長野県 | I129: 上田市 | J129: =IF(千円単!J129="","",ROUND(千円単!J129/1000,0)) -> 4423 | K129: =IF(千円単!K129="","",ROUND(千円単!K129/1000,0)) -> 1810 | L129: =IF(千円単!L129="","",ROUND(千円単!L129/1000,0)) -> 1541 | M129: =IF(千円単!M129="","",ROUND(千円単!M129/1000,0)) -> 3896 | N129: =IF(千円単!N129="","",ROUND(千円単!N129/1000,0)) -> 773 | O129: =IF(千円単!O129="","",ROUND(千円単!O129/1000,0)) -> 2485 | P129: =IF(千円単!P129="","",ROUND(千円単!P129/1000,0)) -> 53 | Q129: =IF(千円単!Q129="","",ROUND(千円単!Q129/1000,0)) -> 527 | R129: =IF(千円単!R129="","",ROUND(千円単!R129/1000,0)) -> 414 | S129: =IF(千円単!S129="","",ROUND(千円単!S129/1000,0)) -> 102 | T129: =IF(千円単!T129="","",ROUND(千円単!T129/1000,0)) -> 194 | U129: =IF(千円単!U129="","",ROUND(千円単!U129/1000,0)) -> 2426 | V129: =IF(千円単!V129="","",ROUND(千円単!V129/1000,0)) -> 244 | W129: =IF(千円単!W129="","",ROUND(千円単!W129/1000,0)) -> 2182 | X129: =IF(千円単!X129="","",ROUND(千円単!X129/1000,0)) -> -2012 | Y129: =IF(千円単!Y129="","",ROUND(千円単!Y129/1000,0)) -> 527
A130: 2015 | B130: 46 | C130: 17 | D130: 1 | E130: 129 | F130: 公共 | G130: 202045 | H130: 長野県 | I130: 岡谷市 | J130: =IF(千円単!J130="","",ROUND(千円単!J130/1000,0)) -> 1750 | K130: =IF(千円単!K130="","",ROUND(千円単!K130/1000,0)) -> 974 | L130: =IF(千円単!L130="","",ROUND(千円単!L130/1000,0)) -> 346 | M130: =IF(千円単!M130="","",ROUND(千円単!M130/1000,0)) -> 1518 | N130: =IF(千円単!N130="","",ROUND(千円単!N130/1000,0)) -> 210 | O130: =IF(千円単!O130="","",ROUND(千円単!O130/1000,0)) -> 795 | P130: =IF(千円単!P130="","",ROUND(千円単!P130/1000,0)) -> 81 | Q130: =IF(千円単!Q130="","",ROUND(千円単!Q130/1000,0)) -> 232 | R130: =IF(千円単!R130="","",ROUND(千円単!R130/1000,0)) -> 930 | S130: =IF(千円単!S130="","",ROUND(千円単!S130/1000,0)) -> 591 | T130: =IF(千円単!T130="","",ROUND(千円単!T130/1000,0)) -> 175 | U130: =IF(千円単!U130="","",ROUND(千円単!U130/1000,0)) -> 1464 | V130: =IF(千円単!V130="","",ROUND(千円単!V130/1000,0)) -> 397 | W130: =IF(千円単!W130="","",ROUND(千円単!W130/1000,0)) -> 1067 | X130: =IF(千円単!X130="","",ROUND(千円単!X130/1000,0)) -> -534 | Y130: =IF(千円単!Y130="","",ROUND(千円単!Y130/1000,0)) -> 232
A131: 2015 | B131: 46 | C131: 17 | D131: 1 | E131: 130 | F131: 公共 | G131: 202061 | H131: 長野県 | I131: 諏訪市 | J131: =IF(千円単!J131="","",ROUND(千円単!J131/1000,0)) -> 2199 | K131: =IF(千円単!K131="","",ROUND(千円単!K131/1000,0)) -> 1280 | L131: =IF(千円単!L131="","",ROUND(千円単!L131/1000,0)) -> 612 | M131: =IF(千円単!M131="","",ROUND(千円単!M131/1000,0)) -> 1898 | N131: =IF(千円単!N131="","",ROUND(千円単!N131/1000,0)) -> 277 | O131: =IF(千円単!O131="","",ROUND(千円単!O131/1000,0)) -> 990 | P131: =IF(千円単!P131="","",ROUND(千円単!P131/1000,0)) -> 90 | Q131: =IF(千円単!Q131="","",ROUND(千円単!Q131/1000,0)) -> 301 | R131: =IF(千円単!R131="","",ROUND(千円単!R131/1000,0)) -> 347 | S131: =IF(千円単!S131="","",ROUND(千円単!S131/1000,0)) -> 150 | T131: =IF(千円単!T131="","",ROUND(千円単!T131/1000,0)) -> 131 | U131: =IF(千円単!U131="","",ROUND(千円単!U131/1000,0)) -> 1368 | V131: =IF(千円単!V131="","",ROUND(千円単!V131/1000,0)) -> 342 | W131: =IF(千円単!W131="","",ROUND(千円単!W131/1000,0)) -> 1027 | X131: =IF(千円単!X131="","",ROUND(千円単!X131/1000,0)) -> -1022 | Y131: =IF(千円単!Y131="","",ROUND(千円単!Y131/1000,0)) -> 301
A132: 2015 | B132: 46 | C132: 17 | D132: 1 | E132: 131 | F132: 公共 | G132: 202070 | H132: 長野県 | I132: 須坂市 | J132: =IF(千円単!J132="","",ROUND(千円単!J132/1000,0)) -> 1700 | K132: =IF(千円単!K132="","",ROUND(千円単!K132/1000,0)) -> 740 | L132: =IF(千円単!L132="","",ROUND(千円単!L132/1000,0)) -> 642 | M132: =IF(千円単!M132="","",ROUND(千円単!M132/1000,0)) -> 1411 | N132: =IF(千円単!N132="","",ROUND(千円単!N132/1000,0)) -> 356 | O132: =IF(千円単!O132="","",ROUND(千円単!O132/1000,0)) -> 719 | P132: =IF(千円単!P132="","",ROUND(千円単!P132/1000,0)) -> 18 | Q132: =IF(千円単!Q132="","",ROUND(千円単!Q132/1000,0)) -> 289 | R132: =IF(千円単!R132="","",ROUND(千円単!R132/1000,0)) -> 811 | S132: =IF(千円単!S132="","",ROUND(千円単!S132/1000,0)) -> 502 | T132: =IF(千円単!T132="","",ROUND(千円単!T132/1000,0)) -> 300 | U132: =IF(千円単!U132="","",ROUND(千円単!U132/1000,0)) -> 1361 | V132: =IF(千円単!V132="","",ROUND(千円単!V132/1000,0)) -> 64 | W132: =IF(千円単!W132="","",ROUND(千円単!W132/1000,0)) -> 1297 | X132: =IF(千円単!X132="","",ROUND(千円単!X132/1000,0)) -> -550 | Y132: =IF(千円単!Y132="","",ROUND(千円単!Y132/1000,0)) -> 289
A133: 2015 | B133: 46 | C133: 17 | D133: 1 | E133: 132 | F133: 公共 | G133: 202088 | H133: 長野県 | I133: 小諸市 | J133: =IF(千円単!J133="","",ROUND(千円単!J133/1000,0)) -> 1178 | K133: =IF(千円単!K133="","",ROUND(千円単!K133/1000,0)) -> 362 | L133: =IF(千円単!L133="","",ROUND(千円単!L133/1000,0)) -> 584 | M133: =IF(千円単!M133="","",ROUND(千円単!M133/1000,0)) -> 1040 | N133: =IF(千円単!N133="","",ROUND(千円単!N133/1000,0)) -> 193 | O133: =IF(千円単!O133="","",ROUND(千円単!O133/1000,0)) -> 544 | P133: =IF(千円単!P133="","",ROUND(千円単!P133/1000,0)) -> 20 | Q133: =IF(千円単!Q133="","",ROUND(千円単!Q133/1000,0)) -> 138 | R133: =IF(千円単!R133="","",ROUND(千円単!R133/1000,0)) -> 632 | S133: =IF(千円単!S133="","",ROUND(千円単!S133/1000,0)) -> 297 | T133: =IF(千円単!T133="","",ROUND(千円単!T133/1000,0)) -> 104 | U133: =IF(千円単!U133="","",ROUND(千円単!U133/1000,0)) -> 1108 | V133: =IF(千円単!V133="","",ROUND(千円単!V133/1000,0)) -> 409 | W133: =IF(千円単!W133="","",ROUND(千円単!W133/1000,0)) -> 689 | X133: =IF(千円単!X133="","",ROUND(千円単!X133/1000,0)) -> -476 | Y133: =IF(千円単!Y133="","",ROUND(千円単!Y133/1000,0)) -> 138
A134: 2015 | B134: 46 | C134: 17 | D134: 1 | E134: 133 | F134: 公共 | G134: 202096 | H134: 長野県 | I134: 伊那市 | J134: =IF(千円単!J134="","",ROUND(千円単!J134/1000,0)) -> 1469 | K134: =IF(千円単!K134="","",ROUND(千円単!K134/1000,0)) -> 622 | L134: =IF(千円単!L134="","",ROUND(千円単!L134/1000,0)) -> 441 | M134: =IF(千円単!M134="","",ROUND(千円単!M134/1000,0)) -> 1317 | N134: =IF(千円単!N134="","",ROUND(千円単!N134/1000,0)) -> 276 | O134: =IF(千円単!O134="","",ROUND(千円単!O134/1000,0)) -> 773 | P134: =IF(千円単!P134="","",ROUND(千円単!P134/1000,0)) -> 61 | Q134: =IF(千円単!Q134="","",ROUND(千円単!Q134/1000,0)) -> 152 | R134: =IF(千円単!R134="","",ROUND(千円単!R134/1000,0)) -> 859 | S134: =IF(千円単!S134="","",ROUND(千円単!S134/1000,0)) -> 667 | T134: =IF(千円単!T134="","",ROUND(千円単!T134/1000,0)) -> 133 | U134: =IF(千円単!U134="","",ROUND(千円単!U134/1000,0)) -> 1359 | V134: =IF(千円単!V134="","",ROUND(千円単!V134/1000,0)) -> 148 | W134: =IF(千円単!W134="","",ROUND(千円単!W134/1000,0)) -> 1211 | X134: =IF(千円単!X134="","",ROUND(千円単!X134/1000,0)) -> -500 | Y134: =IF(千円単!Y134="","",ROUND(千円単!Y134/1000,0)) -> 152
A135: 2015 | B135: 46 | C135: 17 | D135: 1 | E135: 134 | F135: 公共 | G135: 202100 | H135: 長野県 | I135: 駒ケ根市 | J135: =IF(千円単!J135="","",ROUND(千円単!J135/1000,0)) -> 1057 | K135: =IF(千円単!K135="","",ROUND(千円単!K135/1000,0)) -> 370 | L135: =IF(千円単!L135="","",ROUND(千円単!L135/1000,0)) -> 402 | M135: =IF(千円単!M135="","",ROUND(千円単!M135/1000,0)) -> 938 | N135: =IF(千円単!N135="","",ROUND(千円単!N135/1000,0)) -> 180 | O135: =IF(千円単!O135="","",ROUND(千円単!O135/1000,0)) -> 490 | P135: =IF(千円単!P135="","",ROUND(千円単!P135/1000,0)) -> 12 | Q135: =IF(千円単!Q135="","",ROUND(千円単!Q135/1000,0)) -> 119 | R135: =IF(千円単!R135="","",ROUND(千円単!R135/1000,0)) -> 476 | S135: =IF(千円単!S135="","",ROUND(千円単!S135/1000,0)) -> 265 | T135: =IF(千円単!T135="","",ROUND(千円単!T135/1000,0)) -> 18 | U135: =IF(千円単!U135="","",ROUND(千円単!U135/1000,0)) -> 850 | V135: =IF(千円単!V135="","",ROUND(千円単!V135/1000,0)) -> 345 | W135: =IF(千円単!W135="","",ROUND(千円単!W135/1000,0)) -> 505 | X135: =IF(千円単!X135="","",ROUND(千円単!X135/1000,0)) -> -373 | Y135: =IF(千円単!Y135="","",ROUND(千円単!Y135/1000,0)) -> 119
A136: 2015 | B136: 46 | C136: 17 | D136: 1 | E136: 135 | F136: 公共 | G136: 202126 | H136: 長野県 | I136: 大町市 | J136: =IF(千円単!J136="","",ROUND(千円単!J136/1000,0)) -> 808 | K136: =IF(千円単!K136="","",ROUND(千円単!K136/1000,0)) -> 276 | L136: =IF(千円単!L136="","",ROUND(千円単!L136/1000,0)) -> 370 | M136: =IF(千円単!M136="","",ROUND(千円単!M136/1000,0)) -> 774 | N136: =IF(千円単!N136="","",ROUND(千円単!N136/1000,0)) -> 155 | O136: =IF(千円単!O136="","",ROUND(千円単!O136/1000,0)) -> 419 | P136: =IF(千円単!P136="","",ROUND(千円単!P136/1000,0)) -> 48 | Q136: =IF(千円単!Q136="","",ROUND(千円単!Q136/1000,0)) -> 34 | R136: =IF(千円単!R136="","",ROUND(千円単!R136/1000,0)) -> 290 | S136: =IF(千円単!S136="","",ROUND(千円単!S136/1000,0)) -> 133 | T136: =IF(千円単!T136="","",ROUND(千円単!T136/1000,0)) -> 92 | U136: =IF(千円単!U136="","",ROUND(千円単!U136/1000,0)) -> 539 | V136: =IF(千円単!V136="","",ROUND(千円単!V136/1000,0)) -> 152 | W136: =IF(千円単!W136="","",ROUND(千円単!W136/1000,0)) -> 387 | X136: =IF(千円単!X136="","",ROUND(千円単!X136/1000,0)) -> -249 | Y136: =IF(千円単!Y136="","",ROUND(千円単!Y136/1000,0)) -> 34
A137: 2015 | B137: 46 | C137: 17 | D137: 1 | E137: 136 | F137: 公共 | G137: 202142 | H137: 長野県 | I137: 茅野市 | J137: =IF(千円単!J137="","",ROUND(千円単!J137/1000,0)) -> 2050 | K137: =IF(千円単!K137="","",ROUND(千円単!K137/1000,0)) -> 1113 | L137: =IF(千円単!L137="","",ROUND(千円単!L137/1000,0)) -> 748 | M137: =IF(千円単!M137="","",ROUND(千円単!M137/1000,0)) -> 1627 | N137: =IF(千円単!N137="","",ROUND(千円単!N137/1000,0)) -> 237 | O137: =IF(千円単!O137="","",ROUND(千円単!O137/1000,0)) -> 883 | P137: =IF(千円単!P137="","",ROUND(千円単!P137/1000,0)) -> 67 | Q137: =IF(千円単!Q137="","",ROUND(千円単!Q137/1000,0)) -> 423 | R137: =IF(千円単!R137="","",ROUND(千円単!R137/1000,0)) -> 482 | S137: =IF(千円単!S137="","",ROUND(千円単!S137/1000,0)) -> 213 | T137: =IF(千円単!T137="","",ROUND(千円単!T137/1000,0)) -> 177 | U137: =IF(千円単!U137="","",ROUND(千円単!U137/1000,0)) -> 1527 | V137: =IF(千円単!V137="","",ROUND(千円単!V137/1000,0)) -> 359 | W137: =IF(千円単!W137="","",ROUND(千円単!W137/1000,0)) -> 1168 | X137: =IF(千円単!X137="","",ROUND(千円単!X137/1000,0)) -> -1045 | Y137: =IF(千円単!Y137="","",ROUND(千円単!Y137/1000,0)) -> 423
A138: 2015 | B138: 46 | C138: 17 | D138: 1 | E138: 137 | F138: 公共 | G138: 202151 | H138: 長野県 | I138: 塩尻市 | J138: =IF(千円単!J138="","",ROUND(千円単!J138/1000,0)) -> 2282 | K138: =IF(千円単!K138="","",ROUND(千円単!K138/1000,0)) -> 1200 | L138: =IF(千円単!L138="","",ROUND(千円単!L138/1000,0)) -> 323 | M138: =IF(千円単!M138="","",ROUND(千円単!M138/1000,0)) -> 2061 | N138: =IF(千円単!N138="","",ROUND(千円単!N138/1000,0)) -> 345 | O138: =IF(千円単!O138="","",ROUND(千円単!O138/1000,0)) -> 1216 | P138: =IF(千円単!P138="","",ROUND(千円単!P138/1000,0)) -> 72 | Q138: =IF(千円単!Q138="","",ROUND(千円単!Q138/1000,0)) -> 221 | R138: =IF(千円単!R138="","",ROUND(千円単!R138/1000,0)) -> 925 | S138: =IF(千円単!S138="","",ROUND(千円単!S138/1000,0)) -> 440 | T138: =IF(千円単!T138="","",ROUND(千円単!T138/1000,0)) -> 269 | U138: =IF(千円単!U138="","",ROUND(千円単!U138/1000,0)) -> 1619 | V138: =IF(千円単!V138="","",ROUND(千円単!V138/1000,0)) -> 537 | W138: =IF(千円単!W138="","",ROUND(千円単!W138/1000,0)) -> 1082 | X138: =IF(千円単!X138="","",ROUND(千円単!X138/1000,0)) -> -694 | Y138: =IF(千円単!Y138="","",ROUND(千円単!Y138/1000,0)) -> 221
A139: 2015 | B139: 46 | C139: 17 | D139: 1 | E139: 138 | F139: 公共 | G139: 202177 | H139: 長野県 | I139: 佐久市 | J139: =IF(千円単!J139="","",ROUND(千円単!J139/1000,0)) -> 2758 | K139: =IF(千円単!K139="","",ROUND(千円単!K139/1000,0)) -> 1491 | L139: =IF(千円単!L139="","",ROUND(千円単!L139/1000,0)) -> 601 | M139: =IF(千円単!M139="","",ROUND(千円単!M139/1000,0)) -> 2312 | N139: =IF(千円単!N139="","",ROUND(千円単!N139/1000,0)) -> 399 | O139: =IF(千円単!O139="","",ROUND(千円単!O139/1000,0)) -> 1144 | P139: =IF(千円単!P139="","",ROUND(千円単!P139/1000,0)) -> 73 | Q139: =IF(千円単!Q139="","",ROUND(千円単!Q139/1000,0)) -> 446 | R139: =IF(千円単!R139="","",ROUND(千円単!R139/1000,0)) -> 1181 | S139: =IF(千円単!S139="","",ROUND(千円単!S139/1000,0)) -> 484 | T139: =IF(千円単!T139="","",ROUND(千円単!T139/1000,0)) -> 0 | U139: =IF(千円単!U139="","",ROUND(千円単!U139/1000,0)) -> 2014 | V139: =IF(千円単!V139="","",ROUND(千円単!V139/1000,0)) -> 877 | W139: =IF(千円単!W139="","",ROUND(千円単!W139/1000,0)) -> 1131 | X139: =IF(千円単!X139="","",ROUND(千円単!X139/1000,0)) -> -833 | Y139: =IF(千円単!Y139="","",ROUND(千円単!Y139/1000,0)) -> 446
A140: 2015 | B140: 46 | C140: 17 | D140: 1 | E140: 139 | F140: 公共 | G140: 202185 | H140: 長野県 | I140: 千曲市 | J140: =IF(千円単!J140="","",ROUND(千円単!J140/1000,0)) -> 2748 | K140: =IF(千円単!K140="","",ROUND(千円単!K140/1000,0)) -> 881 | L140: =IF(千円単!L140="","",ROUND(千円単!L140/1000,0)) -> 1305 | M140: =IF(千円単!M140="","",ROUND(千円単!M140/1000,0)) -> 2338 | N140: =IF(千円単!N140="","",ROUND(千円単!N140/1000,0)) -> 606 | O140: =IF(千円単!O140="","",ROUND(千円単!O140/1000,0)) -> 1256 | P140: =IF(千円単!P140="","",ROUND(千円単!P140/1000,0)) -> 34 | Q140: =IF(千円単!Q140="","",ROUND(千円単!Q140/1000,0)) -> 411 | R140: =IF(千円単!R140="","",ROUND(千円単!R140/1000,0)) -> 933 | S140: =IF(千円単!S140="","",ROUND(千円単!S140/1000,0)) -> 568 | T140: =IF(千円単!T140="","",ROUND(千円単!T140/1000,0)) -> 152 | U140: =IF(千円単!U140="","",ROUND(千円単!U140/1000,0)) -> 2005 | V140: =IF(千円単!V140="","",ROUND(千円単!V140/1000,0)) -> 608 | W140: =IF(千円単!W140="","",ROUND(千円単!W140/1000,0)) -> 1397 | X140: =IF(千円単!X140="","",ROUND(千円単!X140/1000,0)) -> -1072 | Y140: =IF(千円単!Y140="","",ROUND(千円単!Y140/1000,0)) -> 411
A141: 2015 | B141: 46 | C141: 17 | D141: 1 | E141: 140 | F141: 公共 | G141: 202193 | H141: 長野県 | I141: 東御市 | J141: =IF(千円単!J141="","",ROUND(千円単!J141/1000,0)) -> 952 | K141: =IF(千円単!K141="","",ROUND(千円単!K141/1000,0)) -> 295 | L141: =IF(千円単!L141="","",ROUND(千円単!L141/1000,0)) -> 469 | M141: =IF(千円単!M141="","",ROUND(千円単!M141/1000,0)) -> 845 | N141: =IF(千円単!N141="","",ROUND(千円単!N141/1000,0)) -> 191 | O141: =IF(千円単!O141="","",ROUND(千円単!O141/1000,0)) -> 456 | P141: =IF(千円単!P141="","",ROUND(千円単!P141/1000,0)) -> 55 | Q141: =IF(千円単!Q141="","",ROUND(千円単!Q141/1000,0)) -> 106 | R141: =IF(千円単!R141="","",ROUND(千円単!R141/1000,0)) -> 451 | S141: =IF(千円単!S141="","",ROUND(千円単!S141/1000,0)) -> 0 | T141: =IF(千円単!T141="","",ROUND(千円単!T141/1000,0)) -> 34 | U141: =IF(千円単!U141="","",ROUND(千円単!U141/1000,0)) -> 769 | V141: =IF(千円単!V141="","",ROUND(千円単!V141/1000,0)) -> 152 | W141: =IF(千円単!W141="","",ROUND(千円単!W141/1000,0)) -> 616 | X141: =IF(千円単!X141="","",ROUND(千円単!X141/1000,0)) -> -317 | Y141: =IF(千円単!Y141="","",ROUND(千円単!Y141/1000,0)) -> 106
A142: 2015 | B142: 46 | C142: 17 | D142: 1 | E142: 141 | F142: 公共 | G142: 203611 | H142: 長野県 | I142: 下諏訪町 | J142: =IF(千円単!J142="","",ROUND(千円単!J142/1000,0)) -> 555 | K142: =IF(千円単!K142="","",ROUND(千円単!K142/1000,0)) -> 445 | L142: =IF(千円単!L142="","",ROUND(千円単!L142/1000,0)) -> 27 | M142: =IF(千円単!M142="","",ROUND(千円単!M142/1000,0)) -> 547 | N142: =IF(千円単!N142="","",ROUND(千円単!N142/1000,0)) -> 55 | O142: =IF(千円単!O142="","",ROUND(千円単!O142/1000,0)) -> 268 | P142: =IF(千円単!P142="","",ROUND(千円単!P142/1000,0)) -> 24 | Q142: =IF(千円単!Q142="","",ROUND(千円単!Q142/1000,0)) -> 8 | R142: =IF(千円単!R142="","",ROUND(千円単!R142/1000,0)) -> 158 | S142: =IF(千円単!S142="","",ROUND(千円単!S142/1000,0)) -> 53 | T142: =IF(千円単!T142="","",ROUND(千円単!T142/1000,0)) -> 63 | U142: =IF(千円単!U142="","",ROUND(千円単!U142/1000,0)) -> 364 | V142: =IF(千円単!V142="","",ROUND(千円単!V142/1000,0)) -> 100 | W142: =IF(千円単!W142="","",ROUND(千円単!W142/1000,0)) -> 264 | X142: =IF(千円単!X142="","",ROUND(千円単!X142/1000,0)) -> -206 | Y142: =IF(千円単!Y142="","",ROUND(千円単!Y142/1000,0)) -> 8
A143: 2015 | B143: 46 | C143: 17 | D143: 1 | E143: 142 | F143: 公共 | G143: 203629 | H143: 長野県 | I143: 富士見町 | J143: =IF(千円単!J143="","",ROUND(千円単!J143/1000,0)) -> 1130 | K143: =IF(千円単!K143="","",ROUND(千円単!K143/1000,0)) -> 494 | L143: =IF(千円単!L143="","",ROUND(千円単!L143/1000,0)) -> 456 | M143: =IF(千円単!M143="","",ROUND(千円単!M143/1000,0)) -> 887 | N143: =IF(千円単!N143="","",ROUND(千円単!N143/1000,0)) -> 182 | O143: =IF(千円単!O143="","",ROUND(千円単!O143/1000,0)) -> 493 | P143: =IF(千円単!P143="","",ROUND(千円単!P143/1000,0)) -> 24 | Q143: =IF(千円単!Q143="","",ROUND(千円単!Q143/1000,0)) -> 244 | R143: =IF(千円単!R143="","",ROUND(千円単!R143/1000,0)) -> 108 | S143: =IF(千円単!S143="","",ROUND(千円単!S143/1000,0)) -> 0 | T143: =IF(千円単!T143="","",ROUND(千円単!T143/1000,0)) -> 0 | U143: =IF(千円単!U143="","",ROUND(千円単!U143/1000,0)) -> 718 | V143: =IF(千円単!V143="","",ROUND(千円単!V143/1000,0)) -> 141 | W143: =IF(千円単!W143="","",ROUND(千円単!W143/1000,0)) -> 557 | X143: =IF(千円単!X143="","",ROUND(千円単!X143/1000,0)) -> -610 | Y143: =IF(千円単!Y143="","",ROUND(千円単!Y143/1000,0)) -> 244
A144: 2015 | B144: 46 | C144: 17 | D144: 1 | E144: 143 | F144: 公共 | G144: 203831 | H144: 長野県 | I144: 箕輪町 | J144: =IF(千円単!J144="","",ROUND(千円単!J144/1000,0)) -> 511 | K144: =IF(千円単!K144="","",ROUND(千円単!K144/1000,0)) -> 193 | L144: =IF(千円単!L144="","",ROUND(千円単!L144/1000,0)) -> 176 | M144: =IF(千円単!M144="","",ROUND(千円単!M144/1000,0)) -> 511 | N144: =IF(千円単!N144="","",ROUND(千円単!N144/1000,0)) -> 120 | O144: =IF(千円単!O144="","",ROUND(千円単!O144/1000,0)) -> 309 | P144: =IF(千円単!P144="","",ROUND(千円単!P144/1000,0)) -> 10 | Q144: =IF(千円単!Q144="","",ROUND(千円単!Q144/1000,0)) -> 0 | R144: =IF(千円単!R144="","",ROUND(千円単!R144/1000,0)) -> 216 | S144: =IF(千円単!S144="","",ROUND(千円単!S144/1000,0)) -> 98 | T144: =IF(千円単!T144="","",ROUND(千円単!T144/1000,0)) -> 95 | U144: =IF(千円単!U144="","",ROUND(千円単!U144/1000,0)) -> 434 | V144: =IF(千円単!V144="","",ROUND(千円単!V144/1000,0)) -> 54 | W144: =IF(千円単!W144="","",ROUND(千円単!W144/1000,0)) -> 380 | X144: =IF(千円単!X144="","",ROUND(千円単!X144/1000,0)) -> -218 | Y144: =IF(千円単!Y144="","",ROUND(千円単!Y144/1000,0)) -> 0
A145: 2015 | B145: 46 | C145: 17 | D145: 1 | E145: 144 | F145: 公共 | G145: 203858 | H145: 長野県 | I145: 南箕輪村 | J145: =IF(千円単!J145="","",ROUND(千円単!J145/1000,0)) -> 638 | K145: =IF(千円単!K145="","",ROUND(千円単!K145/1000,0)) -> 240 | L145: =IF(千円単!L145="","",ROUND(千円単!L145/1000,0)) -> 206 | M145: =IF(千円単!M145="","",ROUND(千円単!M145/1000,0)) -> 630 | N145: =IF(千円単!N145="","",ROUND(千円単!N145/1000,0)) -> 142 | O145: =IF(千円単!O145="","",ROUND(千円単!O145/1000,0)) -> 382 | P145: =IF(千円単!P145="","",ROUND(千円単!P145/1000,0)) -> 20 | Q145: =IF(千円単!Q145="","",ROUND(千円単!Q145/1000,0)) -> 7 | R145: =IF(千円単!R145="","",ROUND(千円単!R145/1000,0)) -> 252 | S145: =IF(千円単!S145="","",ROUND(千円単!S145/1000,0)) -> 50 | T145: =IF(千円単!T145="","",ROUND(千円単!T145/1000,0)) -> 101 | U145: =IF(千円単!U145="","",ROUND(千円単!U145/1000,0)) -> 485 | V145: =IF(千円単!V145="","",ROUND(千円単!V145/1000,0)) -> 129 | W145: =IF(千円単!W145="","",ROUND(千円単!W145/1000,0)) -> 355 | X145: =IF(千円単!X145="","",ROUND(千円単!X145/1000,0)) -> -233 | Y145: =IF(千円単!Y145="","",ROUND(千円単!Y145/1000,0)) -> 7
A146: 2015 | B146: 46 | C146: 17 | D146: 1 | E146: 145 | F146: 公共 | G146: 203882 | H146: 長野県 | I146: 宮田村 | J146: =IF(千円単!J146="","",ROUND(千円単!J146/1000,0)) -> 175 | K146: =IF(千円単!K146="","",ROUND(千円単!K146/1000,0)) -> 115 | L146: =IF(千円単!L146="","",ROUND(千円単!L146/1000,0)) -> 2 | M146: =IF(千円単!M146="","",ROUND(千円単!M146/1000,0)) -> 228 | N146: =IF(千円単!N146="","",ROUND(千円単!N146/1000,0)) -> 43 | O146: =IF(千円単!O146="","",ROUND(千円単!O146/1000,0)) -> 113 | P146: =IF(千円単!P146="","",ROUND(千円単!P146/1000,0)) -> 9 | Q146: =IF(千円単!Q146="","",ROUND(千円単!Q146/1000,0)) -> -53 | R146: =IF(千円単!R146="","",ROUND(千円単!R146/1000,0)) -> 197 | S146: =IF(千円単!S146="","",ROUND(千円単!S146/1000,0)) -> 0 | T146: =IF(千円単!T146="","",ROUND(千円単!T146/1000,0)) -> 0 | U146: =IF(千円単!U146="","",ROUND(千円単!U146/1000,0)) -> 206 | V146: =IF(千円単!V146="","",ROUND(千円単!V146/1000,0)) -> 35 | W146: =IF(千円単!W146="","",ROUND(千円単!W146/1000,0)) -> 171 | X146: =IF(千円単!X146="","",ROUND(千円単!X146/1000,0)) -> -9 | Y146: =IF(千円単!Y146="","",ROUND(千円単!Y146/1000,0)) -> -53
A147: 2015 | B147: 46 | C147: 17 | D147: 1 | E147: 146 | F147: 公共 | G147: 212016 | H147: 岐阜県 | I147: 岐阜市 | J147: =IF(千円単!J147="","",ROUND(千円単!J147/1000,0)) -> 8027 | K147: =IF(千円単!K147="","",ROUND(千円単!K147/1000,0)) -> 4868 | L147: =IF(千円単!L147="","",ROUND(千円単!L147/1000,0)) -> 1567 | M147: =IF(千円単!M147="","",ROUND(千円単!M147/1000,0)) -> 7857 | N147: =IF(千円単!N147="","",ROUND(千円単!N147/1000,0)) -> 1362 | O147: =IF(千円単!O147="","",ROUND(千円単!O147/1000,0)) -> 3624 | P147: =IF(千円単!P147="","",ROUND(千円単!P147/1000,0)) -> 680 | Q147: =IF(千円単!Q147="","",ROUND(千円単!Q147/1000,0)) -> 171 | R147: =IF(千円単!R147="","",ROUND(千円単!R147/1000,0)) -> 3605 | S147: =IF(千円単!S147="","",ROUND(千円単!S147/1000,0)) -> 2532 | T147: =IF(千円単!T147="","",ROUND(千円単!T147/1000,0)) -> 350 | U147: =IF(千円単!U147="","",ROUND(千円単!U147/1000,0)) -> 6014 | V147: =IF(千円単!V147="","",ROUND(千円単!V147/1000,0)) -> 2252 | W147: =IF(千円単!W147="","",ROUND(千円単!W147/1000,0)) -> 3762 | X147: =IF(千円単!X147="","",ROUND(千円単!X147/1000,0)) -> -2409 | Y147: =IF(千円単!Y147="","",ROUND(千円単!Y147/1000,0)) -> 171
A148: 2015 | B148: 46 | C148: 17 | D148: 1 | E148: 147 | F148: 公共 | G148: 212113 | H148: 岐阜県 | I148: 美濃加茂市 | J148: =IF(千円単!J148="","",ROUND(千円単!J148/1000,0)) -> 1898 | K148: =IF(千円単!K148="","",ROUND(千円単!K148/1000,0)) -> 618 | L148: =IF(千円単!L148="","",ROUND(千円単!L148/1000,0)) -> 771 | M148: =IF(千円単!M148="","",ROUND(千円単!M148/1000,0)) -> 1812 | N148: =IF(千円単!N148="","",ROUND(千円単!N148/1000,0)) -> 375 | O148: =IF(千円単!O148="","",ROUND(千円単!O148/1000,0)) -> 922 | P148: =IF(千円単!P148="","",ROUND(千円単!P148/1000,0)) -> 46 | Q148: =IF(千円単!Q148="","",ROUND(千円単!Q148/1000,0)) -> 86 | R148: =IF(千円単!R148="","",ROUND(千円単!R148/1000,0)) -> 778 | S148: =IF(千円単!S148="","",ROUND(千円単!S148/1000,0)) -> 575 | T148: =IF(千円単!T148="","",ROUND(千円単!T148/1000,0)) -> 147 | U148: =IF(千円単!U148="","",ROUND(千円単!U148/1000,0)) -> 1235 | V148: =IF(千円単!V148="","",ROUND(千円単!V148/1000,0)) -> 146 | W148: =IF(千円単!W148="","",ROUND(千円単!W148/1000,0)) -> 1088 | X148: =IF(千円単!X148="","",ROUND(千円単!X148/1000,0)) -> -457 | Y148: =IF(千円単!Y148="","",ROUND(千円単!Y148/1000,0)) -> 86
A149: 2015 | B149: 46 | C149: 17 | D149: 1 | E149: 148 | F149: 公共 | G149: 221007 | H149: 静岡県 | I149: 静岡市 | J149: =IF(千円単!J149="","",ROUND(千円単!J149/1000,0)) -> 21458 | K149: =IF(千円単!K149="","",ROUND(千円単!K149/1000,0)) -> 9585 | L149: =IF(千円単!L149="","",ROUND(千円単!L149/1000,0)) -> 7294 | M149: =IF(千円単!M149="","",ROUND(千円単!M149/1000,0)) -> 20021 | N149: =IF(千円単!N149="","",ROUND(千円単!N149/1000,0)) -> 3369 | O149: =IF(千円単!O149="","",ROUND(千円単!O149/1000,0)) -> 10826 | P149: =IF(千円単!P149="","",ROUND(千円単!P149/1000,0)) -> 1037 | Q149: =IF(千円単!Q149="","",ROUND(千円単!Q149/1000,0)) -> 1437 | R149: =IF(千円単!R149="","",ROUND(千円単!R149/1000,0)) -> 12043 | S149: =IF(千円単!S149="","",ROUND(千円単!S149/1000,0)) -> 7925 | T149: =IF(千円単!T149="","",ROUND(千円単!T149/1000,0)) -> 1 | U149: =IF(千円単!U149="","",ROUND(千円単!U149/1000,0)) -> 18003 | V149: =IF(千円単!V149="","",ROUND(千円単!V149/1000,0)) -> 7609 | W149: =IF(千円単!W149="","",ROUND(千円単!W149/1000,0)) -> 10394 | X149: =IF(千円単!X149="","",ROUND(千円単!X149/1000,0)) -> -5961 | Y149: =IF(千円単!Y149="","",ROUND(千円単!Y149/1000,0)) -> 1437
A150: 2015 | B150: 46 | C150: 17 | D150: 1 | E150: 149 | F150: 公共 | G150: 221309 | H150: 静岡県 | I150: 浜松市 | J150: =IF(千円単!J150="","",ROUND(千円単!J150/1000,0)) -> 16910 | K150: =IF(千円単!K150="","",ROUND(千円単!K150/1000,0)) -> 9099 | L150: =IF(千円単!L150="","",ROUND(千円単!L150/1000,0)) -> 4606 | M150: =IF(千円単!M150="","",ROUND(千円単!M150/1000,0)) -> 14629 | N150: =IF(千円単!N150="","",ROUND(千円単!N150/1000,0)) -> 2847 | O150: =IF(千円単!O150="","",ROUND(千円単!O150/1000,0)) -> 8425 | P150: =IF(千円単!P150="","",ROUND(千円単!P150/1000,0)) -> 395 | Q150: =IF(千円単!Q150="","",ROUND(千円単!Q150/1000,0)) -> 2281 | R150: =IF(千円単!R150="","",ROUND(千円単!R150/1000,0)) -> 7825 | S150: =IF(千円単!S150="","",ROUND(千円単!S150/1000,0)) -> 4736 | T150: =IF(千円単!T150="","",ROUND(千円単!T150/1000,0)) -> 0 | U150: =IF(千円単!U150="","",ROUND(千円単!U150/1000,0)) -> 14500 | V150: =IF(千円単!V150="","",ROUND(千円単!V150/1000,0)) -> 5501 | W150: =IF(千円単!W150="","",ROUND(千円単!W150/1000,0)) -> 8998 | X150: =IF(千円単!X150="","",ROUND(千円単!X150/1000,0)) -> -6675 | Y150: =IF(千円単!Y150="","",ROUND(千円単!Y150/1000,0)) -> 2281
A151: 2015 | B151: 46 | C151: 17 | D151: 1 | E151: 150 | F151: 公共 | G151: 222038 | H151: 静岡県 | I151: 沼津市 | J151: =IF(千円単!J151="","",ROUND(千円単!J151/1000,0)) -> 4286 | K151: =IF(千円単!K151="","",ROUND(千円単!K151/1000,0)) -> 1363 | L151: =IF(千円単!L151="","",ROUND(千円単!L151/1000,0)) -> 2099 | M151: =IF(千円単!M151="","",ROUND(千円単!M151/1000,0)) -> 4171 | N151: =IF(千円単!N151="","",ROUND(千円単!N151/1000,0)) -> 736 | O151: =IF(千円単!O151="","",ROUND(千円単!O151/1000,0)) -> 2183 | P151: =IF(千円単!P151="","",ROUND(千円単!P151/1000,0)) -> 177 | Q151: =IF(千円単!Q151="","",ROUND(千円単!Q151/1000,0)) -> 116 | R151: =IF(千円単!R151="","",ROUND(千円単!R151/1000,0)) -> 1889 | S151: =IF(千円単!S151="","",ROUND(千円単!S151/1000,0)) -> 1314 | T151: =IF(千円単!T151="","",ROUND(千円単!T151/1000,0)) -> 2 | U151: =IF(千円単!U151="","",ROUND(千円単!U151/1000,0)) -> 3377 | V151: =IF(千円単!V151="","",ROUND(千円単!V151/1000,0)) -> 1495 | W151: =IF(千円単!W151="","",ROUND(千円単!W151/1000,0)) -> 1882 | X151: =IF(千円単!X151="","",ROUND(千円単!X151/1000,0)) -> -1487 | Y151: =IF(千円単!Y151="","",ROUND(千円単!Y151/1000,0)) -> 116
A152: 2015 | B152: 46 | C152: 17 | D152: 1 | E152: 151 | F152: 公共 | G152: 222054 | H152: 静岡県 | I152: 熱海市 | J152: =IF(千円単!J152="","",ROUND(千円単!J152/1000,0)) -> 2001 | K152: =IF(千円単!K152="","",ROUND(千円単!K152/1000,0)) -> 1163 | L152: =IF(千円単!L152="","",ROUND(千円単!L152/1000,0)) -> 323 | M152: =IF(千円単!M152="","",ROUND(千円単!M152/1000,0)) -> 1819 | N152: =IF(千円単!N152="","",ROUND(千円単!N152/1000,0)) -> 222 | O152: =IF(千円単!O152="","",ROUND(千円単!O152/1000,0)) -> 995 | P152: =IF(千円単!P152="","",ROUND(千円単!P152/1000,0)) -> 58 | Q152: =IF(千円単!Q152="","",ROUND(千円単!Q152/1000,0)) -> 181 | R152: =IF(千円単!R152="","",ROUND(千円単!R152/1000,0)) -> 977 | S152: =IF(千円単!S152="","",ROUND(千円単!S152/1000,0)) -> 348 | T152: =IF(千円単!T152="","",ROUND(千円単!T152/1000,0)) -> 0 | U152: =IF(千円単!U152="","",ROUND(千円単!U152/1000,0)) -> 1624 | V152: =IF(千円単!V152="","",ROUND(千円単!V152/1000,0)) -> 700 | W152: =IF(千円単!W152="","",ROUND(千円単!W152/1000,0)) -> 624 | X152: =IF(千円単!X152="","",ROUND(千円単!X152/1000,0)) -> -647 | Y152: =IF(千円単!Y152="","",ROUND(千円単!Y152/1000,0)) -> 181
A153: 2015 | B153: 46 | C153: 17 | D153: 1 | E153: 152 | F153: 公共 | G153: 222101 | H153: 静岡県 | I153: 富士市 | J153: =IF(千円単!J153="","",ROUND(千円単!J153/1000,0)) -> 6336 | K153: =IF(千円単!K153="","",ROUND(千円単!K153/1000,0)) -> 2730 | L153: =IF(千円単!L153="","",ROUND(千円単!L153/1000,0)) -> 2405 | M153: =IF(千円単!M153="","",ROUND(千円単!M153/1000,0)) -> 5062 | N153: =IF(千円単!N153="","",ROUND(千円単!N153/1000,0)) -> 894 | O153: =IF(千円単!O153="","",ROUND(千円単!O153/1000,0)) -> 2674 | P153: =IF(千円単!P153="","",ROUND(千円単!P153/1000,0)) -> 235 | Q153: =IF(千円単!Q153="","",ROUND(千円単!Q153/1000,0)) -> 1274 | R153: =IF(千円単!R153="","",ROUND(千円単!R153/1000,0)) -> 2150 | S153: =IF(千円単!S153="","",ROUND(千円単!S153/1000,0)) -> 1187 | T153: =IF(千円単!T153="","",ROUND(千円単!T153/1000,0)) -> 135 | U153: =IF(千円単!U153="","",ROUND(千円単!U153/1000,0)) -> 4965 | V153: =IF(千円単!V153="","",ROUND(千円単!V153/1000,0)) -> 2336 | W153: =IF(千円単!W153="","",ROUND(千円単!W153/1000,0)) -> 2628 | X153: =IF(千円単!X153="","",ROUND(千円単!X153/1000,0)) -> -2815 | Y153: =IF(千円単!Y153="","",ROUND(千円単!Y153/1000,0)) -> 1274
A154: 2015 | B154: 46 | C154: 17 | D154: 1 | E154: 153 | F154: 公共 | G154: 231002 | H154: 愛知県 | I154: 名古屋市 | J154: =IF(千円単!J154="","",ROUND(千円単!J154/1000,0)) -> 72849 | K154: =IF(千円単!K154="","",ROUND(千円単!K154/1000,0)) -> 31275 | L154: =IF(千円単!L154="","",ROUND(千円単!L154/1000,0)) -> 35972 | M154: =IF(千円単!M154="","",ROUND(千円単!M154/1000,0)) -> 71042 | N154: =IF(千円単!N154="","",ROUND(千円単!N154/1000,0)) -> 9124 | O154: =IF(千円単!O154="","",ROUND(千円単!O154/1000,0)) -> 35700 | P154: =IF(千円単!P154="","",ROUND(千円単!P154/1000,0)) -> 6506 | Q154: =IF(千円単!Q154="","",ROUND(千円単!Q154/1000,0)) -> 1807 | R154: =IF(千円単!R154="","",ROUND(千円単!R154/1000,0)) -> 31247 | S154: =IF(千円単!S154="","",ROUND(千円単!S154/1000,0)) -> 20387 | T154: =IF(千円単!T154="","",ROUND(千円単!T154/1000,0)) -> 0 | U154: =IF(千円単!U154="","",ROUND(千円単!U154/1000,0)) -> 70415 | V154: =IF(千円単!V154="","",ROUND(千円単!V154/1000,0)) -> 40125 | W154: =IF(千円単!W154="","",ROUND(千円単!W154/1000,0)) -> 30265 | X154: =IF(千円単!X154="","",ROUND(千円単!X154/1000,0)) -> -39168 | Y154: =IF(千円単!Y154="","",ROUND(千円単!Y154/1000,0)) -> 1807
A155: 2015 | B155: 46 | C155: 17 | D155: 1 | E155: 154 | F155: 公共 | G155: 232017 | H155: 愛知県 | I155: 豊橋市 | J155: =IF(千円単!J155="","",ROUND(千円単!J155/1000,0)) -> 7358 | K155: =IF(千円単!K155="","",ROUND(千円単!K155/1000,0)) -> 3611 | L155: =IF(千円単!L155="","",ROUND(千円単!L155/1000,0)) -> 2203 | M155: =IF(千円単!M155="","",ROUND(千円単!M155/1000,0)) -> 7433 | N155: =IF(千円単!N155="","",ROUND(千円単!N155/1000,0)) -> 885 | O155: =IF(千円単!O155="","",ROUND(千円単!O155/1000,0)) -> 3777 | P155: =IF(千円単!P155="","",ROUND(千円単!P155/1000,0)) -> 492 | Q155: =IF(千円単!Q155="","",ROUND(千円単!Q155/1000,0)) -> -75 | R155: =IF(千円単!R155="","",ROUND(千円単!R155/1000,0)) -> 2902 | S155: =IF(千円単!S155="","",ROUND(千円単!S155/1000,0)) -> 1134 | T155: =IF(千円単!T155="","",ROUND(千円単!T155/1000,0)) -> 202 | U155: =IF(千円単!U155="","",ROUND(千円単!U155/1000,0)) -> 5136 | V155: =IF(千円単!V155="","",ROUND(千円単!V155/1000,0)) -> 2299 | W155: =IF(千円単!W155="","",ROUND(千円単!W155/1000,0)) -> 2837 | X155: =IF(千円単!X155="","",ROUND(千円単!X155/1000,0)) -> -2235 | Y155: =IF(千円単!Y155="","",ROUND(千円単!Y155/1000,0)) -> -75
A156: 2015 | B156: 46 | C156: 17 | D156: 1 | E156: 155 | F156: 公共 | G156: 232025 | H156: 愛知県 | I156: 岡崎市 | J156: =IF(千円単!J156="","",ROUND(千円単!J156/1000,0)) -> 8433 | K156: =IF(千円単!K156="","",ROUND(千円単!K156/1000,0)) -> 3693 | L156: =IF(千円単!L156="","",ROUND(千円単!L156/1000,0)) -> 3532 | M156: =IF(千円単!M156="","",ROUND(千円単!M156/1000,0)) -> 7946 | N156: =IF(千円単!N156="","",ROUND(千円単!N156/1000,0)) -> 1508 | O156: =IF(千円単!O156="","",ROUND(千円単!O156/1000,0)) -> 4023 | P156: =IF(千円単!P156="","",ROUND(千円単!P156/1000,0)) -> 216 | Q156: =IF(千円単!Q156="","",ROUND(千円単!Q156/1000,0)) -> 488 | R156: =IF(千円単!R156="","",ROUND(千円単!R156/1000,0)) -> 3500 | S156: =IF(千円単!S156="","",ROUND(千円単!S156/1000,0)) -> 1560 | T156: =IF(千円単!T156="","",ROUND(千円単!T156/1000,0)) -> 128 | U156: =IF(千円単!U156="","",ROUND(千円単!U156/1000,0)) -> 7029 | V156: =IF(千円単!V156="","",ROUND(千円単!V156/1000,0)) -> 3580 | W156: =IF(千円単!W156="","",ROUND(千円単!W156/1000,0)) -> 3445 | X156: =IF(千円単!X156="","",ROUND(千円単!X156/1000,0)) -> -3529 | Y156: =IF(千円単!Y156="","",ROUND(千円単!Y156/1000,0)) -> 488
A157: 2015 | B157: 46 | C157: 17 | D157: 1 | E157: 156 | F157: 公共 | G157: 232033 | H157: 愛知県 | I157: 一宮市 | J157: =IF(千円単!J157="","",ROUND(千円単!J157/1000,0)) -> 8036 | K157: =IF(千円単!K157="","",ROUND(千円単!K157/1000,0)) -> 2329 | L157: =IF(千円単!L157="","",ROUND(千円単!L157/1000,0)) -> 4729 | M157: =IF(千円単!M157="","",ROUND(千円単!M157/1000,0)) -> 7941 | N157: =IF(千円単!N157="","",ROUND(千円単!N157/1000,0)) -> 1640 | O157: =IF(千円単!O157="","",ROUND(千円単!O157/1000,0)) -> 3798 | P157: =IF(千円単!P157="","",ROUND(千円単!P157/1000,0)) -> 457 | Q157: =IF(千円単!Q157="","",ROUND(千円単!Q157/1000,0)) -> 95 | R157: =IF(千円単!R157="","",ROUND(千円単!R157/1000,0)) -> 6258 | S157: =IF(千円単!S157="","",ROUND(千円単!S157/1000,0)) -> 3526 | T157: =IF(千円単!T157="","",ROUND(千円単!T157/1000,0)) -> 373 | U157: =IF(千円単!U157="","",ROUND(千円単!U157/1000,0)) -> 9386 | V157: =IF(千円単!V157="","",ROUND(千円単!V157/1000,0)) -> 5339 | W157: =IF(千円単!W157="","",ROUND(千円単!W157/1000,0)) -> 3746 | X157: =IF(千円単!X157="","",ROUND(千円単!X157/1000,0)) -> -3128 | Y157: =IF(千円単!Y157="","",ROUND(千円単!Y157/1000,0)) -> 95
A158: 2015 | B158: 46 | C158: 17 | D158: 1 | E158: 157 | F158: 公共 | G158: 232084 | H158: 愛知県 | I158: 津島市 | J158: =IF(千円単!J158="","",ROUND(千円単!J158/1000,0)) -> 356 | K158: =IF(千円単!K158="","",ROUND(千円単!K158/1000,0)) -> 164 | L158: =IF(千円単!L158="","",ROUND(千円単!L158/1000,0)) -> 136 | M158: =IF(千円単!M158="","",ROUND(千円単!M158/1000,0)) -> 318 | N158: =IF(千円単!N158="","",ROUND(千円単!N158/1000,0)) -> 24 | O158: =IF(千円単!O158="","",ROUND(千円単!O158/1000,0)) -> 126 | P158: =IF(千円単!P158="","",ROUND(千円単!P158/1000,0)) -> 24 | Q158: =IF(千円単!Q158="","",ROUND(千円単!Q158/1000,0)) -> 38 | R158: =IF(千円単!R158="","",ROUND(千円単!R158/1000,0)) -> 128 | S158: =IF(千円単!S158="","",ROUND(千円単!S158/1000,0)) -> 76 | T158: =IF(千円単!T158="","",ROUND(千円単!T158/1000,0)) -> 20 | U158: =IF(千円単!U158="","",ROUND(千円単!U158/1000,0)) -> 265 | V158: =IF(千円単!V158="","",ROUND(千円単!V158/1000,0)) -> 85 | W158: =IF(千円単!W158="","",ROUND(千円単!W158/1000,0)) -> 180 | X158: =IF(千円単!X158="","",ROUND(千円単!X158/1000,0)) -> -137 | Y158: =IF(千円単!Y158="","",ROUND(千円単!Y158/1000,0)) -> 38
A159: 2015 | B159: 46 | C159: 17 | D159: 1 | E159: 158 | F159: 公共 | G159: 232114 | H159: 愛知県 | I159: 豊田市 | J159: =IF(千円単!J159="","",ROUND(千円単!J159/1000,0)) -> 7205 | K159: =IF(千円単!K159="","",ROUND(千円単!K159/1000,0)) -> 3329 | L159: =IF(千円単!L159="","",ROUND(千円単!L159/1000,0)) -> 2356 | M159: =IF(千円単!M159="","",ROUND(千円単!M159/1000,0)) -> 6938 | N159: =IF(千円単!N159="","",ROUND(千円単!N159/1000,0)) -> 1005 | O159: =IF(千円単!O159="","",ROUND(千円単!O159/1000,0)) -> 4106 | P159: =IF(千円単!P159="","",ROUND(千円単!P159/1000,0)) -> 190 | Q159: =IF(千円単!Q159="","",ROUND(千円単!Q159/1000,0)) -> 267 | R159: =IF(千円単!R159="","",ROUND(千円単!R159/1000,0)) -> 2439 | S159: =IF(千円単!S159="","",ROUND(千円単!S159/1000,0)) -> 1041 | T159: =IF(千円単!T159="","",ROUND(千円単!T159/1000,0)) -> 130 | U159: =IF(千円単!U159="","",ROUND(千円単!U159/1000,0)) -> 5505 | V159: =IF(千円単!V159="","",ROUND(千円単!V159/1000,0)) -> 2983 | W159: =IF(千円単!W159="","",ROUND(千円単!W159/1000,0)) -> 2522 | X159: =IF(千円単!X159="","",ROUND(千円単!X159/1000,0)) -> -3066 | Y159: =IF(千円単!Y159="","",ROUND(千円単!Y159/1000,0)) -> 267
A160: 2015 | B160: 46 | C160: 17 | D160: 1 | E160: 159 | F160: 公共 | G160: 232203 | H160: 愛知県 | I160: 稲沢市 | J160: =IF(千円単!J160="","",ROUND(千円単!J160/1000,0)) -> 1858 | K160: =IF(千円単!K160="","",ROUND(千円単!K160/1000,0)) -> 652 | L160: =IF(千円単!L160="","",ROUND(千円単!L160/1000,0)) -> 959 | M160: =IF(千円単!M160="","",ROUND(千円単!M160/1000,0)) -> 1636 | N160: =IF(千円単!N160="","",ROUND(千円単!N160/1000,0)) -> 351 | O160: =IF(千円単!O160="","",ROUND(千円単!O160/1000,0)) -> 847 | P160: =IF(千円単!P160="","",ROUND(千円単!P160/1000,0)) -> 48 | Q160: =IF(千円単!Q160="","",ROUND(千円単!Q160/1000,0)) -> 222 | R160: =IF(千円単!R160="","",ROUND(千円単!R160/1000,0)) -> 1161 | S160: =IF(千円単!S160="","",ROUND(千円単!S160/1000,0)) -> 544 | T160: =IF(千円単!T160="","",ROUND(千円単!T160/1000,0)) -> 53 | U160: =IF(千円単!U160="","",ROUND(千円単!U160/1000,0)) -> 1937 | V160: =IF(千円単!V160="","",ROUND(千円単!V160/1000,0)) -> 1125 | W160: =IF(千円単!W160="","",ROUND(千円単!W160/1000,0)) -> 812 | X160: =IF(千円単!X160="","",ROUND(千円単!X160/1000,0)) -> -776 | Y160: =IF(千円単!Y160="","",ROUND(千円単!Y160/1000,0)) -> 222
A161: 2015 | B161: 46 | C161: 17 | D161: 1 | E161: 160 | F161: 公共 | G161: 232246 | H161: 愛知県 | I161: 知多市 | J161: =IF(千円単!J161="","",ROUND(千円単!J161/1000,0)) -> 1432 | K161: =IF(千円単!K161="","",ROUND(千円単!K161/1000,0)) -> 735 | L161: =IF(千円単!L161="","",ROUND(千円単!L161/1000,0)) -> 211 | M161: =IF(千円単!M161="","",ROUND(千円単!M161/1000,0)) -> 1617 | N161: =IF(千円単!N161="","",ROUND(千円単!N161/1000,0)) -> 134 | O161: =IF(千円単!O161="","",ROUND(千円単!O161/1000,0)) -> 844 | P161: =IF(千円単!P161="","",ROUND(千円単!P161/1000,0)) -> 60 | Q161: =IF(千円単!Q161="","",ROUND(千円単!Q161/1000,0)) -> -185 | R161: =IF(千円単!R161="","",ROUND(千円単!R161/1000,0)) -> 529 | S161: =IF(千円単!S161="","",ROUND(千円単!S161/1000,0)) -> 51 | T161: =IF(千円単!T161="","",ROUND(千円単!T161/1000,0)) -> 424 | U161: =IF(千円単!U161="","",ROUND(千円単!U161/1000,0)) -> 764 | V161: =IF(千円単!V161="","",ROUND(千円単!V161/1000,0)) -> 231 | W161: =IF(千円単!W161="","",ROUND(千円単!W161/1000,0)) -> 533 | X161: =IF(千円単!X161="","",ROUND(千円単!X161/1000,0)) -> -235 | Y161: =IF(千円単!Y161="","",ROUND(千円単!Y161/1000,0)) -> -185
A162: 2015 | B162: 46 | C162: 17 | D162: 1 | E162: 161 | F162: 公共 | G162: 242012 | H162: 三重県 | I162: 津市 | J162: =IF(千円単!J162="","",ROUND(千円単!J162/1000,0)) -> 7393 | K162: =IF(千円単!K162="","",ROUND(千円単!K162/1000,0)) -> 1214 | L162: =IF(千円単!L162="","",ROUND(千円単!L162/1000,0)) -> 3344 | M162: =IF(千円単!M162="","",ROUND(千円単!M162/1000,0)) -> 8561 | N162: =IF(千円単!N162="","",ROUND(千円単!N162/1000,0)) -> 1208 | O162: =IF(千円単!O162="","",ROUND(千円単!O162/1000,0)) -> 4931 | P162: =IF(千円単!P162="","",ROUND(千円単!P162/1000,0)) -> 249 | Q162: =IF(千円単!Q162="","",ROUND(千円単!Q162/1000,0)) -> -1168 | R162: =IF(千円単!R162="","",ROUND(千円単!R162/1000,0)) -> 4967 | S162: =IF(千円単!S162="","",ROUND(千円単!S162/1000,0)) -> 2381 | T162: =IF(千円単!T162="","",ROUND(千円単!T162/1000,0)) -> 1964 | U162: =IF(千円単!U162="","",ROUND(千円単!U162/1000,0)) -> 6985 | V162: =IF(千円単!V162="","",ROUND(千円単!V162/1000,0)) -> 2916 | W162: =IF(千円単!W162="","",ROUND(千円単!W162/1000,0)) -> 4069 | X162: =IF(千円単!X162="","",ROUND(千円単!X162/1000,0)) -> -2018 | Y162: =IF(千円単!Y162="","",ROUND(千円単!Y162/1000,0)) -> -1168
A163: 2015 | B163: 46 | C163: 17 | D163: 1 | E163: 162 | F163: 公共 | G163: 242021 | H163: 三重県 | I163: 四日市市 | J163: =IF(千円単!J163="","",ROUND(千円単!J163/1000,0)) -> 14282 | K163: =IF(千円単!K163="","",ROUND(千円単!K163/1000,0)) -> 3660 | L163: =IF(千円単!L163="","",ROUND(千円単!L163/1000,0)) -> 6394 | M163: =IF(千円単!M163="","",ROUND(千円単!M163/1000,0)) -> 12941 | N163: =IF(千円単!N163="","",ROUND(千円単!N163/1000,0)) -> 1870 | O163: =IF(千円単!O163="","",ROUND(千円単!O163/1000,0)) -> 7572 | P163: =IF(千円単!P163="","",ROUND(千円単!P163/1000,0)) -> 368 | Q163: =IF(千円単!Q163="","",ROUND(千円単!Q163/1000,0)) -> 1341 | R163: =IF(千円単!R163="","",ROUND(千円単!R163/1000,0)) -> 6283 | S163: =IF(千円単!S163="","",ROUND(千円単!S163/1000,0)) -> 3558 | T163: =IF(千円単!T163="","",ROUND(千円単!T163/1000,0)) -> 239 | U163: =IF(千円単!U163="","",ROUND(千円単!U163/1000,0)) -> 12284 | V163: =IF(千円単!V163="","",ROUND(千円単!V163/1000,0)) -> 6968 | W163: =IF(千円単!W163="","",ROUND(千円単!W163/1000,0)) -> 5316 | X163: =IF(千円単!X163="","",ROUND(千円単!X163/1000,0)) -> -6001 | Y163: =IF(千円単!Y163="","",ROUND(千円単!Y163/1000,0)) -> 1341
A164: 2015 | B164: 46 | C164: 17 | D164: 1 | E164: 163 | F164: 公共 | G164: 242039 | H164: 三重県 | I164: 伊勢市 | J164: =IF(千円単!J164="","",ROUND(千円単!J164/1000,0)) -> 3018 | K164: =IF(千円単!K164="","",ROUND(千円単!K164/1000,0)) -> 794 | L164: =IF(千円単!L164="","",ROUND(千円単!L164/1000,0)) -> 1397 | M164: =IF(千円単!M164="","",ROUND(千円単!M164/1000,0)) -> 2951 | N164: =IF(千円単!N164="","",ROUND(千円単!N164/1000,0)) -> 550 | O164: =IF(千円単!O164="","",ROUND(千円単!O164/1000,0)) -> 1469 | P164: =IF(千円単!P164="","",ROUND(千円単!P164/1000,0)) -> 161 | Q164: =IF(千円単!Q164="","",ROUND(千円単!Q164/1000,0)) -> 67 | R164: =IF(千円単!R164="","",ROUND(千円単!R164/1000,0)) -> 2776 | S164: =IF(千円単!S164="","",ROUND(千円単!S164/1000,0)) -> 1306 | T164: =IF(千円単!T164="","",ROUND(千円単!T164/1000,0)) -> 247 | U164: =IF(千円単!U164="","",ROUND(千円単!U164/1000,0)) -> 3721 | V164: =IF(千円単!V164="","",ROUND(千円単!V164/1000,0)) -> 2715 | W164: =IF(千円単!W164="","",ROUND(千円単!W164/1000,0)) -> 1005 | X164: =IF(千円単!X164="","",ROUND(千円単!X164/1000,0)) -> -945 | Y164: =IF(千円単!Y164="","",ROUND(千円単!Y164/1000,0)) -> 67
A165: 2015 | B165: 46 | C165: 17 | D165: 1 | E165: 164 | F165: 公共 | G165: 242047 | H165: 三重県 | I165: 松阪市 | J165: =IF(千円単!J165="","",ROUND(千円単!J165/1000,0)) -> 3896 | K165: =IF(千円単!K165="","",ROUND(千円単!K165/1000,0)) -> 1278 | L165: =IF(千円単!L165="","",ROUND(千円単!L165/1000,0)) -> 1815 | M165: =IF(千円単!M165="","",ROUND(千円単!M165/1000,0)) -> 3970 | N165: =IF(千円単!N165="","",ROUND(千円単!N165/1000,0)) -> 898 | O165: =IF(千円単!O165="","",ROUND(千円単!O165/1000,0)) -> 2052 | P165: =IF(千円単!P165="","",ROUND(千円単!P165/1000,0)) -> 109 | Q165: =IF(千円単!Q165="","",ROUND(千円単!Q165/1000,0)) -> -74 | R165: =IF(千円単!R165="","",ROUND(千円単!R165/1000,0)) -> 3697 | S165: =IF(千円単!S165="","",ROUND(千円単!S165/1000,0)) -> 1563 | T165: =IF(千円単!T165="","",ROUND(千円単!T165/1000,0)) -> 913 | U165: =IF(千円単!U165="","",ROUND(千円単!U165/1000,0)) -> 5023 | V165: =IF(千円単!V165="","",ROUND(千円単!V165/1000,0)) -> 2915 | W165: =IF(千円単!W165="","",ROUND(千円単!W165/1000,0)) -> 2106 | X165: =IF(千円単!X165="","",ROUND(千円単!X165/1000,0)) -> -1327 | Y165: =IF(千円単!Y165="","",ROUND(千円単!Y165/1000,0)) -> -74
A166: 2015 | B166: 46 | C166: 17 | D166: 1 | E166: 165 | F166: 公共 | G166: 242055 | H166: 三重県 | I166: 桑名市 | J166: =IF(千円単!J166="","",ROUND(千円単!J166/1000,0)) -> 5038 | K166: =IF(千円単!K166="","",ROUND(千円単!K166/1000,0)) -> 1731 | L166: =IF(千円単!L166="","",ROUND(千円単!L166/1000,0)) -> 1418 | M166: =IF(千円単!M166="","",ROUND(千円単!M166/1000,0)) -> 4822 | N166: =IF(千円単!N166="","",ROUND(千円単!N166/1000,0)) -> 725 | O166: =IF(千円単!O166="","",ROUND(千円単!O166/1000,0)) -> 2884 | P166: =IF(千円単!P166="","",ROUND(千円単!P166/1000,0)) -> 108 | Q166: =IF(千円単!Q166="","",ROUND(千円単!Q166/1000,0)) -> 216 | R166: =IF(千円単!R166="","",ROUND(千円単!R166/1000,0)) -> 1582 | S166: =IF(千円単!S166="","",ROUND(千円単!S166/1000,0)) -> 926 | T166: =IF(千円単!T166="","",ROUND(千円単!T166/1000,0)) -> 402 | U166: =IF(千円単!U166="","",ROUND(千円単!U166/1000,0)) -> 2926 | V166: =IF(千円単!V166="","",ROUND(千円単!V166/1000,0)) -> 632 | W166: =IF(千円単!W166="","",ROUND(千円単!W166/1000,0)) -> 2293 | X166: =IF(千円単!X166="","",ROUND(千円単!X166/1000,0)) -> -1343 | Y166: =IF(千円単!Y166="","",ROUND(千円単!Y166/1000,0)) -> 216
A167: 2015 | B167: 46 | C167: 17 | D167: 1 | E167: 166 | F167: 公共 | G167: 242071 | H167: 三重県 | I167: 鈴鹿市 | J167: =IF(千円単!J167="","",ROUND(千円単!J167/1000,0)) -> 4521 | K167: =IF(千円単!K167="","",ROUND(千円単!K167/1000,0)) -> 1338 | L167: =IF(千円単!L167="","",ROUND(千円単!L167/1000,0)) -> 1933 | M167: =IF(千円単!M167="","",ROUND(千円単!M167/1000,0)) -> 4182 | N167: =IF(千円単!N167="","",ROUND(千円単!N167/1000,0)) -> 865 | O167: =IF(千円単!O167="","",ROUND(千円単!O167/1000,0)) -> 2152 | P167: =IF(千円単!P167="","",ROUND(千円単!P167/1000,0)) -> 142 | Q167: =IF(千円単!Q167="","",ROUND(千円単!Q167/1000,0)) -> 338 | R167: =IF(千円単!R167="","",ROUND(千円単!R167/1000,0)) -> 4082 | S167: =IF(千円単!S167="","",ROUND(千円単!S167/1000,0)) -> 1644 | T167: =IF(千円単!T167="","",ROUND(千円単!T167/1000,0)) -> 908 | U167: =IF(千円単!U167="","",ROUND(千円単!U167/1000,0)) -> 5512 | V167: =IF(千円単!V167="","",ROUND(千円単!V167/1000,0)) -> 3370 | W167: =IF(千円単!W167="","",ROUND(千円単!W167/1000,0)) -> 2141 | X167: =IF(千円単!X167="","",ROUND(千円単!X167/1000,0)) -> -1430 | Y167: =IF(千円単!Y167="","",ROUND(千円単!Y167/1000,0)) -> 338
A168: 2015 | B168: 46 | C168: 17 | D168: 1 | E168: 167 | F168: 公共 | G168: 242101 | H168: 三重県 | I168: 亀山市 | J168: =IF(千円単!J168="","",ROUND(千円単!J168/1000,0)) -> 923 | K168: =IF(千円単!K168="","",ROUND(千円単!K168/1000,0)) -> 380 | L168: =IF(千円単!L168="","",ROUND(千円単!L168/1000,0)) -> 329 | M168: =IF(千円単!M168="","",ROUND(千円単!M168/1000,0)) -> 901 | N168: =IF(千円単!N168="","",ROUND(千円単!N168/1000,0)) -> 153 | O168: =IF(千円単!O168="","",ROUND(千円単!O168/1000,0)) -> 381 | P168: =IF(千円単!P168="","",ROUND(千円単!P168/1000,0)) -> 83 | Q168: =IF(千円単!Q168="","",ROUND(千円単!Q168/1000,0)) -> 22 | R168: =IF(千円単!R168="","",ROUND(千円単!R168/1000,0)) -> 1317 | S168: =IF(千円単!S168="","",ROUND(千円単!S168/1000,0)) -> 515 | T168: =IF(千円単!T168="","",ROUND(千円単!T168/1000,0)) -> 169 | U168: =IF(千円単!U168="","",ROUND(千円単!U168/1000,0)) -> 1308 | V168: =IF(千円単!V168="","",ROUND(千円単!V168/1000,0)) -> 972 | W168: =IF(千円単!W168="","",ROUND(千円単!W168/1000,0)) -> 336 | X168: =IF(千円単!X168="","",ROUND(千円単!X168/1000,0)) -> 9 | Y168: =IF(千円単!Y168="","",ROUND(千円単!Y168/1000,0)) -> 22
A169: 2015 | B169: 46 | C169: 17 | D169: 1 | E169: 168 | F169: 公共 | G169: 244619 | H169: 三重県 | I169: 玉城町 | J169: =IF(千円単!J169="","",ROUND(千円単!J169/1000,0)) -> 396 | K169: =IF(千円単!K169="","",ROUND(千円単!K169/1000,0)) -> 89 | L169: =IF(千円単!L169="","",ROUND(千円単!L169/1000,0)) -> 173 | M169: =IF(千円単!M169="","",ROUND(千円単!M169/1000,0)) -> 506 | N169: =IF(千円単!N169="","",ROUND(千円単!N169/1000,0)) -> 101 | O169: =IF(千円単!O169="","",ROUND(千円単!O169/1000,0)) -> 252 | P169: =IF(千円単!P169="","",ROUND(千円単!P169/1000,0)) -> 0 | Q169: =IF(千円単!Q169="","",ROUND(千円単!Q169/1000,0)) -> -111 | R169: =IF(千円単!R169="","",ROUND(千円単!R169/1000,0)) -> 719 | S169: =IF(千円単!S169="","",ROUND(千円単!S169/1000,0)) -> 246 | T169: =IF(千円単!T169="","",ROUND(千円単!T169/1000,0)) -> 170 | U169: =IF(千円単!U169="","",ROUND(千円単!U169/1000,0)) -> 719 | V169: =IF(千円単!V169="","",ROUND(千円単!V169/1000,0)) -> 540 | W169: =IF(千円単!W169="","",ROUND(千円単!W169/1000,0)) -> 179 | X169: =IF(千円単!X169="","",ROUND(千円単!X169/1000,0)) -> 0 | Y169: =IF(千円単!Y169="","",ROUND(千円単!Y169/1000,0)) -> -111
A170: 2015 | B170: 46 | C170: 17 | D170: 1 | E170: 169 | F170: 公共 | G170: 252018 | H170: 滋賀県 | I170: 大津市 | J170: =IF(千円単!J170="","",ROUND(千円単!J170/1000,0)) -> 11204 | K170: =IF(千円単!K170="","",ROUND(千円単!K170/1000,0)) -> 6720 | L170: =IF(千円単!L170="","",ROUND(千円単!L170/1000,0)) -> 2310 | M170: =IF(千円単!M170="","",ROUND(千円単!M170/1000,0)) -> 9115 | N170: =IF(千円単!N170="","",ROUND(千円単!N170/1000,0)) -> 1254 | O170: =IF(千円単!O170="","",ROUND(千円単!O170/1000,0)) -> 4593 | P170: =IF(千円単!P170="","",ROUND(千円単!P170/1000,0)) -> 488 | Q170: =IF(千円単!Q170="","",ROUND(千円単!Q170/1000,0)) -> 2090 | R170: =IF(千円単!R170="","",ROUND(千円単!R170/1000,0)) -> 3651 | S170: =IF(千円単!S170="","",ROUND(千円単!S170/1000,0)) -> 899 | T170: =IF(千円単!T170="","",ROUND(千円単!T170/1000,0)) -> 772 | U170: =IF(千円単!U170="","",ROUND(千円単!U170/1000,0)) -> 6669 | V170: =IF(千円単!V170="","",ROUND(千円単!V170/1000,0)) -> 2032 | W170: =IF(千円単!W170="","",ROUND(千円単!W170/1000,0)) -> 4637 | X170: =IF(千円単!X170="","",ROUND(千円単!X170/1000,0)) -> -3017 | Y170: =IF(千円単!Y170="","",ROUND(千円単!Y170/1000,0)) -> 2090
A171: 2015 | B171: 46 | C171: 17 | D171: 1 | E171: 170 | F171: 公共 | G171: 252069 | H171: 滋賀県 | I171: 草津市 | J171: =IF(千円単!J171="","",ROUND(千円単!J171/1000,0)) -> 2900 | K171: =IF(千円単!K171="","",ROUND(千円単!K171/1000,0)) -> 1709 | L171: =IF(千円単!L171="","",ROUND(千円単!L171/1000,0)) -> 539 | M171: =IF(千円単!M171="","",ROUND(千円単!M171/1000,0)) -> 2659 | N171: =IF(千円単!N171="","",ROUND(千円単!N171/1000,0)) -> 378 | O171: =IF(千円単!O171="","",ROUND(千円単!O171/1000,0)) -> 1310 | P171: =IF(千円単!P171="","",ROUND(千円単!P171/1000,0)) -> 84 | Q171: =IF(千円単!Q171="","",ROUND(千円単!Q171/1000,0)) -> 240 | R171: =IF(千円単!R171="","",ROUND(千円単!R171/1000,0)) -> 1259 | S171: =IF(千円単!S171="","",ROUND(千円単!S171/1000,0)) -> 488 | T171: =IF(千円単!T171="","",ROUND(千円単!T171/1000,0)) -> 577 | U171: =IF(千円単!U171="","",ROUND(千円単!U171/1000,0)) -> 2061 | V171: =IF(千円単!V171="","",ROUND(千円単!V171/1000,0)) -> 431 | W171: =IF(千円単!W171="","",ROUND(千円単!W171/1000,0)) -> 1630 | X171: =IF(千円単!X171="","",ROUND(千円単!X171/1000,0)) -> -802 | Y171: =IF(千円単!Y171="","",ROUND(千円単!Y171/1000,0)) -> 240
A172: 2015 | B172: 46 | C172: 17 | D172: 1 | E172: 171 | F172: 公共 | G172: 252085 | H172: 滋賀県 | I172: 栗東市 | J172: =IF(千円単!J172="","",ROUND(千円単!J172/1000,0)) -> 1669 | K172: =IF(千円単!K172="","",ROUND(千円単!K172/1000,0)) -> 969 | L172: =IF(千円単!L172="","",ROUND(千円単!L172/1000,0)) -> 442 | M172: =IF(千円単!M172="","",ROUND(千円単!M172/1000,0)) -> 1596 | N172: =IF(千円単!N172="","",ROUND(千円単!N172/1000,0)) -> 320 | O172: =IF(千円単!O172="","",ROUND(千円単!O172/1000,0)) -> 740 | P172: =IF(千円単!P172="","",ROUND(千円単!P172/1000,0)) -> 31 | Q172: =IF(千円単!Q172="","",ROUND(千円単!Q172/1000,0)) -> 73 | R172: =IF(千円単!R172="","",ROUND(千円単!R172/1000,0)) -> 1326 | S172: =IF(千円単!S172="","",ROUND(千円単!S172/1000,0)) -> 1021 | T172: =IF(千円単!T172="","",ROUND(千円単!T172/1000,0)) -> 0 | U172: =IF(千円単!U172="","",ROUND(千円単!U172/1000,0)) -> 1901 | V172: =IF(千円単!V172="","",ROUND(千円単!V172/1000,0)) -> 724 | W172: =IF(千円単!W172="","",ROUND(千円単!W172/1000,0)) -> 1177 | X172: =IF(千円単!X172="","",ROUND(千円単!X172/1000,0)) -> -576 | Y172: =IF(千円単!Y172="","",ROUND(千円単!Y172/1000,0)) -> 73
A173: 2015 | B173: 46 | C173: 17 | D173: 1 | E173: 172 | F173: 公共 | G173: 261009 | H173: 京都府 | I173: 京都市 | J173: =IF(千円単!J173="","",ROUND(千円単!J173/1000,0)) -> 51125 | K173: =IF(千円単!K173="","",ROUND(千円単!K173/1000,0)) -> 22139 | L173: =IF(千円単!L173="","",ROUND(千円単!L173/1000,0)) -> 20392 | M173: =IF(千円単!M173="","",ROUND(千円単!M173/1000,0)) -> 46393 | N173: =IF(千円単!N173="","",ROUND(千円単!N173/1000,0)) -> 6340 | O173: =IF(千円単!O173="","",ROUND(千円単!O173/1000,0)) -> 26581 | P173: =IF(千円単!P173="","",ROUND(千円単!P173/1000,0)) -> 3762 | Q173: =IF(千円単!Q173="","",ROUND(千円単!Q173/1000,0)) -> 4732 | R173: =IF(千円単!R173="","",ROUND(千円単!R173/1000,0)) -> 22060 | S173: =IF(千円単!S173="","",ROUND(千円単!S173/1000,0)) -> 14988 | T173: =IF(千円単!T173="","",ROUND(千円単!T173/1000,0)) -> 2284 | U173: =IF(千円単!U173="","",ROUND(千円単!U173/1000,0)) -> 46198 | V173: =IF(千円単!V173="","",ROUND(千円単!V173/1000,0)) -> 20082 | W173: =IF(千円単!W173="","",ROUND(千円単!W173/1000,0)) -> 26115 | X173: =IF(千円単!X173="","",ROUND(千円単!X173/1000,0)) -> -24138 | Y173: =IF(千円単!Y173="","",ROUND(千円単!Y173/1000,0)) -> 4732
A174: 2015 | B174: 46 | C174: 17 | D174: 1 | E174: 173 | F174: 公共 | G174: 262013 | H174: 京都府 | I174: 福知山市 | J174: =IF(千円単!J174="","",ROUND(千円単!J174/1000,0)) -> 2830 | K174: =IF(千円単!K174="","",ROUND(千円単!K174/1000,0)) -> 1330 | L174: =IF(千円単!L174="","",ROUND(千円単!L174/1000,0)) -> 575 | M174: =IF(千円単!M174="","",ROUND(千円単!M174/1000,0)) -> 2941 | N174: =IF(千円単!N174="","",ROUND(千円単!N174/1000,0)) -> 294 | O174: =IF(千円単!O174="","",ROUND(千円単!O174/1000,0)) -> 1654 | P174: =IF(千円単!P174="","",ROUND(千円単!P174/1000,0)) -> 55 | Q174: =IF(千円単!Q174="","",ROUND(千円単!Q174/1000,0)) -> -111 | R174: =IF(千円単!R174="","",ROUND(千円単!R174/1000,0)) -> 2972 | S174: =IF(千円単!S174="","",ROUND(千円単!S174/1000,0)) -> 1147 | T174: =IF(千円単!T174="","",ROUND(千円単!T174/1000,0)) -> 137 | U174: =IF(千円単!U174="","",ROUND(千円単!U174/1000,0)) -> 3909 | V174: =IF(千円単!V174="","",ROUND(千円単!V174/1000,0)) -> 2963 | W174: =IF(千円単!W174="","",ROUND(千円単!W174/1000,0)) -> 946 | X174: =IF(千円単!X174="","",ROUND(千円単!X174/1000,0)) -> -937 | Y174: =IF(千円単!Y174="","",ROUND(千円単!Y174/1000,0)) -> -111
A175: 2015 | B175: 46 | C175: 17 | D175: 1 | E175: 174 | F175: 公共 | G175: 262048 | H175: 京都府 | I175: 宇治市 | J175: =IF(千円単!J175="","",ROUND(千円単!J175/1000,0)) -> 4965 | K175: =IF(千円単!K175="","",ROUND(千円単!K175/1000,0)) -> 2490 | L175: =IF(千円単!L175="","",ROUND(千円単!L175/1000,0)) -> 834 | M175: =IF(千円単!M175="","",ROUND(千円単!M175/1000,0)) -> 5112 | N175: =IF(千円単!N175="","",ROUND(千円単!N175/1000,0)) -> 856 | O175: =IF(千円単!O175="","",ROUND(千円単!O175/1000,0)) -> 3012 | P175: =IF(千円単!P175="","",ROUND(千円単!P175/1000,0)) -> 190 | Q175: =IF(千円単!Q175="","",ROUND(千円単!Q175/1000,0)) -> -146 | R175: =IF(千円単!R175="","",ROUND(千円単!R175/1000,0)) -> 4546 | S175: =IF(千円単!S175="","",ROUND(千円単!S175/1000,0)) -> 2438 | T175: =IF(千円単!T175="","",ROUND(千円単!T175/1000,0)) -> 368 | U175: =IF(千円単!U175="","",ROUND(千円単!U175/1000,0)) -> 6239 | V175: =IF(千円単!V175="","",ROUND(千円単!V175/1000,0)) -> 3869 | W175: =IF(千円単!W175="","",ROUND(千円単!W175/1000,0)) -> 2370 | X175: =IF(千円単!X175="","",ROUND(千円単!X175/1000,0)) -> -1693 | Y175: =IF(千円単!Y175="","",ROUND(千円単!Y175/1000,0)) -> -146
A176: 2015 | B176: 46 | C176: 17 | D176: 1 | E176: 175 | F176: 公共 | G176: 262064 | H176: 京都府 | I176: 亀岡市 | J176: =IF(千円単!J176="","",ROUND(千円単!J176/1000,0)) -> 2207 | K176: =IF(千円単!K176="","",ROUND(千円単!K176/1000,0)) -> 1541 | L176: =IF(千円単!L176="","",ROUND(千円単!L176/1000,0)) -> 174 | M176: =IF(千円単!M176="","",ROUND(千円単!M176/1000,0)) -> 2104 | N176: =IF(千円単!N176="","",ROUND(千円単!N176/1000,0)) -> 377 | O176: =IF(千円単!O176="","",ROUND(千円単!O176/1000,0)) -> 1082 | P176: =IF(千円単!P176="","",ROUND(千円単!P176/1000,0)) -> 90 | Q176: =IF(千円単!Q176="","",ROUND(千円単!Q176/1000,0)) -> 103 | R176: =IF(千円単!R176="","",ROUND(千円単!R176/1000,0)) -> 913 | S176: =IF(千円単!S176="","",ROUND(千円単!S176/1000,0)) -> 167 | T176: =IF(千円単!T176="","",ROUND(千円単!T176/1000,0)) -> 521 | U176: =IF(千円単!U176="","",ROUND(千円単!U176/1000,0)) -> 1600 | V176: =IF(千円単!V176="","",ROUND(千円単!V176/1000,0)) -> 420 | W176: =IF(千円単!W176="","",ROUND(千円単!W176/1000,0)) -> 1180 | X176: =IF(千円単!X176="","",ROUND(千円単!X176/1000,0)) -> -687 | Y176: =IF(千円単!Y176="","",ROUND(千円単!Y176/1000,0)) -> 103
A177: 2015 | B177: 46 | C177: 17 | D177: 1 | E177: 176 | F177: 公共 | G177: 262072 | H177: 京都府 | I177: 城陽市 | J177: =IF(千円単!J177="","",ROUND(千円単!J177/1000,0)) -> 1982 | K177: =IF(千円単!K177="","",ROUND(千円単!K177/1000,0)) -> 1252 | L177: =IF(千円単!L177="","",ROUND(千円単!L177/1000,0)) -> 329 | M177: =IF(千円単!M177="","",ROUND(千円単!M177/1000,0)) -> 1894 | N177: =IF(千円単!N177="","",ROUND(千円単!N177/1000,0)) -> 479 | O177: =IF(千円単!O177="","",ROUND(千円単!O177/1000,0)) -> 870 | P177: =IF(千円単!P177="","",ROUND(千円単!P177/1000,0)) -> 27 | Q177: =IF(千円単!Q177="","",ROUND(千円単!Q177/1000,0)) -> 87 | R177: =IF(千円単!R177="","",ROUND(千円単!R177/1000,0)) -> 1584 | S177: =IF(千円単!S177="","",ROUND(千円単!S177/1000,0)) -> 1188 | T177: =IF(千円単!T177="","",ROUND(千円単!T177/1000,0)) -> 271 | U177: =IF(千円単!U177="","",ROUND(千円単!U177/1000,0)) -> 2078 | V177: =IF(千円単!V177="","",ROUND(千円単!V177/1000,0)) -> 86 | W177: =IF(千円単!W177="","",ROUND(千円単!W177/1000,0)) -> 1907 | X177: =IF(千円単!X177="","",ROUND(千円単!X177/1000,0)) -> -494 | Y177: =IF(千円単!Y177="","",ROUND(千円単!Y177/1000,0)) -> 87
A178: 2015 | B178: 46 | C178: 17 | D178: 1 | E178: 177 | F178: 公共 | G178: 262102 | H178: 京都府 | I178: 八幡市 | J178: =IF(千円単!J178="","",ROUND(千円単!J178/1000,0)) -> 1636 | K178: =IF(千円単!K178="","",ROUND(千円単!K178/1000,0)) -> 1014 | L178: =IF(千円単!L178="","",ROUND(千円単!L178/1000,0)) -> 197 | M178: =IF(千円単!M178="","",ROUND(千円単!M178/1000,0)) -> 1627 | N178: =IF(千円単!N178="","",ROUND(千円単!N178/1000,0)) -> 176 | O178: =IF(千円単!O178="","",ROUND(千円単!O178/1000,0)) -> 798 | P178: =IF(千円単!P178="","",ROUND(千円単!P178/1000,0)) -> 44 | Q178: =IF(千円単!Q178="","",ROUND(千円単!Q178/1000,0)) -> 9 | R178: =IF(千円単!R178="","",ROUND(千円単!R178/1000,0)) -> 387 | S178: =IF(千円単!S178="","",ROUND(千円単!S178/1000,0)) -> 132 | T178: =IF(千円単!T178="","",ROUND(千円単!T178/1000,0)) -> 48 | U178: =IF(千円単!U178="","",ROUND(千円単!U178/1000,0)) -> 743 | V178: =IF(千円単!V178="","",ROUND(千円単!V178/1000,0)) -> 188 | W178: =IF(千円単!W178="","",ROUND(千円単!W178/1000,0)) -> 554 | X178: =IF(千円単!X178="","",ROUND(千円単!X178/1000,0)) -> -356 | Y178: =IF(千円単!Y178="","",ROUND(千円単!Y178/1000,0)) -> 9
A179: 2015 | B179: 46 | C179: 17 | D179: 1 | E179: 178 | F179: 公共 | G179: 271004 | H179: 大阪府 | I179: 大阪市 | J179: =IF(千円単!J179="","",ROUND(千円単!J179/1000,0)) -> 82447 | K179: =IF(千円単!K179="","",ROUND(千円単!K179/1000,0)) -> 38368 | L179: =IF(千円単!L179="","",ROUND(千円単!L179/1000,0)) -> 26887 | M179: =IF(千円単!M179="","",ROUND(千円単!M179/1000,0)) -> 79346 | N179: =IF(千円単!N179="","",ROUND(千円単!N179/1000,0)) -> 8243 | O179: =IF(千円単!O179="","",ROUND(千円単!O179/1000,0)) -> 41040 | P179: =IF(千円単!P179="","",ROUND(千円単!P179/1000,0)) -> 3295 | Q179: =IF(千円単!Q179="","",ROUND(千円単!Q179/1000,0)) -> 3101 | R179: =IF(千円単!R179="","",ROUND(千円単!R179/1000,0)) -> 51175 | S179: =IF(千円単!S179="","",ROUND(千円単!S179/1000,0)) -> 30291 | T179: =IF(千円単!T179="","",ROUND(千円単!T179/1000,0)) -> 4122 | U179: =IF(千円単!U179="","",ROUND(千円単!U179/1000,0)) -> 82375 | V179: =IF(千円単!V179="","",ROUND(千円単!V179/1000,0)) -> 38920 | W179: =IF(千円単!W179="","",ROUND(千円単!W179/1000,0)) -> 43455 | X179: =IF(千円単!X179="","",ROUND(千円単!X179/1000,0)) -> -31200 | Y179: =IF(千円単!Y179="","",ROUND(千円単!Y179/1000,0)) -> 3101
A180: 2015 | B180: 46 | C180: 17 | D180: 1 | E180: 179 | F180: 公共 | G180: 271403 | H180: 大阪府 | I180: 堺市 | J180: =IF(千円単!J180="","",ROUND(千円単!J180/1000,0)) -> 29477 | K180: =IF(千円単!K180="","",ROUND(千円単!K180/1000,0)) -> 14842 | L180: =IF(千円単!L180="","",ROUND(千円単!L180/1000,0)) -> 8016 | M180: =IF(千円単!M180="","",ROUND(千円単!M180/1000,0)) -> 29140 | N180: =IF(千円単!N180="","",ROUND(千円単!N180/1000,0)) -> 5757 | O180: =IF(千円単!O180="","",ROUND(千円単!O180/1000,0)) -> 14817 | P180: =IF(千円単!P180="","",ROUND(千円単!P180/1000,0)) -> 1949 | Q180: =IF(千円単!Q180="","",ROUND(千円単!Q180/1000,0)) -> 337 | R180: =IF(千円単!R180="","",ROUND(千円単!R180/1000,0)) -> 18393 | S180: =IF(千円単!S180="","",ROUND(千円単!S180/1000,0)) -> 12077 | T180: =IF(千円単!T180="","",ROUND(千円単!T180/1000,0)) -> 686 | U180: =IF(千円単!U180="","",ROUND(千円単!U180/1000,0)) -> 28564 | V180: =IF(千円単!V180="","",ROUND(千円単!V180/1000,0)) -> 12872 | W180: =IF(千円単!W180="","",ROUND(千円単!W180/1000,0)) -> 15691 | X180: =IF(千円単!X180="","",ROUND(千円単!X180/1000,0)) -> -10172 | Y180: =IF(千円単!Y180="","",ROUND(千円単!Y180/1000,0)) -> 337
A181: 2015 | B181: 46 | C181: 17 | D181: 1 | E181: 180 | F181: 公共 | G181: 272027 | H181: 大阪府 | I181: 岸和田市 | J181: =IF(千円単!J181="","",ROUND(千円単!J181/1000,0)) -> 7303 | K181: =IF(千円単!K181="","",ROUND(千円単!K181/1000,0)) -> 3505 | L181: =IF(千円単!L181="","",ROUND(千円単!L181/1000,0)) -> 2287 | M181: =IF(千円単!M181="","",ROUND(千円単!M181/1000,0)) -> 6829 | N181: =IF(千円単!N181="","",ROUND(千円単!N181/1000,0)) -> 1345 | O181: =IF(千円単!O181="","",ROUND(千円単!O181/1000,0)) -> 3853 | P181: =IF(千円単!P181="","",ROUND(千円単!P181/1000,0)) -> 229 | Q181: =IF(千円単!Q181="","",ROUND(千円単!Q181/1000,0)) -> 474 | R181: =IF(千円単!R181="","",ROUND(千円単!R181/1000,0)) -> 3748 | S181: =IF(千円単!S181="","",ROUND(千円単!S181/1000,0)) -> 2655 | T181: =IF(千円単!T181="","",ROUND(千円単!T181/1000,0)) -> 45 | U181: =IF(千円単!U181="","",ROUND(千円単!U181/1000,0)) -> 6659 | V181: =IF(千円単!V181="","",ROUND(千円単!V181/1000,0)) -> 1290 | W181: =IF(千円単!W181="","",ROUND(千円単!W181/1000,0)) -> 5369 | X181: =IF(千円単!X181="","",ROUND(千円単!X181/1000,0)) -> -2911 | Y181: =IF(千円単!Y181="","",ROUND(千円単!Y181/1000,0)) -> 474
A182: 2015 | B182: 46 | C182: 17 | D182: 1 | E182: 181 | F182: 公共 | G182: 272035 | H182: 大阪府 | I182: 豊中市 | J182: =IF(千円単!J182="","",ROUND(千円単!J182/1000,0)) -> 9849 | K182: =IF(千円単!K182="","",ROUND(千円単!K182/1000,0)) -> 3769 | L182: =IF(千円単!L182="","",ROUND(千円単!L182/1000,0)) -> 2679 | M182: =IF(千円単!M182="","",ROUND(千円単!M182/1000,0)) -> 8949 | N182: =IF(千円単!N182="","",ROUND(千円単!N182/1000,0)) -> 610 | O182: =IF(千円単!O182="","",ROUND(千円単!O182/1000,0)) -> 4056 | P182: =IF(千円単!P182="","",ROUND(千円単!P182/1000,0)) -> 627 | Q182: =IF(千円単!Q182="","",ROUND(千円単!Q182/1000,0)) -> 900 | R182: =IF(千円単!R182="","",ROUND(千円単!R182/1000,0)) -> 1729 | S182: =IF(千円単!S182="","",ROUND(千円単!S182/1000,0)) -> 1236 | T182: =IF(千円単!T182="","",ROUND(千円単!T182/1000,0)) -> 149 | U182: =IF(千円単!U182="","",ROUND(千円単!U182/1000,0)) -> 4629 | V182: =IF(千円単!V182="","",ROUND(千円単!V182/1000,0)) -> 2361 | W182: =IF(千円単!W182="","",ROUND(千円単!W182/1000,0)) -> 2268 | X182: =IF(千円単!X182="","",ROUND(千円単!X182/1000,0)) -> -2900 | Y182: =IF(千円単!Y182="","",ROUND(千円単!Y182/1000,0)) -> 900
A183: 2015 | B183: 46 | C183: 17 | D183: 1 | E183: 182 | F183: 公共 | G183: 272043 | H183: 大阪府 | I183: 池田市 | J183: =IF(千円単!J183="","",ROUND(千円単!J183/1000,0)) -> 2926 | K183: =IF(千円単!K183="","",ROUND(千円単!K183/1000,0)) -> 913 | L183: =IF(千円単!L183="","",ROUND(千円単!L183/1000,0)) -> 705 | M183: =IF(千円単!M183="","",ROUND(千円単!M183/1000,0)) -> 2924 | N183: =IF(千円単!N183="","",ROUND(千円単!N183/1000,0)) -> 151 | O183: =IF(千円単!O183="","",ROUND(千円単!O183/1000,0)) -> 1837 | P183: =IF(千円単!P183="","",ROUND(千円単!P183/1000,0)) -> 212 | Q183: =IF(千円単!Q183="","",ROUND(千円単!Q183/1000,0)) -> 2 | R183: =IF(千円単!R183="","",ROUND(千円単!R183/1000,0)) -> 485 | S183: =IF(千円単!S183="","",ROUND(千円単!S183/1000,0)) -> 250 | T183: =IF(千円単!T183="","",ROUND(千円単!T183/1000,0)) -> 0 | U183: =IF(千円単!U183="","",ROUND(千円単!U183/1000,0)) -> 918 | V183: =IF(千円単!V183="","",ROUND(千円単!V183/1000,0)) -> 556 | W183: =IF(千円単!W183="","",ROUND(千円単!W183/1000,0)) -> 362 | X183: =IF(千円単!X183="","",ROUND(千円単!X183/1000,0)) -> -432 | Y183: =IF(千円単!Y183="","",ROUND(千円単!Y183/1000,0)) -> 2
A184: 2015 | B184: 46 | C184: 17 | D184: 1 | E184: 183 | F184: 公共 | G184: 272094 | H184: 大阪府 | I184: 守口市 | J184: =IF(千円単!J184="","",ROUND(千円単!J184/1000,0)) -> 4200 | K184: =IF(千円単!K184="","",ROUND(千円単!K184/1000,0)) -> 2228 | L184: =IF(千円単!L184="","",ROUND(千円単!L184/1000,0)) -> 1301 | M184: =IF(千円単!M184="","",ROUND(千円単!M184/1000,0)) -> 3479 | N184: =IF(千円単!N184="","",ROUND(千円単!N184/1000,0)) -> 363 | O184: =IF(千円単!O184="","",ROUND(千円単!O184/1000,0)) -> 1594 | P184: =IF(千円単!P184="","",ROUND(千円単!P184/1000,0)) -> 296 | Q184: =IF(千円単!Q184="","",ROUND(千円単!Q184/1000,0)) -> 721 | R184: =IF(千円単!R184="","",ROUND(千円単!R184/1000,0)) -> 1067 | S184: =IF(千円単!S184="","",ROUND(千円単!S184/1000,0)) -> 790 | T184: =IF(千円単!T184="","",ROUND(千円単!T184/1000,0)) -> 114 | U184: =IF(千円単!U184="","",ROUND(千円単!U184/1000,0)) -> 2589 | V184: =IF(千円単!V184="","",ROUND(千円単!V184/1000,0)) -> 1287 | W184: =IF(千円単!W184="","",ROUND(千円単!W184/1000,0)) -> 1302 | X184: =IF(千円単!X184="","",ROUND(千円単!X184/1000,0)) -> -1522 | Y184: =IF(千円単!Y184="","",ROUND(千円単!Y184/1000,0)) -> 721
A185: 2015 | B185: 46 | C185: 17 | D185: 1 | E185: 184 | F185: 公共 | G185: 272108 | H185: 大阪府 | I185: 枚方市 | J185: =IF(千円単!J185="","",ROUND(千円単!J185/1000,0)) -> 13160 | K185: =IF(千円単!K185="","",ROUND(千円単!K185/1000,0)) -> 5766 | L185: =IF(千円単!L185="","",ROUND(千円単!L185/1000,0)) -> 3939 | M185: =IF(千円単!M185="","",ROUND(千円単!M185/1000,0)) -> 10458 | N185: =IF(千円単!N185="","",ROUND(千円単!N185/1000,0)) -> 1765 | O185: =IF(千円単!O185="","",ROUND(千円単!O185/1000,0)) -> 5852 | P185: =IF(千円単!P185="","",ROUND(千円単!P185/1000,0)) -> 568 | Q185: =IF(千円単!Q185="","",ROUND(千円単!Q185/1000,0)) -> 2702 | R185: =IF(千円単!R185="","",ROUND(千円単!R185/1000,0)) -> 4067 | S185: =IF(千円単!S185="","",ROUND(千円単!S185/1000,0)) -> 1940 | T185: =IF(千円単!T185="","",ROUND(千円単!T185/1000,0)) -> 1359 | U185: =IF(千円単!U185="","",ROUND(千円単!U185/1000,0)) -> 9059 | V185: =IF(千円単!V185="","",ROUND(千円単!V185/1000,0)) -> 3121 | W185: =IF(千円単!W185="","",ROUND(千円単!W185/1000,0)) -> 5875 | X185: =IF(千円単!X185="","",ROUND(千円単!X185/1000,0)) -> -4992 | Y185: =IF(千円単!Y185="","",ROUND(千円単!Y185/1000,0)) -> 2702
A186: 2015 | B186: 46 | C186: 17 | D186: 1 | E186: 185 | F186: 公共 | G186: 272116 | H186: 大阪府 | I186: 茨木市 | J186: =IF(千円単!J186="","",ROUND(千円単!J186/1000,0)) -> 6884 | K186: =IF(千円単!K186="","",ROUND(千円単!K186/1000,0)) -> 3383 | L186: =IF(千円単!L186="","",ROUND(千円単!L186/1000,0)) -> 1682 | M186: =IF(千円単!M186="","",ROUND(千円単!M186/1000,0)) -> 6119 | N186: =IF(千円単!N186="","",ROUND(千円単!N186/1000,0)) -> 1070 | O186: =IF(千円単!O186="","",ROUND(千円単!O186/1000,0)) -> 2999 | P186: =IF(千円単!P186="","",ROUND(千円単!P186/1000,0)) -> 126 | Q186: =IF(千円単!Q186="","",ROUND(千円単!Q186/1000,0)) -> 765 | R186: =IF(千円単!R186="","",ROUND(千円単!R186/1000,0)) -> 2274 | S186: =IF(千円単!S186="","",ROUND(千円単!S186/1000,0)) -> 1353 | T186: =IF(千円単!T186="","",ROUND(千円単!T186/1000,0)) -> 716 | U186: =IF(千円単!U186="","",ROUND(千円単!U186/1000,0)) -> 4427 | V186: =IF(千円単!V186="","",ROUND(千円単!V186/1000,0)) -> 1349 | W186: =IF(千円単!W186="","",ROUND(千円単!W186/1000,0)) -> 3078 | X186: =IF(千円単!X186="","",ROUND(千円単!X186/1000,0)) -> -2153 | Y186: =IF(千円単!Y186="","",ROUND(千円単!Y186/1000,0)) -> 765
A187: 2015 | B187: 46 | C187: 17 | D187: 1 | E187: 186 | F187: 公共 | G187: 272124 | H187: 大阪府 | I187: 八尾市 | J187: =IF(千円単!J187="","",ROUND(千円単!J187/1000,0)) -> 9778 | K187: =IF(千円単!K187="","",ROUND(千円単!K187/1000,0)) -> 3317 | L187: =IF(千円単!L187="","",ROUND(千円単!L187/1000,0)) -> 4683 | M187: =IF(千円単!M187="","",ROUND(千円単!M187/1000,0)) -> 9246 | N187: =IF(千円単!N187="","",ROUND(千円単!N187/1000,0)) -> 2022 | O187: =IF(千円単!O187="","",ROUND(千円単!O187/1000,0)) -> 5396 | P187: =IF(千円単!P187="","",ROUND(千円単!P187/1000,0)) -> 156 | Q187: =IF(千円単!Q187="","",ROUND(千円単!Q187/1000,0)) -> 532 | R187: =IF(千円単!R187="","",ROUND(千円単!R187/1000,0)) -> 6012 | S187: =IF(千円単!S187="","",ROUND(千円単!S187/1000,0)) -> 3946 | T187: =IF(千円単!T187="","",ROUND(千円単!T187/1000,0)) -> 1027 | U187: =IF(千円単!U187="","",ROUND(千円単!U187/1000,0)) -> 10001 | V187: =IF(千円単!V187="","",ROUND(千円単!V187/1000,0)) -> 4676 | W187: =IF(千円単!W187="","",ROUND(千円単!W187/1000,0)) -> 5324 | X187: =IF(千円単!X187="","",ROUND(千円単!X187/1000,0)) -> -3988 | Y187: =IF(千円単!Y187="","",ROUND(千円単!Y187/1000,0)) -> 532
A188: 2015 | B188: 46 | C188: 17 | D188: 1 | E188: 187 | F188: 公共 | G188: 272159 | H188: 大阪府 | I188: 寝屋川市 | J188: =IF(千円単!J188="","",ROUND(千円単!J188/1000,0)) -> 5708 | K188: =IF(千円単!K188="","",ROUND(千円単!K188/1000,0)) -> 3303 | L188: =IF(千円単!L188="","",ROUND(千円単!L188/1000,0)) -> 1630 | M188: =IF(千円単!M188="","",ROUND(千円単!M188/1000,0)) -> 5588 | N188: =IF(千円単!N188="","",ROUND(千円単!N188/1000,0)) -> 1354 | O188: =IF(千円単!O188="","",ROUND(千円単!O188/1000,0)) -> 2816 | P188: =IF(千円単!P188="","",ROUND(千円単!P188/1000,0)) -> 146 | Q188: =IF(千円単!Q188="","",ROUND(千円単!Q188/1000,0)) -> 120 | R188: =IF(千円単!R188="","",ROUND(千円単!R188/1000,0)) -> 3016 | S188: =IF(千円単!S188="","",ROUND(千円単!S188/1000,0)) -> 2220 | T188: =IF(千円単!T188="","",ROUND(千円単!T188/1000,0)) -> 498 | U188: =IF(千円単!U188="","",ROUND(千円単!U188/1000,0)) -> 5118 | V188: =IF(千円単!V188="","",ROUND(千円単!V188/1000,0)) -> 941 | W188: =IF(千円単!W188="","",ROUND(千円単!W188/1000,0)) -> 4172 | X188: =IF(千円単!X188="","",ROUND(千円単!X188/1000,0)) -> -2102 | Y188: =IF(千円単!Y188="","",ROUND(千円単!Y188/1000,0)) -> 120
A189: 2015 | B189: 46 | C189: 17 | D189: 1 | E189: 188 | F189: 公共 | G189: 272183 | H189: 大阪府 | I189: 大東市 | J189: =IF(千円単!J189="","",ROUND(千円単!J189/1000,0)) -> 3461 | K189: =IF(千円単!K189="","",ROUND(千円単!K189/1000,0)) -> 1258 | L189: =IF(千円単!L189="","",ROUND(千円単!L189/1000,0)) -> 1623 | M189: =IF(千円単!M189="","",ROUND(千円単!M189/1000,0)) -> 3612 | N189: =IF(千円単!N189="","",ROUND(千円単!N189/1000,0)) -> 769 | O189: =IF(千円単!O189="","",ROUND(千円単!O189/1000,0)) -> 1979 | P189: =IF(千円単!P189="","",ROUND(千円単!P189/1000,0)) -> 90 | Q189: =IF(千円単!Q189="","",ROUND(千円単!Q189/1000,0)) -> -151 | R189: =IF(千円単!R189="","",ROUND(千円単!R189/1000,0)) -> 825 | S189: =IF(千円単!S189="","",ROUND(千円単!S189/1000,0)) -> 520 | T189: =IF(千円単!T189="","",ROUND(千円単!T189/1000,0)) -> 92 | U189: =IF(千円単!U189="","",ROUND(千円単!U189/1000,0)) -> 2410 | V189: =IF(千円単!V189="","",ROUND(千円単!V189/1000,0)) -> 234 | W189: =IF(千円単!W189="","",ROUND(千円単!W189/1000,0)) -> 2176 | X189: =IF(千円単!X189="","",ROUND(千円単!X189/1000,0)) -> -1584 | Y189: =IF(千円単!Y189="","",ROUND(千円単!Y189/1000,0)) -> -151
A190: 2015 | B190: 46 | C190: 17 | D190: 1 | E190: 189 | F190: 公共 | G190: 272191 | H190: 大阪府 | I190: 和泉市 | J190: =IF(千円単!J190="","",ROUND(千円単!J190/1000,0)) -> 3812 | K190: =IF(千円単!K190="","",ROUND(千円単!K190/1000,0)) -> 1895 | L190: =IF(千円単!L190="","",ROUND(千円単!L190/1000,0)) -> 568 | M190: =IF(千円単!M190="","",ROUND(千円単!M190/1000,0)) -> 3720 | N190: =IF(千円単!N190="","",ROUND(千円単!N190/1000,0)) -> 582 | O190: =IF(千円単!O190="","",ROUND(千円単!O190/1000,0)) -> 2228 | P190: =IF(千円単!P190="","",ROUND(千円単!P190/1000,0)) -> 71 | Q190: =IF(千円単!Q190="","",ROUND(千円単!Q190/1000,0)) -> 93 | R190: =IF(千円単!R190="","",ROUND(千円単!R190/1000,0)) -> 1513 | S190: =IF(千円単!S190="","",ROUND(千円単!S190/1000,0)) -> 1138 | T190: =IF(千円単!T190="","",ROUND(千円単!T190/1000,0)) -> 0 | U190: =IF(千円単!U190="","",ROUND(千円単!U190/1000,0)) -> 2552 | V190: =IF(千円単!V190="","",ROUND(千円単!V190/1000,0)) -> 693 | W190: =IF(千円単!W190="","",ROUND(千円単!W190/1000,0)) -> 1859 | X190: =IF(千円単!X190="","",ROUND(千円単!X190/1000,0)) -> -1040 | Y190: =IF(千円単!Y190="","",ROUND(千円単!Y190/1000,0)) -> 93
A191: 2015 | B191: 46 | C191: 17 | D191: 1 | E191: 190 | F191: 公共 | G191: 272205 | H191: 大阪府 | I191: 箕面市 | J191: =IF(千円単!J191="","",ROUND(千円単!J191/1000,0)) -> 2520 | K191: =IF(千円単!K191="","",ROUND(千円単!K191/1000,0)) -> 1529 | L191: =IF(千円単!L191="","",ROUND(千円単!L191/1000,0)) -> 205 | M191: =IF(千円単!M191="","",ROUND(千円単!M191/1000,0)) -> 2285 | N191: =IF(千円単!N191="","",ROUND(千円単!N191/1000,0)) -> 128 | O191: =IF(千円単!O191="","",ROUND(千円単!O191/1000,0)) -> 1306 | P191: =IF(千円単!P191="","",ROUND(千円単!P191/1000,0)) -> 79 | Q191: =IF(千円単!Q191="","",ROUND(千円単!Q191/1000,0)) -> 235 | R191: =IF(千円単!R191="","",ROUND(千円単!R191/1000,0)) -> 280 | S191: =IF(千円単!S191="","",ROUND(千円単!S191/1000,0)) -> 77 | T191: =IF(千円単!T191="","",ROUND(千円単!T191/1000,0)) -> 114 | U191: =IF(千円単!U191="","",ROUND(千円単!U191/1000,0)) -> 743 | V191: =IF(千円単!V191="","",ROUND(千円単!V191/1000,0)) -> 328 | W191: =IF(千円単!W191="","",ROUND(千円単!W191/1000,0)) -> 415 | X191: =IF(千円単!X191="","",ROUND(千円単!X191/1000,0)) -> -463 | Y191: =IF(千円単!Y191="","",ROUND(千円単!Y191/1000,0)) -> 235
A192: 2015 | B192: 46 | C192: 17 | D192: 1 | E192: 191 | F192: 公共 | G192: 272213 | H192: 大阪府 | I192: 柏原市 | J192: =IF(千円単!J192="","",ROUND(千円単!J192/1000,0)) -> 2199 | K192: =IF(千円単!K192="","",ROUND(千円単!K192/1000,0)) -> 1056 | L192: =IF(千円単!L192="","",ROUND(千円単!L192/1000,0)) -> 583 | M192: =IF(千円単!M192="","",ROUND(千円単!M192/1000,0)) -> 2179 | N192: =IF(千円単!N192="","",ROUND(千円単!N192/1000,0)) -> 423 | O192: =IF(千円単!O192="","",ROUND(千円単!O192/1000,0)) -> 1230 | P192: =IF(千円単!P192="","",ROUND(千円単!P192/1000,0)) -> 96 | Q192: =IF(千円単!Q192="","",ROUND(千円単!Q192/1000,0)) -> 20 | R192: =IF(千円単!R192="","",ROUND(千円単!R192/1000,0)) -> 1351 | S192: =IF(千円単!S192="","",ROUND(千円単!S192/1000,0)) -> 973 | T192: =IF(千円単!T192="","",ROUND(千円単!T192/1000,0)) -> 270 | U192: =IF(千円単!U192="","",ROUND(千円単!U192/1000,0)) -> 2076 | V192: =IF(千円単!V192="","",ROUND(千円単!V192/1000,0)) -> 598 | W192: =IF(千円単!W192="","",ROUND(千円単!W192/1000,0)) -> 1477 | X192: =IF(千円単!X192="","",ROUND(千円単!X192/1000,0)) -> -725 | Y192: =IF(千円単!Y192="","",ROUND(千円単!Y192/1000,0)) -> 20
A193: 2015 | B193: 46 | C193: 17 | D193: 1 | E193: 192 | F193: 公共 | G193: 272272 | H193: 大阪府 | I193: 東大阪市 | J193: =IF(千円単!J193="","",ROUND(千円単!J193/1000,0)) -> 17301 | K193: =IF(千円単!K193="","",ROUND(千円単!K193/1000,0)) -> 6671 | L193: =IF(千円単!L193="","",ROUND(千円単!L193/1000,0)) -> 8067 | M193: =IF(千円単!M193="","",ROUND(千円単!M193/1000,0)) -> 16624 | N193: =IF(千円単!N193="","",ROUND(千円単!N193/1000,0)) -> 3293 | O193: =IF(千円単!O193="","",ROUND(千円単!O193/1000,0)) -> 7971 | P193: =IF(千円単!P193="","",ROUND(千円単!P193/1000,0)) -> 511 | Q193: =IF(千円単!Q193="","",ROUND(千円単!Q193/1000,0)) -> 676 | R193: =IF(千円単!R193="","",ROUND(千円単!R193/1000,0)) -> 7111 | S193: =IF(千円単!S193="","",ROUND(千円単!S193/1000,0)) -> 4928 | T193: =IF(千円単!T193="","",ROUND(千円単!T193/1000,0)) -> 0 | U193: =IF(千円単!U193="","",ROUND(千円単!U193/1000,0)) -> 13269 | V193: =IF(千円単!V193="","",ROUND(千円単!V193/1000,0)) -> 2948 | W193: =IF(千円単!W193="","",ROUND(千円単!W193/1000,0)) -> 10321 | X193: =IF(千円単!X193="","",ROUND(千円単!X193/1000,0)) -> -6158 | Y193: =IF(千円単!Y193="","",ROUND(千円単!Y193/1000,0)) -> 676
A194: 2015 | B194: 46 | C194: 17 | D194: 1 | E194: 193 | F194: 公共 | G194: 272299 | H194: 大阪府 | I194: 四條畷市 | J194: =IF(千円単!J194="","",ROUND(千円単!J194/1000,0)) -> 1880 | K194: =IF(千円単!K194="","",ROUND(千円単!K194/1000,0)) -> 639 | L194: =IF(千円単!L194="","",ROUND(千円単!L194/1000,0)) -> 791 | M194: =IF(千円単!M194="","",ROUND(千円単!M194/1000,0)) -> 1776 | N194: =IF(千円単!N194="","",ROUND(千円単!N194/1000,0)) -> 339 | O194: =IF(千円単!O194="","",ROUND(千円単!O194/1000,0)) -> 983 | P194: =IF(千円単!P194="","",ROUND(千円単!P194/1000,0)) -> 49 | Q194: =IF(千円単!Q194="","",ROUND(千円単!Q194/1000,0)) -> 104 | R194: =IF(千円単!R194="","",ROUND(千円単!R194/1000,0)) -> 717 | S194: =IF(千円単!S194="","",ROUND(千円単!S194/1000,0)) -> 585 | T194: =IF(千円単!T194="","",ROUND(千円単!T194/1000,0)) -> 0 | U194: =IF(千円単!U194="","",ROUND(千円単!U194/1000,0)) -> 1373 | V194: =IF(千円単!V194="","",ROUND(千円単!V194/1000,0)) -> 191 | W194: =IF(千円単!W194="","",ROUND(千円単!W194/1000,0)) -> 1182 | X194: =IF(千円単!X194="","",ROUND(千円単!X194/1000,0)) -> -656 | Y194: =IF(千円単!Y194="","",ROUND(千円単!Y194/1000,0)) -> 104
A195: 2015 | B195: 46 | C195: 17 | D195: 1 | E195: 194 | F195: 公共 | G195: 281000 | H195: 兵庫県 | I195: 神戸市 | J195: =IF(千円単!J195="","",ROUND(千円単!J195/1000,0)) -> 34432 | K195: =IF(千円単!K195="","",ROUND(千円単!K195/1000,0)) -> 18774 | L195: =IF(千円単!L195="","",ROUND(千円単!L195/1000,0)) -> 4348 | M195: =IF(千円単!M195="","",ROUND(千円単!M195/1000,0)) -> 33263 | N195: =IF(千円単!N195="","",ROUND(千円単!N195/1000,0)) -> 3090 | O195: =IF(千円単!O195="","",ROUND(千円単!O195/1000,0)) -> 21353 | P195: =IF(千円単!P195="","",ROUND(千円単!P195/1000,0)) -> 2475 | Q195: =IF(千円単!Q195="","",ROUND(千円単!Q195/1000,0)) -> 1169 | R195: =IF(千円単!R195="","",ROUND(千円単!R195/1000,0)) -> 11702 | S195: =IF(千円単!S195="","",ROUND(千円単!S195/1000,0)) -> 5239 | T195: =IF(千円単!T195="","",ROUND(千円単!T195/1000,0)) -> 541 | U195: =IF(千円単!U195="","",ROUND(千円単!U195/1000,0)) -> 24011 | V195: =IF(千円単!V195="","",ROUND(千円単!V195/1000,0)) -> 13688 | W195: =IF(千円単!W195="","",ROUND(千円単!W195/1000,0)) -> 8308 | X195: =IF(千円単!X195="","",ROUND(千円単!X195/1000,0)) -> -12309 | Y195: =IF(千円単!Y195="","",ROUND(千円単!Y195/1000,0)) -> 1169
A196: 2015 | B196: 46 | C196: 17 | D196: 1 | E196: 195 | F196: 公共 | G196: 282014 | H196: 兵庫県 | I196: 姫路市 | J196: =IF(千円単!J196="","",ROUND(千円単!J196/1000,0)) -> 17833 | K196: =IF(千円単!K196="","",ROUND(千円単!K196/1000,0)) -> 7808 | L196: =IF(千円単!L196="","",ROUND(千円単!L196/1000,0)) -> 6245 | M196: =IF(千円単!M196="","",ROUND(千円単!M196/1000,0)) -> 17833 | N196: =IF(千円単!N196="","",ROUND(千円単!N196/1000,0)) -> 3067 | O196: =IF(千円単!O196="","",ROUND(千円単!O196/1000,0)) -> 9253 | P196: =IF(千円単!P196="","",ROUND(千円単!P196/1000,0)) -> 607 | Q196: =IF(千円単!Q196="","",ROUND(千円単!Q196/1000,0)) -> 0 | R196: =IF(千円単!R196="","",ROUND(千円単!R196/1000,0)) -> 6646 | S196: =IF(千円単!S196="","",ROUND(千円単!S196/1000,0)) -> 1553 | T196: =IF(千円単!T196="","",ROUND(千円単!T196/1000,0)) -> 0 | U196: =IF(千円単!U196="","",ROUND(千円単!U196/1000,0)) -> 12503 | V196: =IF(千円単!V196="","",ROUND(千円単!V196/1000,0)) -> 3213 | W196: =IF(千円単!W196="","",ROUND(千円単!W196/1000,0)) -> 9288 | X196: =IF(千円単!X196="","",ROUND(千円単!X196/1000,0)) -> -5857 | Y196: =IF(千円単!Y196="","",ROUND(千円単!Y196/1000,0)) -> 0
A197: 2015 | B197: 46 | C197: 17 | D197: 1 | E197: 196 | F197: 公共 | G197: 282022 | H197: 兵庫県 | I197: 尼崎市 | J197: =IF(千円単!J197="","",ROUND(千円単!J197/1000,0)) -> 12447 | K197: =IF(千円単!K197="","",ROUND(千円単!K197/1000,0)) -> 5764 | L197: =IF(千円単!L197="","",ROUND(千円単!L197/1000,0)) -> 4151 | M197: =IF(千円単!M197="","",ROUND(千円単!M197/1000,0)) -> 10894 | N197: =IF(千円単!N197="","",ROUND(千円単!N197/1000,0)) -> 956 | O197: =IF(千円単!O197="","",ROUND(千円単!O197/1000,0)) -> 5882 | P197: =IF(千円単!P197="","",ROUND(千円単!P197/1000,0)) -> 777 | Q197: =IF(千円単!Q197="","",ROUND(千円単!Q197/1000,0)) -> 1553 | R197: =IF(千円単!R197="","",ROUND(千円単!R197/1000,0)) -> 5039 | S197: =IF(千円単!S197="","",ROUND(千円単!S197/1000,0)) -> 2131 | T197: =IF(千円単!T197="","",ROUND(千円単!T197/1000,0)) -> 628 | U197: =IF(千円単!U197="","",ROUND(千円単!U197/1000,0)) -> 8749 | V197: =IF(千円単!V197="","",ROUND(千円単!V197/1000,0)) -> 4703 | W197: =IF(千円単!W197="","",ROUND(千円単!W197/1000,0)) -> 4046 | X197: =IF(千円単!X197="","",ROUND(千円単!X197/1000,0)) -> -3710 | Y197: =IF(千円単!Y197="","",ROUND(千円単!Y197/1000,0)) -> 1553
A198: 2015 | B198: 46 | C198: 17 | D198: 1 | E198: 197 | F198: 公共 | G198: 282049 | H198: 兵庫県 | I198: 西宮市 | J198: =IF(千円単!J198="","",ROUND(千円単!J198/1000,0)) -> 12267 | K198: =IF(千円単!K198="","",ROUND(千円単!K198/1000,0)) -> 5490 | L198: =IF(千円単!L198="","",ROUND(千円単!L198/1000,0)) -> 4161 | M198: =IF(千円単!M198="","",ROUND(千円単!M198/1000,0)) -> 11243 | N198: =IF(千円単!N198="","",ROUND(千円単!N198/1000,0)) -> 1659 | O198: =IF(千円単!O198="","",ROUND(千円単!O198/1000,0)) -> 5990 | P198: =IF(千円単!P198="","",ROUND(千円単!P198/1000,0)) -> 480 | Q198: =IF(千円単!Q198="","",ROUND(千円単!Q198/1000,0)) -> 1024 | R198: =IF(千円単!R198="","",ROUND(千円単!R198/1000,0)) -> 6603 | S198: =IF(千円単!S198="","",ROUND(千円単!S198/1000,0)) -> 3548 | T198: =IF(千円単!T198="","",ROUND(千円単!T198/1000,0)) -> 731 | U198: =IF(千円単!U198="","",ROUND(千円単!U198/1000,0)) -> 11585 | V198: =IF(千円単!V198="","",ROUND(千円単!V198/1000,0)) -> 4885 | W198: =IF(千円単!W198="","",ROUND(千円単!W198/1000,0)) -> 6699 | X198: =IF(千円単!X198="","",ROUND(千円単!X198/1000,0)) -> -4982 | Y198: =IF(千円単!Y198="","",ROUND(千円単!Y198/1000,0)) -> 1024
A199: 2015 | B199: 46 | C199: 17 | D199: 1 | E199: 198 | F199: 公共 | G199: 282073 | H199: 兵庫県 | I199: 伊丹市 | J199: =IF(千円単!J199="","",ROUND(千円単!J199/1000,0)) -> 4868 | K199: =IF(千円単!K199="","",ROUND(千円単!K199/1000,0)) -> 2466 | L199: =IF(千円単!L199="","",ROUND(千円単!L199/1000,0)) -> 1764 | M199: =IF(千円単!M199="","",ROUND(千円単!M199/1000,0)) -> 4511 | N199: =IF(千円単!N199="","",ROUND(千円単!N199/1000,0)) -> 845 | O199: =IF(千円単!O199="","",ROUND(千円単!O199/1000,0)) -> 2326 | P199: =IF(千円単!P199="","",ROUND(千円単!P199/1000,0)) -> 164 | Q199: =IF(千円単!Q199="","",ROUND(千円単!Q199/1000,0)) -> 358 | R199: =IF(千円単!R199="","",ROUND(千円単!R199/1000,0)) -> 2148 | S199: =IF(千円単!S199="","",ROUND(千円単!S199/1000,0)) -> 1645 | T199: =IF(千円単!T199="","",ROUND(千円単!T199/1000,0)) -> 279 | U199: =IF(千円単!U199="","",ROUND(千円単!U199/1000,0)) -> 4300 | V199: =IF(千円単!V199="","",ROUND(千円単!V199/1000,0)) -> 418 | W199: =IF(千円単!W199="","",ROUND(千円単!W199/1000,0)) -> 3694 | X199: =IF(千円単!X199="","",ROUND(千円単!X199/1000,0)) -> -2152 | Y199: =IF(千円単!Y199="","",ROUND(千円単!Y199/1000,0)) -> 358
A200: 2015 | B200: 46 | C200: 17 | D200: 1 | E200: 199 | F200: 公共 | G200: 282090 | H200: 兵庫県 | I200: 豊岡市 | J200: =IF(千円単!J200="","",ROUND(千円単!J200/1000,0)) -> 2947 | K200: =IF(千円単!K200="","",ROUND(千円単!K200/1000,0)) -> 876 | L200: =IF(千円単!L200="","",ROUND(千円単!L200/1000,0)) -> 901 | M200: =IF(千円単!M200="","",ROUND(千円単!M200/1000,0)) -> 2734 | N200: =IF(千円単!N200="","",ROUND(千円単!N200/1000,0)) -> 476 | O200: =IF(千円単!O200="","",ROUND(千円単!O200/1000,0)) -> 1595 | P200: =IF(千円単!P200="","",ROUND(千円単!P200/1000,0)) -> 55 | Q200: =IF(千円単!Q200="","",ROUND(千円単!Q200/1000,0)) -> 213 | R200: =IF(千円単!R200="","",ROUND(千円単!R200/1000,0)) -> 1921 | S200: =IF(千円単!S200="","",ROUND(千円単!S200/1000,0)) -> 1128 | T200: =IF(千円単!T200="","",ROUND(千円単!T200/1000,0)) -> 319 | U200: =IF(千円単!U200="","",ROUND(千円単!U200/1000,0)) -> 2554 | V200: =IF(千円単!V200="","",ROUND(千円単!V200/1000,0)) -> 968 | W200: =IF(千円単!W200="","",ROUND(千円単!W200/1000,0)) -> 1585 | X200: =IF(千円単!X200="","",ROUND(千円単!X200/1000,0)) -> -633 | Y200: =IF(千円単!Y200="","",ROUND(千円単!Y200/1000,0)) -> 213
... 3532 more rows

Sheet 26収支
A1: 決算年度 | B1: 業務コード | C1: 業種コード | D1: 事業コード | E1: 並び順 | F1: 事業区分 | G1: 団体コード | H1: 都道府県 | I1: 団体名 | J1: 収入 | K1: 料金収入 | L1: 繰入金 | M1: 支出 | N1: 支払利息 | O1: 減価償却費 | P1: 職員給与費 | Q1: 収支差引 | R1: 収入 | S1: 地方債 | T1: 繰入金 | U1: 支出 | V1: 建設改良費 | W1: 元金償還金 | X1: 収支差引 | Y1: 収支再差引
A2: 2014 | B2: 46 | C2: 17 | D2: 1 | E2: 1 | F2: 公共 | G2: 011002 | H2: 北海道 | I2: 札幌市 | J2: 51825 | K2: 19307 | L2: 20342 | M2: 51657 | N2: 6057 | O2: 24719 | P2: 3088 | Q2: 168 | R2: 16153 | S2: 10385 | T2: 732 | U2: 33745 | V2: 16135 | W2: 17596 | X2: -17592 | Y2: 168
A3: 2014 | B3: 46 | C3: 17 | D3: 1 | E3: 2 | F3: 公共 | G3: 012025 | H3: 北海道 | I3: 函館市 | J3: 7478 | K3: 4302 | L3: 1193 | M3: 7028 | N3: 1237 | O3: 3356 | P3: 385 | Q3: 450 | R3: 2694 | S3: 1944 | T3: 395 | U3: 5028 | V3: 1217 | W3: 3798 | X3: -2334 | Y3: 450
A4: 2014 | B4: 46 | C4: 17 | D4: 1 | E4: 3 | F4: 公共 | G4: 012033 | H4: 北海道 | I4: 小樽市 | J4: 3991 | K4: 1918 | L4: 1037 | M4: 3852 | N4: 393 | O4: 1958 | P4: 130 | Q4: 139 | R4: 2110 | S4: 950 | T4: 316 | U4: 3815 | V4: 1453 | W4: 2358 | X4: -1704 | Y4: 139
A5: 2014 | B5: 46 | C5: 17 | D5: 1 | E5: 4 | F5: 公共 | G5: 012041 | H5: 北海道 | I5: 旭川市 | J5: 9041 | K5: 5363 | L5: 1067 | M5: 9202 | N5: 962 | O5: 4819 | P5: 396 | Q5: -161 | R5: 2490 | S5: 1625 | T5: 312 | U5: 5261 | V5: 1365 | W5: 3896 | X5: -2771 | Y5: -161
A6: 2014 | B6: 46 | C6: 17 | D6: 1 | E6: 5 | F6: 公共 | G6: 012050 | H6: 北海道 | I6: 室蘭市 | J6: 3191 | K6: 1508 | L6: 891 | M6: 2728 | N6: 310 | O6: 1391 | P6: 99 | Q6: 464 | R6: 784 | S6: 361 | T6: 58 | U6: 1473 | V6: 758 | W6: 711 | X6: -688 | Y6: 464
A7: 2014 | B7: 46 | C7: 17 | D7: 1 | E7: 6 | F7: 公共 | G7: 012068 | H7: 北海道 | I7: 釧路市 | J7: 6808 | K7: 3653 | L7: 1530 | M7: 5617 | N7: 699 | O7: 2821 | P7: 278 | Q7: 1191 | R7: 1763 | S7: 1121 | T7: 95 | U7: 3952 | V7: 1358 | W7: 2593 | X7: -2189 | Y7: 1191
A8: 2014 | B8: 46 | C8: 17 | D8: 1 | E8: 7 | F8: 公共 | G8: 012076 | H8: 北海道 | I8: 帯広市 | J8: 4666 | K8: 2681 | L8: 822 | M8: 4303 | N8: 666 | O8: 2206 | P8: 115 | Q8: 363 | R8: 1624 | S8: 981 | T8: 173 | U8: 3343 | V8: 1246 | W8: 2097 | X8: -1719 | Y8: 363
A9: 2014 | B9: 46 | C9: 17 | D9: 1 | E9: 8 | F9: 公共 | G9: 012084 | H9: 北海道 | I9: 北見市 | J9: 4402 | K9: 1739 | L9: 1112 | M9: 4130 | N9: 680 | O9: 2494 | P9: 177 | Q9: 272 | R9: 2630 | S9: 1583 | T9: 370 | U9: 3713 | V9: 1476 | W9: 2236 | X9: -1083 | Y9: 272
A10: 2014 | B10: 46 | C10: 17 | D10: 1 | E10: 9 | F10: 公共 | G10: 012106 | H10: 北海道 | I10: 岩見沢市 | J10: 2616 | K10: 1256 | L10: 604 | M10: 2196 | N10: 383 | O10: 1161 | P10: 32 | Q10: 421 | R10: 973 | S10: 299 | T10: 370 | U10: 1888 | V10: 678 | W10: 1209 | X10: -914 | Y10: 421
A11: 2014 | B11: 46 | C11: 17 | D11: 1 | E11: 10 | F11: 公共 | G11: 012131 | H11: 北海道 | I11: 苫小牧市 | J11: 5178 | K11: 2330 | L11: 1160 | M11: 5074 | N11: 678 | O11: 2612 | P11: 140 | Q11: 104 | R11: 2169 | S11: 1251 | T11: 227 | U11: 3912 | V11: 1902 | W11: 2008 | X11: -1743 | Y11: 104
A12: 2014 | B12: 46 | C12: 17 | D12: 1 | E12: 11 | F12: 公共 | G12: 012149 | H12: 北海道 | I12: 稚内市 | J12: 1144 | K12: 483 | L12: 398 | M12: 1122 | N12: 191 | O12: 598 | P12: 16 | Q12: 22 | R12: 549 | S12: 308 | T12: 0 | U12: 949 | V12: 355 | W12: 594 | X12: -400 | Y12: 22
A13: 2014 | B13: 46 | C13: 17 | D13: 1 | E13: 12 | F13: 公共 | G13: 012173 | H13: 北海道 | I13: 江別市 | J13: 3575 | K13: 1249 | L13: 1019 | M13: 3376 | N13: 393 | O13: 1955 | P13: 125 | Q13: 199 | R13: 1182 | S13: 396 | T13: 61 | U13: 2234 | V13: 1078 | W13: 1153 | X13: -1052 | Y13: 199
A14: 2014 | B14: 46 | C14: 17 | D14: 1 | E14: 13 | F14: 公共 | G14: 012190 | H14: 北海道 | I14: 紋別市 | J14: 1237 | K14: 377 | L14: 543 | M14: 1169 | N14: 177 | O14: 653 | P14: 34 | Q14: 68 | R14: 625 | S14: 421 | T14: 57 | U14: 1086 | V14: 393 | W14: 693 | X14: -461 | Y14: 68
A15: 2014 | B15: 46 | C15: 17 | D15: 1 | E15: 14 | F15: 公共 | G15: 012220 | H15: 北海道 | I15: 三笠市 | J15: 662 | K15: 203 | L15: 282 | M15: 637 | N15: 103 | O15: 369 | P15: 18 | Q15: 26 | R15: 253 | S15: 31 | T15: 0 | U15: 501 | V15: 70 | W15: 431 | X15: -248 | Y15: 26
A16: 2014 | B16: 46 | C16: 17 | D16: 1 | E16: 15 | F16: 公共 | G16: 012238 | H16: 北海道 | I16: 根室市 | J16: 776 | K16: 440 | L16: 113 | M16: 792 | N16: 66 | O16: 417 | P16: 33 | Q16: -16 | R16: 124 | S16: 39 | T16: 37 | U16: 377 | V16: 116 | W16: 255 | X16: -253 | Y16: -16
A17: 2014 | B17: 46 | C17: 17 | D17: 1 | E17: 16 | F17: 公共 | G17: 012246 | H17: 北海道 | I17: 千歳市 | J17: 3492 | K17: 1550 | L17: 763 | M17: 3045 | N17: 256 | O17: 1883 | P17: 105 | Q17: 447 | R17: 784 | S17: 245 | T17: 128 | U17: 1822 | V17: 878 | W17: 931 | X17: -1038 | Y17: 447
A18: 2014 | B18: 46 | C18: 17 | D18: 1 | E18: 17 | F18: 公共 | G18: 012254 | H18: 北海道 | I18: 滝川市 | J18: 1287 | K18: 743 | L18: 248 | M18: 1262 | N18: 230 | O18: 768 | P18: 14 | Q18: 25 | R18: 633 | S18: 152 | T18: 301 | U18: 1177 | V18: 137 | W18: 1040 | X18: -544 | Y18: 25
A19: 2014 | B19: 46 | C19: 17 | D19: 1 | E19: 18 | F19: 公共 | G19: 012301 | H19: 北海道 | I19: 登別市 | J19: 1834 | K19: 571 | L19: 783 | M19: 1833 | N19: 394 | O19: 1001 | P19: 67 | Q19: 1 | R19: 1108 | S19: 743 | T19: 138 | U19: 1692 | V19: 576 | W19: 1116 | X19: -585 | Y19: 1
A20: 2014 | B20: 46 | C20: 17 | D20: 1 | E20: 19 | F20: 公共 | G20: 012319 | H20: 北海道 | I20: 恵庭市 | J20: 2865 | K20: 999 | L20: 850 | M20: 2610 | N20: 295 | O20: 1618 | P20: 70 | Q20: 254 | R20: 1147 | S20: 559 | T20: 135 | U20: 2160 | V20: 1033 | W20: 1127 | X20: -1013 | Y20: 254
A21: 2014 | B21: 46 | C21: 17 | D21: 1 | E21: 20 | F21: 公共 | G21: 012351 | H21: 北海道 | I21: 石狩市 | J21: 1347 | K21: 546 | L21: 481 | M21: 1327 | N21: 230 | O21: 776 | P21: 44 | Q21: 21 | R21: 681 | S21: 523 | T21: 30 | U21: 1149 | V21: 414 | W21: 735 | X21: -468 | Y21: 21
A22: 2014 | B22: 46 | C22: 17 | D22: 1 | E22: 21 | F22: 公共 | G22: 013455 | H22: 北海道 | I22: 森町 | J22: 467 | K22: 86 | L22: 242 | M22: 466 | N22: 82 | O22: 271 | P22: 14 | Q22: 1 | R22: 138 | S22: 36 | T22: 0 | U22: 263 | V22: 78 | W22: 185 | X22: -125 | Y22: 1
A23: 2014 | B23: 46 | C23: 17 | D23: 1 | E23: 22 | F23: 公共 | G23: 014028 | H23: 北海道 | I23: 岩内町 | J23: 534 | K23: 48 | L23: 274 | M23: 524 | N23: 74 | O23: 323 | P23: 20 | Q23: 10 | R23: 731 | S23: 485 | T23: 0 | U23: 899 | V23: 431 | W23: 469 | X23: -168 | Y23: 10
A24: 2014 | B24: 46 | C24: 17 | D24: 1 | E24: 23 | F24: 公共 | G24: 014290 | H24: 北海道 | I24: 栗山町 | J24: 561 | K24: 189 | L24: 210 | M24: 481 | N24: 69 | O24: 313 | P24: 7 | Q24: 80 | R24: 368 | S24: 253 | T24: 55 | U24: 575 | V24: 131 | W24: 444 | X24: -207 | Y24: 80
A25: 2014 | B25: 46 | C25: 17 | D25: 1 | E25: 24 | F25: 公共 | G25: 015148 | H25: 北海道 | I25: 枝幸町 | J25: 272 | K25: 65 | L25: 132 | M25: 268 | N25: 45 | O25: 162 | P25: 8 | Q25: 4 | R25: 66 | S25: 0 | T25: 23 | U25: 153 | V25: 13 | W25: 140 | X25: -87 | Y25: 4
A26: 2014 | B26: 46 | C26: 17 | D26: 1 | E26: 25 | F26: 公共 | G26: 015555 | H26: 北海道 | I26: 遠軽町 | J26: 897 | K26: 230 | L26: 441 | M26: 694 | N26: 98 | O26: 385 | P26: 36 | Q26: 203 | R26: 236 | S26: 71 | T26: 48 | U26: 555 | V26: 193 | W26: 363 | X26: -319 | Y26: 203
A27: 2014 | B27: 46 | C27: 17 | D27: 1 | E27: 26 | F27: 公共 | G27: 015865 | H27: 北海道 | I27: むかわ町 | J27: 256 | K27: 54 | L27: 103 | M27: 255 | N27: 37 | O27: 149 | P27: 11 | Q27: 1 | R27: 73 | S27: 6 | T27: 0 | U27: 133 | V27: 15 | W27: 118 | X27: -60 | Y27: 1
A28: 2014 | B28: 46 | C28: 17 | D28: 1 | E28: 27 | F28: 公共 | G28: 016314 | H28: 北海道 | I28: 音更町 | J28: 1050 | K28: 556 | L28: 235 | M28: 942 | N28: 184 | O28: 556 | P28: 3 | Q28: 108 | R28: 418 | S28: 319 | T28: 63 | U28: 869 | V28: 199 | W28: 669 | X28: -451 | Y28: 108
A29: 2014 | B29: 46 | C29: 17 | D29: 1 | E29: 28 | F29: 公共 | G29: 022021 | H29: 青森県 | I29: 弘前市 | J29: 4970 | K29: 2879 | L29: 1307 | M29: 4635 | N29: 806 | O29: 2202 | P29: 262 | Q29: 335 | R29: 1861 | S29: 1268 | T29: 0 | U29: 3700 | V29: 714 | W29: 2987 | X29: -1839 | Y29: 335
A30: 2014 | B30: 46 | C30: 17 | D30: 1 | E30: 29 | F30: 公共 | G30: 022047 | H30: 青森県 | I30: 黒石市 | J30: 1076 | K30: 326 | L30: 438 | M30: 673 | N30: 163 | O30: 306 | P30: 35 | Q30: 403 | R30: 763 | S30: 438 | T30: 310 | U30: 763 | V30: 62 | W30: 701 | X30: 0 | Y30: 403
A31: 2014 | B31: 46 | C31: 17 | D31: 1 | E31: 30 | F31: 公共 | G31: 022055 | H31: 青森県 | I31: 五所川原市 | J31: 687 | K31: 370 | L31: 141 | M31: 766 | N31: 136 | O31: 380 | P31: 41 | Q31: -80 | R31: 501 | S31: 240 | T31: 0 | U31: 618 | V31: 170 | W31: 447 | X31: -117 | Y31: -80
A32: 2014 | B32: 46 | C32: 17 | D32: 1 | E32: 31 | F32: 公共 | G32: 022063 | H32: 青森県 | I32: 十和田市 | J32: 1564 | K32: 784 | L32: 369 | M32: 1637 | N32: 321 | O32: 863 | P32: 76 | Q32: -73 | R32: 1029 | S32: 687 | T32: 110 | U32: 1568 | V32: 532 | W32: 1037 | X32: -539 | Y32: -73
A33: 2014 | B33: 46 | C33: 17 | D33: 1 | E33: 32 | F33: 公共 | G33: 022101 | H33: 青森県 | I33: 平川市 | J33: 681 | K33: 296 | L33: 256 | M33: 695 | N33: 134 | O33: 335 | P33: 48 | Q33: -14 | R33: 431 | S33: 16 | T33: 0 | U33: 507 | V33: 25 | W33: 483 | X33: -76 | Y33: -14
A34: 2014 | B34: 46 | C34: 17 | D34: 1 | E34: 33 | F34: 公共 | G34: 023612 | H34: 青森県 | I34: 藤崎町 | J34: 285 | K34: 87 | L34: 121 | M34: 278 | N34: 58 | O34: 166 | P34: 6 | Q34: 7 | R34: 168 | S34: 105 | T34: 0 | U34: 263 | V34: 18 | W34: 245 | X34: -95 | Y34: 7
A35: 2014 | B35: 46 | C35: 17 | D35: 1 | E35: 34 | F35: 公共 | G35: 023671 | H35: 青森県 | I35: 田舎館村 | J35: 335 | K35: 99 | L35: 124 | M35: 260 | N35: 65 | O35: 128 | P35: 8 | Q35: 75 | R35: 156 | S35: 94 | T35: 61 | U35: 229 | V35: 8 | W35: 221 | X35: -74 | Y35: 75
A36: 2014 | B36: 46 | C36: 17 | D36: 1 | E36: 35 | F36: 公共 | G36: 023817 | H36: 青森県 | I36: 板柳町 | J36: 301 | K36: 80 | L36: 105 | M36: 289 | N36: 71 | O36: 149 | P36: 12 | Q36: 12 | R36: 194 | S36: 101 | T36: 46 | U36: 255 | V36: 96 | W36: 159 | X36: -61 | Y36: 12
A37: 2014 | B37: 46 | C37: 17 | D37: 1 | E37: 36 | F37: 公共 | G37: 023841 | H37: 青森県 | I37: 鶴田町 | J37: 413 | K37: 52 | L37: 229 | M37: 345 | N37: 72 | O37: 235 | P37: 10 | Q37: 69 | R37: 33 | S37: 26 | T37: 5 | U37: 207 | V37: 29 | W37: 178 | X37: -174 | Y37: 69
A38: 2014 | B38: 46 | C38: 17 | D38: 1 | E38: 37 | F38: 公共 | G38: 024112 | H38: 青森県 | I38: 六ケ所村 | J38: 497 | K38: 41 | L38: 300 | M38: 486 | N38: 79 | O38: 271 | P38: 23 | Q38: 11 | R38: 656 | S38: 259 | T38: 0 | U38: 866 | V38: 737 | W38: 129 | X38: -211 | Y38: 11
A39: 2014 | B39: 46 | C39: 17 | D39: 1 | E39: 38 | F39: 公共 | G39: 032018 | H39: 岩手県 | I39: 盛岡市 | J39: 8429 | K39: 4345 | L39: 2914 | M39: 7940 | N39: 1240 | O39: 4068 | P39: 363 | Q39: 490 | R39: 2052 | S39: 828 | T39: 508 | U39: 5518 | V39: 1675 | W39: 3843 | X39: -3466 | Y39: 490
A40: 2014 | B40: 46 | C40: 17 | D40: 1 | E40: 39 | F40: 公共 | G40: 032026 | H40: 岩手県 | I40: 宮古市 | J40: 1410 | K40: 523 | L40: 549 | M40: 1298 | N40: 221 | O40: 634 | P40: 54 | Q40: 112 | R40: 700 | S40: 412 | T40: 178 | U40: 1278 | V40: 240 | W40: 1039 | X40: -579 | Y40: 112
A41: 2014 | B41: 46 | C41: 17 | D41: 1 | E41: 40 | F41: 公共 | G41: 032069 | H41: 岩手県 | I41: 北上市 | J41: 2243 | K41: 1073 | L41: 940 | M41: 2106 | N41: 432 | O41: 948 | P41: 58 | Q41: 137 | R41: 1018 | S41: 651 | T41: 0 | U41: 1826 | V41: 231 | W41: 1545 | X41: -809 | Y41: 137
A42: 2014 | B42: 46 | C42: 17 | D42: 1 | E42: 41 | F42: 公共 | G42: 033219 | H42: 岩手県 | I42: 紫波町 | J42: 773 | K42: 255 | L42: 495 | M42: 783 | N42: 123 | O42: 475 | P42: 35 | Q42: -10 | R42: 260 | S42: 85 | T42: 28 | U42: 699 | V42: 177 | W42: 523 | X42: -440 | Y42: -10
A43: 2014 | B43: 46 | C43: 17 | D43: 1 | E43: 42 | F43: 公共 | G43: 033227 | H43: 岩手県 | I43: 矢巾町 | J43: 740 | K43: 281 | L43: 260 | M43: 590 | N43: 86 | O43: 332 | P43: 0 | Q43: 150 | R43: 434 | S43: 229 | T43: 0 | U43: 687 | V43: 474 | W43: 213 | X43: -253 | Y43: 150
A44: 2014 | B44: 46 | C44: 17 | D44: 1 | E44: 43 | F44: 公共 | G44: 041009 | H44: 宮城県 | I44: 仙台市 | J44: 32913 | K44: 16136 | L44: 7340 | M44: 30217 | N44: 4838 | O44: 17202 | P44: 1210 | Q44: 2695 | R44: 31076 | S44: 11284 | T44: 3753 | U44: 42035 | V44: 25545 | W44: 16475 | X44: -10959 | Y44: 2695
A45: 2014 | B45: 46 | C45: 17 | D45: 1 | E45: 44 | F45: 公共 | G45: 042064 | H45: 宮城県 | I45: 白石市 | J45: 885 | K45: 410 | L45: 277 | M45: 923 | N45: 174 | O45: 459 | P45: 23 | Q45: -38 | R45: 888 | S45: 468 | T45: 401 | U45: 1185 | V45: 409 | W45: 763 | X45: -297 | Y45: -38
A46: 2014 | B46: 46 | C46: 17 | D46: 1 | E46: 45 | F46: 公共 | G46: 042072 | H46: 宮城県 | I46: 名取市 | J46: 2487 | K46: 1220 | L46: 724 | M46: 2526 | N46: 500 | O46: 1484 | P46: 58 | Q46: -38 | R46: 2020 | S46: 661 | T46: 219 | U46: 2826 | V46: 540 | W46: 2286 | X46: -806 | Y46: -38
A47: 2014 | B47: 46 | C47: 17 | D47: 1 | E47: 46 | F47: 公共 | G47: 052019 | H47: 秋田県 | I47: 秋田市 | J47: 10628 | K47: 4980 | L47: 3571 | M47: 9953 | N47: 1622 | O47: 4983 | P47: 394 | Q47: 675 | R47: 4413 | S47: 2631 | T47: 855 | U47: 8242 | V47: 2666 | W47: 5576 | X47: -3829 | Y47: 675
A48: 2014 | B48: 46 | C48: 17 | D48: 1 | E48: 47 | F48: 公共 | G48: 052027 | H48: 秋田県 | I48: 能代市 | J48: 1165 | K48: 318 | L48: 574 | M48: 1161 | N48: 200 | O48: 591 | P48: 29 | Q48: 5 | R48: 1880 | S48: 868 | T48: 73 | U48: 2315 | V48: 1772 | W48: 542 | X48: -435 | Y48: 5
A49: 2014 | B49: 46 | C49: 17 | D49: 1 | E49: 48 | F49: 公共 | G49: 052035 | H49: 秋田県 | I49: 横手市 | J49: 1789 | K49: 625 | L49: 904 | M49: 1715 | N49: 382 | O49: 826 | P49: 98 | Q49: 74 | R49: 1266 | S49: 707 | T49: 434 | U49: 1737 | V49: 365 | W49: 1372 | X49: -471 | Y49: 74
A50: 2014 | B50: 46 | C50: 17 | D50: 1 | E50: 49 | F50: 公共 | G50: 052043 | H50: 秋田県 | I50: 大館市 | J50: 1119 | K50: 416 | L50: 502 | M50: 1239 | N50: 285 | O50: 583 | P50: 61 | Q50: -120 | R50: 1184 | S50: 736 | T50: 129 | U50: 1601 | V50: 753 | W50: 848 | X50: -417 | Y50: -120
A51: 2014 | B51: 46 | C51: 17 | D51: 1 | E51: 50 | F51: 公共 | G51: 052060 | H51: 秋田県 | I51: 男鹿市 | J51: 622 | K51: 192 | L51: 313 | M51: 624 | N51: 170 | O51: 331 | P51: 28 | Q51: -2 | R51: 645 | S51: 305 | T51: 168 | U51: 902 | V51: 384 | W51: 517 | X51: -257 | Y51: -2
A52: 2014 | B52: 46 | C52: 17 | D52: 1 | E52: 51 | F52: 公共 | G52: 062014 | H52: 山形県 | I52: 山形市 | J52: 7748 | K52: 3915 | L52: 2252 | M52: 7625 | N52: 1809 | O52: 4080 | P52: 256 | Q52: 123 | R52: 4164 | S52: 2672 | T52: 755 | U52: 7086 | V52: 1934 | W52: 5152 | X52: -2922 | Y52: 123
A53: 2014 | B53: 46 | C53: 17 | D53: 1 | E53: 52 | F53: 公共 | G53: 062103 | H53: 山形県 | I53: 天童市 | J53: 1250 | K53: 850 | L53: 186 | M53: 1190 | N53: 193 | O53: 574 | P53: 34 | Q53: 60 | R53: 825 | S53: 450 | T53: 148 | U53: 1325 | V53: 707 | W53: 618 | X53: -500 | Y53: 60
A54: 2014 | B54: 46 | C54: 17 | D54: 1 | E54: 53 | F54: 公共 | G54: 062138 | H54: 山形県 | I54: 南陽市 | J54: 995 | K54: 334 | L54: 444 | M54: 989 | N54: 214 | O54: 527 | P54: 33 | Q54: 6 | R54: 636 | S54: 307 | T54: 59 | U54: 960 | V54: 212 | W54: 748 | X54: -324 | Y54: 6
A55: 2014 | B55: 46 | C55: 17 | D55: 1 | E55: 54 | F55: 公共 | G55: 072036 | H55: 福島県 | I55: 郡山市 | J55: 7902 | K55: 3877 | L55: 2308 | M55: 7902 | N55: 1555 | O55: 3940 | P55: 252 | Q55: 0 | R55: 5132 | S55: 2199 | T55: 0 | U55: 8112 | V55: 3012 | W55: 5097 | X55: -2980 | Y55: 0
A56: 2014 | B56: 46 | C56: 17 | D56: 1 | E56: 55 | F56: 公共 | G56: 072109 | H56: 福島県 | I56: 二本松市 | J56: 553 | K56: 140 | L56: 308 | M56: 553 | N56: 97 | O56: 226 | P56: 34 | Q56: 0 | R56: 119 | S56: 63 | T56: 5 | U56: 326 | V56: 109 | W56: 217 | X56: -207 | Y56: 0
A57: 2014 | B57: 46 | C57: 17 | D57: 1 | E57: 56 | F57: 公共 | G57: 072125 | H57: 福島県 | I57: 南相馬市 | J57: 1665 | K57: 421 | L57: 574 | M57: 1505 | N57: 232 | O57: 925 | P57: 52 | Q57: 160 | R57: 625 | S57: 337 | T57: 144 | U57: 1056 | V57: 341 | W57: 714 | X57: -430 | Y57: 160
A58: 2014 | B58: 46 | C58: 17 | D58: 1 | E58: 57 | F58: 公共 | G58: 075213 | H58: 福島県 | I58: 三春町 | J58: 183 | K58: 66 | L58: 34 | M58: 209 | N58: 34 | O58: 135 | P58: 8 | Q58: -26 | R58: 26 | S58: 0 | T58: 0 | U58: 118 | V58: 8 | W58: 109 | X58: -92 | Y58: -26
A59: 2014 | B59: 46 | C59: 17 | D59: 1 | E59: 58 | F59: 公共 | G59: 082023 | H59: 茨城県 | I59: 日立市 | J59: 4029 | K59: 2711 | L59: 118 | M59: 3805 | N59: 354 | O59: 1998 | P59: 121 | Q59: 224 | R59: 1308 | S59: 445 | T59: 481 | U59: 2480 | V59: 1056 | W59: 1424 | X59: -1171 | Y59: 224
A60: 2014 | B60: 46 | C60: 17 | D60: 1 | E60: 59 | F60: 公共 | G60: 082244 | H60: 茨城県 | I60: 守谷市 | J60: 1852 | K60: 1383 | L60: 18 | M60: 1640 | N60: 112 | O60: 824 | P60: 64 | Q60: 212 | R60: 289 | S60: 0 | T60: 28 | U60: 902 | V60: 604 | W60: 298 | X60: -612 | Y60: 212
A61: 2014 | B61: 46 | C61: 17 | D61: 1 | E61: 60 | F61: 公共 | G61: 092011 | H61: 栃木県 | I61: 宇都宮市 | J61: 12539 | K61: 6751 | L61: 3273 | M61: 12078 | N61: 1458 | O61: 5752 | P61: 476 | Q61: 461 | R61: 1508 | S61: 532 | T61: 211 | U61: 6252 | V61: 1527 | W61: 4725 | X61: -4744 | Y61: 461
A62: 2014 | B62: 46 | C62: 17 | D62: 1 | E62: 61 | F62: 公共 | G62: 102016 | H62: 群馬県 | I62: 前橋市 | J62: 6909 | K62: 3040 | L62: 2500 | M62: 6430 | N62: 991 | O62: 2946 | P62: 342 | Q62: 479 | R62: 4033 | S62: 2171 | T62: 430 | U62: 6899 | V62: 3943 | W62: 2956 | X62: -2866 | Y62: 479
A63: 2014 | B63: 46 | C63: 17 | D63: 1 | E63: 62 | F63: 公共 | G63: 102024 | H63: 群馬県 | I63: 高崎市 | J63: 8519 | K63: 3677 | L63: 3400 | M63: 7130 | N63: 1130 | O63: 3224 | P63: 410 | Q63: 1390 | R63: 2682 | S63: 1093 | T63: 565 | U63: 6112 | V63: 2731 | W63: 3376 | X63: -3430 | Y63: 1390
A64: 2014 | B64: 46 | C64: 17 | D64: 1 | E64: 63 | F64: 公共 | G64: 102059 | H64: 群馬県 | I64: 太田市 | J64: 2806 | K64: 764 | L64: 1252 | M64: 2751 | N64: 497 | O64: 1418 | P64: 83 | Q64: 55 | R64: 1863 | S64: 765 | T64: 655 | U64: 2633 | V64: 1226 | W64: 1404 | X64: -770 | Y64: 55
A65: 2014 | B65: 46 | C65: 17 | D65: 1 | E65: 64 | F65: 公共 | G65: 111007 | H65: 埼玉県 | I65: さいたま市 | J65: 22692 | K65: 15698 | L65: 4198 | M65: 22532 | N65: 3915 | O65: 11757 | P65: 562 | Q65: 160 | R65: 14933 | S65: 10606 | T65: 384 | U65: 24600 | V65: 13260 | W65: 11331 | X65: -9668 | Y65: 160
A66: 2014 | B66: 46 | C66: 17 | D66: 1 | E66: 65 | F66: 公共 | G66: 112011 | H66: 埼玉県 | I66: 川越市 | J66: 5971 | K66: 3221 | L66: 1846 | M66: 5862 | N66: 477 | O66: 2584 | P66: 374 | Q66: 109 | R66: 1136 | S66: 649 | T66: 187 | U66: 2766 | V66: 1668 | W66: 1098 | X66: -1631 | Y66: 109
A67: 2014 | B67: 46 | C67: 17 | D67: 1 | E67: 66 | F67: 公共 | G67: 112089 | H67: 埼玉県 | I67: 所沢市 | J67: 5810 | K67: 2652 | L67: 2124 | M67: 6030 | N67: 520 | O67: 2919 | P67: 432 | Q67: -220 | R67: 352 | S67: 156 | T67: 53 | U67: 1977 | V67: 743 | W67: 1232 | X67: -1625 | Y67: -220
A68: 2014 | B68: 46 | C68: 17 | D68: 1 | E68: 67 | F68: 公共 | G68: 112101 | H68: 埼玉県 | I68: 加須市 | J68: 1894 | K68: 513 | L68: 791 | M68: 1746 | N68: 286 | O68: 939 | P68: 51 | Q68: 148 | R68: 1394 | S68: 757 | T68: 190 | U68: 2001 | V68: 976 | W68: 1024 | X68: -607 | Y68: 148
A69: 2014 | B69: 46 | C69: 17 | D69: 1 | E69: 68 | F69: 公共 | G69: 112143 | H69: 埼玉県 | I69: 春日部市 | J69: 4146 | K69: 2026 | L69: 1401 | M69: 4162 | N69: 936 | O69: 2152 | P69: 87 | Q69: -17 | R69: 3110 | S69: 2295 | T69: 699 | U69: 3900 | V69: 836 | W69: 3065 | X69: -791 | Y69: -17
A70: 2014 | B70: 46 | C70: 17 | D70: 1 | E70: 69 | F70: 公共 | G70: 112151 | H70: 埼玉県 | I70: 狭山市 | J70: 3213 | K70: 1543 | L70: 936 | M70: 3149 | N70: 449 | O70: 1801 | P70: 103 | Q70: 64 | R70: 548 | S70: 285 | T70: 113 | U70: 1710 | V70: 706 | W70: 1004 | X70: -1162 | Y70: 64
A71: 2014 | B71: 46 | C71: 17 | D71: 1 | E71: 70 | F71: 公共 | G71: 112178 | H71: 埼玉県 | I71: 鴻巣市 | J71: 2364 | K71: 1014 | L71: 861 | M71: 2177 | N71: 324 | O71: 1148 | P71: 52 | Q71: 187 | R71: 1036 | S71: 613 | T71: 290 | U71: 1902 | V71: 685 | W71: 1216 | X71: -865 | Y71: 187
A72: 2014 | B72: 46 | C72: 17 | D72: 1 | E72: 71 | F72: 公共 | G72: 112186 | H72: 埼玉県 | I72: 深谷市 | J72: 2182 | K72: 651 | L72: 921 | M72: 2290 | N72: 368 | O72: 1338 | P72: 55 | Q72: -108 | R72: 1626 | S72: 517 | T72: 95 | U72: 2272 | V72: 1288 | W72: 984 | X72: -647 | Y72: -108
A73: 2014 | B73: 46 | C73: 17 | D73: 1 | E73: 72 | F73: 公共 | G73: 112241 | H73: 埼玉県 | I73: 戸田市 | J73: 2763 | K73: 984 | L73: 1052 | M73: 2614 | N73: 232 | O73: 1277 | P73: 56 | Q73: 149 | R73: 792 | S73: 470 | T73: 163 | U73: 1450 | V73: 735 | W73: 715 | X73: -658 | Y73: 149
A74: 2014 | B74: 46 | C74: 17 | D74: 1 | E74: 73 | F74: 公共 | G74: 112283 | H74: 埼玉県 | I74: 志木市 | J74: 1867 | K74: 794 | L74: 404 | M74: 1797 | N74: 225 | O74: 884 | P74: 87 | Q74: 71 | R74: 529 | S74: 42 | T74: 476 | U74: 708 | V74: 73 | W74: 626 | X74: -179 | Y74: 71
A75: 2014 | B75: 46 | C75: 17 | D75: 1 | E75: 74 | F75: 公共 | G75: 112291 | H75: 埼玉県 | I75: 和光市 | J75: 1062 | K75: 584 | L75: 342 | M75: 1012 | N75: 130 | O75: 440 | P75: 31 | Q75: 50 | R75: 177 | S75: 93 | T75: 79 | U75: 494 | V75: 118 | W75: 376 | X75: -317 | Y75: 50
A76: 2014 | B76: 46 | C76: 17 | D76: 1 | E76: 75 | F76: 公共 | G76: 112356 | H76: 埼玉県 | I76: 富士見市 | J76: 1482 | K76: 831 | L76: 461 | M76: 1356 | N76: 235 | O76: 610 | P76: 37 | Q76: 126 | R76: 565 | S76: 302 | T76: 116 | U76: 1131 | V76: 467 | W76: 664 | X76: -565 | Y76: 126
A77: 2014 | B77: 46 | C77: 17 | D77: 1 | E77: 76 | F77: 公共 | G77: 112429 | H77: 埼玉県 | I77: 日高市 | J77: 1209 | K77: 558 | L77: 385 | M77: 997 | N77: 137 | O77: 495 | P77: 60 | Q77: 212 | R77: 317 | S77: 264 | T77: 44 | U77: 674 | V77: 137 | W77: 536 | X77: -357 | Y77: 212
A78: 2014 | B78: 46 | C78: 17 | D78: 1 | E78: 77 | F78: 公共 | G78: 113859 | H78: 埼玉県 | I78: 上里町 | J78: 184 | K78: 48 | L78: 94 | M78: 188 | N78: 44 | O78: 101 | P78: 18 | Q78: -4 | R78: 157 | S78: 104 | T78: 0 | U78: 204 | V78: 160 | W78: 44 | X78: -48 | Y78: -4
A79: 2014 | B79: 46 | C79: 17 | D79: 1 | E79: 78 | F79: 公共 | G79: 121002 | H79: 千葉県 | I79: 千葉市 | J79: 28081 | K79: 12601 | L79: 7808 | M79: 27012 | N79: 4728 | O79: 14922 | P79: 739 | Q79: 1069 | R79: 13113 | S79: 9564 | T79: 114 | U79: 22730 | V79: 8909 | W79: 13809 | X79: -9617 | Y79: 1069
A80: 2014 | B80: 46 | C80: 17 | D80: 1 | E80: 79 | F80: 公共 | G80: 122122 | H80: 千葉県 | I80: 佐倉市 | J80: 3066 | K80: 1759 | L80: 199 | M80: 2929 | N80: 110 | O80: 1564 | P80: 129 | Q80: 137 | R80: 642 | S80: 256 | T80: 70 | U80: 1315 | V80: 927 | W80: 388 | X80: -673 | Y80: 137
A81: 2014 | B81: 46 | C81: 17 | D81: 1 | E81: 80 | F81: 公共 | G81: 122173 | H81: 千葉県 | I81: 柏市 | J81: 8474 | K81: 5175 | L81: 917 | M81: 8501 | N81: 1129 | O81: 4382 | P81: 235 | Q81: -27 | R81: 5167 | S81: 2061 | T81: 280 | U81: 5979 | V81: 2228 | W81: 3747 | X81: -812 | Y81: -27
A82: 2014 | B82: 46 | C82: 17 | D82: 1 | E82: 81 | F82: 公共 | G82: 122211 | H82: 千葉県 | I82: 八千代市 | J82: 3240 | K82: 2096 | L82: 486 | M82: 3285 | N82: 254 | O82: 1417 | P82: 120 | Q82: -46 | R82: 757 | S82: 331 | T82: 162 | U82: 1552 | V82: 770 | W82: 627 | X82: -795 | Y82: -46
A83: 2014 | B83: 46 | C83: 17 | D83: 1 | E83: 82 | F83: 公共 | G83: 123226 | H83: 千葉県 | I83: 酒々井町 | J83: 275 | K83: 220 | L83: 21 | M83: 330 | N83: 28 | O83: 185 | P83: 6 | Q83: -55 | R83: 41 | S83: 0 | T83: 39 | U83: 95 | V83: 25 | W83: 70 | X83: -54 | Y83: -55
A84: 2014 | B84: 46 | C84: 17 | D84: 1 | E84: 83 | F84: 公共 | G84: 130001 | H84: 東京都 | I84: 東京都 | J84: 382825 | K84: 157378 | L84: 125115 | M84: 304801 | N84: 36937 | O84: 163817 | P84: 15472 | Q84: 78024 | R84: 209552 | S84: 115515 | T84: 0 | U84: 410197 | V84: 180973 | W84: 183126 | X84: -200644 | Y84: 78024
A85: 2014 | B85: 46 | C85: 17 | D85: 1 | E85: 84 | F85: 公共 | G85: 141003 | H85: 神奈川県 | I85: 横浜市 | J85: 132523 | K85: 55880 | L85: 46816 | M85: 123865 | N85: 15552 | O85: 74498 | P85: 5378 | Q85: 8657 | R85: 73534 | S85: 57691 | T85: 2274 | U85: 133755 | V85: 36747 | W85: 97005 | X85: -60222 | Y85: 8657
A86: 2014 | B86: 46 | C86: 17 | D86: 1 | E86: 85 | F86: 公共 | G86: 141305 | H86: 神奈川県 | I86: 川崎市 | J86: 44448 | K86: 22107 | L86: 13548 | M86: 44968 | N86: 8134 | O86: 23824 | P86: 2858 | Q86: -521 | R86: 45571 | S86: 33485 | T86: 1798 | U86: 63158 | V86: 15586 | W86: 44628 | X86: -17587 | Y86: -521
A87: 2014 | B87: 46 | C87: 17 | D87: 1 | E87: 86 | F87: 公共 | G87: 141500 | H87: 神奈川県 | I87: 相模原市 | J87: 14869 | K87: 8458 | L87: 4285 | M87: 14744 | N87: 2584 | O87: 8045 | P87: 442 | Q87: 125 | R87: 5055 | S87: 3092 | T87: 263 | U87: 11506 | V87: 4809 | W87: 6697 | X87: -6450 | Y87: 125
A88: 2014 | B88: 46 | C88: 17 | D88: 1 | E88: 87 | F88: 公共 | G88: 142018 | H88: 神奈川県 | I88: 横須賀市 | J88: 16248 | K88: 6393 | L88: 4359 | M88: 15429 | N88: 2023 | O88: 8449 | P88: 674 | Q88: 819 | R88: 7803 | S88: 4795 | T88: 987 | U88: 11851 | V88: 5070 | W88: 6585 | X88: -4048 | Y88: 819
A89: 2014 | B89: 46 | C89: 17 | D89: 1 | E89: 88 | F89: 公共 | G89: 142051 | H89: 神奈川県 | I89: 藤沢市 | J89: 11952 | K89: 5435 | L89: 4573 | M89: 11786 | N89: 1838 | O89: 5243 | P89: 434 | Q89: 166 | R89: 4183 | S89: 2731 | T89: 316 | U89: 7728 | V89: 3107 | W89: 4619 | X89: -3545 | Y89: 166
A90: 2014 | B90: 46 | C90: 17 | D90: 1 | E90: 89 | F90: 公共 | G90: 142077 | H90: 神奈川県 | I90: 茅ヶ崎市 | J90: 5278 | K90: 2599 | L90: 1691 | M90: 4912 | N90: 881 | O90: 2483 | P90: 153 | Q90: 366 | R90: 2002 | S90: 1302 | T90: 161 | U90: 3845 | V90: 1787 | W90: 2058 | X90: -1843 | Y90: 366
A91: 2014 | B91: 46 | C91: 17 | D91: 1 | E91: 90 | F91: 公共 | G91: 151009 | H91: 新潟県 | I91: 新潟市 | J91: 30412 | K91: 11779 | L91: 11126 | M91: 30461 | N91: 6608 | O91: 17396 | P91: 1002 | Q91: -49 | R91: 22795 | S91: 14412 | T91: 2545 | U91: 33030 | V91: 16642 | W91: 16387 | X91: -10235 | Y91: -49
A92: 2014 | B92: 46 | C92: 17 | D92: 1 | E92: 91 | F92: 公共 | G92: 152021 | H92: 新潟県 | I92: 長岡市 | J92: 8538 | K92: 3330 | L92: 2450 | M92: 8512 | N92: 1327 | O92: 5287 | P92: 191 | Q92: 26 | R92: 3641 | S92: 965 | T92: 0 | U92: 6330 | V92: 1910 | W92: 4420 | X92: -2689 | Y92: 26
A93: 2014 | B93: 46 | C93: 17 | D93: 1 | E93: 92 | F93: 公共 | G93: 152056 | H93: 新潟県 | I93: 柏崎市 | J93: 3473 | K93: 991 | L93: 1279 | M93: 3456 | N93: 497 | O93: 2135 | P93: 103 | Q93: 17 | R93: 2407 | S93: 1305 | T93: 271 | U93: 3424 | V93: 1287 | W93: 2137 | X93: -1017 | Y93: 17
A94: 2014 | B94: 46 | C94: 17 | D94: 1 | E94: 93 | F94: 公共 | G94: 152081 | H94: 新潟県 | I94: 小千谷市 | J94: 1475 | K94: 484 | L94: 787 | M94: 1061 | N94: 261 | O94: 548 | P94: 65 | Q94: 414 | R94: 352 | S94: 193 | T94: 113 | U94: 1105 | V94: 154 | W94: 950 | X94: -753 | Y94: 414
A95: 2014 | B95: 46 | C95: 17 | D95: 1 | E95: 94 | F95: 公共 | G95: 152111 | H95: 新潟県 | I95: 見附市 | J95: 1660 | K95: 532 | L95: 657 | M95: 1744 | N95: 246 | O95: 916 | P95: 46 | Q95: -84 | R95: 1265 | S95: 479 | T95: 232 | U95: 1624 | V95: 950 | W95: 674 | X95: -359 | Y95: -84
A96: 2014 | B96: 46 | C96: 17 | D96: 1 | E96: 95 | F96: 公共 | G96: 152170 | H96: 新潟県 | I96: 妙高市 | J96: 1038 | K96: 335 | L96: 506 | M96: 760 | N96: 150 | O96: 376 | P96: 16 | Q96: 278 | R96: 194 | S96: 72 | T96: 119 | U96: 659 | V96: 45 | W96: 558 | X96: -465 | Y96: 278
A97: 2014 | B97: 46 | C97: 17 | D97: 1 | E97: 96 | F97: 公共 | G97: 152251 | H97: 新潟県 | I97: 魚沼市 | J97: 1223 | K97: 524 | L97: 484 | M97: 1101 | N97: 250 | O97: 575 | P97: 20 | Q97: 122 | R97: 601 | S97: 65 | T97: 0 | U97: 1006 | V97: 110 | W97: 895 | X97: -405 | Y97: 122
A98: 2014 | B98: 46 | C98: 17 | D98: 1 | E98: 97 | F98: 公共 | G98: 152277 | H98: 新潟県 | I98: 胎内市 | J98: 724 | K98: 195 | L98: 178 | M98: 778 | N98: 157 | O98: 455 | P98: 9 | Q98: -54 | R98: 636 | S98: 452 | T98: 105 | U98: 782 | V98: 241 | W98: 539 | X98: -146 | Y98: -54
A99: 2014 | B99: 46 | C99: 17 | D99: 1 | E99: 98 | F99: 公共 | G99: 153079 | H99: 新潟県 | I99: 聖籠町 | J99: 543 | K99: 148 | L99: 256 | M99: 510 | N99: 97 | O99: 295 | P99: 17 | Q99: 33 | R99: 97 | S99: 79 | T99: 0 | U99: 257 | V99: 49 | W99: 208 | X99: -160 | Y99: 33
A100: 2014 | B100: 46 | C100: 17 | D100: 1 | E100: 99 | F100: 公共 | G100: 162019 | H100: 富山県 | I100: 富山市 | J100: 13552 | K100: 6168 | L100: 4643 | M100: 11864 | N100: 2397 | O100: 6975 | P100: 261 | Q100: 1688 | R100: 6638 | S100: 2815 | T100: 1218 | U100: 13384 | V100: 5765 | W100: 7463 | X100: -6746 | Y100: 1688
A101: 2014 | B101: 46 | C101: 17 | D101: 1 | E101: 100 | F101: 公共 | G101: 162027 | H101: 富山県 | I101: 高岡市 | J101: 4200 | K101: 2541 | L101: 866 | M101: 4193 | N101: 834 | O101: 2034 | P101: 96 | Q101: 7 | R101: 2338 | S101: 1760 | T101: 0 | U101: 3744 | V101: 886 | W101: 2846 | X101: -1406 | Y101: 7
A102: 2014 | B102: 46 | C102: 17 | D102: 1 | E102: 101 | F102: 公共 | G102: 162078 | H102: 富山県 | I102: 黒部市 | J102: 1053 | K102: 253 | L102: 497 | M102: 1054 | N102: 178 | O102: 566 | P102: 27 | Q102: -1 | R102: 717 | S102: 368 | T102: 0 | U102: 989 | V102: 360 | W102: 629 | X102: -273 | Y102: -1
A103: 2014 | B103: 46 | C103: 17 | D103: 1 | E103: 102 | F103: 公共 | G103: 162108 | H103: 富山県 | I103: 南砺市 | J103: 1137 | K103: 389 | L103: 637 | M103: 785 | N103: 161 | O103: 414 | P103: 14 | Q103: 352 | R103: 383 | S103: 202 | T103: 149 | U103: 904 | V103: 122 | W103: 782 | X103: -521 | Y103: 352
A104: 2014 | B104: 46 | C104: 17 | D104: 1 | E104: 103 | F104: 公共 | G104: 162116 | H104: 富山県 | I104: 射水市 | J104: 2505 | K104: 908 | L104: 1105 | M104: 2496 | N104: 469 | O104: 1210 | P104: 76 | Q104: 10 | R104: 1199 | S104: 470 | T104: 0 | U104: 2058 | V104: 851 | W104: 1197 | X104: -859 | Y104: 10
A105: 2014 | B105: 46 | C105: 17 | D105: 1 | E105: 104 | F105: 公共 | G105: 172014 | H105: 石川県 | I105: 金沢市 | J105: 18110 | K105: 6954 | L105: 5795 | M105: 17209 | N105: 3277 | O105: 9797 | P105: 537 | Q105: 901 | R105: 9503 | S105: 5879 | T105: 21 | U105: 16502 | V105: 6868 | W105: 9625 | X105: -6999 | Y105: 901
A106: 2014 | B106: 46 | C106: 17 | D106: 1 | E106: 105 | F106: 公共 | G106: 172031 | H106: 石川県 | I106: 小松市 | J106: 3347 | K106: 895 | L106: 1733 | M106: 3778 | N106: 970 | O106: 2155 | P106: 109 | Q106: -431 | R106: 2571 | S106: 1785 | T106: 202 | U106: 3747 | V106: 1191 | W106: 2530 | X106: -1176 | Y106: -431
A107: 2014 | B107: 46 | C107: 17 | D107: 1 | E107: 106 | F107: 公共 | G107: 172073 | H107: 石川県 | I107: 羽咋市 | J107: 682 | K107: 190 | L107: 342 | M107: 686 | N107: 193 | O107: 409 | P107: 15 | Q107: -4 | R107: 390 | S107: 262 | T107: 108 | U107: 647 | V107: 40 | W107: 607 | X107: -257 | Y107: -4
A108: 2014 | B108: 46 | C108: 17 | D108: 1 | E108: 107 | F108: 公共 | G108: 172090 | H108: 石川県 | I108: かほく市 | J108: 1693 | K108: 321 | L108: 935 | M108: 1623 | N108: 291 | O108: 1136 | P108: 8 | Q108: 70 | R108: 359 | S108: 224 | T108: 0 | U108: 1189 | V108: 236 | W108: 952 | X108: -830 | Y108: 70
A109: 2014 | B109: 46 | C109: 17 | D109: 1 | E109: 108 | F109: 公共 | G109: 172103 | H109: 石川県 | I109: 白山市 | J109: 3574 | K109: 1324 | L109: 1397 | M109: 3932 | N109: 867 | O109: 2097 | P109: 61 | Q109: -358 | R109: 2872 | S109: 1921 | T109: 397 | U109: 3857 | V109: 1389 | W109: 2465 | X109: -984 | Y109: -358
A110: 2014 | B110: 46 | C110: 17 | D110: 1 | E110: 109 | F110: 公共 | G110: 172111 | H110: 石川県 | I110: 能美市 | J110: 1762 | K110: 692 | L110: 568 | M110: 1587 | N110: 389 | O110: 825 | P110: 17 | Q110: 175 | R110: 899 | S110: 550 | T110: 316 | U110: 1294 | V110: 103 | W110: 1191 | X110: -395 | Y110: 175
A111: 2014 | B111: 46 | C111: 17 | D111: 1 | E111: 110 | F111: 公共 | G111: 182010 | H111: 福井県 | I111: 福井市 | J111: 8562 | K111: 3490 | L111: 2579 | M111: 8077 | N111: 1346 | O111: 4351 | P111: 501 | Q111: 484 | R111: 4619 | S111: 2835 | T111: 609 | U111: 6829 | V111: 3025 | W111: 3784 | X111: -2210 | Y111: 484
A112: 2014 | B112: 46 | C112: 17 | D112: 1 | E112: 111 | F112: 公共 | G112: 182087 | H112: 福井県 | I112: あわら市 | J112: 1137 | K112: 498 | L112: 392 | M112: 1133 | N112: 233 | O112: 592 | P112: 28 | Q112: 4 | R112: 857 | S112: 582 | T112: 253 | U112: 1209 | V112: 427 | W112: 782 | X112: -352 | Y112: 4
A113: 2014 | B113: 46 | C113: 17 | D113: 1 | E113: 112 | F113: 公共 | G113: 182109 | H113: 福井県 | I113: 坂井市 | J113: 3138 | K113: 1100 | L113: 1162 | M113: 3129 | N113: 524 | O113: 1818 | P113: 62 | Q113: 9 | R113: 2498 | S113: 1650 | T113: 238 | U113: 3447 | V113: 1428 | W113: 1969 | X113: -949 | Y113: 9
A114: 2014 | B114: 46 | C114: 17 | D114: 1 | E114: 113 | F114: 公共 | G114: 188433 | H114: 福井県 | I114: 五領川公共下水道事務組合 | J114: 496 | K114: 140 | L114: 156 | M114: 431 | N114: 51 | O114: 213 | P114: 31 | Q114: 64 | R114: 92 | S114: 49 | T114: 4 | U114: 264 | V114: 89 | W114: 172 | X114: -173 | Y114: 64
A115: 2014 | B115: 46 | C115: 17 | D115: 1 | E115: 114 | F115: 公共 | G115: 192015 | H115: 山梨県 | I115: 甲府市 | J115: 6453 | K115: 2845 | L115: 1832 | M115: 5627 | N115: 1079 | O115: 3221 | P115: 214 | Q115: 826 | R115: 4085 | S115: 1866 | T115: 1247 | U115: 6394 | V115: 2289 | W115: 3883 | X115: -2308 | Y115: 826
A116: 2014 | B116: 46 | C116: 17 | D116: 1 | E116: 115 | F116: 公共 | G116: 202011 | H116: 長野県 | I116: 長野市 | J116: 12149 | K116: 6614 | L116: 2756 | M116: 10028 | N116: 2093 | O116: 5157 | P116: 283 | Q116: 2121 | R116: 5652 | S116: 2878 | T116: 929 | U116: 10468 | V116: 5177 | W116: 5291 | X116: -4816 | Y116: 2121
A117: 2014 | B117: 46 | C117: 17 | D117: 1 | E117: 116 | F117: 公共 | G117: 202029 | H117: 長野県 | I117: 松本市 | J117: 5597 | K117: 4170 | L117: 170 | M117: 5346 | N117: 738 | O117: 2798 | P117: 206 | Q117: 252 | R117: 2092 | S117: 480 | T117: 988 | U117: 4532 | V117: 1659 | W117: 2871 | X117: -2439 | Y117: 252
A118: 2014 | B118: 46 | C118: 17 | D118: 1 | E118: 117 | F118: 公共 | G118: 202037 | H118: 長野県 | I118: 上田市 | J118: 4591 | K118: 1790 | L118: 1559 | M118: 4468 | N118: 822 | O118: 2646 | P118: 71 | Q118: 122 | R118: 481 | S118: 182 | T118: 189 | U118: 2387 | V118: 298 | W118: 2083 | X118: -1906 | Y118: 122
A119: 2014 | B119: 46 | C119: 17 | D119: 1 | E119: 118 | F119: 公共 | G119: 202045 | H119: 長野県 | I119: 岡谷市 | J119: 1815 | K119: 979 | L119: 363 | M119: 1566 | N119: 231 | O119: 825 | P119: 66 | Q119: 250 | R119: 1148 | S119: 775 | T119: 184 | U119: 1641 | V119: 465 | W119: 1176 | X119: -493 | Y119: 250
A120: 2014 | B120: 46 | C120: 17 | D120: 1 | E120: 119 | F120: 公共 | G120: 202061 | H120: 長野県 | I120: 諏訪市 | J120: 2221 | K120: 1281 | L120: 655 | M120: 1877 | N120: 299 | O120: 986 | P120: 96 | Q120: 344 | R120: 361 | S120: 162 | T120: 128 | U120: 1344 | V120: 305 | W120: 1039 | X120: -983 | Y120: 344
A121: 2014 | B121: 46 | C121: 17 | D121: 1 | E121: 120 | F121: 公共 | G121: 202070 | H121: 長野県 | I121: 須坂市 | J121: 1713 | K121: 786 | L121: 626 | M121: 1431 | N121: 383 | O121: 716 | P121: 19 | Q121: 282 | R121: 807 | S121: 495 | T121: 300 | U121: 1357 | V121: 96 | W121: 1260 | X121: -549 | Y121: 282
A122: 2014 | B122: 46 | C122: 17 | D122: 1 | E122: 121 | F122: 公共 | G122: 202088 | H122: 長野県 | I122: 小諸市 | J122: 1193 | K122: 357 | L122: 593 | M122: 966 | N122: 210 | O122: 565 | P122: 19 | Q122: 227 | R122: 535 | S122: 262 | T122: 88 | U122: 1082 | V122: 364 | W122: 718 | X122: -547 | Y122: 227
A123: 2014 | B123: 46 | C123: 17 | D123: 1 | E123: 122 | F123: 公共 | G123: 202096 | H123: 長野県 | I123: 伊那市 | J123: 1506 | K123: 614 | L123: 480 | M123: 1441 | N123: 301 | O123: 791 | P123: 67 | Q123: 65 | R123: 786 | S123: 602 | T123: 111 | U123: 1222 | V123: 137 | W123: 1086 | X123: -436 | Y123: 65
A124: 2014 | B124: 46 | C124: 17 | D124: 1 | E124: 123 | F124: 公共 | G124: 202100 | H124: 長野県 | I124: 駒ケ根市 | J124: 877 | K124: 363 | L124: 265 | M124: 903 | N124: 196 | O124: 497 | P124: 13 | Q124: -26 | R124: 638 | S124: 314 | T124: 21 | U124: 978 | V124: 498 | W124: 480 | X124: -340 | Y124: -26
A125: 2014 | B125: 46 | C125: 17 | D125: 1 | E125: 124 | F125: 公共 | G125: 202126 | H125: 長野県 | I125: 大町市 | J125: 840 | K125: 263 | L125: 388 | M125: 856 | N125: 164 | O125: 470 | P125: 51 | Q125: -16 | R125: 205 | S125: 91 | T125: 80 | U125: 459 | V125: 89 | W125: 370 | X125: -254 | Y125: -16
A126: 2014 | B126: 46 | C126: 17 | D126: 1 | E126: 125 | F126: 公共 | G126: 202142 | H126: 長野県 | I126: 茅野市 | J126: 2139 | K126: 1155 | L126: 796 | M126: 1692 | N126: 270 | O126: 882 | P126: 70 | Q126: 447 | R126: 622 | S126: 333 | T126: 202 | U126: 1721 | V126: 498 | W126: 1157 | X126: -1099 | Y126: 447
A127: 2014 | B127: 46 | C127: 17 | D127: 1 | E127: 126 | F127: 公共 | G127: 202151 | H127: 長野県 | I127: 塩尻市 | J127: 2235 | K127: 1177 | L127: 414 | M127: 2081 | N127: 369 | O127: 1170 | P127: 70 | Q127: 154 | R127: 715 | S127: 451 | T127: 140 | U127: 1435 | V127: 381 | W127: 1055 | X127: -720 | Y127: 154
A128: 2014 | B128: 46 | C128: 17 | D128: 1 | E128: 127 | F128: 公共 | G128: 202177 | H128: 長野県 | I128: 佐久市 | J128: 2651 | K128: 1467 | L128: 597 | M128: 2243 | N128: 423 | O128: 1112 | P128: 75 | Q128: 408 | R128: 1160 | S128: 432 | T128: 0 | U128: 1939 | V128: 852 | W128: 1086 | X128: -780 | Y128: 408
A129: 2014 | B129: 46 | C129: 17 | D129: 1 | E129: 128 | F129: 公共 | G129: 202185 | H129: 長野県 | I129: 千曲市 | J129: 2654 | K129: 841 | L129: 1273 | M129: 2369 | N129: 630 | O129: 1242 | P129: 44 | Q129: 285 | R129: 1127 | S129: 622 | T129: 141 | U129: 2135 | V129: 827 | W129: 1307 | X129: -1008 | Y129: 285
A130: 2014 | B130: 46 | C130: 17 | D130: 1 | E130: 129 | F130: 公共 | G130: 202193 | H130: 長野県 | I130: 東御市 | J130: 976 | K130: 294 | L130: 487 | M130: 880 | N130: 209 | O130: 466 | P130: 50 | Q130: 96 | R130: 396 | S130: 0 | T130: 12 | U130: 747 | V130: 148 | W130: 599 | X130: -351 | Y130: 96
A131: 2014 | B131: 46 | C131: 17 | D131: 1 | E131: 130 | F131: 公共 | G131: 203611 | H131: 長野県 | I131: 下諏訪町 | J131: 578 | K131: 456 | L131: 25 | M131: 565 | N131: 61 | O131: 273 | P131: 14 | Q131: 13 | R131: 194 | S131: 41 | T131: 80 | U131: 399 | V131: 140 | W131: 259 | X131: -205 | Y131: 13
A132: 2014 | B132: 46 | C132: 17 | D132: 1 | E132: 131 | F132: 公共 | G132: 203629 | H132: 長野県 | I132: 富士見町 | J132: 1011 | K132: 452 | L132: 414 | M132: 833 | N132: 177 | O132: 453 | P132: 24 | Q132: 178 | R132: 33 | S132: 0 | T132: 0 | U132: 526 | V132: 23 | W132: 496 | X132: -493 | Y132: 178
A133: 2014 | B133: 46 | C133: 17 | D133: 1 | E133: 132 | F133: 公共 | G133: 203831 | H133: 長野県 | I133: 箕輪町 | J133: 557 | K133: 184 | L133: 221 | M133: 556 | N133: 129 | O133: 346 | P133: 9 | Q133: 1 | R133: 177 | S133: 66 | T133: 99 | U133: 403 | V133: 35 | W133: 368 | X133: -226 | Y133: 1
A134: 2014 | B134: 46 | C134: 17 | D134: 1 | E134: 133 | F134: 公共 | G134: 203858 | H134: 長野県 | I134: 南箕輪村 | J134: 648 | K134: 237 | L134: 218 | M134: 633 | N134: 151 | O134: 386 | P134: 20 | Q134: 15 | R134: 170 | S134: 26 | T134: 86 | U134: 384 | V134: 43 | W134: 341 | X134: -214 | Y134: 15
A135: 2014 | B135: 46 | C135: 17 | D135: 1 | E135: 134 | F135: 公共 | G135: 203882 | H135: 長野県 | I135: 宮田村 | J135: 214 | K135: 116 | L135: 3 | M135: 272 | N135: 48 | O135: 149 | P135: 13 | Q135: -58 | R135: 176 | S135: 0 | T135: 0 | U135: 173 | V135: 8 | W135: 166 | X135: 3 | Y135: -58
A136: 2014 | B136: 46 | C136: 17 | D136: 1 | E136: 135 | F136: 公共 | G136: 212016 | H136: 岐阜県 | I136: 岐阜市 | J136: 8092 | K136: 4903 | L136: 1596 | M136: 8091 | N136: 1426 | O136: 3513 | P136: 681 | Q136: 1 | R136: 5947 | S136: 3336 | T136: 328 | U136: 8592 | V136: 4974 | W136: 3618 | X136: -2644 | Y136: 1
A137: 2014 | B137: 46 | C137: 17 | D137: 1 | E137: 136 | F137: 公共 | G137: 212113 | H137: 岐阜県 | I137: 美濃加茂市 | J137: 1871 | K137: 609 | L137: 754 | M137: 1845 | N137: 397 | O137: 926 | P137: 31 | Q137: 26 | R137: 658 | S137: 469 | T137: 144 | U137: 1165 | V137: 131 | W137: 1033 | X137: -507 | Y137: 26
A138: 2014 | B138: 46 | C138: 17 | D138: 1 | E138: 137 | F138: 公共 | G138: 221007 | H138: 静岡県 | I138: 静岡市 | J138: 22340 | K138: 9550 | L138: 8101 | M138: 20244 | N138: 3556 | O138: 10851 | P138: 992 | Q138: 2096 | R138: 12076 | S138: 7719 | T138: 0 | U138: 18304 | V138: 8314 | W138: 9989 | X138: -6228 | Y138: 2096
A139: 2014 | B139: 46 | C139: 17 | D139: 1 | E139: 138 | F139: 公共 | G139: 221309 | H139: 静岡県 | I139: 浜松市 | J139: 17255 | K139: 9089 | L139: 4718 | M139: 15482 | N139: 3001 | O139: 8535 | P139: 479 | Q139: 1773 | R139: 7823 | S139: 4845 | T139: 0 | U139: 14360 | V139: 5652 | W139: 8708 | X139: -6538 | Y139: 1773
A140: 2014 | B140: 46 | C140: 17 | D140: 1 | E140: 139 | F140: 公共 | G140: 222038 | H140: 静岡県 | I140: 沼津市 | J140: 4236 | K140: 1321 | L140: 2097 | M140: 4237 | N140: 771 | O140: 2187 | P140: 185 | Q140: -2 | R140: 1674 | S140: 1115 | T140: 0 | U140: 3159 | V140: 1387 | W140: 1772 | X140: -1485 | Y140: -2
A141: 2014 | B141: 46 | C141: 17 | D141: 1 | E141: 140 | F141: 公共 | G141: 222054 | H141: 静岡県 | I141: 熱海市 | J141: 2100 | K141: 1148 | L141: 500 | M141: 1856 | N141: 238 | O141: 995 | P141: 66 | Q141: 244 | R141: 453 | S141: 166 | T141: 0 | U141: 1251 | V141: 317 | W141: 684 | X141: -798 | Y141: 244
A142: 2014 | B142: 46 | C142: 17 | D142: 1 | E142: 141 | F142: 公共 | G142: 222101 | H142: 静岡県 | I142: 富士市 | J142: 6442 | K142: 2638 | L142: 2590 | M142: 5171 | N142: 971 | O142: 2712 | P142: 210 | Q142: 1271 | R142: 1702 | S142: 1017 | T142: 129 | U142: 4356 | V142: 1821 | W142: 2535 | X142: -2654 | Y142: 1271
A143: 2014 | B143: 46 | C143: 17 | D143: 1 | E143: 142 | F143: 公共 | G143: 231002 | H143: 愛知県 | I143: 名古屋市 | J143: 73493 | K143: 31174 | L143: 36983 | M143: 72113 | N143: 9767 | O143: 35639 | P143: 6847 | Q143: 1380 | R143: 32455 | S143: 21715 | T143: 0 | U143: 68812 | V143: 39206 | W143: 29585 | X143: -36357 | Y143: 1380
A144: 2014 | B144: 46 | C144: 17 | D144: 1 | E144: 143 | F144: 公共 | G144: 232017 | H144: 愛知県 | I144: 豊橋市 | J144: 7550 | K144: 3637 | L144: 2359 | M144: 7669 | N144: 959 | O144: 3765 | P144: 471 | Q144: -118 | R144: 2255 | S144: 869 | T144: 195 | U144: 4622 | V144: 1819 | W144: 2804 | X144: -2367 | Y144: -118
A145: 2014 | B145: 46 | C145: 17 | D145: 1 | E145: 144 | F145: 公共 | G145: 232025 | H145: 愛知県 | I145: 岡崎市 | J145: 8273 | K145: 3685 | L145: 3473 | M145: 7927 | N145: 1573 | O145: 3845 | P145: 259 | Q145: 346 | R145: 4692 | S145: 2108 | T145: 122 | U145: 7923 | V145: 4686 | W145: 3229 | X145: -3231 | Y145: 346
A146: 2014 | B146: 46 | C146: 17 | D146: 1 | E146: 145 | F146: 公共 | G146: 232033 | H146: 愛知県 | I146: 一宮市 | J146: 8353 | K146: 2329 | L146: 4976 | M146: 8120 | N146: 1685 | O146: 3696 | P146: 482 | Q146: 233 | R146: 7483 | S146: 4165 | T146: 184 | U146: 10660 | V146: 6229 | W146: 3531 | X146: -3177 | Y146: 233
A147: 2014 | B147: 46 | C147: 17 | D147: 1 | E147: 146 | F147: 公共 | G147: 232084 | H147: 愛知県 | I147: 津島市 | J147: 354 | K147: 158 | L147: 142 | M147: 329 | N147: 30 | O147: 126 | P147: 23 | Q147: 25 | R147: 131 | S147: 86 | T147: 20 | U147: 244 | V147: 69 | W147: 175 | X147: -113 | Y147: 25
A148: 2014 | B148: 46 | C148: 17 | D148: 1 | E148: 147 | F148: 公共 | G148: 232114 | H148: 愛知県 | I148: 豊田市 | J148: 7311 | K148: 3275 | L148: 2563 | M148: 6932 | N148: 1076 | O148: 4087 | P148: 183 | Q148: 379 | R148: 1687 | S148: 728 | T148: 121 | U148: 4660 | V148: 2225 | W148: 2435 | X148: -2973 | Y148: 379
A149: 2014 | B149: 46 | C149: 17 | D149: 1 | E149: 148 | F149: 公共 | G149: 232203 | H149: 愛知県 | I149: 稲沢市 | J149: 1839 | K149: 633 | L149: 964 | M149: 1622 | N149: 367 | O149: 831 | P149: 43 | Q149: 217 | R149: 957 | S149: 500 | T149: 94 | U149: 1651 | V149: 874 | W149: 777 | X149: -694 | Y149: 217
A150: 2014 | B150: 46 | C150: 17 | D150: 1 | E150: 149 | F150: 公共 | G150: 232246 | H150: 愛知県 | I150: 知多市 | J150: 1454 | K150: 732 | L150: 214 | M150: 1654 | N150: 149 | O150: 870 | P150: 64 | Q150: -201 | R150: 680 | S150: 190 | T150: 416 | U150: 712 | V150: 195 | W150: 515 | X150: -33 | Y150: -201
A151: 2014 | B151: 46 | C151: 17 | D151: 1 | E151: 150 | F151: 公共 | G151: 242021 | H151: 三重県 | I151: 四日市市 | J151: 14134 | K151: 3651 | L151: 6354 | M151: 12642 | N151: 1960 | O151: 7387 | P151: 387 | Q151: 1493 | R151: 8363 | S151: 4109 | T151: 219 | U151: 13964 | V151: 8818 | W151: 5146 | X151: -5601 | Y151: 1493
A152: 2014 | B152: 46 | C152: 17 | D152: 1 | E152: 151 | F152: 公共 | G152: 242039 | H152: 三重県 | I152: 伊勢市 | J152: 3486 | K152: 767 | L152: 1717 | M152: 3480 | N152: 552 | O152: 1422 | P152: 133 | Q152: 5 | R152: 2951 | S152: 1462 | T152: 117 | U152: 3906 | V152: 2968 | W152: 938 | X152: -955 | Y152: 5
A153: 2014 | B153: 46 | C153: 17 | D153: 1 | E153: 152 | F153: 公共 | G153: 242047 | H153: 三重県 | I153: 松阪市 | J153: 3349 | K153: 1086 | L153: 1560 | M153: 3600 | N153: 825 | O153: 1747 | P153: 103 | Q153: -251 | R153: 2973 | S153: 1064 | T153: 740 | U153: 4081 | V153: 2290 | W153: 1787 | X153: -1108 | Y153: -251
A154: 2014 | B154: 46 | C154: 17 | D154: 1 | E154: 153 | F154: 公共 | G154: 242055 | H154: 三重県 | I154: 桑名市 | J154: 4887 | K154: 1690 | L154: 1379 | M154: 4834 | N154: 774 | O154: 2867 | P154: 114 | Q154: 53 | R154: 1943 | S154: 1073 | T154: 646 | U154: 2676 | V154: 463 | W154: 2214 | X154: -734 | Y154: 53
A155: 2014 | B155: 46 | C155: 17 | D155: 1 | E155: 154 | F155: 公共 | G155: 242071 | H155: 三重県 | I155: 鈴鹿市 | J155: 4448 | K155: 1300 | L155: 1905 | M155: 4084 | N155: 901 | O155: 2124 | P155: 139 | Q155: 363 | R155: 2920 | S155: 1388 | T155: 710 | U155: 4337 | V155: 2292 | W155: 2045 | X155: -1417 | Y155: 363
A156: 2014 | B156: 46 | C156: 17 | D156: 1 | E156: 155 | F156: 公共 | G156: 244619 | H156: 三重県 | I156: 玉城町 | J156: 346 | K156: 78 | L156: 137 | M156: 455 | N156: 98 | O156: 237 | P156: 0 | Q156: -109 | R156: 939 | S156: 347 | T156: 222 | U156: 939 | V156: 781 | W156: 159 | X156: 0 | Y156: -109
A157: 2014 | B157: 46 | C157: 17 | D157: 1 | E157: 156 | F157: 公共 | G157: 252018 | H157: 滋賀県 | I157: 大津市 | J157: 11042 | K157: 6694 | L157: 2245 | M157: 9061 | N157: 1353 | O157: 4353 | P157: 483 | Q157: 1981 | R157: 2618 | S157: 1015 | T157: 918 | U157: 6442 | V157: 2072 | W157: 4370 | X157: -3824 | Y157: 1981
A158: 2014 | B158: 46 | C158: 17 | D158: 1 | E158: 157 | F158: 公共 | G158: 252069 | H158: 滋賀県 | I158: 草津市 | J158: 2797 | K158: 1710 | L158: 479 | M158: 2599 | N158: 412 | O158: 1234 | P158: 83 | Q158: 198 | R158: 1244 | S158: 539 | T158: 547 | U158: 1970 | V158: 379 | W158: 1591 | X158: -726 | Y158: 198
A159: 2014 | B159: 46 | C159: 17 | D159: 1 | E159: 158 | F159: 公共 | G159: 252085 | H159: 滋賀県 | I159: 栗東市 | J159: 1637 | K159: 975 | L159: 409 | M159: 1599 | N159: 340 | O159: 727 | P159: 19 | Q159: 38 | R159: 985 | S159: 656 | T159: 0 | U159: 1573 | V159: 420 | W159: 1153 | X159: -588 | Y159: 38
A160: 2014 | B160: 46 | C160: 17 | D160: 1 | E160: 159 | F160: 公共 | G160: 261009 | H160: 京都府 | I160: 京都市 | J160: 51453 | K160: 22069 | L160: 20801 | M160: 50324 | N160: 6752 | O160: 26394 | P160: 3766 | Q160: 1129 | R160: 20903 | S160: 13921 | T160: 1891 | U160: 43726 | V160: 20318 | W160: 23406 | X160: -22822 | Y160: 1129
A161: 2014 | B161: 46 | C161: 17 | D161: 1 | E161: 160 | F161: 公共 | G161: 262013 | H161: 京都府 | I161: 福知山市 | J161: 2823 | K161: 1255 | L161: 710 | M161: 2897 | N161: 313 | O161: 1693 | P161: 57 | Q161: -74 | R161: 1761 | S161: 610 | T161: 67 | U161: 2843 | V161: 1916 | W161: 928 | X161: -1083 | Y161: -74
A162: 2014 | B162: 46 | C162: 17 | D162: 1 | E162: 161 | F162: 公共 | G162: 262064 | H162: 京都府 | I162: 亀岡市 | J162: 2231 | K162: 1533 | L162: 243 | M162: 2266 | N162: 401 | O162: 1033 | P162: 91 | Q162: -35 | R162: 1026 | S162: 261 | T162: 439 | U162: 1838 | V162: 670 | W162: 1168 | X162: -812 | Y162: -35
A163: 2014 | B163: 46 | C163: 17 | D163: 1 | E163: 162 | F163: 公共 | G163: 262072 | H163: 京都府 | I163: 城陽市 | J163: 1893 | K163: 1163 | L163: 344 | M163: 1927 | N163: 513 | O163: 877 | P163: 39 | Q163: -35 | R163: 1500 | S163: 1124 | T163: 256 | U163: 2030 | V163: 124 | W163: 1895 | X163: -530 | Y163: -35
A164: 2014 | B164: 46 | C164: 17 | D164: 1 | E164: 163 | F164: 公共 | G164: 262102 | H164: 京都府 | I164: 八幡市 | J164: 1852 | K164: 1015 | L164: 361 | M164: 1866 | N164: 196 | O164: 791 | P164: 47 | Q164: -14 | R164: 369 | S164: 258 | T164: 56 | U164: 869 | V164: 317 | W164: 548 | X164: -499 | Y164: -14
A165: 2014 | B165: 46 | C165: 17 | D165: 1 | E165: 164 | F165: 公共 | G165: 271004 | H165: 大阪府 | I165: 大阪市 | J165: 82666 | K165: 38454 | L165: 27201 | M165: 87486 | N165: 8818 | O165: 40647 | P165: 3723 | Q165: -4820 | R165: 58031 | S165: 35557 | T165: 4188 | U165: 89776 | V165: 42412 | W165: 47363 | X165: -31745 | Y165: -4820
A166: 2014 | B166: 46 | C166: 17 | D166: 1 | E166: 165 | F166: 公共 | G166: 271403 | H166: 大阪府 | I166: 堺市 | J166: 28769 | K166: 14969 | L166: 8019 | M166: 27510 | N166: 5863 | O166: 13235 | P166: 1944 | Q166: 1259 | R166: 18846 | S166: 11489 | T166: 674 | U166: 28757 | V166: 13741 | W166: 14977 | X166: -9912 | Y166: 1259
A167: 2014 | B167: 46 | C167: 17 | D167: 1 | E167: 166 | F167: 公共 | G167: 272027 | H167: 大阪府 | I167: 岸和田市 | J167: 7246 | K167: 3497 | L167: 2240 | M167: 7225 | N167: 1469 | O167: 3816 | P167: 206 | Q167: 21 | R167: 3387 | S167: 2587 | T167: 0 | U167: 6254 | V167: 1085 | W167: 5169 | X167: -2868 | Y167: 21
A168: 2014 | B168: 46 | C168: 17 | D168: 1 | E168: 167 | F168: 公共 | G168: 272035 | H168: 大阪府 | I168: 豊中市 | J168: 11010 | K168: 3831 | L168: 2713 | M168: 10278 | N168: 658 | O168: 4050 | P168: 584 | Q168: 732 | R168: 2048 | S168: 1260 | T168: 144 | U168: 4726 | V168: 2388 | W168: 2338 | X168: -2678 | Y168: 732
A169: 2014 | B169: 46 | C169: 17 | D169: 1 | E169: 168 | F169: 公共 | G169: 272043 | H169: 大阪府 | I169: 池田市 | J169: 2919 | K169: 915 | L169: 695 | M169: 2893 | N169: 155 | O169: 1795 | P169: 120 | Q169: 25 | R169: 1195 | S169: 397 | T169: 0 | U169: 1581 | V169: 1241 | W169: 340 | X169: -386 | Y169: 25
A170: 2014 | B170: 46 | C170: 17 | D170: 1 | E170: 169 | F170: 公共 | G170: 272108 | H170: 大阪府 | I170: 枚方市 | J170: 12958 | K170: 5705 | L170: 3947 | M170: 10503 | N170: 1913 | O170: 5802 | P170: 659 | Q170: 2455 | R170: 5147 | S170: 2872 | T170: 1383 | U170: 10307 | V170: 3577 | W170: 6625 | X170: -5161 | Y170: 2455
A171: 2014 | B171: 46 | C171: 17 | D171: 1 | E171: 170 | F171: 公共 | G171: 272159 | H171: 大阪府 | I171: 寝屋川市 | J171: 5838 | K171: 3326 | L171: 1708 | M171: 5669 | N171: 1477 | O171: 2838 | P171: 104 | Q171: 170 | R171: 2261 | S171: 1731 | T171: 480 | U171: 4291 | V171: 303 | W171: 3983 | X171: -2031 | Y171: 170
A172: 2014 | B172: 46 | C172: 17 | D172: 1 | E172: 171 | F172: 公共 | G172: 272191 | H172: 大阪府 | I172: 和泉市 | J172: 3783 | K172: 1855 | L172: 596 | M172: 3733 | N172: 615 | O172: 2179 | P172: 87 | Q172: 49 | R172: 1248 | S172: 836 | T172: 0 | U172: 2285 | V172: 652 | W172: 1633 | X172: -1037 | Y172: 49
A173: 2014 | B173: 46 | C173: 17 | D173: 1 | E173: 172 | F173: 公共 | G173: 272205 | H173: 大阪府 | I173: 箕面市 | J173: 2499 | K173: 1525 | L173: 249 | M173: 2267 | N173: 142 | O173: 1300 | P173: 68 | Q173: 232 | R173: 249 | S173: 139 | T173: 69 | U173: 655 | V173: 253 | W173: 402 | X173: -406 | Y173: 232
A174: 2014 | B174: 46 | C174: 17 | D174: 1 | E174: 173 | F174: 公共 | G174: 272213 | H174: 大阪府 | I174: 柏原市 | J174: 2097 | K174: 923 | L174: 616 | M174: 2183 | N174: 449 | O174: 1219 | P174: 98 | Q174: -86 | R174: 1199 | S174: 772 | T174: 312 | U174: 1833 | V174: 632 | W174: 1201 | X174: -634 | Y174: -86
A175: 2014 | B175: 46 | C175: 17 | D175: 1 | E175: 174 | F175: 公共 | G175: 272272 | H175: 大阪府 | I175: 東大阪市 | J175: 17296 | K175: 6738 | L175: 7961 | M175: 17533 | N175: 3501 | O175: 7946 | P175: 668 | Q175: -238 | R175: 7183 | S175: 5136 | T175: 0 | U175: 12992 | V175: 2900 | W175: 10091 | X175: -5809 | Y175: -238
A176: 2014 | B176: 46 | C176: 17 | D176: 1 | E176: 175 | F176: 公共 | G176: 272299 | H176: 大阪府 | I176: 四條畷市 | J176: 1856 | K176: 625 | L176: 779 | M176: 1766 | N176: 365 | O176: 980 | P176: 34 | Q176: 90 | R176: 606 | S176: 560 | T176: 0 | U176: 1312 | V176: 155 | W176: 1157 | X176: -706 | Y176: 90
A177: 2014 | B177: 46 | C177: 17 | D177: 1 | E177: 176 | F177: 公共 | G177: 281000 | H177: 兵庫県 | I177: 神戸市 | J177: 34278 | K177: 18593 | L177: 4663 | M177: 35972 | N177: 3301 | O177: 21185 | P177: 2435 | Q177: -1695 | R177: 12170 | S177: 5988 | T177: 504 | U177: 23683 | V177: 14782 | W177: 7939 | X177: -11512 | Y177: -1695
A178: 2014 | B178: 46 | C178: 17 | D178: 1 | E178: 177 | F178: 公共 | G178: 282014 | H178: 兵庫県 | I178: 姫路市 | J178: 18128 | K178: 7779 | L178: 6499 | M178: 18128 | N178: 3319 | O178: 9414 | P178: 607 | Q178: 0 | R178: 7710 | S178: 2376 | T178: 0 | U178: 13692 | V178: 4460 | W178: 9227 | X178: -5982 | Y178: 0
A179: 2014 | B179: 46 | C179: 17 | D179: 1 | E179: 178 | F179: 公共 | G179: 282022 | H179: 兵庫県 | I179: 尼崎市 | J179: 12460 | K179: 5772 | L179: 4193 | M179: 11843 | N179: 1071 | O179: 5902 | P179: 771 | Q179: 616 | R179: 4775 | S179: 1595 | T179: 625 | U179: 9658 | V179: 5501 | W179: 4156 | X179: -4883 | Y179: 616
A180: 2014 | B180: 46 | C180: 17 | D180: 1 | E180: 179 | F180: 公共 | G180: 282049 | H180: 兵庫県 | I180: 西宮市 | J180: 12220 | K180: 5468 | L180: 4182 | M180: 11230 | N180: 1811 | O180: 6048 | P180: 427 | Q180: 990 | R180: 6799 | S180: 3685 | T180: 705 | U180: 11568 | V180: 4971 | W180: 6595 | X180: -4769 | Y180: 990
A181: 2014 | B181: 46 | C181: 17 | D181: 1 | E181: 180 | F181: 公共 | G181: 282073 | H181: 兵庫県 | I181: 伊丹市 | J181: 4871 | K181: 2504 | L181: 1753 | M181: 4525 | N181: 917 | O181: 2315 | P181: 166 | Q181: 347 | R181: 2407 | S181: 1748 | T181: 283 | U181: 4493 | V181: 597 | W181: 3635 | X181: -2086 | Y181: 347
A182: 2014 | B182: 46 | C182: 17 | D182: 1 | E182: 181 | F182: 公共 | G182: 282090 | H182: 兵庫県 | I182: 豊岡市 | J182: 2885 | K182: 861 | L182: 1192 | M182: 2905 | N182: 501 | O182: 1602 | P182: 61 | Q182: -20 | R182: 1777 | S182: 1150 | T182: 0 | U182: 2630 | V182: 1055 | W182: 1575 | X182: -853 | Y182: -20
A183: 2014 | B183: 46 | C183: 17 | D183: 1 | E183: 182 | F183: 公共 | G183: 282138 | H183: 兵庫県 | I183: 西脇市 | J183: 1251 | K183: 429 | L183: 563 | M183: 1253 | N183: 235 | O183: 712 | P183: 60 | Q183: -2 | R183: 308 | S183: 42 | T183: 252 | U183: 712 | V183: 60 | W183: 653 | X183: -404 | Y183: -2
A184: 2014 | B184: 46 | C184: 17 | D184: 1 | E184: 183 | F184: 公共 | G184: 282146 | H184: 兵庫県 | I184: 宝塚市 | J184: 4226 | K184: 1887 | L184: 1610 | M184: 4519 | N184: 703 | O184: 2125 | P184: 137 | Q184: -293 | R184: 1446 | S184: 1194 | T184: 213 | U184: 3116 | V184: 314 | W184: 2802 | X184: -1669 | Y184: -293
A185: 2014 | B185: 46 | C185: 17 | D185: 1 | E185: 184 | F185: 公共 | G185: 282154 | H185: 兵庫県 | I185: 三木市 | J185: 1884 | K185: 947 | L185: 537 | M185: 1800 | N185: 350 | O185: 921 | P185: 53 | Q185: 84 | R185: 719 | S185: 581 | T185: 0 | U185: 1347 | V185: 284 | W185: 1026 | X185: -628 | Y185: 84
A186: 2014 | B186: 46 | C186: 17 | D186: 1 | E186: 185 | F186: 公共 | G186: 282171 | H186: 兵庫県 | I186: 川西市 | J186: 3709 | K186: 1761 | L186: 898 | M186: 3392 | N186: 332 | O186: 1750 | P186: 146 | Q186: 317 | R186: 1118 | S186: 827 | T186: 71 | U186: 2389 | V186: 720 | W186: 1668 | X186: -1271 | Y186: 317
A187: 2014 | B187: 46 | C187: 17 | D187: 1 | E187: 186 | F187: 公共 | G187: 282189 | H187: 兵庫県 | I187: 小野市 | J187: 565 | K187: 376 | L187: 116 | M187: 581 | N187: 86 | O187: 247 | P187: 14 | Q187: -16 | R187: 501 | S187: 151 | T187: 0 | U187: 712 | V187: 230 | W187: 427 | X187: -211 | Y187: -16
A188: 2014 | B188: 46 | C188: 17 | D188: 1 | E188: 187 | F188: 公共 | G188: 282197 | H188: 兵庫県 | I188: 三田市 | J188: 2098 | K188: 911 | L188: 345 | M188: 2130 | N188: 170 | O188: 1160 | P188: 95 | Q188: -32 | R188: 309 | S188: 136 | T188: 102 | U188: 686 | V188: 242 | W188: 431 | X188: -376 | Y188: -32
A189: 2014 | B189: 46 | C189: 17 | D189: 1 | E189: 188 | F189: 公共 | G189: 282201 | H189: 兵庫県 | I189: 加西市 | J189: 722 | K189: 353 | L189: 222 | M189: 621 | N189: 88 | O189: 409 | P189: 13 | Q189: 101 | R189: 331 | S189: 158 | T189: 0 | U189: 574 | V189: 198 | W189: 376 | X189: -243 | Y189: 101
A190: 2014 | B190: 46 | C190: 17 | D190: 1 | E190: 189 | F190: 公共 | G190: 282286 | H190: 兵庫県 | I190: 加東市 | J190: 1036 | K190: 485 | L190: 263 | M190: 1036 | N190: 180 | O190: 606 | P190: 30 | Q190: 0 | R190: 444 | S190: 56 | T190: 240 | U190: 724 | V190: 91 | W190: 633 | X190: -280 | Y190: 0
A191: 2014 | B191: 46 | C191: 17 | D191: 1 | E191: 190 | F191: 公共 | G191: 283011 | H191: 兵庫県 | I191: 猪名川町 | J191: 832 | K191: 261 | L191: 69 | M191: 921 | N191: 107 | O191: 662 | P191: 20 | Q191: -90 | R191: 234 | S191: 22 | T191: 135 | U191: 329 | V191: 39 | W191: 290 | X191: -95 | Y191: -90
A192: 2014 | B192: 46 | C192: 17 | D192: 1 | E192: 191 | F192: 公共 | G192: 285854 | H192: 兵庫県 | I192: 香美町 | J192: 458 | K192: 105 | L192: 195 | M192: 478 | N192: 98 | O192: 276 | P192: 42 | Q192: -20 | R192: 212 | S192: 180 | T192: 0 | U192: 301 | V192: 32 | W192: 268 | X192: -89 | Y192: -20
A193: 2014 | B193: 46 | C193: 17 | D193: 1 | E193: 192 | F193: 公共 | G193: 289621 | H193: 兵庫県 | I193: 播磨高原広域事務組合（事業会計分） | J193: 353 | K193: 67 | L193: 91 | M193: 353 | N193: 33 | O193: 201 | P193: 22 | Q193: 0 | R193: 30 | S193: 0 | T193: 0 | U193: 82 | V193: 3 | W193: 79 | X193: -52 | Y193: 0
A194: 2014 | B194: 46 | C194: 17 | D194: 1 | E194: 193 | F194: 公共 | G194: 292010 | H194: 奈良県 | I194: 奈良市 | J194: 6563 | K194: 4022 | L194: 435 | M194: 7083 | N194: 786 | O194: 3449 | P194: 292 | Q194: -520 | R194: 3078 | S194: 1706 | T194: 1044 | U194: 3893 | V194: 998 | W194: 2892 | X194: -815 | Y194: -520
A195: 2014 | B195: 46 | C195: 17 | D195: 1 | E195: 194 | F195: 公共 | G195: 292036 | H195: 奈良県 | I195: 大和郡山市 | J195: 2535 | K195: 1540 | L195: 560 | M195: 2602 | N195: 416 | O195: 1101 | P195: 91 | Q195: -67 | R195: 1529 | S195: 858 | T195: 0 | U195: 2183 | V195: 674 | W195: 1468 | X195: -654 | Y195: -67
A196: 2014 | B196: 46 | C196: 17 | D196: 1 | E196: 195 | F196: 公共 | G196: 292044 | H196: 奈良県 | I196: 天理市 | J196: 2177 | K196: 1047 | L196: 845 | M196: 1693 | N196: 292 | O196: 810 | P196: 42 | Q196: 484 | R196: 263 | S196: 0 | T196: 140 | U196: 1100 | V196: 112 | W196: 982 | X196: -837 | Y196: 484
A197: 2014 | B197: 46 | C197: 17 | D197: 1 | E197: 196 | F197: 公共 | G197: 294420 | H197: 奈良県 | I197: 大淀町 | J197: 576 | K197: 180 | L197: 204 | M197: 579 | N197: 126 | O197: 343 | P197: 7 | Q197: -3 | R197: 282 | S197: 173 | T197: 19 | U197: 458 | V197: 167 | W197: 290 | X197: -177 | Y197: -3
A198: 2014 | B198: 46 | C198: 17 | D198: 1 | E198: 197 | F198: 公共 | G198: 312011 | H198: 鳥取県 | I198: 鳥取市 | J198: 6067 | K198: 2341 | L198: 1532 | M198: 6105 | N198: 1041 | O198: 3626 | P198: 163 | Q198: -38 | R198: 2977 | S198: 1681 | T198: 574 | U198: 4408 | V198: 1808 | W198: 2600 | X198: -1431 | Y198: -38
A199: 2014 | B199: 46 | C199: 17 | D199: 1 | E199: 198 | F199: 公共 | G199: 322016 | H199: 島根県 | I199: 松江市 | J199: 6539 | K199: 2926 | L199: 2247 | M199: 5270 | N199: 1047 | O199: 2777 | P199: 161 | Q199: 1269 | R199: 1783 | S199: 773 | T199: 718 | U199: 4336 | V199: 847 | W199: 3489 | X199: -2553 | Y199: 1269
A200: 2014 | B200: 46 | C200: 17 | D200: 1 | E200: 199 | F200: 公共 | G200: 331007 | H200: 岡山県 | I200: 岡山市 | J200: 19107 | K200: 9372 | L200: 5239 | M200: 19107 | N200: 4750 | O200: 9787 | P200: 473 | Q200: 0 | R200: 15171 | S200: 9030 | T200: 1982 | U200: 20811 | V200: 7253 | W200: 13133 | X200: -5640 | Y200: 0
... 3440 more rows

Sheet 27公共
A1: 団体 コード | B1: 都道府県名 | C1: 団体名 | D1: 事業 コード | E1: 類型区分 | F1: 処理区域内人口別区分 | G1: 有収水量密度別 区分 | H1: 供用開始後年数別区分 | I1: 処理区域内 人口 | J1: 有収水量 密度 | K1: 供用開始 後年 | L1: 事業別 普及率 | M1: 進捗率 | N1: 一般家庭使用料 （1ヶ月20m3あたり） | O1: 処理区域内 人口密度 | P1: 施設利用率 | Q1: 有収率 | R1: 水洗化率 | S1: 使用料単価 | T1: 汚水処理原価 | U1: 汚水処理原価（分流式下水道等に要する経費控除前） | V1: 汚水処理原価（維持管理費） | W1: 汚水処理原価（資本費） | X1: 経費回収率 | Y1: 経費回収率 （分流式下水道等に要する経費控除前） | Z1: 経費回収率 （維持管理費） | AA1: 処理区域１人 あたりの管理運営費（汚水分） | AB1: 処理区域１人 あたりの維持管理費（汚水分） | AC1: 処理区域１人 あたりの資本費（汚水分） | AD1: 職員1人あたりの処理区域内人口 | AE1: 職員給与費 対営業収益比率 | AF1: 総収支比率 | AG1: 経常収支比率 | AH1: 事業別 資金不足比率 | AI1: 利子負担率 | AJ1: 自己資本 構成比率 | AK1: 固定資産対 長期資本比率 | AL1: 処理区域内人口 1人あたり地方債残高
I2: 人 | J2: 千㎥/ｈa | K2: 年 | L2: ％ | M2: ％ | N2: 円/月 | O2: 人/ha | P2: ％ | Q2: ％ | R2: ％ | S2: 円/m3 | T2: 円/m3 | U2: 円/m3 | V2: 円/m3 | W2: 円/m3 | X2: ％ | Y2: ％ | Z2: ％ | AA2: 円/人 | AB2: 円/人 | AC2: 円/人 | AD2: 人/人 | AE2: ％ | AF2: ％ | AG2: ％ | AH2: ％ | AI2: ％ | AJ2: ％ | AK2: ％ | AL2: 千円/人
A4: 011002 | B4: 北海道 | C4: 札幌市 | D4: 1171 | E4: 政令市等 | F4: 政令市等 | G4: 政令市等 | H4: 政令市等 | I4: 1927108 | J4: 8.4 | K4: 55 | L4: 99.3 | M4: 92.6 | N4: 1371 | O4: 79 | P4: 68.1 | Q4: 70.7 | R4: 99.9 | S4: 94.42 | T4: 89.14 | U4: 89.14 | V4: 49.87 | W4: 39.27 | X4: 105.9 | Y4: 105.9 | Z4: 189.3 | AA4: 9530 | AB4: 5332 | AC4: 4198 | AD4: 3917 | AE4: 8.3 | AF4: 110.5 | AG4: 110.8 | AH4: 0 | AI4: 2.1 | AJ4: 57 | AK4: 102 | AL4: 132
A5: 041009 | B5: 宮城県 | C5: 仙台市 | D5: 1171 | E5: 政令市等 | F5: 政令市等 | G5: 政令市等 | H5: 政令市等 | I5: 1028835 | J5: 6.5 | K5: 52 | L5: 97.7 | M5: 89.7 | N5: 1882 | O5: 62 | P5: 87.2 | Q5: 81.7 | R5: 99.5 | S5: 149.32 | T5: 77.23 | U5: 77.23 | V5: 45.52 | W5: 31.71 | X5: 193.3 | Y5: 193.3 | Z5: 328 | AA5: 8159 | AB5: 4809 | AC5: 3350 | AD5: 4182 | AE5: 5.5 | AF5: 112.1 | AG5: 113.5 | AH5: 0 | AI5: 2.2 | AJ5: 63.3 | AK5: 101.2 | AL5: 198
A6: 111007 | B6: 埼玉県 | C6: さいたま市 | D6: 1171 | E6: 政令市等 | F6: 政令市等 | G6: 政令市等 | H6: 政令市等 | I6: 1172043 | J6: 9.4 | K6: 51 | L6: 92 | M6: 106.2 | N6: 2414 | O6: 98 | P6: 49.9 | Q6: 83.1 | R6: 96.1 | S6: 145.75 | T6: 140.91 | U6: 140.91 | V6: 56.19 | W6: 84.72 | X6: 103.4 | Y6: 103.4 | Z6: 259.4 | AA6: 13586 | AB6: 5418 | AC6: 8168 | AD6: 7973 | AE6: 2.8 | AF6: 102.6 | AG6: 102.7 | AH6: 0 | AI6: 2.1 | AJ6: 55.4 | AK6: 101.7 | AL6: 153
A7: 121002 | B7: 千葉県 | C7: 千葉市 | D7: 1171 | E7: 政令市等 | F7: 政令市等 | G7: 政令市等 | H7: 政令市等 | I7: 867885 | J7: 7.8 | K7: 53 | L7: 90 | M7: 95.4 | N7: 1998 | O7: 77 | P7: 61.7 | Q7: 78.4 | R7: 99.6 | S7: 143.6 | T7: 128.27 | U7: 146.04 | V7: 60.45 | W7: 67.82 | X7: 111.9 | Y7: 98.3 | Z7: 237.5 | AA7: 13037 | AB7: 6144 | AC7: 6893 | AD7: 6244 | AE7: 4.3 | AF7: 105.7 | AG7: 105.4 | AH7: 0 | AI7: 2 | AJ7: 49.9 | AK7: 103.1 | AL7: 258
A8: 130001 | B8: 東京都 | C8: 東京都 | D8: 1171 | E8: 政令市等 | F8: 政令市等 | G8: 政令市等 | H8: 政令市等 | I8: 9235892 | J8: 21.4 | K8: 64 | L8: 99.9 | M8: 106.3 | N8: 2030 | O8: 164 | P8: 58.5 | Q8: 93.5 | R8: 100 | S8: 131.68 | T8: 110.25 | U8: 110.25 | V8: 58.85 | W8: 51.4 | X8: 119.4 | Y8: 119.4 | Z8: 223.7 | AA8: 14365 | AB8: 7668 | AC8: 6697 | AD8: 4338 | AE8: 5.3 | AF8: 111.3 | AG8: 111.9 | AH8: 0 | AI8: 2.1 | AJ8: 67.5 | AK8: 102.4 | AL8: 171
A9: 141003 | B9: 神奈川県 | C9: 横浜市 | D9: 1171 | E9: 政令市等 | F9: 政令市等 | G9: 政令市等 | H9: 政令市等 | I9: 3729725 | J9: 12.2 | K9: 54 | L9: 99.9 | M9: 100.8 | N9: 1998 | O9: 120 | P9: 60.2 | Q9: 69.5 | R9: 99.6 | S9: 148.16 | T9: 110.11 | U9: 110.11 | V9: 47.15 | W9: 62.96 | X9: 134.6 | Y9: 134.6 | Z9: 314.2 | AA9: 11232 | AB9: 4810 | AC9: 6423 | AD9: 4521 | AE9: 5.6 | AF9: 113.8 | AG9: 113.7 | AH9: 0 | AI9: 1.8 | AJ9: 62.4 | AK9: 102.4 | AL9: 210
A10: 141305 | B10: 神奈川県 | C10: 川崎市 | D10: 1171 | E10: 政令市等 | F10: 政令市等 | G10: 政令市等 | H10: 政令市等 | I10: 1472898 | J10: 13.8 | K10: 85 | L10: 99.4 | M10: 100.4 | N10: 2116 | O10: 138 | P10: 53.8 | Q10: 81.9 | R10: 99 | S10: 150.23 | T10: 135.7 | U10: 135.7 | V10: 49.88 | W10: 85.82 | X10: 110.7 | Y10: 110.7 | Z10: 301.2 | AA10: 13635 | AB10: 5012 | AC10: 8623 | AD10: 3592 | AE10: 8.3 | AF10: 104.3 | AG10: 105.7 | AH10: 0 | AI10: 2 | AJ10: 47.2 | AK10: 107.7 | AL10: 239
A11: 141500 | B11: 神奈川県 | C11: 相模原市 | D11: 1171 | E11: 政令市等 | F11: 政令市等 | G11: 政令市等 | H11: 政令市等 | I11: 691502 | J11: 9.6 | K11: 48 | L11: 96.5 | M11: 98.4 | N11: 1999 | O11: 91 | P11: 0 | Q11: 86.3 | R11: 98.7 | S11: 117.89 | T11: 117.67 | U11: 117.67 | V11: 48.26 | W11: 69.41 | X11: 100.2 | Y11: 100.2 | Z11: 244.3 | AA11: 12418 | AB11: 5093 | AC11: 7325 | AD11: 7056 | AE11: 3.9 | AF11: 102.5 | AG11: 102.4 | AH11: 0 | AI11: 2.6 | AJ11: 62.8 | AK11: 102.7 | AL11: 134
A12: 151009 | B12: 新潟県 | C12: 新潟市 | D12: 1171 | E12: 政令市等 | F12: 政令市等 | G12: 政令市等 | H12: 政令市等 | I12: 648247 | J12: 6 | K12: 49 | L12: 81.1 | M12: 91.4 | N12: 2991 | O12: 56 | P12: 93.1 | Q12: 65.4 | R12: 90.3 | S12: 172.54 | T12: 164.54 | U12: 187.93 | V12: 60.28 | W12: 104.25 | X12: 104.9 | Y12: 91.8 | Z12: 286.2 | AA12: 17468 | AB12: 6400 | AC12: 11068 | AD12: 3274 | AE12: 5 | AF12: 104.1 | AG12: 104.1 | AH12: 0.2 | AI12: 2 | AJ12: 43.1 | AK12: 103.3 | AL12: 486
A13: 221007 | B13: 静岡県 | C13: 静岡市 | D13: 1171 | E13: 政令市等 | F13: 政令市等 | G13: 政令市等 | H13: 政令市等 | I13: 588873 | J13: 7.2 | K13: 56 | L13: 82.9 | M13: 91 | N13: 2720 | O13: 67 | P13: 70.3 | Q13: 48.9 | R13: 87.9 | S13: 151.18 | T13: 157.06 | U13: 187.52 | V13: 65.33 | W13: 91.72 | X13: 96.3 | Y13: 80.6 | Z13: 231.4 | AA13: 16911 | AB13: 7035 | AC13: 9876 | AD13: 3253 | AE13: 7.1 | AF13: 107.2 | AG13: 107.2 | AH13: 0 | AI13: 2.2 | AJ13: 58.5 | AK13: 100.6 | AL13: 259
A14: 221309 | B14: 静岡県 | C14: 浜松市 | D14: 1171 | E14: 政令市等 | F14: 政令市等 | G14: 政令市等 | H14: 政令市等 | I14: 575648 | J14: 5.7 | K14: 50 | L14: 71.3 | M14: 91.1 | N14: 2516 | O14: 50 | P14: 72.6 | Q14: 89.1 | R14: 96.4 | S14: 139.18 | T14: 104.78 | U14: 144.39 | V14: 38.12 | W14: 66.66 | X14: 132.8 | Y14: 96.4 | Z14: 365.1 | AA14: 11900 | AB14: 4329 | AC14: 7571 | AD14: 6124 | AE14: 3.8 | AF14: 115.6 | AG14: 115.6 | AH14: 0 | AI14: 2.2 | AJ14: 50.4 | AK14: 102.8 | AL14: 226
A15: 231002 | B15: 愛知県 | C15: 名古屋市 | D15: 1171 | E15: 政令市等 | F15: 政令市等 | G15: 政令市等 | H15: 政令市等 | I15: 2249400 | J15: 9.2 | K15: 104 | L15: 99.3 | M15: 98.7 | N15: 1771 | O15: 80 | P15: 54.6 | Q15: 65.6 | R15: 99.8 | S15: 120.83 | T15: 114.36 | U15: 114.36 | V15: 53.37 | W15: 60.99 | X15: 105.7 | Y15: 105.7 | Z15: 226.4 | AA15: 13160 | AB15: 6141 | AC15: 7019 | AD15: 2286 | AE15: 9.7 | AF15: 102.5 | AG15: 103.5 | AH15: 0 | AI15: 1.9 | AJ15: 53.7 | AK15: 100.6 | AL15: 210
A16: 261009 | B16: 京都府 | C16: 京都市 | D16: 1171 | E16: 政令市等 | F16: 政令市等 | G16: 政令市等 | H16: 政令市等 | I16: 1405469 | J16: 11.9 | K16: 82 | L16: 99.1 | M16: 103 | N16: 1976 | O16: 92 | P16: 59.8 | Q16: 55.7 | R16: 99.1 | S16: 122.32 | T16: 102.68 | U16: 102.68 | V16: 44.93 | W16: 57.75 | X16: 119.1 | Y16: 119.1 | Z16: 272.2 | AA16: 13223 | AB16: 5786 | AC16: 7437 | AD16: 2637 | AE16: 8.9 | AF16: 110.2 | AG16: 110.2 | AH16: 0 | AI16: 2 | AJ16: 53.9 | AK16: 101.1 | AL16: 231
A17: 271004 | B17: 大阪府 | C17: 大阪市 | D17: 1171 | E17: 政令市等 | F17: 政令市等 | G17: 政令市等 | H17: 政令市等 | I17: 2683153 | J17: 21.4 | K17: 76 | L17: 100 | M17: 97.7 | N17: 1252 | O17: 141 | P17: 59.7 | Q17: 68.5 | R17: 100 | S17: 94.12 | T17: 94 | U17: 94 | V17: 54.35 | W17: 39.65 | X17: 100.1 | Y17: 100.1 | Z17: 173.2 | AA17: 14281 | AB17: 8257 | AC17: 6024 | AD17: 6497 | AE17: 5.1 | AF17: 103.9 | AG17: 103.8 | AH17: 0 | AI17: 1.7 | AJ17: 55.9 | AK17: 101.6 | AL17: 179
A18: 271403 | B18: 大阪府 | C18: 堺市 | D18: 1171 | E18: 政令市等 | F18: 政令市等 | G18: 政令市等 | H18: 政令市等 | I18: 827648 | J18: 8.4 | K18: 56 | L18: 98 | M18: 96 | N18: 2824 | O18: 83 | P18: 86.9 | Q18: 83 | R18: 94 | S18: 177.02 | T18: 168.08 | U18: 168.08 | V18: 62.63 | W18: 105.45 | X18: 105.3 | Y18: 105.3 | Z18: 282.6 | AA18: 17027 | AB18: 6345 | AC18: 10682 | AD18: 3850 | AE18: 8.9 | AF18: 101.2 | AG18: 103.5 | AH18: 0 | AI18: 2.2 | AJ18: 46.1 | AK18: 103 | AL18: 320
A19: 281000 | B19: 兵庫県 | C19: 神戸市 | D19: 1171 | E19: 政令市等 | F19: 政令市等 | G19: 政令市等 | H19: 政令市等 | I19: 1509217 | J19: 10.1 | K19: 58 | L19: 97.7 | M19: 100.3 | N19: 1566 | O19: 89 | P19: 72.4 | Q19: 93 | R19: 99.9 | S19: 109.63 | T19: 113.49 | U19: 113.49 | V19: 44.58 | W19: 68.91 | X19: 96.6 | Y19: 96.6 | Z19: 245.9 | AA19: 12877 | AB19: 5058 | AC19: 7819 | AD19: 4505 | AE19: 11 | AF19: 103.5 | AG19: 101.6 | AH19: 0 | AI19: 2.2 | AJ19: 76.6 | AK19: 97.9 | AL19: 94
A20: 331007 | B20: 岡山県 | C20: 岡山市 | D20: 1171 | E20: 政令市等 | F20: 政令市等 | G20: 政令市等 | H20: 政令市等 | I20: 455467 | J20: 7 | K20: 54 | L20: 64.4 | M20: 81.3 | N20: 2957 | O20: 63 | P20: 240 | Q20: 79.1 | R20: 87.4 | S20: 185.62 | T20: 189.43 | U20: 233.14 | V20: 69.45 | W20: 119.98 | X20: 98 | Y20: 79.6 | Z20: 267.3 | AA20: 20831 | AB20: 7637 | AC20: 13194 | AD20: 3374 | AE20: 4.2 | AF20: 100 | AG20: 100 | AH20: 0 | AI20: 2.1 | AJ20: 37.5 | AK20: 103.9 | AL20: 472
A21: 341002 | B21: 広島県 | C21: 広島市 | D21: 1171 | E21: 政令市等 | F21: 政令市等 | G21: 政令市等 | H21: 政令市等 | I21: 1112900 | J21: 8.4 | K21: 55 | L21: 93.5 | M21: 104.9 | N21: 2219 | O21: 80 | P21: 63.6 | Q21: 82.3 | R21: 97 | S21: 168.93 | T21: 159.74 | U21: 159.74 | V21: 51.23 | W21: 108.51 | X21: 105.8 | Y21: 105.8 | Z21: 329.8 | AA21: 16800 | AB21: 5388 | AC21: 11412 | AD21: 3024 | AE21: 7.6 | AF21: 102 | AG21: 102.5 | AH21: 0 | AI21: 2 | AJ21: 43.6 | AK21: 105.4 | AL21: 409
A22: 401005 | B22: 福岡県 | C22: 北九州市 | D22: 1171 | E22: 政令市等 | F22: 政令市等 | G22: 政令市等 | H22: 政令市等 | I22: 952955 | J22: 6.1 | K22: 53 | L22: 98.6 | M22: 74.7 | N22: 2146 | O22: 60 | P22: 59.6 | Q22: 74.7 | R22: 99.7 | S22: 147.39 | T22: 152.97 | U22: 152.97 | V22: 58.32 | W22: 94.66 | X22: 96.3 | Y22: 96.3 | Z22: 252.7 | AA22: 15490 | AB22: 5905 | AC22: 9585 | AD22: 6031 | AE22: 4.7 | AF22: 106.9 | AG22: 106.4 | AH22: 0 | AI22: 1.9 | AJ22: 63.5 | AK22: 101.6 | AL22: 161
A23: 401307 | B23: 福岡県 | C23: 福岡市 | D23: 1171 | E23: 政令市等 | F23: 政令市等 | G23: 政令市等 | H23: 政令市等 | I23: 1497400 | J23: 8.9 | K23: 54 | L23: 99.7 | M23: 93.6 | N23: 2602 | O23: 88 | P23: 59.9 | Q23: 78.4 | R23: 99.5 | S23: 180.25 | T23: 153.47 | U23: 153.47 | V23: 68.61 | W23: 84.86 | X23: 117.4 | Y23: 117.4 | Z23: 262.7 | AA23: 15516 | AB23: 6937 | AC23: 8580 | AD23: 5546 | AE23: 2.8 | AF23: 110.8 | AG23: 110.7 | AH23: 0 | AI23: 2 | AJ23: 47.6 | AK23: 103 | AL23: 272
A24: 431001 | B24: 熊本県 | C24: 熊本市 | D24: 1171 | E24: 政令市等 | F24: 政令市等 | G24: 政令市等 | H24: 政令市等 | I24: 650323 | J24: 6.2 | K24: 56 | L24: 88.6 | M24: 97.6 | N24: 2303 | O24: 57 | P24: 67.9 | Q24: 84.9 | R24: 97.1 | S24: 149.19 | T24: 121.73 | U24: 165.44 | V24: 65.91 | W24: 55.81 | X24: 122.6 | Y24: 90.2 | Z24: 226.3 | AA24: 13252 | AB24: 7176 | AC24: 6076 | AD24: 3633 | AE24: 10.4 | AF24: 112.4 | AG24: 112 | AH24: 0 | AI24: 2.1 | AJ24: 48.4 | AK24: 99.7 | AL24: 222
B25: 団体数 | C25: 21 | E25: 政令市等 計 | M25: 98.8 | N25: 2174 | O25: 99 | P25: 63 | Q25: 77.6 | R25: 98.8 | S25: 133.34 | T25: 116.93 | U25: 120.09 | V25: 54.67 | W25: 62.26 | X25: 114 | Y25: 111 | Z25: 243.9 | AA25: 13610 | AB25: 6363 | AC25: 7247 | AD25: 4127 | AE25: 6.2 | AF25: 108.3 | AG25: 108.6 | AH25: 0 | AI25: 2 | AJ25: 58.5 | AK25: 102.3 | AL25: 208
A26: 112011 | B26: 埼玉県 | C26: 川越市 | D26: 1171 | E26: Aa1 | F26: A | G26: a | H26: 1 | I26: 305776 | J26: 8.8 | K26: 52 | L26: 87.3 | M26: 98.4 | N26: 1566 | O26: 82 | P26: 0 | Q26: 70.1 | R26: 97.9 | S26: 98.29 | T26: 90.48 | U26: 90.48 | V26: 50.67 | W26: 39.81 | X26: 108.6 | Y26: 108.6 | Z26: 194 | AA26: 9718 | AB26: 5442 | AC26: 4276 | AD26: 4633 | AE26: 9.2 | AF26: 103.8 | AG26: 105.5 | AH26: 0 | AI26: 2.4 | AJ26: 76.8 | AK26: 97.9 | AL26: 62
A27: 112089 | B27: 埼玉県 | C27: 所沢市 | D27: 1171 | E27: Aa1 | F27: A | G27: a | H27: 1 | I27: 319282 | J27: 10.3 | K27: 48 | L27: 93 | M27: 100.3 | N27: 1277 | O27: 100 | P27: 0 | Q27: 97.3 | R27: 98.2 | S27: 80.47 | T27: 101.73 | U27: 101.73 | V27: 50.48 | W27: 51.25 | X27: 79.1 | Y27: 79.1 | Z27: 159.4 | AA27: 10403 | AB27: 5162 | AC27: 5241 | AD27: 4315 | AE27: 10.9 | AF27: 100.2 | AG27: 99.6 | AH27: 0 | AI27: 2.6 | AJ27: 77.7 | AK27: 99.4 | AL27: 58
A28: 112143 | B28: 埼玉県 | C28: 春日部市 | D28: 1171 | E28: Aa1 | F28: A | G28: a | H28: 1 | I28: 206137 | J28: 8.9 | K28: 29 | L28: 87.1 | M28: 94.2 | N28: 1944 | O28: 94 | P28: 0 | Q28: 88.2 | R28: 94.3 | S28: 105.4 | T28: 126.3 | U28: 156.51 | V28: 56.2 | W28: 70.09 | X28: 83.5 | Y28: 67.3 | Z28: 187.5 | AA28: 11877 | AB28: 5285 | AC28: 6592 | AD28: 12884 | AE28: 4 | AF28: 114.7 | AG28: 114.2 | AH28: 0 | AI28: 2.2 | AJ28: 41.5 | AK28: 104.1 | AL28: 191
A29: 112151 | B29: 埼玉県 | C29: 狭山市 | D29: 1171 | E29: Aa1 | F29: A | G29: a | H29: 1 | I29: 146623 | J29: 8.7 | K29: 42 | L29: 95.5 | M29: 99.3 | N29: 1404 | O29: 77 | P29: 0 | Q29: 83.4 | R29: 98.3 | S29: 92.59 | T29: 107 | U29: 114.37 | V29: 42.18 | W29: 64.82 | X29: 86.5 | Y29: 81 | Z29: 219.5 | AA29: 12201 | AB29: 4809 | AC29: 7391 | AD29: 6109 | AE29: 5 | AF29: 103.7 | AG29: 103.7 | AH29: 0 | AI29: 2.8 | AJ29: 73.8 | AK29: 99.4 | AL29: 101
A30: 112241 | B30: 埼玉県 | C30: 戸田市 | D30: 1171 | E30: Aa1 | F30: A | G30: a | H30: 1 | I30: 120677 | J30: 12.3 | K30: 43 | L30: 88.9 | M30: 105.1 | N30: 777 | O30: 102 | P30: 0 | Q30: 84.5 | R30: 99 | S30: 69.3 | T30: 80.24 | U30: 80.24 | V30: 52.11 | W30: 28.13 | X30: 86.4 | Y30: 86.4 | Z30: 133 | AA30: 9636 | AB30: 6258 | AC30: 3378 | AD30: 12068 | AE30: 3.3 | AF30: 97.7 | AG30: 103.4 | AH30: 0 | AI30: 2.4 | AJ30: 59.7 | AK30: 101 | AL30: 72
A31: 112259 | B31: 埼玉県 | C31: 入間市 | D31: 1171 | E31: Aa1 | F31: A | G31: a | H31: 1 | I31: 131705 | J31: 8.4 | K31: 30 | L31: 88.2 | M31: 93.5 | N31: 1782 | O31: 84 | P31: 0 | Q31: 88.5 | R31: 96.7 | S31: 101.57 | T31: 120.83 | U31: 120.83 | V31: 47.9 | W31: 72.93 | X31: 84.1 | Y31: 84.1 | Z31: 212.1 | AA31: 12139 | AB31: 4812 | AC31: 7327 | AD31: 11973 | AE31: 4.2 | AF31: 105.2 | AG31: 105.5 | AH31: 0 | AI31: 3 | AJ31: 74.5 | AK31: 101.7 | AL31: 68
A32: 112356 | B32: 埼玉県 | C32: 富士見市 | D32: 1171 | E32: Aa1 | F32: A | G32: a | H32: 1 | I32: 104547 | J32: 11.7 | K32: 34 | L32: 94.9 | M32: 105.7 | N32: 1620 | O32: 125 | P32: 0 | Q32: 85.3 | R32: 96.1 | S32: 89.22 | T32: 113.41 | U32: 113.41 | V32: 47.19 | W32: 66.22 | X32: 78.7 | Y32: 78.7 | Z32: 189.1 | AA32: 10565 | AB32: 4396 | AC32: 6169 | AD32: 10455 | AE32: 3 | AF32: 120.7 | AG32: 117.6 | AH32: 0 | AI32: 3.2 | AJ32: 68.1 | AK32: 101.1 | AL32: 64
A33: 122173 | B33: 千葉県 | C33: 柏市 | D33: 1171 | E33: Aa1 | F33: A | G33: a | H33: 1 | I33: 365957 | J33: 8.1 | K33: 43 | L33: 89.3 | M33: 93.4 | N33: 2314 | O33: 82 | P33: 0 | Q33: 80.9 | R33: 91.6 | S33: 146.09 | T33: 141.57 | U33: 141.57 | V33: 79.6 | W33: 61.97 | X33: 103.2 | Y33: 103.2 | Z33: 183.5 | AA33: 13891 | AB33: 7811 | AC33: 6081 | AD33: 8511 | AE33: 3.8 | AF33: 104.8 | AG33: 104.6 | AH33: 0 | AI33: 2.4 | AJ33: 69.5 | AK33: 100.2 | AL33: 119
A34: 122203 | B34: 千葉県 | C34: 流山市 | D34: 1171 | E34: Aa1 | F34: A | G34: a | H34: 1 | I34: 147034 | J34: 8.5 | K34: 30 | L34: 82.9 | M34: 88.6 | N34: 2160 | O34: 91 | P34: 0 | Q34: 80.3 | R34: 93.3 | S34: 121.72 | T34: 144.33 | U34: 155.32 | V34: 78.34 | W34: 66 | X34: 84.3 | Y34: 78.4 | Z34: 155.4 | AA34: 13456 | AB34: 7303 | AC34: 6153 | AD34: 7739 | AE34: 5.5 | AF34: 102.2 | AG34: 102.7 | AH34: 0 | AI34: 2.4 | AJ34: 64.1 | AK34: 101.1 | AL34: 123
A35: 122211 | B35: 千葉県 | C35: 八千代市 | D35: 1171 | E35: Aa1 | F35: A | G35: a | H35: 1 | I35: 179509 | J35: 9.1 | K35: 48 | L35: 91.9 | M35: 83.6 | N35: 2062 | O35: 95 | P35: 0 | Q35: 81.9 | R35: 99.1 | S35: 125.96 | T35: 120.11 | U35: 120.11 | V35: 73.17 | W35: 46.94 | X35: 104.9 | Y35: 104.9 | Z35: 172.1 | AA35: 11480 | AB35: 6994 | AC35: 4486 | AD35: 7480 | AE35: 4.8 | AF35: 102 | AG35: 103.2 | AH35: 0 | AI35: 2.6 | AJ35: 76.9 | AK35: 100.9 | AL35: 48
A36: 142051 | B36: 神奈川県 | C36: 藤沢市 | D36: 1171 | E36: Aa1 | F36: A | G36: a | H36: 1 | I36: 406780 | J36: 9.2 | K36: 57 | L36: 95.4 | M36: 100.9 | N36: 2063 | O36: 86 | P36: 63.7 | Q36: 79.1 | R36: 98.1 | S36: 126.13 | T36: 138.88 | U36: 161.16 | V36: 77.89 | W36: 60.99 | X36: 90.8 | Y36: 78.3 | Z36: 161.9 | AA36: 14770 | AB36: 8283 | AC36: 6486 | AD36: 5424 | AE36: 5.5 | AF36: 105.2 | AG36: 101.2 | AH36: 0 | AI36: 2.9 | AJ36: 65.3 | AK36: 102.1 | AL36: 140
A37: 142077 | B37: 神奈川県 | C37: 茅ヶ崎市 | D37: 1171 | E37: Aa1 | F37: A | G37: a | H37: 1 | I37: 230513 | J37: 10.4 | K37: 39 | L37: 95.5 | M37: 95.9 | N37: 1844 | O37: 104 | P37: 0 | Q37: 100.6 | R37: 98 | S37: 111.19 | T37: 107.86 | U37: 107.86 | V37: 52.36 | W37: 55.49 | X37: 103.1 | Y37: 103.1 | Z37: 212.4 | AA37: 10773 | AB37: 5230 | AC37: 5543 | AD37: 7204 | AE37: 3.5 | AF37: 105.6 | AG37: 105.6 | AH37: 0 | AI37: 2.5 | AJ37: 55.8 | AK37: 101.2 | AL37: 145
A38: 222038 | B38: 静岡県 | C38: 沼津市 | D38: 1171 | E38: Aa1 | F38: A | G38: a | H38: 1 | I38: 106765 | J38: 8 | K38: 38 | L38: 53.4 | M38: 77.4 | N38: 2100 | O38: 67 | P38: 137.9 | Q38: 58.3 | R38: 88.4 | S38: 106.61 | T38: 167.58 | U38: 207.85 | V38: 78.56 | W38: 89.02 | X38: 63.6 | Y38: 51.3 | Z38: 135.7 | AA38: 20068 | AB38: 9408 | AC38: 10661 | AD38: 2669 | AE38: 9.3 | AF38: 102.8 | AG38: 102.8 | AH38: 0 | AI38: 2.1 | AJ38: 47.7 | AK38: 102.7 | AL38: 327
A39: 262048 | B39: 京都府 | C39: 宇治市 | D39: 1171 | E39: Aa1 | F39: A | G39: a | H39: 1 | I39: 171008 | J39: 9.5 | K39: 30 | L39: 90.4 | M39: 95.6 | N39: 3026 | O39: 106 | P39: 61.1 | Q39: 89.7 | R39: 82.6 | S39: 163.39 | T39: 187.24 | U39: 213.08 | V39: 75.92 | W39: 111.32 | X39: 87.3 | Y39: 76.7 | Z39: 215.2 | AA39: 16687 | AB39: 6766 | AC39: 9921 | AD39: 3054 | AE39: 7.4 | AF39: 97.1 | AG39: 97.4 | AH39: 0 | AI39: 2 | AJ39: 53 | AK39: 102.2 | AL39: 250
A40: 272035 | B40: 大阪府 | C40: 豊中市 | D40: 1171 | E40: Aa1 | F40: A | G40: a | H40: 1 | I40: 402417 | J40: 13.1 | K40: 51 | L40: 100 | M40: 83.5 | N40: 1395 | O40: 120 | P40: 217.7 | Q40: 68.2 | R40: 99.8 | S40: 85.59 | T40: 82.75 | U40: 82.75 | V40: 49.99 | W40: 32.75 | X40: 103.4 | Y40: 103.4 | Z40: 171.2 | AA40: 9055 | AB40: 5470 | AC40: 3584 | AD40: 4374 | AE40: 9.9 | AF40: 110.1 | AG40: 110.1 | AH40: 0 | AI40: 2.2 | AJ40: 70 | AK40: 99.4 | AL40: 70
A41: 272094 | B41: 大阪府 | C41: 守口市 | D41: 1171 | E41: Aa1 | F41: A | G41: a | H41: 1 | I41: 144317 | J41: 14.2 | K41: 50 | L41: 100 | M41: 101.6 | N41: 2018 | O41: 126 | P41: 106.3 | Q41: 59.5 | R41: 100 | S41: 136.59 | T41: 87.63 | U41: 87.63 | V41: 59.03 | W41: 28.6 | X41: 155.9 | Y41: 155.9 | Z41: 231.4 | AA41: 9903 | AB41: 6671 | AC41: 3232 | AD41: 2673 | AE41: 8.5 | AF41: 120.7 | AG41: 125.7 | AH41: 0 | AI41: 2.6 | AJ41: 59.5 | AK41: 100.3 | AL41: 99
A42: 272108 | B42: 大阪府 | C42: 枚方市 | D42: 1171 | E42: Aa1 | F42: A | G42: a | H42: 1 | I42: 384696 | J42: 11.5 | K42: 58 | L42: 95 | M42: 101.2 | N42: 2570 | O42: 115 | P42: 0 | Q42: 85 | R42: 97 | S42: 149.65 | T42: 139.58 | U42: 139.58 | V42: 51.89 | W42: 87.68 | X42: 107.2 | Y42: 107.2 | Z42: 288.4 | AA42: 13979 | AB42: 5197 | AC42: 8782 | AD42: 3316 | AE42: 7.8 | AF42: 125.8 | AG42: 125.2 | AH42: 0 | AI42: 2.4 | AJ42: 64.8 | AK42: 102.2 | AL42: 188
A43: 272116 | B43: 大阪府 | C43: 茨木市 | D43: 1171 | E43: Aa1 | F43: A | G43: a | H43: 1 | I43: 277063 | J43: 11.3 | K43: 46 | L43: 99.1 | M43: 93.9 | N43: 1890 | O43: 105 | P43: 0 | Q43: 68.7 | R43: 98.9 | S43: 112.96 | T43: 93.73 | U43: 99.37 | V43: 51.5 | W43: 42.23 | X43: 120.5 | Y43: 113.7 | Z43: 219.3 | AA43: 10132 | AB43: 5567 | AC43: 4565 | AD43: 11083 | AE43: 2.7 | AF43: 112.5 | AG43: 112.5 | AH43: 0 | AI43: 3.4 | AJ43: 65 | AK43: 102.7 | AL43: 114
A44: 272124 | B44: 大阪府 | C44: 八尾市 | D44: 1171 | E44: Aa1 | F44: A | G44: a | H44: 1 | I44: 228538 | J44: 10.3 | K44: 43 | L44: 85 | M44: 91.1 | N44: 2052 | O44: 89 | P44: 0 | Q44: 55 | R44: 89.7 | S44: 125.94 | T44: 105.81 | U44: 105.81 | V44: 45.3 | W44: 60.51 | X44: 119 | Y44: 119 | Z44: 278 | AA44: 12196 | AB44: 5221 | AC44: 6974 | AD44: 4232 | AE44: 2 | AF44: 105.8 | AG44: 105.7 | AH44: 0 | AI44: 2.1 | AJ44: 48.6 | AK44: 102.6 | AL44: 419
A45: 272159 | B45: 大阪府 | C45: 寝屋川市 | D45: 1171 | E45: Aa1 | F45: A | G45: a | H45: 1 | I45: 237878 | J45: 13.3 | K45: 44 | L45: 99.7 | M45: 121 | N45: 2297 | O45: 132 | P45: 0 | Q45: 65.1 | R45: 97.9 | S45: 138.02 | T45: 141.67 | U45: 141.67 | V45: 39.39 | W45: 102.27 | X45: 97.4 | Y45: 97.4 | Z45: 350.4 | AA45: 14253 | AB45: 3963 | AC45: 10289 | AD45: 13993 | AE45: 3.1 | AF45: 102.1 | AG45: 102.1 | AH45: 0 | AI45: 2.5 | AJ45: 36.3 | AK45: 104.8 | AL45: 229
A46: 272183 | B46: 大阪府 | C46: 大東市 | D46: 1171 | E46: Aa1 | F46: A | G46: a | H46: 1 | I46: 121668 | J46: 10.7 | K46: 44 | L46: 98.7 | M46: 99.2 | N46: 1615 | O46: 102 | P46: 0 | Q46: 61.9 | R46: 97.2 | S46: 98.32 | T46: 127.41 | U46: 127.41 | V46: 62.55 | W46: 64.86 | X46: 77.2 | Y46: 77.2 | Z46: 157.2 | AA46: 13402 | AB46: 6580 | AC46: 6822 | AD46: 8691 | AE46: 3.7 | AF46: 95.8 | AG46: 96 | AH46: 21.9 | AI46: 2.5 | AJ46: 51.3 | AK46: 104.2 | AL46: 255
A47: 272205 | B47: 大阪府 | C47: 箕面市 | D47: 1171 | E47: Aa1 | F47: A | G47: a | H47: 1 | I47: 135435 | J47: 8 | K47: 47 | L47: 100 | M47: 89.7 | N47: 1911 | O47: 77 | P47: 0 | Q47: 72.2 | R47: 99.9 | S47: 108.21 | T47: 95.65 | U47: 95.65 | V47: 53.96 | W47: 41.69 | X47: 113.1 | Y47: 113.1 | Z47: 200.5 | AA47: 9981 | AB47: 5630 | AC47: 4351 | AD47: 10418 | AE47: 4.7 | AF47: 110.3 | AG47: 110.3 | AH47: 0 | AI47: 2.5 | AJ47: 85.9 | AK47: 92.1 | AL47: 37
A48: 272272 | B48: 大阪府 | C48: 東大阪市 | D48: 1171 | E48: Aa1 | F48: A | G48: a | H48: 1 | I48: 488347 | J48: 10.8 | K48: 48 | L48: 98.5 | M48: 98.5 | N48: 2049 | O48: 100 | P48: 0 | Q48: 57.2 | R48: 95.9 | S48: 125.89 | T48: 101.49 | U48: 101.49 | V48: 54.46 | W48: 47.04 | X48: 124 | Y48: 124 | Z48: 231.2 | AA48: 11013 | AB48: 5909 | AC48: 5104 | AD48: 5487 | AE48: 3.6 | AF48: 104.1 | AG48: 104.1 | AH48: 0 | AI48: 2.1 | AJ48: 34.3 | AK48: 102.9 | AL48: 321
A49: 282022 | B49: 兵庫県 | C49: 尼崎市 | D49: 1171 | E49: Aa1 | F49: A | G49: a | H49: 1 | I49: 463621 | J49: 13.7 | K49: 57 | L49: 100 | M49: 101.2 | N49: 1683 | O49: 114 | P49: 45.6 | Q49: 69 | R49: 99.5 | S49: 103.56 | T49: 77.3 | U49: 77.3 | V49: 50.84 | W49: 26.46 | X49: 134 | Y49: 134 | Z49: 203.7 | AA49: 9280 | AB49: 6104 | AC49: 3176 | AD49: 3896 | AE49: 7.9 | AF49: 114.3 | AG49: 114.3 | AH49: 0 | AI49: 2.6 | AJ49: 75.1 | AK49: 97.8 | AL49: 79
A50: 282049 | B50: 兵庫県 | C50: 西宮市 | D50: 1171 | E50: Aa1 | F50: A | G50: a | H50: 1 | I50: 484274 | J50: 11.3 | K50: 56 | L50: 99.3 | M50: 93.1 | N50: 1745 | O50: 101 | P50: 64.6 | Q50: 72 | R50: 99.7 | S50: 102.11 | T50: 103.11 | U50: 113.37 | V50: 50.62 | W50: 52.49 | X50: 99 | Y50: 90.1 | Z50: 201.7 | AA50: 11447 | AB50: 5620 | AC50: 5827 | AD50: 6544 | AE50: 6.1 | AF50: 109.1 | AG50: 109.1 | AH50: 0 | AI50: 2.5 | AJ50: 62.3 | AK50: 103 | AL50: 138
A51: 282073 | B51: 兵庫県 | C51: 伊丹市 | D51: 1171 | E51: Aa1 | F51: A | G51: a | H51: 1 | I51: 201694 | J51: 12 | K51: 47 | L51: 100 | M51: 103.9 | N51: 1648 | O51: 100 | P51: 0 | Q51: 71.7 | R51: 99.6 | S51: 101.8 | T51: 87.33 | U51: 87.33 | V51: 35.96 | W51: 51.36 | X51: 116.6 | Y51: 116.6 | Z51: 283.1 | AA51: 10490 | AB51: 4320 | AC51: 6170 | AD51: 8068 | AE51: 3.9 | AF51: 107.9 | AG51: 108.1 | AH51: 0.2 | AI51: 2.3 | AJ51: 45.1 | AK51: 104.3 | AL51: 179
A52: 282146 | B52: 兵庫県 | C52: 宝塚市 | D52: 1171 | E52: Aa1 | F52: A | G52: a | H52: 1 | I52: 230876 | J52: 9.6 | K52: 42 | L52: 98.7 | M52: 97.3 | N52: 1566 | O52: 96 | P52: 0 | Q52: 86.6 | R52: 99 | S52: 81.18 | T52: 87.96 | U52: 114.77 | V52: 40.27 | W52: 47.69 | X52: 92.3 | Y52: 70.7 | Z52: 201.6 | AA52: 8844 | AB52: 4049 | AC52: 4795 | AD52: 10038 | AE52: 4.8 | AF52: 103.9 | AG52: 103.5 | AH52: 0 | AI52: 2.3 | AJ52: 65.8 | AK52: 102.6 | AL52: 119
A53: 282171 | B53: 兵庫県 | C53: 川西市 | D53: 1171 | E53: Aa1 | F53: A | G53: a | H53: 1 | I53: 158996 | J53: 8.6 | K53: 42 | L53: 99.4 | M53: 100.1 | N53: 2106 | O53: 91 | P53: 0 | Q53: 80 | R53: 99.3 | S53: 116.6 | T53: 75.64 | U53: 87.6 | V53: 48.48 | W53: 27.16 | X53: 154.2 | Y53: 133.1 | Z53: 240.5 | AA53: 7179 | AB53: 4601 | AC53: 2578 | AD53: 5889 | AE53: 6.3 | AF53: 122.3 | AG53: 122.1 | AH53: 0 | AI53: 2.1 | AJ53: 64.8 | AK53: 98.8 | AL53: 91
A54: 292010 | B54: 奈良県 | C54: 奈良市 | D54: 1171 | E54: Aa1 | F54: A | G54: a | H54: 1 | I54: 317122 | J54: 7.6 | K54: 53 | L54: 87.7 | M54: 96 | N54: 2320 | O54: 68 | P54: 684.7 | Q54: 96 | R54: 94.9 | S54: 108.86 | T54: 102.11 | U54: 121.28 | V54: 74.21 | W54: 27.91 | X54: 106.6 | Y54: 89.8 | Z54: 146.7 | AA54: 11453 | AB54: 8323 | AC54: 3130 | AD54: 8571 | AE54: 7.8 | AF54: 91.9 | AG54: 92.3 | AH54: 1.4 | AI54: 1.8 | AJ54: 59 | AK54: 102.7 | AL54: 123
A55: 462012 | B55: 鹿児島県 | C55: 鹿児島市 | D55: 1171 | E55: Aa1 | F55: A | G55: a | H55: 1 | I55: 477900 | J55: 8 | K55: 61 | L55: 78.9 | M55: 89.7 | N55: 1803 | O55: 69 | P55: 78.9 | Q55: 87.3 | R55: 98.1 | S55: 107.62 | T55: 106.18 | U55: 122.04 | V55: 61.8 | W55: 44.38 | X55: 101.4 | Y55: 88.2 | Z55: 174.1 | AA55: 12422 | AB55: 7230 | AC55: 5192 | AD55: 3044 | AE55: 18 | AF55: 110.6 | AG55: 109.9 | AH55: 0 | AI55: 2.3 | AJ55: 66.7 | AK55: 97.9 | AL55: 59
A56: 472018 | B56: 沖縄県 | C56: 那覇市 | D56: 1171 | E56: Aa1 | F56: A | G56: a | H56: 1 | I56: 316894 | J56: 10.1 | K56: 47 | L56: 98 | M56: 101.1 | N56: 1468 | O56: 90 | P56: 0 | Q56: 100 | R56: 95.3 | S56: 95.32 | T56: 83 | U56: 88.46 | V56: 64.38 | W56: 18.63 | X56: 114.8 | Y56: 107.8 | Z56: 148.1 | AA56: 9303 | AB56: 7215 | AC56: 2087 | AD56: 6742 | AE56: 5.2 | AF56: 110.4 | AG56: 110.5 | AH56: 0 | AI56: 2.3 | AJ56: 69.2 | AK56: 97.1 | AL56: 49
A57: 112038 | B57: 埼玉県 | C57: 川口市 | D57: 2171 | E57: Aa1 | F57: A | G57: a | H57: 1 | I57: 511278 | J57: 12.2 | K57: 57 | L57: 86.1 | M57: 100.6 | N57: 1393 | O57: 123 | P57: 0 | Q57: 84.7 | R57: 94.2 | S57: 86.72 | T57: 129.54 | U57: 129.54 | V57: 65.3 | W57: 64.24 | X57: 66.9 | Y57: 66.9 | Z57: 132.8 | AA57: 12865 | AB57: 6484 | AC57: 6380 | AD57: 6909 | AE57: 7.2 | AF57: 123.1 | AG57: 123.1 | AH57: 0 | AI57: 0 | AJ57: 0 | AK57: 0 | AL57: 111
A58: 112194 | B58: 埼玉県 | C58: 上尾市 | D58: 2171 | E58: Aa1 | F58: A | G58: a | H58: 1 | I58: 182515 | J58: 8 | K58: 41 | L58: 80.1 | M58: 88.1 | N58: 2116 | O58: 85 | P58: 0 | Q58: 87.1 | R58: 96.3 | S58: 132.27 | T58: 140.12 | U58: 140.12 | V58: 63.18 | W58: 76.94 | X58: 94.4 | Y58: 94.4 | Z58: 209.4 | AA58: 13223 | AB58: 5962 | AC58: 7261 | AD58: 8691 | AE58: 3.1 | AF58: 166.1 | AG58: 166.1 | AH58: 0 | AI58: 0 | AJ58: 0 | AK58: 0 | AL58: 95
A59: 112216 | B59: 埼玉県 | C59: 草加市 | D59: 2171 | E59: Aa1 | F59: A | G59: a | H59: 1 | I59: 227313 | J59: 10 | K59: 33 | L59: 92.3 | M59: 100.8 | N59: 1803 | O59: 95 | P59: 0 | Q59: 87.4 | R59: 97.5 | S59: 100.57 | T59: 150 | U59: 197 | V59: 68.87 | W59: 81.13 | X59: 67 | Y59: 51.1 | Z59: 146 | AA59: 15777 | AB59: 7244 | AC59: 8533 | AD59: 15154 | AE59: 2.8 | AF59: 153.4 | AG59: 153.4 | AH59: 0 | AI59: 0 | AJ59: 0 | AK59: 0 | AL59: 185
A60: 112224 | B60: 埼玉県 | C60: 越谷市 | D60: 2171 | E60: Aa1 | F60: A | G60: a | H60: 1 | I60: 279899 | J60: 9.8 | K60: 33 | L60: 83 | M60: 98.3 | N60: 2100 | O60: 102 | P60: 0 | Q60: 86.6 | R60: 94.7 | S60: 115.43 | T60: 141.25 | U60: 141.25 | V60: 69.55 | W60: 71.71 | X60: 81.7 | Y60: 81.7 | Z60: 166 | AA60: 13597 | AB60: 6695 | AC60: 6903 | AD60: 11662 | AE60: 3.1 | AF60: 155.9 | AG60: 155.9 | AH60: 0 | AI60: 0 | AJ60: 0 | AK60: 0 | AL60: 140
A61: 112275 | B61: 埼玉県 | C61: 朝霞市 | D61: 2171 | E61: Aa1 | F61: A | G61: a | H61: 1 | I61: 132844 | J61: 12.4 | K61: 34 | L61: 97.4 | M61: 111.9 | N61: 1134 | O61: 123 | P61: 0 | Q61: 80.1 | R61: 98.3 | S61: 66.42 | T61: 69.7 | U61: 69.7 | V61: 53.77 | W61: 15.93 | X61: 95.3 | Y61: 95.3 | Z61: 123.5 | AA61: 7021 | AB61: 5417 | AC61: 1604 | AD61: 11070 | AE61: 6.5 | AF61: 114.5 | AG61: 114.5 | AH61: 0 | AI61: 0 | AJ61: 0 | AK61: 0 | AL61: 23
A62: 112305 | B62: 埼玉県 | C62: 新座市 | D62: 2171 | E62: Aa1 | F62: A | G62: a | H62: 1 | I62: 152769 | J62: 11.5 | K62: 34 | L62: 92.9 | M62: 108 | N62: 1609 | O62: 112 | P62: 0 | Q62: 99.2 | R62: 98.7 | S62: 96.55 | T62: 127.38 | U62: 127.38 | V62: 46.6 | W62: 80.78 | X62: 75.8 | Y62: 75.8 | Z62: 207.2 | AA62: 13054 | AB62: 4776 | AC62: 8278 | AD62: 12731 | AE62: 2.7 | AF62: 154.9 | AG62: 154.9 | AH62: 0 | AI62: 0 | AJ62: 0 | AK62: 0 | AL62: 95
A63: 112372 | B63: 埼玉県 | C63: 三郷市 | D63: 2171 | E63: Aa1 | F63: A | G63: a | H63: 1 | I63: 105956 | J63: 8.1 | K63: 33 | L63: 76.8 | M63: 86.3 | N63: 1566 | O63: 87 | P63: 0 | Q63: 84.8 | R63: 90.2 | S63: 91.55 | T63: 150 | U63: 201.98 | V63: 62.9 | W63: 87.1 | X63: 61 | Y63: 45.3 | Z63: 145.6 | AA63: 13990 | AB63: 5866 | AC63: 8123 | AD63: 7568 | AE63: 5.3 | AF63: 139.7 | AG63: 139.7 | AH63: 0 | AI63: 0 | AJ63: 0 | AK63: 0 | AL63: 259
A64: 112453 | B64: 埼玉県 | C64: ふじみ野市 | D64: 2171 | E64: Aa1 | F64: A | G64: a | H64: 1 | I64: 103315 | J64: 13.7 | K64: 34 | L64: 91.3 | M64: 88.8 | N64: 1346 | O64: 112 | P64: 0 | Q64: 85.5 | R64: 97.2 | S64: 63.1 | T64: 74.2 | U64: 74.2 | V64: 42.63 | W64: 31.58 | X64: 85 | Y64: 85 | Z64: 148 | AA64: 9035 | AB64: 5190 | AC64: 3845 | AD64: 10332 | AE64: 6.6 | AF64: 144.1 | AG64: 144.1 | AH64: 0 | AI64: 0 | AJ64: 0 | AK64: 0 | AL64: 34
A65: 118541 | B65: 埼玉県 | C65: 坂戸、鶴ケ島下水道組合 | D65: 2171 | E65: Aa1 | F65: A | G65: a | H65: 1 | I65: 115699 | J65: 7.9 | K65: 43 | L65: 70.6 | M65: 76.2 | N65: 1998 | O65: 76 | P65: 68.8 | Q65: 78.2 | R65: 94 | S65: 133.52 | T65: 150.57 | U65: 208.2 | V65: 107.29 | W65: 43.28 | X65: 88.7 | Y65: 64.1 | Z65: 124.4 | AA65: 15557 | AB65: 11085 | AC65: 4472 | AD65: 3045 | AE65: 14 | AF65: 145.3 | AG65: 145.3 | AH65: 0 | AI65: 0 | AJ65: 0 | AK65: 0 | AL65: 123
A66: 122033 | B66: 千葉県 | C66: 市川市 | D66: 2171 | E66: Aa1 | F66: A | G66: a | H66: 1 | I66: 343900 | J66: 14.1 | K66: 44 | L66: 71.9 | M66: 73.2 | N66: 2516 | O66: 155 | P66: 826.5 | Q66: 91.2 | R66: 92.1 | S66: 153.65 | T66: 157.03 | U66: 173.47 | V66: 80.23 | W66: 76.8 | X66: 97.8 | Y66: 88.6 | Z66: 191.5 | AA66: 14265 | AB66: 7289 | AC66: 6977 | AD66: 6253 | AE66: 6 | AF66: 169.9 | AG66: 169.9 | AH66: 0 | AI66: 0 | AJ66: 0 | AK66: 0 | AL66: 97
A67: 122041 | B67: 千葉県 | C67: 船橋市 | D67: 2171 | E67: Aa1 | F67: A | G67: a | H67: 1 | I67: 481337 | J67: 11.7 | K67: 55 | L67: 76.7 | M67: 86.6 | N67: 1938 | O67: 118 | P67: 113.9 | Q67: 74.7 | R67: 90.9 | S67: 145.72 | T67: 150 | U67: 177.33 | V67: 72.41 | W67: 77.59 | X67: 97.1 | Y67: 82.2 | Z67: 201.2 | AA67: 14932 | AB67: 7208 | AC67: 7724 | AD67: 5232 | AE67: 2.6 | AF67: 170.9 | AG67: 170.9 | AH67: 0 | AI67: 0 | AJ67: 0 | AK67: 0 | AL67: 287
A68: 122076 | B68: 千葉県 | C68: 松戸市 | D68: 2171 | E68: Aa1 | F68: A | G68: a | H68: 1 | I68: 413636 | J68: 10.4 | K68: 56 | L68: 84.3 | M68: 86.7 | N68: 2423 | O68: 109 | P68: 1064.8 | Q68: 79.8 | R68: 94.8 | S68: 166.38 | T68: 186.08 | U68: 211.58 | V68: 84.1 | W68: 101.98 | X68: 89.4 | Y68: 78.6 | Z68: 197.8 | AA68: 17902 | AB68: 8091 | AC68: 9811 | AD68: 8992 | AE68: 2.5 | AF68: 153.3 | AG68: 153.3 | AH68: 0 | AI68: 0 | AJ68: 0 | AK68: 0 | AL68: 141
A69: 122165 | B69: 千葉県 | C69: 習志野市 | D69: 2171 | E69: Aa1 | F69: A | G69: a | H69: 1 | I69: 160109 | J69: 10.4 | K69: 49 | L69: 94.5 | M69: 98.8 | N69: 2072 | O69: 105 | P69: 205.5 | Q69: 63.5 | R69: 96.9 | S69: 152.49 | T69: 176.2 | U69: 176.2 | V69: 78.39 | W69: 97.82 | X69: 86.5 | Y69: 86.5 | Z69: 194.5 | AA69: 17434 | AB69: 7756 | AC69: 9678 | AD69: 6404 | AE69: 5.5 | AF69: 126.6 | AG69: 126.6 | AH69: 0 | AI69: 0 | AJ69: 0 | AK69: 0 | AL69: 173
A70: 122220 | B70: 千葉県 | C70: 我孫子市 | D70: 2171 | E70: Aa1 | F70: A | G70: a | H70: 1 | I70: 109454 | J70: 8.2 | K70: 46 | L70: 82.5 | M70: 82.2 | N70: 2138 | O70: 86 | P70: 0 | Q70: 78.5 | R70: 99.4 | S70: 136.13 | T70: 143.66 | U70: 155.8 | V70: 79.37 | W70: 64.29 | X70: 94.8 | Y70: 87.4 | Z70: 171.5 | AA70: 13687 | AB70: 7561 | AC70: 6125 | AD70: 8420 | AE70: 3.4 | AF70: 142.1 | AG70: 142.1 | AH70: 0 | AI70: 0 | AJ70: 0 | AK70: 0 | AL70: 124
A71: 122271 | B71: 千葉県 | C71: 浦安市 | D71: 2171 | E71: Aa1 | F71: A | G71: a | H71: 1 | I71: 164913 | J71: 13 | K71: 32 | L71: 99.7 | M71: 97.6 | N71: 1512 | O71: 104 | P71: 0 | Q71: 80.4 | R71: 97 | S71: 104.04 | T71: 178.44 | U71: 190.24 | V71: 131.24 | W71: 47.2 | X71: 58.3 | Y71: 54.7 | Z71: 79.3 | AA71: 22279 | AB71: 16386 | AC71: 5893 | AD71: 10307 | AE71: 3 | AF71: 130.2 | AG71: 130.2 | AH71: 0 | AI71: 0 | AJ71: 0 | AK71: 0 | AL71: 75
A72: 132021 | B72: 東京都 | C72: 立川市 | D72: 2171 | E72: Aa1 | F72: A | G72: a | H72: 1 | I72: 180277 | J72: 9.6 | K72: 56 | L72: 100 | M72: 103 | N72: 1382 | O72: 83 | P72: 55.8 | Q72: 85.9 | R72: 99.8 | S72: 124.31 | T72: 115.92 | U72: 132.5 | V72: 74.19 | W72: 41.73 | X72: 107.2 | Y72: 93.8 | Z72: 167.5 | AA72: 13377 | AB72: 8561 | AC72: 4816 | AD72: 4192 | AE72: 5.1 | AF72: 157.4 | AG72: 157.4 | AH72: 0 | AI72: 0 | AJ72: 0 | AK72: 0 | AL72: 90
A73: 132039 | B73: 東京都 | C73: 武蔵野市 | D73: 2171 | E73: Aa1 | F73: A | G73: a | H73: 1 | I73: 143630 | J73: 16 | K73: 47 | L73: 100 | M73: 100 | N73: 1134 | O73: 134 | P73: 0 | Q73: 101.3 | R73: 100 | S73: 80.64 | T73: 69.35 | U73: 69.35 | V73: 63.59 | W73: 5.76 | X73: 116.3 | Y73: 116.3 | Z73: 126.8 | AA73: 8301 | AB73: 7612 | AC73: 689 | AD73: 7979 | AE73: 4.6 | AF73: 127.3 | AG73: 127.3 | AH73: 0 | AI73: 0 | AJ73: 0 | AK73: 0 | AL73: 56
A74: 132047 | B74: 東京都 | C74: 三鷹市 | D74: 2171 | E74: Aa1 | F74: A | G74: a | H74: 1 | I74: 183951 | J74: 11.4 | K74: 48 | L74: 100 | M74: 106.4 | N74: 1235 | O74: 112 | P74: 68.4 | Q74: 84.8 | R74: 100 | S74: 94.3 | T74: 101.78 | U74: 101.78 | V74: 80.49 | W74: 21.29 | X74: 92.6 | Y74: 92.6 | Z74: 117.1 | AA74: 10332 | AB74: 8171 | AC74: 2161 | AD74: 9682 | AE74: 4.6 | AF74: 120.6 | AG74: 120.6 | AH74: 0 | AI74: 0 | AJ74: 0 | AK74: 0 | AL74: 58
A75: 132063 | B75: 東京都 | C75: 府中市 | D75: 2171 | E75: Aa1 | F75: A | G75: a | H75: 1 | I75: 257318 | J75: 10.7 | K75: 43 | L75: 100 | M75: 100.7 | N75: 892 | O75: 94 | P75: 0 | Q75: 101.5 | R75: 100 | S75: 76.61 | T75: 63.16 | U75: 63.16 | V75: 56.33 | W75: 6.83 | X75: 121.3 | Y75: 121.3 | Z75: 136 | AA75: 7149 | AB75: 6376 | AC75: 773 | AD75: 17155 | AE75: 2.1 | AF75: 126.9 | AG75: 126.9 | AH75: 0 | AI75: 0 | AJ75: 0 | AK75: 0 | AL75: 19
A76: 132071 | B76: 東京都 | C76: 昭島市 | D76: 2171 | E76: Aa1 | F76: A | G76: a | H76: 1 | I76: 112827 | J76: 9.7 | K76: 38 | L76: 99.9 | M76: 110 | N76: 1323 | O76: 82 | P76: 0 | Q76: 89.8 | R76: 99.3 | S76: 130.79 | T76: 85.87 | U76: 86.81 | V76: 61.18 | W76: 24.68 | X76: 152.3 | Y76: 150.7 | Z76: 213.8 | AA76: 10173 | AB76: 7249 | AC76: 2924 | AD76: 8679 | AE76: 2.6 | AF76: 223 | AG76: 223 | AH76: 0 | AI76: 0 | AJ76: 0 | AK76: 0 | AL76: 51
A77: 132080 | B77: 東京都 | C77: 調布市 | D77: 2171 | E77: Aa1 | F77: A | G77: a | H77: 1 | I77: 227208 | J77: 12.2 | K77: 44 | L77: 100 | M77: 104.7 | N77: 1252 | O77: 116 | P77: 0 | Q77: 80 | R77: 100 | S77: 84.44 | T77: 64.85 | U77: 64.85 | V77: 61.05 | W77: 3.8 | X77: 130.2 | Y77: 130.2 | Z77: 138.3 | AA77: 6792 | AB77: 6395 | AC77: 398 | AD77: 14201 | AE77: 3.7 | AF77: 111.2 | AG77: 111.2 | AH77: 0 | AI77: 0 | AJ77: 0 | AK77: 0 | AL77: 28
A78: 132098 | B78: 東京都 | C78: 町田市 | D78: 2171 | E78: Aa1 | F78: A | G78: a | H78: 1 | I78: 420634 | J78: 8.4 | K78: 49 | L78: 98.5 | M78: 98.5 | N78: 2030 | O78: 86 | P78: 78.3 | Q78: 91.5 | R78: 98.3 | S78: 133.2 | T78: 124.9 | U78: 150.95 | V78: 72.8 | W78: 52.1 | X78: 106.6 | Y78: 88.2 | Z78: 183 | AA78: 12283 | AB78: 7159 | AC78: 5124 | AD78: 4523 | AE78: 10.6 | AF78: 159.6 | AG78: 159.6 | AH78: 0 | AI78: 0 | AJ78: 0 | AK78: 0 | AL78: 117
A79: 132101 | B79: 東京都 | C79: 小金井市 | D79: 2171 | E79: Aa1 | F79: A | G79: a | H79: 1 | I79: 118346 | J79: 10.9 | K79: 43 | L79: 100 | M79: 109 | N79: 1134 | O79: 104 | P79: 0 | Q79: 99.8 | R79: 100 | S79: 81.66 | T79: 63.48 | U79: 63.48 | V79: 60.05 | W79: 3.43 | X79: 128.6 | Y79: 128.6 | Z79: 136 | AA79: 6633 | AB79: 6275 | AC79: 358 | AD79: 11835 | AE79: 7.5 | AF79: 129.5 | AG79: 129.5 | AH79: 0 | AI79: 0 | AJ79: 0 | AK79: 0 | AL79: 13
